Workbook

Sheet Reservoir Storage
AO2: MD PF | AP2: =J29 -> 1.945280572
AO3: 30 Day PF | AP3: =J30 -> 1.403643725
AO5: b | AP5: =LOG(AP3/AP2)/LOG(30) -> -0.09594700535
AO7: Day Number | AP7: 1 | AQ7: =AP7+1 -> 2 | AR7: =AQ7+1 -> 3 | AS7: 4 | AT7: 5 | AU7: 6 | AV7: 7 | AW7: 8 | AX7: 9 | AY7: 10 | AZ7: 11 | BA7: 12 | BB7: 13 | BC7: =BB7+1 -> 14 | BD7: =BC7+1 -> 15 | BE7: 16 | BF7: 17 | BG7: 18 | BH7: 19 | BI7: 20 | BJ7: 21 | BK7: 22 | BL7: 23 | BM7: 24 | BN7: 25 | BO7: 26 | BP7: 27 | BQ7: 28 | BR7: 29 | BS7: 30 | BT7: 31 | BU7: 32 | BV7: 33 | BW7: 34 | BX7: 35 | BY7: 36 | BZ7: 37 | CA7: 38 | CB7: 39 | CC7: 40
AO8: Peaking Factor | AP8: =$AP$2*AP7^$AP$5 -> 1.945280572 | AQ8: 1.82011707 | AR8: 1.750668405 | AS8: 1.703006855 | AT8: 1.666933101 | AU8: 1.638026665 | AV8: 1.613978047 | AW8: 1.593431762 | AX8: 1.575525869 | AY8: 1.55967907 | AZ8: 1.545481248 | BA8: 1.532632535 | BB8: 1.520907217 | BC8: 1.510131257 | BD8: 1.500167716 | BE8: 1.490906963 | BF8: 1.482259902 | BG8: 1.474153173 | BH8: 1.466525675 | BI8: 1.459325991 | BJ8: 1.452510457 | BK8: 1.446041688 | BL8: 1.439887434 | BM8: 1.434019688 | BN8: 1.42841398 | BO8: 1.423048802 | BP8: 1.417905159 | BQ8: 1.41296619 | BR8: 1.408216864 | BS8: 1.403643725 | BT8: 1.399234681 | BU8: 1.394978829 | BV8: 1.390866299 | BW8: 1.386888138 | BX8: 1.38303619 | BY8: 1.379303014 | BZ8: 1.375681795 | CA8: 1.372166285 | CB8: 1.368750734 | CC8: 1.365429844
AO10: MD Multiplier | AP10: 3
AY11: Inflow/Storage Curve Values
AO12: Inflow Ratio | AP12: =1 -> 1 | AQ12: =AP12+0.1 -> 1.1 | AR12: =AQ12+0.1 -> 1.2 | AS12: 1.3 | AT12: 1.4 | AU12: 1.5 | AV12: 1.6 | AW12: 1.7 | AX12: 1.8 | AY12: 1.9 | AZ12: 2 | BA12: 2.1 | BB12: 2.2 | BC12: 2.3 | BD12: 2.4 | BE12: 2.5 | BF12: 2.6 | BG12: 2.7 | BH12: 2.8 | BI12: 2.9 | BJ12: 3
AO13: Critical persistence period | AP13: =(AP12/($AP$2*(1+$AP$5)))^(1/$AP$5) -> 359.1937091 | AQ13: =(AQ12/($AP$2*(1+$AP$5)))^(1/$AP$5) -> 133.0199459 | AR13: 53.71165188 | AS13: 23.32186264 | AT13: 10.77261009 | AU13: 5.248456943 | AV13: 2.678579284 | AW13: 1.423945097 | AX13: 0.7848224651 | AY13: 0.4467263602 | AZ13: 0.2617385157 | BA13: 0.1574069334 | BB13: 0.09692943476 | BC13: 0.06098868115 | BD13: 0.03913879247 | BE13: 0.02557589055 | BF13: 0.01699425562 | BG13: 0.01146764771 | BH13: 0.007849822824 | BI13: 0.005445308887 | BJ13: 0.003824463778
AO14: Maximum Persistence Storage | AP14: =$AP$2*MAX(AP13,1)^(1+$AP$5)-AP12*MAX(AP13,1) -> 38.12117313 | AQ14: =$AP$2*MAX(AQ13,1)^(1+$AP$5)-AQ12*MAX(AQ13,1) -> 15.52912505 | AR14: 6.840491229 | AS14: 3.217689406 | AT14: 1.600613635 | AU14: 0.8355268929 | AV14: 0.4548435322 | AW14: 0.2569092263 | AX14: 0.1452805721 | AY14: 0.04528057212 | AZ14: -0.05471942788 | BA14: -0.1547194279 | BB14: -0.2547194279 | BC14: -0.3547194279 | BD14: -0.4547194279 | BE14: -0.5547194279 | BF14: -0.6547194279 | BG14: -0.7547194279 | BH14: -0.8547194279 | BI14: -0.9547194279 | BJ14: -1.054719428
AO15: Multiplier x MD Storage | AP15: =$AP$10*($AP$2-AP12) -> 2.835841716 | AQ15: 2.535841716 | AR15: 2.235841716 | AS15: 1.935841716 | AT15: 1.635841716 | AU15: 1.335841716 | AV15: 1.035841716 | AW15: 0.7358417164 | AX15: 0.4358417164 | AY15: 0.1358417164 | AZ15: -0.1641582836 | BA15: -0.4641582836 | BB15: -0.7641582836 | BC15: -1.064158284 | BD15: -1.364158284 | BE15: -1.664158284 | BF15: -1.964158284 | BG15: -2.264158284 | BH15: -2.564158284 | BI15: -2.864158284 | BJ15: -3.164158284
E17: Figure A | F17: Schematic of Storage Components | AO17: 30 Day | AP17: =J30 -> 1.403643725 | AQ17: =J30 -> 1.403643725
AO18: 30 Day | AP18: 0 | AQ18: 30
E19: CATCHMENT SUPPLY DEMAND
E20: Residential Population | J20: 21500 | K20: EP | AO20: Inflow | AP20: =J35 -> 1.571997485 | AQ20: =J35 -> 1.571997485
E21: Non-residential Population | J21: 15200 | K21: EP | AO21: Inflow | AP21: 0 | AQ21: 30
E22: Per Capita Demand | J22: 260 | K22: Litres per EP per day
E23: Average Day (AD) Demand | J23: =(J20+J21)*J22/1000000 -> 9.542 | K23: ML/d | AO23: LOS | AP23: =J26 -> 11.59033333 | AQ23: =J26 -> 11.59033333
AO24: LOS | AP24: 0 | AQ24: 180
E25: SUPPLY LEVEL OF SERVICE
E26: Level of Service | J26: =10+J23/6 -> 11.59033333 | K26: Years | AO26: MD | AP26: =J29 -> 1.945280572 | AQ26: =J29 -> 1.945280572
AO27: MD | AP27: 0 | AQ27: 30
E28: PEAKING FACTORS
E29: Maximum Day | J29: =InterpolateXY(J23,J26,'South East Qld Peaking Factors'!$D$7:$Q$7,'South East Qld Peaking Factors'!$C$8:$C$22,'South East Qld Peaking Factors'!$D$8:$Q$22) -> 1.945280572 | K29: #
E30: 30 Day | J30: =InterpolateXY(J23,J26,'South East Qld Peaking Factors'!$S$7:$AF$7,'South East Qld Peaking Factors'!$R$8:$R$22,'South East Qld Peaking Factors'!$S$8:$AF$22) -> 1.403643725 | K30: #
E32: STORAGE REQUIREMENTS
E33: Daily Fluctuation Storage | J33: =4/24*2*J23 -> 3.180666667 | K33: ML
E34: Inflow | J34: 15 | K34: ML/d
E35: Inflow/AD Ratio | J35: =J34/J23 -> 1.571997485 | K35: #
E36: No Failure Persistence Storage | J36: =MAX($AP$2*MAX((J35/($AP$2*(1+$AP$5)))^(1/$AP$5),1)^(1+$AP$5)-J35*MAX((J35/($AP$2*(1+$AP$5)))^(1/$AP$5),1),0)*J23 -> 5.125707661 | K36: ML
E37: Failure Persistence Storage | J37: ='Failure Persistence Storage'!Z3 -> 6.867683688 | K37: ML
E38: Storage Diameter | J38: 36 | K38: m
E39: Dead Water Depth Allowance | J39: 500 | K39: mm
E40: Dead Water Storage | J40: =PI()*J38*J38/4*J39/1000000 -> 0.5089380099 | K40: ML
E41: Total Minimum Required Storage | J41: =J33+MAX(J36,J37)+J40 -> 10.55728836 | K41: ML

Sheet Failure Persistence Storage
S2: K | T2: 2
S3: a | T3: 0.56 | Y3: Maximum Failure Persistence Storage | Z3: =(_xlfn.MAXIFS(Z7:Z36,Q7:Q36,"<="&P7)) -> 6.867683688
O5: AD | P5: LOS | Q5: Failure Rate | R5: Outage | S5: Demand Percentile | T5: MD Peaking Factor | U5: 30 Day Peaking Factor | V5: b | W5: Inflow | X5: Critical Persistence Period | Y5: Inflow/AD Ratio | Z5: Full Failure Storage | AB5: Failure Return Period | AC5: Outage
O6: ML/d | P6: Years | Q6: Years | R6: Hours | S6: % | T6: # | U6: # | V6: # | W6: ML/d | X6: Days | Y6: # | Z6: ML | AB6: Years | AC6: Hours
O7: ='Reservoir Storage'!J$23 -> 9.542 | P7: ='Reservoir Storage'!J$26 -> 11.59033333 | Q7: ='Reservoir Storage'!J26 -> 11.59033333 | R7: =T$2*Q7^T$3 -> 7.887215632 | S7: =100*(1-(1-1/Q7)^P7) -> 64.85870496 | T7: =IF($Q7=0," ",IF(S7>99.99,InterpolateXY(O7,P7,'South East Qld Peaking Factors'!$D$7:$Q$7,'South East Qld Peaking Factors'!$C$8:$C$22,'South East Qld Peaking Factors'!$D$8:$Q$22),IF(S7>99,(InterpolateXY(O7,P7,'South East Qld Peaking Factors'!$D$7:$Q$7,'South East Qld Peaking Factors'!$C$8:$C$22,'South East Qld Peaking Factors'!$D$8:$Q$22)- InterpolateXY(O7,P7,'South East Qld Peaking Factors'!$D$23:$Q$23,'South East Qld Peaking Factors'!$C$24:$C$38,'South East Qld Peaking Factors'!$D$24:$Q$38))*(S7-99)+ InterpolateXY(O7,P7,'South East Qld Peaking Factors'!$D$23:$Q$23,'South East Qld Peaking Factors'!$C$24:$C$38,'South East Qld Peaking Factors'!$D$24:$Q$38),IF(S7>98,(InterpolateXY(O7,P7,'South East Qld Peaking Factors'!$D$23:$Q$23,'South East Qld Peaking Factors'!$C$24:$C$38,'South East Qld Peaking Factors'!$D$24:$Q$38)-InterpolateXY(O7,P7,'South East Qld Peaking Factors'!$D$39:$Q$39,'South East Qld Peaking Factors'!$C$40:$C$54,'South East Qld Peaking Factors'!$D$40:$Q$54))*(S7-98)+ InterpolateXY(O7,P7,'South East Qld Peaking Factors'!$D$39:$Q$39,'South East Qld Peaking Factors'!$C$40:$C$54,'South East Qld Peaking Factors'!$D$40:$Q$54),IF(S7>95,(InterpolateXY(O7,P7,'South East Qld Peaking Factors'!$D$39:$Q$39,'South East Qld Peaking Factors'!$C$40:$C$54,'South East Qld Peaking Factors'!$D$40:$Q$54)-InterpolateXY(O7,P7,'South East Qld Peaking Factors'!$D$55:$Q$55,'South East Qld Peaking Factors'!$C$56:$C$70,'South East Qld Peaking Factors'!$D$56:$Q$70))*(S7-95)/3+InterpolateXY(O7,P7,'South East Qld Peaking Factors'!$D$55:$Q$55,'South East Qld Peaking Factors'!$C$56:$C$70,'South East Qld Peaking Factors'!$D$56:$Q$70),IF(S7>90,(InterpolateXY(O7,P7,'South East Qld Peaking Factors'!$D$55:$Q$55,'South East Qld Peaking Factors'!$C$56:$C$70,'South East Qld Peaking Factors'!$D$56:$Q$70)-InterpolateXY(O7,P7,'South East Qld Peaking Factors'!$D$71:$Q$71,'South East Qld Peaking Factors'!$C$72:$C$86,'South East Qld Peaking Factors'!$D$72:$Q$86))*(S7-90)/5+InterpolateXY(O7,P7,'South East Qld Peaking Factors'!$D$71:$Q$71,'South East Qld Peaking Factors'!$C$72:$C$86,'South East Qld Peaking Factors'!$D$72:$Q$86),IF(S7>80,(InterpolateXY(O7,P7,'South East Qld Peaking Factors'!$D$71:$Q$71,'South East Qld Peaking Factors'!$C$72:$C$86,'South East Qld Peaking Factors'!$D$72:$Q$86)-InterpolateXY(O7,P7,'South East Qld Peaking Factors'!$D$87:$Q$87,'South East Qld Peaking Factors'!$C$88:$C$102,'South East Qld Peaking Factors'!$D$88:$Q$102))*(S7-80)/10+InterpolateXY(O7,P7,'South East Qld Peaking Factors'!$D$87:$Q$87,'South East Qld Peaking Factors'!$C$88:$C$102,'South East Qld Peaking Factors'!$D$88:$Q$102),IF(S7>70,(InterpolateXY(O7,P7,'South East Qld Peaking Factors'!$D$87:$Q$87,'South East Qld Peaking Factors'!$C$88:$C$102,'South East Qld Peaking Factors'!$D$88:$Q$102)-InterpolateXY(O7,P7,'South East Qld Peaking Factors'!$D$103:$Q$103,'South East Qld Peaking Factors'!$C$104:$C$118,'South East Qld Peaking Factors'!$D$104:$Q$118))*(S7-70)/10+InterpolateXY(O7,P7,'South East Qld Peaking Factors'!$D$103:$Q$103,'South East Qld Peaking Factors'!$C$104:$C$118,'South East Qld Peaking Factors'!$D$104:$Q$118),IF(S7>60,(InterpolateXY(O7,P7,'South East Qld Peaking Factors'!$D$103:$Q$103,'South East Qld Peaking Factors'!$C$104:$C$118,'South East Qld Peaking Factors'!$D$104:$Q$118)-InterpolateXY(O7,P7,'South East Qld Peaking Factors'!$D$119:$Q$119,'South East Qld Peaking Factors'!$C$120:$C$134,'South East Qld Peaking Factors'!$D$120:$Q$134))*(S7-60)/10+InterpolateXY(O7,P7,'South East Qld Peaking Factors'!$D$119:$Q$119,'South East Qld Peaking Factors'!$C$120:$C$134,'South East Qld Peaking Factors'!$D$120:$Q$134),IF(S7>50,(InterpolateXY(O7,P7,'South East Qld Peaking Factors'!$D$119:$Q$119,'South East Qld Peaking Factors'!$C$120:$C$134,'South East Qld Peaking Factors'!$D$120:$Q$134)-1)*(S7-50)/10+1,1)))))))))) -> 1.12565705 | U7: =IF($Q7=0," ",IF(S7>99.99,InterpolateXY(O7,P7,'South East Qld Peaking Factors'!$S$7:$AF$7,'South East Qld Peaking Factors'!$R$8:$R$22,'South East Qld Peaking Factors'!$S$8:$AF$22),IF(S7>99,(InterpolateXY(O7,P7,'South East Qld Peaking Factors'!$S$7:$AF$7,'South East Qld Peaking Factors'!$R$8:$R$22,'South East Qld Peaking Factors'!$S$8:$AF$22)- InterpolateXY(O7,P7,'South East Qld Peaking Factors'!$S$23:$AF$23,'South East Qld Peaking Factors'!$R$24:$R$38,'South East Qld Peaking Factors'!$S$24:$AF$38))*(S7-99)+ InterpolateXY(O7,P7,'South East Qld Peaking Factors'!$S$23:$AF$23,'South East Qld Peaking Factors'!$R$24:$R$38,'South East Qld Peaking Factors'!$S$24:$AF$38),IF(S7>98,(InterpolateXY(O7,P7,'South East Qld Peaking Factors'!$S$23:$AF$23,'South East Qld Peaking Factors'!$R$24:$R$38,'South East Qld Peaking Factors'!$S$24:$AF$38)-InterpolateXY(O7,P7,'South East Qld Peaking Factors'!$S$39:$AF$39,'South East Qld Peaking Factors'!$R$40:$R$54,'South East Qld Peaking Factors'!$S$40:$AF$54))*(S7-98)+ InterpolateXY(O7,P7,'South East Qld Peaking Factors'!$S$39:$AF$39,'South East Qld Peaking Factors'!$R$40:$R$54,'South East Qld Peaking Factors'!$S$40:$AF$54),IF(S7>95,(InterpolateXY(O7,P7,'South East Qld Peaking Factors'!$S$39:$AF$39,'South East Qld Peaking Factors'!$R$40:$R$54,'South East Qld Peaking Factors'!$S$40:$AF$54)-InterpolateXY(O7,P7,'South East Qld Peaking Factors'!$S$55:$AF$55,'South East Qld Peaking Factors'!$R$56:$R$70,'South East Qld Peaking Factors'!$S$56:$AF$70))*(S7-95)/3+InterpolateXY(O7,P7,'South East Qld Peaking Factors'!$S$55:$AF$55,'South East Qld Peaking Factors'!$R$56:$R$70,'South East Qld Peaking Factors'!$S$56:$AF$70),IF(S7>90,(InterpolateXY(O7,P7,'South East Qld Peaking Factors'!$S$55:$AF$55,'South East Qld Peaking Factors'!$R$56:$R$70,'South East Qld Peaking Factors'!$S$56:$AF$70)-InterpolateXY(O7,P7,'South East Qld Peaking Factors'!$S$71:$AF$71,'South East Qld Peaking Factors'!$R$72:$R$86,'South East Qld Peaking Factors'!$S$72:$AF$86))*(S7-90)/5+InterpolateXY(O7,P7,'South East Qld Peaking Factors'!$S$71:$AF$71,'South East Qld Peaking Factors'!$R$72:$R$86,'South East Qld Peaking Factors'!$S$72:$AF$86),IF(S7>80,(InterpolateXY(O7,P7,'South East Qld Peaking Factors'!$S$71:$AF$71,'South East Qld Peaking Factors'!$R$72:$R$86,'South East Qld Peaking Factors'!$S$72:$AF$86)-InterpolateXY(O7,P7,'South East Qld Peaking Factors'!$S$87:$AF$87,'South East Qld Peaking Factors'!$R$88:$R$102,'South East Qld Peaking Factors'!$S$88:$AF$102))*(S7-80)/10+InterpolateXY(O7,P7,'South East Qld Peaking Factors'!$S$87:$AF$87,'South East Qld Peaking Factors'!$R$88:$R$102,'South East Qld Peaking Factors'!$S$88:$AF$102),IF(S7>70,(InterpolateXY(O7,P7,'South East Qld Peaking Factors'!$S$87:$AF$87,'South East Qld Peaking Factors'!$R$88:$R$102,'South East Qld Peaking Factors'!$S$88:$AF$102)-InterpolateXY(O7,P7,'South East Qld Peaking Factors'!$S$103:$AF$103,'South East Qld Peaking Factors'!$R$104:$R$118,'South East Qld Peaking Factors'!$S$104:$AF$118))*(S7-70)/10+InterpolateXY(O7,P7,'South East Qld Peaking Factors'!$S$103:$AF$103,'South East Qld Peaking Factors'!$R$104:$R$118,'South East Qld Peaking Factors'!$S$104:$AF$118),IF(S7>60,(InterpolateXY(O7,P7,'South East Qld Peaking Factors'!$S$103:$AF$103,'South East Qld Peaking Factors'!$R$104:$R$118,'South East Qld Peaking Factors'!$S$104:$AF$118)-InterpolateXY(O7,P7,'South East Qld Peaking Factors'!$S$119:$AF$119,'South East Qld Peaking Factors'!$R$120:$R$134,'South East Qld Peaking Factors'!$S$120:$AF$134))*(S7-60)/10+InterpolateXY(O7,P7,'South East Qld Peaking Factors'!$S$119:$AF$119,'South East Qld Peaking Factors'!$R$120:$R$134,'South East Qld Peaking Factors'!$S$120:$AF$134),IF(S7>50,(InterpolateXY(O7,P7,'South East Qld Peaking Factors'!$S$119:$AF$119,'South East Qld Peaking Factors'!$R$120:$R$134,'South East Qld Peaking Factors'!$S$120:$AF$134)-1)*(S7-50)/10+1,1)))))))))) -> 1.105234591 | V7: =IF(S7>=50,-LOG(T7/U7)/LOG(30)," ") -> -0.005383191608 | W7: ='Reservoir Storage'!J$34 -> 15 | X7: =IF(V7<0,IF(S7>=50,(Y7/(T7*(1+V7)))^(1/V7))," ") -> 4.171956974e-28 | Y7: ='Reservoir Storage'!J$35 -> 1.571997485 | Z7: =IF(V7<0,IF(S7>=50,IF(R7/24>=X7,R7/24*T7*(R7/24)^V7,(T7*X7^(1+V7)-Y7*(X7*24-R7)/24)))*O7,0) -> 3.551073079 | AB7: 0.001 | AC7: =T$2*AB7^T$3 -> 0.04178592262
O8: ='Reservoir Storage'!J$23 -> 9.542 | P8: ='Reservoir Storage'!J$26 -> 11.59033333 | Q8: =IF('Reservoir Storage'!J$26<=15,1,IF('Reservoir Storage'!J$26<=30,2,4)) -> 1 | R8: =T$2*Q8^T$3 -> 2 | S8: =100*(1-(1-1/Q8)^P8) -> 100 | T8: =IF($Q8=0," ",IF(S8>99.99,InterpolateXY(O8,P8,'South East Qld Peaking Factors'!$D$7:$Q$7,'South East Qld Peaking Factors'!$C$8:$C$22,'South East Qld Peaking Factors'!$D$8:$Q$22),IF(S8>99,(InterpolateXY(O8,P8,'South East Qld Peaking Factors'!$D$7:$Q$7,'South East Qld Peaking Factors'!$C$8:$C$22,'South East Qld Peaking Factors'!$D$8:$Q$22)- InterpolateXY(O8,P8,'South East Qld Peaking Factors'!$D$23:$Q$23,'South East Qld Peaking Factors'!$C$24:$C$38,'South East Qld Peaking Factors'!$D$24:$Q$38))*(S8-99)+ InterpolateXY(O8,P8,'South East Qld Peaking Factors'!$D$23:$Q$23,'South East Qld Peaking Factors'!$C$24:$C$38,'South East Qld Peaking Factors'!$D$24:$Q$38),IF(S8>98,(InterpolateXY(O8,P8,'South East Qld Peaking Factors'!$D$23:$Q$23,'South East Qld Peaking Factors'!$C$24:$C$38,'South East Qld Peaking Factors'!$D$24:$Q$38)-InterpolateXY(O8,P8,'South East Qld Peaking Factors'!$D$39:$Q$39,'South East Qld Peaking Factors'!$C$40:$C$54,'South East Qld Peaking Factors'!$D$40:$Q$54))*(S8-98)+ InterpolateXY(O8,P8,'South East Qld Peaking Factors'!$D$39:$Q$39,'South East Qld Peaking Factors'!$C$40:$C$54,'South East Qld Peaking Factors'!$D$40:$Q$54),IF(S8>95,(InterpolateXY(O8,P8,'South East Qld Peaking Factors'!$D$39:$Q$39,'South East Qld Peaking Factors'!$C$40:$C$54,'South East Qld Peaking Factors'!$D$40:$Q$54)-InterpolateXY(O8,P8,'South East Qld Peaking Factors'!$D$55:$Q$55,'South East Qld Peaking Factors'!$C$56:$C$70,'South East Qld Peaking Factors'!$D$56:$Q$70))*(S8-95)/3+InterpolateXY(O8,P8,'South East Qld Peaking Factors'!$D$55:$Q$55,'South East Qld Peaking Factors'!$C$56:$C$70,'South East Qld Peaking Factors'!$D$56:$Q$70),IF(S8>90,(InterpolateXY(O8,P8,'South East Qld Peaking Factors'!$D$55:$Q$55,'South East Qld Peaking Factors'!$C$56:$C$70,'South East Qld Peaking Factors'!$D$56:$Q$70)-InterpolateXY(O8,P8,'South East Qld Peaking Factors'!$D$71:$Q$71,'South East Qld Peaking Factors'!$C$72:$C$86,'South East Qld Peaking Factors'!$D$72:$Q$86))*(S8-90)/5+InterpolateXY(O8,P8,'South East Qld Peaking Factors'!$D$71:$Q$71,'South East Qld Peaking Factors'!$C$72:$C$86,'South East Qld Peaking Factors'!$D$72:$Q$86),IF(S8>80,(InterpolateXY(O8,P8,'South East Qld Peaking Factors'!$D$71:$Q$71,'South East Qld Peaking Factors'!$C$72:$C$86,'South East Qld Peaking Factors'!$D$72:$Q$86)-InterpolateXY(O8,P8,'South East Qld Peaking Factors'!$D$87:$Q$87,'South East Qld Peaking Factors'!$C$88:$C$102,'South East Qld Peaking Factors'!$D$88:$Q$102))*(S8-80)/10+InterpolateXY(O8,P8,'South East Qld Peaking Factors'!$D$87:$Q$87,'South East Qld Peaking Factors'!$C$88:$C$102,'South East Qld Peaking Factors'!$D$88:$Q$102),IF(S8>70,(InterpolateXY(O8,P8,'South East Qld Peaking Factors'!$D$87:$Q$87,'South East Qld Peaking Factors'!$C$88:$C$102,'South East Qld Peaking Factors'!$D$88:$Q$102)-InterpolateXY(O8,P8,'South East Qld Peaking Factors'!$D$103:$Q$103,'South East Qld Peaking Factors'!$C$104:$C$118,'South East Qld Peaking Factors'!$D$104:$Q$118))*(S8-70)/10+InterpolateXY(O8,P8,'South East Qld Peaking Factors'!$D$103:$Q$103,'South East Qld Peaking Factors'!$C$104:$C$118,'South East Qld Peaking Factors'!$D$104:$Q$118),IF(S8>60,(InterpolateXY(O8,P8,'South East Qld Peaking Factors'!$D$103:$Q$103,'South East Qld Peaking Factors'!$C$104:$C$118,'South East Qld Peaking Factors'!$D$104:$Q$118)-InterpolateXY(O8,P8,'South East Qld Peaking Factors'!$D$119:$Q$119,'South East Qld Peaking Factors'!$C$120:$C$134,'South East Qld Peaking Factors'!$D$120:$Q$134))*(S8-60)/10+InterpolateXY(O8,P8,'South East Qld Peaking Factors'!$D$119:$Q$119,'South East Qld Peaking Factors'!$C$120:$C$134,'South East Qld Peaking Factors'!$D$120:$Q$134),IF(S8>50,(InterpolateXY(O8,P8,'South East Qld Peaking Factors'!$D$119:$Q$119,'South East Qld Peaking Factors'!$C$120:$C$134,'South East Qld Peaking Factors'!$D$120:$Q$134)-1)*(S8-50)/10+1,1)))))))))) -> 1.945280572 | U8: =IF($Q8=0," ",IF(S8>99.99,InterpolateXY(O8,P8,'South East Qld Peaking Factors'!$S$7:$AF$7,'South East Qld Peaking Factors'!$R$8:$R$22,'South East Qld Peaking Factors'!$S$8:$AF$22),IF(S8>99,(InterpolateXY(O8,P8,'South East Qld Peaking Factors'!$S$7:$AF$7,'South East Qld Peaking Factors'!$R$8:$R$22,'South East Qld Peaking Factors'!$S$8:$AF$22)- InterpolateXY(O8,P8,'South East Qld Peaking Factors'!$S$23:$AF$23,'South East Qld Peaking Factors'!$R$24:$R$38,'South East Qld Peaking Factors'!$S$24:$AF$38))*(S8-99)+ InterpolateXY(O8,P8,'South East Qld Peaking Factors'!$S$23:$AF$23,'South East Qld Peaking Factors'!$R$24:$R$38,'South East Qld Peaking Factors'!$S$24:$AF$38),IF(S8>98,(InterpolateXY(O8,P8,'South East Qld Peaking Factors'!$S$23:$AF$23,'South East Qld Peaking Factors'!$R$24:$R$38,'South East Qld Peaking Factors'!$S$24:$AF$38)-InterpolateXY(O8,P8,'South East Qld Peaking Factors'!$S$39:$AF$39,'South East Qld Peaking Factors'!$R$40:$R$54,'South East Qld Peaking Factors'!$S$40:$AF$54))*(S8-98)+ InterpolateXY(O8,P8,'South East Qld Peaking Factors'!$S$39:$AF$39,'South East Qld Peaking Factors'!$R$40:$R$54,'South East Qld Peaking Factors'!$S$40:$AF$54),IF(S8>95,(InterpolateXY(O8,P8,'South East Qld Peaking Factors'!$S$39:$AF$39,'South East Qld Peaking Factors'!$R$40:$R$54,'South East Qld Peaking Factors'!$S$40:$AF$54)-InterpolateXY(O8,P8,'South East Qld Peaking Factors'!$S$55:$AF$55,'South East Qld Peaking Factors'!$R$56:$R$70,'South East Qld Peaking Factors'!$S$56:$AF$70))*(S8-95)/3+InterpolateXY(O8,P8,'South East Qld Peaking Factors'!$S$55:$AF$55,'South East Qld Peaking Factors'!$R$56:$R$70,'South East Qld Peaking Factors'!$S$56:$AF$70),IF(S8>90,(InterpolateXY(O8,P8,'South East Qld Peaking Factors'!$S$55:$AF$55,'South East Qld Peaking Factors'!$R$56:$R$70,'South East Qld Peaking Factors'!$S$56:$AF$70)-InterpolateXY(O8,P8,'South East Qld Peaking Factors'!$S$71:$AF$71,'South East Qld Peaking Factors'!$R$72:$R$86,'South East Qld Peaking Factors'!$S$72:$AF$86))*(S8-90)/5+InterpolateXY(O8,P8,'South East Qld Peaking Factors'!$S$71:$AF$71,'South East Qld Peaking Factors'!$R$72:$R$86,'South East Qld Peaking Factors'!$S$72:$AF$86),IF(S8>80,(InterpolateXY(O8,P8,'South East Qld Peaking Factors'!$S$71:$AF$71,'South East Qld Peaking Factors'!$R$72:$R$86,'South East Qld Peaking Factors'!$S$72:$AF$86)-InterpolateXY(O8,P8,'South East Qld Peaking Factors'!$S$87:$AF$87,'South East Qld Peaking Factors'!$R$88:$R$102,'South East Qld Peaking Factors'!$S$88:$AF$102))*(S8-80)/10+InterpolateXY(O8,P8,'South East Qld Peaking Factors'!$S$87:$AF$87,'South East Qld Peaking Factors'!$R$88:$R$102,'South East Qld Peaking Factors'!$S$88:$AF$102),IF(S8>70,(InterpolateXY(O8,P8,'South East Qld Peaking Factors'!$S$87:$AF$87,'South East Qld Peaking Factors'!$R$88:$R$102,'South East Qld Peaking Factors'!$S$88:$AF$102)-InterpolateXY(O8,P8,'South East Qld Peaking Factors'!$S$103:$AF$103,'South East Qld Peaking Factors'!$R$104:$R$118,'South East Qld Peaking Factors'!$S$104:$AF$118))*(S8-70)/10+InterpolateXY(O8,P8,'South East Qld Peaking Factors'!$S$103:$AF$103,'South East Qld Peaking Factors'!$R$104:$R$118,'South East Qld Peaking Factors'!$S$104:$AF$118),IF(S8>60,(InterpolateXY(O8,P8,'South East Qld Peaking Factors'!$S$103:$AF$103,'South East Qld Peaking Factors'!$R$104:$R$118,'South East Qld Peaking Factors'!$S$104:$AF$118)-InterpolateXY(O8,P8,'South East Qld Peaking Factors'!$S$119:$AF$119,'South East Qld Peaking Factors'!$R$120:$R$134,'South East Qld Peaking Factors'!$S$120:$AF$134))*(S8-60)/10+InterpolateXY(O8,P8,'South East Qld Peaking Factors'!$S$119:$AF$119,'South East Qld Peaking Factors'!$R$120:$R$134,'South East Qld Peaking Factors'!$S$120:$AF$134),IF(S8>50,(InterpolateXY(O8,P8,'South East Qld Peaking Factors'!$S$119:$AF$119,'South East Qld Peaking Factors'!$R$120:$R$134,'South East Qld Peaking Factors'!$S$120:$AF$134)-1)*(S8-50)/10+1,1)))))))))) -> 1.403643725 | V8: -0.09594700535 | W8: ='Reservoir Storage'!J$34 -> 15 | X8: 3.219771403 | Y8: ='Reservoir Storage'!J$35 -> 1.571997485 | Z8: =IF(V8<0,IF(S8>=50,IF(R8/24>=X8,R8/24*T8*(R8/24)^V8,(T8*X8^(1+V8)-Y8*(X8*24-R8)/24)))*O8," ") -> 6.375707661 | AB8: 0.01 | AC8: 0.151715515
O9: ='Reservoir Storage'!J$23 -> 9.542 | P9: ='Reservoir Storage'!J$26 -> 11.59033333 | Q9: =Q8+IF('Reservoir Storage'!J$26<=15,0.5,IF('Reservoir Storage'!J$26<=30,1,2)) -> 1.5 | R9: 2.509811476 | S9: 99.99970488 | T9: =IF($Q9=0," ",IF(S9>99.99,InterpolateXY(O9,P9,'South East Qld Peaking Factors'!$D$7:$Q$7,'South East Qld Peaking Factors'!$C$8:$C$22,'South East Qld Peaking Factors'!$D$8:$Q$22),IF(S9>99,(InterpolateXY(O9,P9,'South East Qld Peaking Factors'!$D$7:$Q$7,'South East Qld Peaking Factors'!$C$8:$C$22,'South East Qld Peaking Factors'!$D$8:$Q$22)- InterpolateXY(O9,P9,'South East Qld Peaking Factors'!$D$23:$Q$23,'South East Qld Peaking Factors'!$C$24:$C$38,'South East Qld Peaking Factors'!$D$24:$Q$38))*(S9-99)+ InterpolateXY(O9,P9,'South East Qld Peaking Factors'!$D$23:$Q$23,'South East Qld Peaking Factors'!$C$24:$C$38,'South East Qld Peaking Factors'!$D$24:$Q$38),IF(S9>98,(InterpolateXY(O9,P9,'South East Qld Peaking Factors'!$D$23:$Q$23,'South East Qld Peaking Factors'!$C$24:$C$38,'South East Qld Peaking Factors'!$D$24:$Q$38)-InterpolateXY(O9,P9,'South East Qld Peaking Factors'!$D$39:$Q$39,'South East Qld Peaking Factors'!$C$40:$C$54,'South East Qld Peaking Factors'!$D$40:$Q$54))*(S9-98)+ InterpolateXY(O9,P9,'South East Qld Peaking Factors'!$D$39:$Q$39,'South East Qld Peaking Factors'!$C$40:$C$54,'South East Qld Peaking Factors'!$D$40:$Q$54),IF(S9>95,(InterpolateXY(O9,P9,'South East Qld Peaking Factors'!$D$39:$Q$39,'South East Qld Peaking Factors'!$C$40:$C$54,'South East Qld Peaking Factors'!$D$40:$Q$54)-InterpolateXY(O9,P9,'South East Qld Peaking Factors'!$D$55:$Q$55,'South East Qld Peaking Factors'!$C$56:$C$70,'South East Qld Peaking Factors'!$D$56:$Q$70))*(S9-95)/3+InterpolateXY(O9,P9,'South East Qld Peaking Factors'!$D$55:$Q$55,'South East Qld Peaking Factors'!$C$56:$C$70,'South East Qld Peaking Factors'!$D$56:$Q$70),IF(S9>90,(InterpolateXY(O9,P9,'South East Qld Peaking Factors'!$D$55:$Q$55,'South East Qld Peaking Factors'!$C$56:$C$70,'South East Qld Peaking Factors'!$D$56:$Q$70)-InterpolateXY(O9,P9,'South East Qld Peaking Factors'!$D$71:$Q$71,'South East Qld Peaking Factors'!$C$72:$C$86,'South East Qld Peaking Factors'!$D$72:$Q$86))*(S9-90)/5+InterpolateXY(O9,P9,'South East Qld Peaking Factors'!$D$71:$Q$71,'South East Qld Peaking Factors'!$C$72:$C$86,'South East Qld Peaking Factors'!$D$72:$Q$86),IF(S9>80,(InterpolateXY(O9,P9,'South East Qld Peaking Factors'!$D$71:$Q$71,'South East Qld Peaking Factors'!$C$72:$C$86,'South East Qld Peaking Factors'!$D$72:$Q$86)-InterpolateXY(O9,P9,'South East Qld Peaking Factors'!$D$87:$Q$87,'South East Qld Peaking Factors'!$C$88:$C$102,'South East Qld Peaking Factors'!$D$88:$Q$102))*(S9-80)/10+InterpolateXY(O9,P9,'South East Qld Peaking Factors'!$D$87:$Q$87,'South East Qld Peaking Factors'!$C$88:$C$102,'South East Qld Peaking Factors'!$D$88:$Q$102),IF(S9>70,(InterpolateXY(O9,P9,'South East Qld Peaking Factors'!$D$87:$Q$87,'South East Qld Peaking Factors'!$C$88:$C$102,'South East Qld Peaking Factors'!$D$88:$Q$102)-InterpolateXY(O9,P9,'South East Qld Peaking Factors'!$D$103:$Q$103,'South East Qld Peaking Factors'!$C$104:$C$118,'South East Qld Peaking Factors'!$D$104:$Q$118))*(S9-70)/10+InterpolateXY(O9,P9,'South East Qld Peaking Factors'!$D$103:$Q$103,'South East Qld Peaking Factors'!$C$104:$C$118,'South East Qld Peaking Factors'!$D$104:$Q$118),IF(S9>60,(InterpolateXY(O9,P9,'South East Qld Peaking Factors'!$D$103:$Q$103,'South East Qld Peaking Factors'!$C$104:$C$118,'South East Qld Peaking Factors'!$D$104:$Q$118)-InterpolateXY(O9,P9,'South East Qld Peaking Factors'!$D$119:$Q$119,'South East Qld Peaking Factors'!$C$120:$C$134,'South East Qld Peaking Factors'!$D$120:$Q$134))*(S9-60)/10+InterpolateXY(O9,P9,'South East Qld Peaking Factors'!$D$119:$Q$119,'South East Qld Peaking Factors'!$C$120:$C$134,'South East Qld Peaking Factors'!$D$120:$Q$134),IF(S9>50,(InterpolateXY(O9,P9,'South East Qld Peaking Factors'!$D$119:$Q$119,'South East Qld Peaking Factors'!$C$120:$C$134,'South East Qld Peaking Factors'!$D$120:$Q$134)-1)*(S9-50)/10+1,1)))))))))) -> 1.945280572 | U9: =IF($Q9=0," ",IF(S9>99.99,InterpolateXY(O9,P9,'South East Qld Peaking Factors'!$S$7:$AF$7,'South East Qld Peaking Factors'!$R$8:$R$22,'South East Qld Peaking Factors'!$S$8:$AF$22),IF(S9>99,(InterpolateXY(O9,P9,'South East Qld Peaking Factors'!$S$7:$AF$7,'South East Qld Peaking Factors'!$R$8:$R$22,'South East Qld Peaking Factors'!$S$8:$AF$22)- InterpolateXY(O9,P9,'South East Qld Peaking Factors'!$S$23:$AF$23,'South East Qld Peaking Factors'!$R$24:$R$38,'South East Qld Peaking Factors'!$S$24:$AF$38))*(S9-99)+ InterpolateXY(O9,P9,'South East Qld Peaking Factors'!$S$23:$AF$23,'South East Qld Peaking Factors'!$R$24:$R$38,'South East Qld Peaking Factors'!$S$24:$AF$38),IF(S9>98,(InterpolateXY(O9,P9,'South East Qld Peaking Factors'!$S$23:$AF$23,'South East Qld Peaking Factors'!$R$24:$R$38,'South East Qld Peaking Factors'!$S$24:$AF$38)-InterpolateXY(O9,P9,'South East Qld Peaking Factors'!$S$39:$AF$39,'South East Qld Peaking Factors'!$R$40:$R$54,'South East Qld Peaking Factors'!$S$40:$AF$54))*(S9-98)+ InterpolateXY(O9,P9,'South East Qld Peaking Factors'!$S$39:$AF$39,'South East Qld Peaking Factors'!$R$40:$R$54,'South East Qld Peaking Factors'!$S$40:$AF$54),IF(S9>95,(InterpolateXY(O9,P9,'South East Qld Peaking Factors'!$S$39:$AF$39,'South East Qld Peaking Factors'!$R$40:$R$54,'South East Qld Peaking Factors'!$S$40:$AF$54)-InterpolateXY(O9,P9,'South East Qld Peaking Factors'!$S$55:$AF$55,'South East Qld Peaking Factors'!$R$56:$R$70,'South East Qld Peaking Factors'!$S$56:$AF$70))*(S9-95)/3+InterpolateXY(O9,P9,'South East Qld Peaking Factors'!$S$55:$AF$55,'South East Qld Peaking Factors'!$R$56:$R$70,'South East Qld Peaking Factors'!$S$56:$AF$70),IF(S9>90,(InterpolateXY(O9,P9,'South East Qld Peaking Factors'!$S$55:$AF$55,'South East Qld Peaking Factors'!$R$56:$R$70,'South East Qld Peaking Factors'!$S$56:$AF$70)-InterpolateXY(O9,P9,'South East Qld Peaking Factors'!$S$71:$AF$71,'South East Qld Peaking Factors'!$R$72:$R$86,'South East Qld Peaking Factors'!$S$72:$AF$86))*(S9-90)/5+InterpolateXY(O9,P9,'South East Qld Peaking Factors'!$S$71:$AF$71,'South East Qld Peaking Factors'!$R$72:$R$86,'South East Qld Peaking Factors'!$S$72:$AF$86),IF(S9>80,(InterpolateXY(O9,P9,'South East Qld Peaking Factors'!$S$71:$AF$71,'South East Qld Peaking Factors'!$R$72:$R$86,'South East Qld Peaking Factors'!$S$72:$AF$86)-InterpolateXY(O9,P9,'South East Qld Peaking Factors'!$S$87:$AF$87,'South East Qld Peaking Factors'!$R$88:$R$102,'South East Qld Peaking Factors'!$S$88:$AF$102))*(S9-80)/10+InterpolateXY(O9,P9,'South East Qld Peaking Factors'!$S$87:$AF$87,'South East Qld Peaking Factors'!$R$88:$R$102,'South East Qld Peaking Factors'!$S$88:$AF$102),IF(S9>70,(InterpolateXY(O9,P9,'South East Qld Peaking Factors'!$S$87:$AF$87,'South East Qld Peaking Factors'!$R$88:$R$102,'South East Qld Peaking Factors'!$S$88:$AF$102)-InterpolateXY(O9,P9,'South East Qld Peaking Factors'!$S$103:$AF$103,'South East Qld Peaking Factors'!$R$104:$R$118,'South East Qld Peaking Factors'!$S$104:$AF$118))*(S9-70)/10+InterpolateXY(O9,P9,'South East Qld Peaking Factors'!$S$103:$AF$103,'South East Qld Peaking Factors'!$R$104:$R$118,'South East Qld Peaking Factors'!$S$104:$AF$118),IF(S9>60,(InterpolateXY(O9,P9,'South East Qld Peaking Factors'!$S$103:$AF$103,'South East Qld Peaking Factors'!$R$104:$R$118,'South East Qld Peaking Factors'!$S$104:$AF$118)-InterpolateXY(O9,P9,'South East Qld Peaking Factors'!$S$119:$AF$119,'South East Qld Peaking Factors'!$R$120:$R$134,'South East Qld Peaking Factors'!$S$120:$AF$134))*(S9-60)/10+InterpolateXY(O9,P9,'South East Qld Peaking Factors'!$S$119:$AF$119,'South East Qld Peaking Factors'!$R$120:$R$134,'South East Qld Peaking Factors'!$S$120:$AF$134),IF(S9>50,(InterpolateXY(O9,P9,'South East Qld Peaking Factors'!$S$119:$AF$119,'South East Qld Peaking Factors'!$R$120:$R$134,'South East Qld Peaking Factors'!$S$120:$AF$134)-1)*(S9-50)/10+1,1)))))))))) -> 1.403643725 | V9: -0.09594700535 | W9: ='Reservoir Storage'!J$34 -> 15 | X9: 3.219771403 | Y9: ='Reservoir Storage'!J$35 -> 1.571997485 | Z9: 6.694339833 | AB9: 0.1 | AC9: 0.5508457407
O10: ='Reservoir Storage'!J$23 -> 9.542 | P10: ='Reservoir Storage'!J$26 -> 11.59033333 | Q10: =Q9+IF('Reservoir Storage'!J$26<=15,0.5,IF('Reservoir Storage'!J$26<=30,1,2)) -> 2 | R10: 2.948538435 | S10: 99.96756888 | T10: =IF($Q10=0," ",IF(S10>99.99,InterpolateXY(O10,P10,'South East Qld Peaking Factors'!$D$7:$Q$7,'South East Qld Peaking Factors'!$C$8:$C$22,'South East Qld Peaking Factors'!$D$8:$Q$22),IF(S10>99,(InterpolateXY(O10,P10,'South East Qld Peaking Factors'!$D$7:$Q$7,'South East Qld Peaking Factors'!$C$8:$C$22,'South East Qld Peaking Factors'!$D$8:$Q$22)- InterpolateXY(O10,P10,'South East Qld Peaking Factors'!$D$23:$Q$23,'South East Qld Peaking Factors'!$C$24:$C$38,'South East Qld Peaking Factors'!$D$24:$Q$38))*(S10-99)+ InterpolateXY(O10,P10,'South East Qld Peaking Factors'!$D$23:$Q$23,'South East Qld Peaking Factors'!$C$24:$C$38,'South East Qld Peaking Factors'!$D$24:$Q$38),IF(S10>98,(InterpolateXY(O10,P10,'South East Qld Peaking Factors'!$D$23:$Q$23,'South East Qld Peaking Factors'!$C$24:$C$38,'South East Qld Peaking Factors'!$D$24:$Q$38)-InterpolateXY(O10,P10,'South East Qld Peaking Factors'!$D$39:$Q$39,'South East Qld Peaking Factors'!$C$40:$C$54,'South East Qld Peaking Factors'!$D$40:$Q$54))*(S10-98)+ InterpolateXY(O10,P10,'South East Qld Peaking Factors'!$D$39:$Q$39,'South East Qld Peaking Factors'!$C$40:$C$54,'South East Qld Peaking Factors'!$D$40:$Q$54),IF(S10>95,(InterpolateXY(O10,P10,'South East Qld Peaking Factors'!$D$39:$Q$39,'South East Qld Peaking Factors'!$C$40:$C$54,'South East Qld Peaking Factors'!$D$40:$Q$54)-InterpolateXY(O10,P10,'South East Qld Peaking Factors'!$D$55:$Q$55,'South East Qld Peaking Factors'!$C$56:$C$70,'South East Qld Peaking Factors'!$D$56:$Q$70))*(S10-95)/3+InterpolateXY(O10,P10,'South East Qld Peaking Factors'!$D$55:$Q$55,'South East Qld Peaking Factors'!$C$56:$C$70,'South East Qld Peaking Factors'!$D$56:$Q$70),IF(S10>90,(InterpolateXY(O10,P10,'South East Qld Peaking Factors'!$D$55:$Q$55,'South East Qld Peaking Factors'!$C$56:$C$70,'South East Qld Peaking Factors'!$D$56:$Q$70)-InterpolateXY(O10,P10,'South East Qld Peaking Factors'!$D$71:$Q$71,'South East Qld Peaking Factors'!$C$72:$C$86,'South East Qld Peaking Factors'!$D$72:$Q$86))*(S10-90)/5+InterpolateXY(O10,P10,'South East Qld Peaking Factors'!$D$71:$Q$71,'South East Qld Peaking Factors'!$C$72:$C$86,'South East Qld Peaking Factors'!$D$72:$Q$86),IF(S10>80,(InterpolateXY(O10,P10,'South East Qld Peaking Factors'!$D$71:$Q$71,'South East Qld Peaking Factors'!$C$72:$C$86,'South East Qld Peaking Factors'!$D$72:$Q$86)-InterpolateXY(O10,P10,'South East Qld Peaking Factors'!$D$87:$Q$87,'South East Qld Peaking Factors'!$C$88:$C$102,'South East Qld Peaking Factors'!$D$88:$Q$102))*(S10-80)/10+InterpolateXY(O10,P10,'South East Qld Peaking Factors'!$D$87:$Q$87,'South East Qld Peaking Factors'!$C$88:$C$102,'South East Qld Peaking Factors'!$D$88:$Q$102),IF(S10>70,(InterpolateXY(O10,P10,'South East Qld Peaking Factors'!$D$87:$Q$87,'South East Qld Peaking Factors'!$C$88:$C$102,'South East Qld Peaking Factors'!$D$88:$Q$102)-InterpolateXY(O10,P10,'South East Qld Peaking Factors'!$D$103:$Q$103,'South East Qld Peaking Factors'!$C$104:$C$118,'South East Qld Peaking Factors'!$D$104:$Q$118))*(S10-70)/10+InterpolateXY(O10,P10,'South East Qld Peaking Factors'!$D$103:$Q$103,'South East Qld Peaking Factors'!$C$104:$C$118,'South East Qld Peaking Factors'!$D$104:$Q$118),IF(S10>60,(InterpolateXY(O10,P10,'South East Qld Peaking Factors'!$D$103:$Q$103,'South East Qld Peaking Factors'!$C$104:$C$118,'South East Qld Peaking Factors'!$D$104:$Q$118)-InterpolateXY(O10,P10,'South East Qld Peaking Factors'!$D$119:$Q$119,'South East Qld Peaking Factors'!$C$120:$C$134,'South East Qld Peaking Factors'!$D$120:$Q$134))*(S10-60)/10+InterpolateXY(O10,P10,'South East Qld Peaking Factors'!$D$119:$Q$119,'South East Qld Peaking Factors'!$C$120:$C$134,'South East Qld Peaking Factors'!$D$120:$Q$134),IF(S10>50,(InterpolateXY(O10,P10,'South East Qld Peaking Factors'!$D$119:$Q$119,'South East Qld Peaking Factors'!$C$120:$C$134,'South East Qld Peaking Factors'!$D$120:$Q$134)-1)*(S10-50)/10+1,1)))))))))) -> 1.939659664 | U10: =IF($Q10=0," ",IF(S10>99.99,InterpolateXY(O10,P10,'South East Qld Peaking Factors'!$S$7:$AF$7,'South East Qld Peaking Factors'!$R$8:$R$22,'South East Qld Peaking Factors'!$S$8:$AF$22),IF(S10>99,(InterpolateXY(O10,P10,'South East Qld Peaking Factors'!$S$7:$AF$7,'South East Qld Peaking Factors'!$R$8:$R$22,'South East Qld Peaking Factors'!$S$8:$AF$22)- InterpolateXY(O10,P10,'South East Qld Peaking Factors'!$S$23:$AF$23,'South East Qld Peaking Factors'!$R$24:$R$38,'South East Qld Peaking Factors'!$S$24:$AF$38))*(S10-99)+ InterpolateXY(O10,P10,'South East Qld Peaking Factors'!$S$23:$AF$23,'South East Qld Peaking Factors'!$R$24:$R$38,'South East Qld Peaking Factors'!$S$24:$AF$38),IF(S10>98,(InterpolateXY(O10,P10,'South East Qld Peaking Factors'!$S$23:$AF$23,'South East Qld Peaking Factors'!$R$24:$R$38,'South East Qld Peaking Factors'!$S$24:$AF$38)-InterpolateXY(O10,P10,'South East Qld Peaking Factors'!$S$39:$AF$39,'South East Qld Peaking Factors'!$R$40:$R$54,'South East Qld Peaking Factors'!$S$40:$AF$54))*(S10-98)+ InterpolateXY(O10,P10,'South East Qld Peaking Factors'!$S$39:$AF$39,'South East Qld Peaking Factors'!$R$40:$R$54,'South East Qld Peaking Factors'!$S$40:$AF$54),IF(S10>95,(InterpolateXY(O10,P10,'South East Qld Peaking Factors'!$S$39:$AF$39,'South East Qld Peaking Factors'!$R$40:$R$54,'South East Qld Peaking Factors'!$S$40:$AF$54)-InterpolateXY(O10,P10,'South East Qld Peaking Factors'!$S$55:$AF$55,'South East Qld Peaking Factors'!$R$56:$R$70,'South East Qld Peaking Factors'!$S$56:$AF$70))*(S10-95)/3+InterpolateXY(O10,P10,'South East Qld Peaking Factors'!$S$55:$AF$55,'South East Qld Peaking Factors'!$R$56:$R$70,'South East Qld Peaking Factors'!$S$56:$AF$70),IF(S10>90,(InterpolateXY(O10,P10,'South East Qld Peaking Factors'!$S$55:$AF$55,'South East Qld Peaking Factors'!$R$56:$R$70,'South East Qld Peaking Factors'!$S$56:$AF$70)-InterpolateXY(O10,P10,'South East Qld Peaking Factors'!$S$71:$AF$71,'South East Qld Peaking Factors'!$R$72:$R$86,'South East Qld Peaking Factors'!$S$72:$AF$86))*(S10-90)/5+InterpolateXY(O10,P10,'South East Qld Peaking Factors'!$S$71:$AF$71,'South East Qld Peaking Factors'!$R$72:$R$86,'South East Qld Peaking Factors'!$S$72:$AF$86),IF(S10>80,(InterpolateXY(O10,P10,'South East Qld Peaking Factors'!$S$71:$AF$71,'South East Qld Peaking Factors'!$R$72:$R$86,'South East Qld Peaking Factors'!$S$72:$AF$86)-InterpolateXY(O10,P10,'South East Qld Peaking Factors'!$S$87:$AF$87,'South East Qld Peaking Factors'!$R$88:$R$102,'South East Qld Peaking Factors'!$S$88:$AF$102))*(S10-80)/10+InterpolateXY(O10,P10,'South East Qld Peaking Factors'!$S$87:$AF$87,'South East Qld Peaking Factors'!$R$88:$R$102,'South East Qld Peaking Factors'!$S$88:$AF$102),IF(S10>70,(InterpolateXY(O10,P10,'South East Qld Peaking Factors'!$S$87:$AF$87,'South East Qld Peaking Factors'!$R$88:$R$102,'South East Qld Peaking Factors'!$S$88:$AF$102)-InterpolateXY(O10,P10,'South East Qld Peaking Factors'!$S$103:$AF$103,'South East Qld Peaking Factors'!$R$104:$R$118,'South East Qld Peaking Factors'!$S$104:$AF$118))*(S10-70)/10+InterpolateXY(O10,P10,'South East Qld Peaking Factors'!$S$103:$AF$103,'South East Qld Peaking Factors'!$R$104:$R$118,'South East Qld Peaking Factors'!$S$104:$AF$118),IF(S10>60,(InterpolateXY(O10,P10,'South East Qld Peaking Factors'!$S$103:$AF$103,'South East Qld Peaking Factors'!$R$104:$R$118,'South East Qld Peaking Factors'!$S$104:$AF$118)-InterpolateXY(O10,P10,'South East Qld Peaking Factors'!$S$119:$AF$119,'South East Qld Peaking Factors'!$R$120:$R$134,'South East Qld Peaking Factors'!$S$120:$AF$134))*(S10-60)/10+InterpolateXY(O10,P10,'South East Qld Peaking Factors'!$S$119:$AF$119,'South East Qld Peaking Factors'!$R$120:$R$134,'South East Qld Peaking Factors'!$S$120:$AF$134),IF(S10>50,(InterpolateXY(O10,P10,'South East Qld Peaking Factors'!$S$119:$AF$119,'South East Qld Peaking Factors'!$R$120:$R$134,'South East Qld Peaking Factors'!$S$120:$AF$134)-1)*(S10-50)/10+1,1)))))))))) -> 1.403663393 | V10: -0.0950920991 | W10: ='Reservoir Storage'!J$34 -> 15 | X10: 3.187803505 | Y10: ='Reservoir Storage'!J$35 -> 1.571997485 | Z10: 6.867683688 | AB10: 1 | AC10: 2
O11: ='Reservoir Storage'!J$23 -> 9.542 | P11: ='Reservoir Storage'!J$26 -> 11.59033333 | Q11: =Q10+IF('Reservoir Storage'!J$26<=15,0.5,IF('Reservoir Storage'!J$26<=30,1,2)) -> 2.5 | R11: 3.340999422 | S11: 99.73165158 | T11: =IF($Q11=0," ",IF(S11>99.99,InterpolateXY(O11,P11,'South East Qld Peaking Factors'!$D$7:$Q$7,'South East Qld Peaking Factors'!$C$8:$C$22,'South East Qld Peaking Factors'!$D$8:$Q$22),IF(S11>99,(InterpolateXY(O11,P11,'South East Qld Peaking Factors'!$D$7:$Q$7,'South East Qld Peaking Factors'!$C$8:$C$22,'South East Qld Peaking Factors'!$D$8:$Q$22)- InterpolateXY(O11,P11,'South East Qld Peaking Factors'!$D$23:$Q$23,'South East Qld Peaking Factors'!$C$24:$C$38,'South East Qld Peaking Factors'!$D$24:$Q$38))*(S11-99)+ InterpolateXY(O11,P11,'South East Qld Peaking Factors'!$D$23:$Q$23,'South East Qld Peaking Factors'!$C$24:$C$38,'South East Qld Peaking Factors'!$D$24:$Q$38),IF(S11>98,(InterpolateXY(O11,P11,'South East Qld Peaking Factors'!$D$23:$Q$23,'South East Qld Peaking Factors'!$C$24:$C$38,'South East Qld Peaking Factors'!$D$24:$Q$38)-InterpolateXY(O11,P11,'South East Qld Peaking Factors'!$D$39:$Q$39,'South East Qld Peaking Factors'!$C$40:$C$54,'South East Qld Peaking Factors'!$D$40:$Q$54))*(S11-98)+ InterpolateXY(O11,P11,'South East Qld Peaking Factors'!$D$39:$Q$39,'South East Qld Peaking Factors'!$C$40:$C$54,'South East Qld Peaking Factors'!$D$40:$Q$54),IF(S11>95,(InterpolateXY(O11,P11,'South East Qld Peaking Factors'!$D$39:$Q$39,'South East Qld Peaking Factors'!$C$40:$C$54,'South East Qld Peaking Factors'!$D$40:$Q$54)-InterpolateXY(O11,P11,'South East Qld Peaking Factors'!$D$55:$Q$55,'South East Qld Peaking Factors'!$C$56:$C$70,'South East Qld Peaking Factors'!$D$56:$Q$70))*(S11-95)/3+InterpolateXY(O11,P11,'South East Qld Peaking Factors'!$D$55:$Q$55,'South East Qld Peaking Factors'!$C$56:$C$70,'South East Qld Peaking Factors'!$D$56:$Q$70),IF(S11>90,(InterpolateXY(O11,P11,'South East Qld Peaking Factors'!$D$55:$Q$55,'South East Qld Peaking Factors'!$C$56:$C$70,'South East Qld Peaking Factors'!$D$56:$Q$70)-InterpolateXY(O11,P11,'South East Qld Peaking Factors'!$D$71:$Q$71,'South East Qld Peaking Factors'!$C$72:$C$86,'South East Qld Peaking Factors'!$D$72:$Q$86))*(S11-90)/5+InterpolateXY(O11,P11,'South East Qld Peaking Factors'!$D$71:$Q$71,'South East Qld Peaking Factors'!$C$72:$C$86,'South East Qld Peaking Factors'!$D$72:$Q$86),IF(S11>80,(InterpolateXY(O11,P11,'South East Qld Peaking Factors'!$D$71:$Q$71,'South East Qld Peaking Factors'!$C$72:$C$86,'South East Qld Peaking Factors'!$D$72:$Q$86)-InterpolateXY(O11,P11,'South East Qld Peaking Factors'!$D$87:$Q$87,'South East Qld Peaking Factors'!$C$88:$C$102,'South East Qld Peaking Factors'!$D$88:$Q$102))*(S11-80)/10+InterpolateXY(O11,P11,'South East Qld Peaking Factors'!$D$87:$Q$87,'South East Qld Peaking Factors'!$C$88:$C$102,'South East Qld Peaking Factors'!$D$88:$Q$102),IF(S11>70,(InterpolateXY(O11,P11,'South East Qld Peaking Factors'!$D$87:$Q$87,'South East Qld Peaking Factors'!$C$88:$C$102,'South East Qld Peaking Factors'!$D$88:$Q$102)-InterpolateXY(O11,P11,'South East Qld Peaking Factors'!$D$103:$Q$103,'South East Qld Peaking Factors'!$C$104:$C$118,'South East Qld Peaking Factors'!$D$104:$Q$118))*(S11-70)/10+InterpolateXY(O11,P11,'South East Qld Peaking Factors'!$D$103:$Q$103,'South East Qld Peaking Factors'!$C$104:$C$118,'South East Qld Peaking Factors'!$D$104:$Q$118),IF(S11>60,(InterpolateXY(O11,P11,'South East Qld Peaking Factors'!$D$103:$Q$103,'South East Qld Peaking Factors'!$C$104:$C$118,'South East Qld Peaking Factors'!$D$104:$Q$118)-InterpolateXY(O11,P11,'South East Qld Peaking Factors'!$D$119:$Q$119,'South East Qld Peaking Factors'!$C$120:$C$134,'South East Qld Peaking Factors'!$D$120:$Q$134))*(S11-60)/10+InterpolateXY(O11,P11,'South East Qld Peaking Factors'!$D$119:$Q$119,'South East Qld Peaking Factors'!$C$120:$C$134,'South East Qld Peaking Factors'!$D$120:$Q$134),IF(S11>50,(InterpolateXY(O11,P11,'South East Qld Peaking Factors'!$D$119:$Q$119,'South East Qld Peaking Factors'!$C$120:$C$134,'South East Qld Peaking Factors'!$D$120:$Q$134)-1)*(S11-50)/10+1,1)))))))))) -> 1.898770871 | U11: =IF($Q11=0," ",IF(S11>99.99,InterpolateXY(O11,P11,'South East Qld Peaking Factors'!$S$7:$AF$7,'South East Qld Peaking Factors'!$R$8:$R$22,'South East Qld Peaking Factors'!$S$8:$AF$22),IF(S11>99,(InterpolateXY(O11,P11,'South East Qld Peaking Factors'!$S$7:$AF$7,'South East Qld Peaking Factors'!$R$8:$R$22,'South East Qld Peaking Factors'!$S$8:$AF$22)- InterpolateXY(O11,P11,'South East Qld Peaking Factors'!$S$23:$AF$23,'South East Qld Peaking Factors'!$R$24:$R$38,'South East Qld Peaking Factors'!$S$24:$AF$38))*(S11-99)+ InterpolateXY(O11,P11,'South East Qld Peaking Factors'!$S$23:$AF$23,'South East Qld Peaking Factors'!$R$24:$R$38,'South East Qld Peaking Factors'!$S$24:$AF$38),IF(S11>98,(InterpolateXY(O11,P11,'South East Qld Peaking Factors'!$S$23:$AF$23,'South East Qld Peaking Factors'!$R$24:$R$38,'South East Qld Peaking Factors'!$S$24:$AF$38)-InterpolateXY(O11,P11,'South East Qld Peaking Factors'!$S$39:$AF$39,'South East Qld Peaking Factors'!$R$40:$R$54,'South East Qld Peaking Factors'!$S$40:$AF$54))*(S11-98)+ InterpolateXY(O11,P11,'South East Qld Peaking Factors'!$S$39:$AF$39,'South East Qld Peaking Factors'!$R$40:$R$54,'South East Qld Peaking Factors'!$S$40:$AF$54),IF(S11>95,(InterpolateXY(O11,P11,'South East Qld Peaking Factors'!$S$39:$AF$39,'South East Qld Peaking Factors'!$R$40:$R$54,'South East Qld Peaking Factors'!$S$40:$AF$54)-InterpolateXY(O11,P11,'South East Qld Peaking Factors'!$S$55:$AF$55,'South East Qld Peaking Factors'!$R$56:$R$70,'South East Qld Peaking Factors'!$S$56:$AF$70))*(S11-95)/3+InterpolateXY(O11,P11,'South East Qld Peaking Factors'!$S$55:$AF$55,'South East Qld Peaking Factors'!$R$56:$R$70,'South East Qld Peaking Factors'!$S$56:$AF$70),IF(S11>90,(InterpolateXY(O11,P11,'South East Qld Peaking Factors'!$S$55:$AF$55,'South East Qld Peaking Factors'!$R$56:$R$70,'South East Qld Peaking Factors'!$S$56:$AF$70)-InterpolateXY(O11,P11,'South East Qld Peaking Factors'!$S$71:$AF$71,'South East Qld Peaking Factors'!$R$72:$R$86,'South East Qld Peaking Factors'!$S$72:$AF$86))*(S11-90)/5+InterpolateXY(O11,P11,'South East Qld Peaking Factors'!$S$71:$AF$71,'South East Qld Peaking Factors'!$R$72:$R$86,'South East Qld Peaking Factors'!$S$72:$AF$86),IF(S11>80,(InterpolateXY(O11,P11,'South East Qld Peaking Factors'!$S$71:$AF$71,'South East Qld Peaking Factors'!$R$72:$R$86,'South East Qld Peaking Factors'!$S$72:$AF$86)-InterpolateXY(O11,P11,'South East Qld Peaking Factors'!$S$87:$AF$87,'South East Qld Peaking Factors'!$R$88:$R$102,'South East Qld Peaking Factors'!$S$88:$AF$102))*(S11-80)/10+InterpolateXY(O11,P11,'South East Qld Peaking Factors'!$S$87:$AF$87,'South East Qld Peaking Factors'!$R$88:$R$102,'South East Qld Peaking Factors'!$S$88:$AF$102),IF(S11>70,(InterpolateXY(O11,P11,'South East Qld Peaking Factors'!$S$87:$AF$87,'South East Qld Peaking Factors'!$R$88:$R$102,'South East Qld Peaking Factors'!$S$88:$AF$102)-InterpolateXY(O11,P11,'South East Qld Peaking Factors'!$S$103:$AF$103,'South East Qld Peaking Factors'!$R$104:$R$118,'South East Qld Peaking Factors'!$S$104:$AF$118))*(S11-70)/10+InterpolateXY(O11,P11,'South East Qld Peaking Factors'!$S$103:$AF$103,'South East Qld Peaking Factors'!$R$104:$R$118,'South East Qld Peaking Factors'!$S$104:$AF$118),IF(S11>60,(InterpolateXY(O11,P11,'South East Qld Peaking Factors'!$S$103:$AF$103,'South East Qld Peaking Factors'!$R$104:$R$118,'South East Qld Peaking Factors'!$S$104:$AF$118)-InterpolateXY(O11,P11,'South East Qld Peaking Factors'!$S$119:$AF$119,'South East Qld Peaking Factors'!$R$120:$R$134,'South East Qld Peaking Factors'!$S$120:$AF$134))*(S11-60)/10+InterpolateXY(O11,P11,'South East Qld Peaking Factors'!$S$119:$AF$119,'South East Qld Peaking Factors'!$R$120:$R$134,'South East Qld Peaking Factors'!$S$120:$AF$134),IF(S11>50,(InterpolateXY(O11,P11,'South East Qld Peaking Factors'!$S$119:$AF$119,'South East Qld Peaking Factors'!$R$120:$R$134,'South East Qld Peaking Factors'!$S$120:$AF$134)-1)*(S11-50)/10+1,1)))))))))) -> 1.403806464 | V11: -0.08879793887 | W11: ='Reservoir Storage'!J$34 -> 15 | X11: 2.943595169 | Y11: ='Reservoir Storage'!J$35 -> 1.571997485 | Z11: 6.390987774 | AB11: 5 | AC11: 4.925532603
O12: ='Reservoir Storage'!J$23 -> 9.542 | P12: ='Reservoir Storage'!J$26 -> 11.59033333 | Q12: =Q11+IF('Reservoir Storage'!J$26<=15,0.5,IF('Reservoir Storage'!J$26<=30,1,2)) -> 3 | R12: 3.7001378 | S12: 99.08999535 | T12: =IF($Q12=0," ",IF(S12>99.99,InterpolateXY(O12,P12,'South East Qld Peaking Factors'!$D$7:$Q$7,'South East Qld Peaking Factors'!$C$8:$C$22,'South East Qld Peaking Factors'!$D$8:$Q$22),IF(S12>99,(InterpolateXY(O12,P12,'South East Qld Peaking Factors'!$D$7:$Q$7,'South East Qld Peaking Factors'!$C$8:$C$22,'South East Qld Peaking Factors'!$D$8:$Q$22)- InterpolateXY(O12,P12,'South East Qld Peaking Factors'!$D$23:$Q$23,'South East Qld Peaking Factors'!$C$24:$C$38,'South East Qld Peaking Factors'!$D$24:$Q$38))*(S12-99)+ InterpolateXY(O12,P12,'South East Qld Peaking Factors'!$D$23:$Q$23,'South East Qld Peaking Factors'!$C$24:$C$38,'South East Qld Peaking Factors'!$D$24:$Q$38),IF(S12>98,(InterpolateXY(O12,P12,'South East Qld Peaking Factors'!$D$23:$Q$23,'South East Qld Peaking Factors'!$C$24:$C$38,'South East Qld Peaking Factors'!$D$24:$Q$38)-InterpolateXY(O12,P12,'South East Qld Peaking Factors'!$D$39:$Q$39,'South East Qld Peaking Factors'!$C$40:$C$54,'South East Qld Peaking Factors'!$D$40:$Q$54))*(S12-98)+ InterpolateXY(O12,P12,'South East Qld Peaking Factors'!$D$39:$Q$39,'South East Qld Peaking Factors'!$C$40:$C$54,'South East Qld Peaking Factors'!$D$40:$Q$54),IF(S12>95,(InterpolateXY(O12,P12,'South East Qld Peaking Factors'!$D$39:$Q$39,'South East Qld Peaking Factors'!$C$40:$C$54,'South East Qld Peaking Factors'!$D$40:$Q$54)-InterpolateXY(O12,P12,'South East Qld Peaking Factors'!$D$55:$Q$55,'South East Qld Peaking Factors'!$C$56:$C$70,'South East Qld Peaking Factors'!$D$56:$Q$70))*(S12-95)/3+InterpolateXY(O12,P12,'South East Qld Peaking Factors'!$D$55:$Q$55,'South East Qld Peaking Factors'!$C$56:$C$70,'South East Qld Peaking Factors'!$D$56:$Q$70),IF(S12>90,(InterpolateXY(O12,P12,'South East Qld Peaking Factors'!$D$55:$Q$55,'South East Qld Peaking Factors'!$C$56:$C$70,'South East Qld Peaking Factors'!$D$56:$Q$70)-InterpolateXY(O12,P12,'South East Qld Peaking Factors'!$D$71:$Q$71,'South East Qld Peaking Factors'!$C$72:$C$86,'South East Qld Peaking Factors'!$D$72:$Q$86))*(S12-90)/5+InterpolateXY(O12,P12,'South East Qld Peaking Factors'!$D$71:$Q$71,'South East Qld Peaking Factors'!$C$72:$C$86,'South East Qld Peaking Factors'!$D$72:$Q$86),IF(S12>80,(InterpolateXY(O12,P12,'South East Qld Peaking Factors'!$D$71:$Q$71,'South East Qld Peaking Factors'!$C$72:$C$86,'South East Qld Peaking Factors'!$D$72:$Q$86)-InterpolateXY(O12,P12,'South East Qld Peaking Factors'!$D$87:$Q$87,'South East Qld Peaking Factors'!$C$88:$C$102,'South East Qld Peaking Factors'!$D$88:$Q$102))*(S12-80)/10+InterpolateXY(O12,P12,'South East Qld Peaking Factors'!$D$87:$Q$87,'South East Qld Peaking Factors'!$C$88:$C$102,'South East Qld Peaking Factors'!$D$88:$Q$102),IF(S12>70,(InterpolateXY(O12,P12,'South East Qld Peaking Factors'!$D$87:$Q$87,'South East Qld Peaking Factors'!$C$88:$C$102,'South East Qld Peaking Factors'!$D$88:$Q$102)-InterpolateXY(O12,P12,'South East Qld Peaking Factors'!$D$103:$Q$103,'South East Qld Peaking Factors'!$C$104:$C$118,'South East Qld Peaking Factors'!$D$104:$Q$118))*(S12-70)/10+InterpolateXY(O12,P12,'South East Qld Peaking Factors'!$D$103:$Q$103,'South East Qld Peaking Factors'!$C$104:$C$118,'South East Qld Peaking Factors'!$D$104:$Q$118),IF(S12>60,(InterpolateXY(O12,P12,'South East Qld Peaking Factors'!$D$103:$Q$103,'South East Qld Peaking Factors'!$C$104:$C$118,'South East Qld Peaking Factors'!$D$104:$Q$118)-InterpolateXY(O12,P12,'South East Qld Peaking Factors'!$D$119:$Q$119,'South East Qld Peaking Factors'!$C$120:$C$134,'South East Qld Peaking Factors'!$D$120:$Q$134))*(S12-60)/10+InterpolateXY(O12,P12,'South East Qld Peaking Factors'!$D$119:$Q$119,'South East Qld Peaking Factors'!$C$120:$C$134,'South East Qld Peaking Factors'!$D$120:$Q$134),IF(S12>50,(InterpolateXY(O12,P12,'South East Qld Peaking Factors'!$D$119:$Q$119,'South East Qld Peaking Factors'!$C$120:$C$134,'South East Qld Peaking Factors'!$D$120:$Q$134)-1)*(S12-50)/10+1,1)))))))))) -> 1.787560083 | U12: =IF($Q12=0," ",IF(S12>99.99,InterpolateXY(O12,P12,'South East Qld Peaking Factors'!$S$7:$AF$7,'South East Qld Peaking Factors'!$R$8:$R$22,'South East Qld Peaking Factors'!$S$8:$AF$22),IF(S12>99,(InterpolateXY(O12,P12,'South East Qld Peaking Factors'!$S$7:$AF$7,'South East Qld Peaking Factors'!$R$8:$R$22,'South East Qld Peaking Factors'!$S$8:$AF$22)- InterpolateXY(O12,P12,'South East Qld Peaking Factors'!$S$23:$AF$23,'South East Qld Peaking Factors'!$R$24:$R$38,'South East Qld Peaking Factors'!$S$24:$AF$38))*(S12-99)+ InterpolateXY(O12,P12,'South East Qld Peaking Factors'!$S$23:$AF$23,'South East Qld Peaking Factors'!$R$24:$R$38,'South East Qld Peaking Factors'!$S$24:$AF$38),IF(S12>98,(InterpolateXY(O12,P12,'South East Qld Peaking Factors'!$S$23:$AF$23,'South East Qld Peaking Factors'!$R$24:$R$38,'South East Qld Peaking Factors'!$S$24:$AF$38)-InterpolateXY(O12,P12,'South East Qld Peaking Factors'!$S$39:$AF$39,'South East Qld Peaking Factors'!$R$40:$R$54,'South East Qld Peaking Factors'!$S$40:$AF$54))*(S12-98)+ InterpolateXY(O12,P12,'South East Qld Peaking Factors'!$S$39:$AF$39,'South East Qld Peaking Factors'!$R$40:$R$54,'South East Qld Peaking Factors'!$S$40:$AF$54),IF(S12>95,(InterpolateXY(O12,P12,'South East Qld Peaking Factors'!$S$39:$AF$39,'South East Qld Peaking Factors'!$R$40:$R$54,'South East Qld Peaking Factors'!$S$40:$AF$54)-InterpolateXY(O12,P12,'South East Qld Peaking Factors'!$S$55:$AF$55,'South East Qld Peaking Factors'!$R$56:$R$70,'South East Qld Peaking Factors'!$S$56:$AF$70))*(S12-95)/3+InterpolateXY(O12,P12,'South East Qld Peaking Factors'!$S$55:$AF$55,'South East Qld Peaking Factors'!$R$56:$R$70,'South East Qld Peaking Factors'!$S$56:$AF$70),IF(S12>90,(InterpolateXY(O12,P12,'South East Qld Peaking Factors'!$S$55:$AF$55,'South East Qld Peaking Factors'!$R$56:$R$70,'South East Qld Peaking Factors'!$S$56:$AF$70)-InterpolateXY(O12,P12,'South East Qld Peaking Factors'!$S$71:$AF$71,'South East Qld Peaking Factors'!$R$72:$R$86,'South East Qld Peaking Factors'!$S$72:$AF$86))*(S12-90)/5+InterpolateXY(O12,P12,'South East Qld Peaking Factors'!$S$71:$AF$71,'South East Qld Peaking Factors'!$R$72:$R$86,'South East Qld Peaking Factors'!$S$72:$AF$86),IF(S12>80,(InterpolateXY(O12,P12,'South East Qld Peaking Factors'!$S$71:$AF$71,'South East Qld Peaking Factors'!$R$72:$R$86,'South East Qld Peaking Factors'!$S$72:$AF$86)-InterpolateXY(O12,P12,'South East Qld Peaking Factors'!$S$87:$AF$87,'South East Qld Peaking Factors'!$R$88:$R$102,'South East Qld Peaking Factors'!$S$88:$AF$102))*(S12-80)/10+InterpolateXY(O12,P12,'South East Qld Peaking Factors'!$S$87:$AF$87,'South East Qld Peaking Factors'!$R$88:$R$102,'South East Qld Peaking Factors'!$S$88:$AF$102),IF(S12>70,(InterpolateXY(O12,P12,'South East Qld Peaking Factors'!$S$87:$AF$87,'South East Qld Peaking Factors'!$R$88:$R$102,'South East Qld Peaking Factors'!$S$88:$AF$102)-InterpolateXY(O12,P12,'South East Qld Peaking Factors'!$S$103:$AF$103,'South East Qld Peaking Factors'!$R$104:$R$118,'South East Qld Peaking Factors'!$S$104:$AF$118))*(S12-70)/10+InterpolateXY(O12,P12,'South East Qld Peaking Factors'!$S$103:$AF$103,'South East Qld Peaking Factors'!$R$104:$R$118,'South East Qld Peaking Factors'!$S$104:$AF$118),IF(S12>60,(InterpolateXY(O12,P12,'South East Qld Peaking Factors'!$S$103:$AF$103,'South East Qld Peaking Factors'!$R$104:$R$118,'South East Qld Peaking Factors'!$S$104:$AF$118)-InterpolateXY(O12,P12,'South East Qld Peaking Factors'!$S$119:$AF$119,'South East Qld Peaking Factors'!$R$120:$R$134,'South East Qld Peaking Factors'!$S$120:$AF$134))*(S12-60)/10+InterpolateXY(O12,P12,'South East Qld Peaking Factors'!$S$119:$AF$119,'South East Qld Peaking Factors'!$R$120:$R$134,'South East Qld Peaking Factors'!$S$120:$AF$134),IF(S12>50,(InterpolateXY(O12,P12,'South East Qld Peaking Factors'!$S$119:$AF$119,'South East Qld Peaking Factors'!$R$120:$R$134,'South East Qld Peaking Factors'!$S$120:$AF$134)-1)*(S12-50)/10+1,1)))))))))) -> 1.404195593 | V12: -0.07097118265 | W12: ='Reservoir Storage'!J$34 -> 15 | X12: 2.167118295 | Y12: ='Reservoir Storage'!J$35 -> 1.571997485 | Z12: 4.795872093 | AB12: 10 | AC12: 7.261561095
O13: ='Reservoir Storage'!J$23 -> 9.542 | P13: ='Reservoir Storage'!J$26 -> 11.59033333 | Q13: =Q12+IF('Reservoir Storage'!J$26<=15,0.5,IF('Reservoir Storage'!J$26<=30,1,2)) -> 3.5 | R13: 4.033741846 | S13: 97.97545536 | T13: =IF($Q13=0," ",IF(S13>99.99,InterpolateXY(O13,P13,'South East Qld Peaking Factors'!$D$7:$Q$7,'South East Qld Peaking Factors'!$C$8:$C$22,'South East Qld Peaking Factors'!$D$8:$Q$22),IF(S13>99,(InterpolateXY(O13,P13,'South East Qld Peaking Factors'!$D$7:$Q$7,'South East Qld Peaking Factors'!$C$8:$C$22,'South East Qld Peaking Factors'!$D$8:$Q$22)- InterpolateXY(O13,P13,'South East Qld Peaking Factors'!$D$23:$Q$23,'South East Qld Peaking Factors'!$C$24:$C$38,'South East Qld Peaking Factors'!$D$24:$Q$38))*(S13-99)+ InterpolateXY(O13,P13,'South East Qld Peaking Factors'!$D$23:$Q$23,'South East Qld Peaking Factors'!$C$24:$C$38,'South East Qld Peaking Factors'!$D$24:$Q$38),IF(S13>98,(InterpolateXY(O13,P13,'South East Qld Peaking Factors'!$D$23:$Q$23,'South East Qld Peaking Factors'!$C$24:$C$38,'South East Qld Peaking Factors'!$D$24:$Q$38)-InterpolateXY(O13,P13,'South East Qld Peaking Factors'!$D$39:$Q$39,'South East Qld Peaking Factors'!$C$40:$C$54,'South East Qld Peaking Factors'!$D$40:$Q$54))*(S13-98)+ InterpolateXY(O13,P13,'South East Qld Peaking Factors'!$D$39:$Q$39,'South East Qld Peaking Factors'!$C$40:$C$54,'South East Qld Peaking Factors'!$D$40:$Q$54),IF(S13>95,(InterpolateXY(O13,P13,'South East Qld Peaking Factors'!$D$39:$Q$39,'South East Qld Peaking Factors'!$C$40:$C$54,'South East Qld Peaking Factors'!$D$40:$Q$54)-InterpolateXY(O13,P13,'South East Qld Peaking Factors'!$D$55:$Q$55,'South East Qld Peaking Factors'!$C$56:$C$70,'South East Qld Peaking Factors'!$D$56:$Q$70))*(S13-95)/3+InterpolateXY(O13,P13,'South East Qld Peaking Factors'!$D$55:$Q$55,'South East Qld Peaking Factors'!$C$56:$C$70,'South East Qld Peaking Factors'!$D$56:$Q$70),IF(S13>90,(InterpolateXY(O13,P13,'South East Qld Peaking Factors'!$D$55:$Q$55,'South East Qld Peaking Factors'!$C$56:$C$70,'South East Qld Peaking Factors'!$D$56:$Q$70)-InterpolateXY(O13,P13,'South East Qld Peaking Factors'!$D$71:$Q$71,'South East Qld Peaking Factors'!$C$72:$C$86,'South East Qld Peaking Factors'!$D$72:$Q$86))*(S13-90)/5+InterpolateXY(O13,P13,'South East Qld Peaking Factors'!$D$71:$Q$71,'South East Qld Peaking Factors'!$C$72:$C$86,'South East Qld Peaking Factors'!$D$72:$Q$86),IF(S13>80,(InterpolateXY(O13,P13,'South East Qld Peaking Factors'!$D$71:$Q$71,'South East Qld Peaking Factors'!$C$72:$C$86,'South East Qld Peaking Factors'!$D$72:$Q$86)-InterpolateXY(O13,P13,'South East Qld Peaking Factors'!$D$87:$Q$87,'South East Qld Peaking Factors'!$C$88:$C$102,'South East Qld Peaking Factors'!$D$88:$Q$102))*(S13-80)/10+InterpolateXY(O13,P13,'South East Qld Peaking Factors'!$D$87:$Q$87,'South East Qld Peaking Factors'!$C$88:$C$102,'South East Qld Peaking Factors'!$D$88:$Q$102),IF(S13>70,(InterpolateXY(O13,P13,'South East Qld Peaking Factors'!$D$87:$Q$87,'South East Qld Peaking Factors'!$C$88:$C$102,'South East Qld Peaking Factors'!$D$88:$Q$102)-InterpolateXY(O13,P13,'South East Qld Peaking Factors'!$D$103:$Q$103,'South East Qld Peaking Factors'!$C$104:$C$118,'South East Qld Peaking Factors'!$D$104:$Q$118))*(S13-70)/10+InterpolateXY(O13,P13,'South East Qld Peaking Factors'!$D$103:$Q$103,'South East Qld Peaking Factors'!$C$104:$C$118,'South East Qld Peaking Factors'!$D$104:$Q$118),IF(S13>60,(InterpolateXY(O13,P13,'South East Qld Peaking Factors'!$D$103:$Q$103,'South East Qld Peaking Factors'!$C$104:$C$118,'South East Qld Peaking Factors'!$D$104:$Q$118)-InterpolateXY(O13,P13,'South East Qld Peaking Factors'!$D$119:$Q$119,'South East Qld Peaking Factors'!$C$120:$C$134,'South East Qld Peaking Factors'!$D$120:$Q$134))*(S13-60)/10+InterpolateXY(O13,P13,'South East Qld Peaking Factors'!$D$119:$Q$119,'South East Qld Peaking Factors'!$C$120:$C$134,'South East Qld Peaking Factors'!$D$120:$Q$134),IF(S13>50,(InterpolateXY(O13,P13,'South East Qld Peaking Factors'!$D$119:$Q$119,'South East Qld Peaking Factors'!$C$120:$C$134,'South East Qld Peaking Factors'!$D$120:$Q$134)-1)*(S13-50)/10+1,1)))))))))) -> 1.67027432 | U13: =IF($Q13=0," ",IF(S13>99.99,InterpolateXY(O13,P13,'South East Qld Peaking Factors'!$S$7:$AF$7,'South East Qld Peaking Factors'!$R$8:$R$22,'South East Qld Peaking Factors'!$S$8:$AF$22),IF(S13>99,(InterpolateXY(O13,P13,'South East Qld Peaking Factors'!$S$7:$AF$7,'South East Qld Peaking Factors'!$R$8:$R$22,'South East Qld Peaking Factors'!$S$8:$AF$22)- InterpolateXY(O13,P13,'South East Qld Peaking Factors'!$S$23:$AF$23,'South East Qld Peaking Factors'!$R$24:$R$38,'South East Qld Peaking Factors'!$S$24:$AF$38))*(S13-99)+ InterpolateXY(O13,P13,'South East Qld Peaking Factors'!$S$23:$AF$23,'South East Qld Peaking Factors'!$R$24:$R$38,'South East Qld Peaking Factors'!$S$24:$AF$38),IF(S13>98,(InterpolateXY(O13,P13,'South East Qld Peaking Factors'!$S$23:$AF$23,'South East Qld Peaking Factors'!$R$24:$R$38,'South East Qld Peaking Factors'!$S$24:$AF$38)-InterpolateXY(O13,P13,'South East Qld Peaking Factors'!$S$39:$AF$39,'South East Qld Peaking Factors'!$R$40:$R$54,'South East Qld Peaking Factors'!$S$40:$AF$54))*(S13-98)+ InterpolateXY(O13,P13,'South East Qld Peaking Factors'!$S$39:$AF$39,'South East Qld Peaking Factors'!$R$40:$R$54,'South East Qld Peaking Factors'!$S$40:$AF$54),IF(S13>95,(InterpolateXY(O13,P13,'South East Qld Peaking Factors'!$S$39:$AF$39,'South East Qld Peaking Factors'!$R$40:$R$54,'South East Qld Peaking Factors'!$S$40:$AF$54)-InterpolateXY(O13,P13,'South East Qld Peaking Factors'!$S$55:$AF$55,'South East Qld Peaking Factors'!$R$56:$R$70,'South East Qld Peaking Factors'!$S$56:$AF$70))*(S13-95)/3+InterpolateXY(O13,P13,'South East Qld Peaking Factors'!$S$55:$AF$55,'South East Qld Peaking Factors'!$R$56:$R$70,'South East Qld Peaking Factors'!$S$56:$AF$70),IF(S13>90,(InterpolateXY(O13,P13,'South East Qld Peaking Factors'!$S$55:$AF$55,'South East Qld Peaking Factors'!$R$56:$R$70,'South East Qld Peaking Factors'!$S$56:$AF$70)-InterpolateXY(O13,P13,'South East Qld Peaking Factors'!$S$71:$AF$71,'South East Qld Peaking Factors'!$R$72:$R$86,'South East Qld Peaking Factors'!$S$72:$AF$86))*(S13-90)/5+InterpolateXY(O13,P13,'South East Qld Peaking Factors'!$S$71:$AF$71,'South East Qld Peaking Factors'!$R$72:$R$86,'South East Qld Peaking Factors'!$S$72:$AF$86),IF(S13>80,(InterpolateXY(O13,P13,'South East Qld Peaking Factors'!$S$71:$AF$71,'South East Qld Peaking Factors'!$R$72:$R$86,'South East Qld Peaking Factors'!$S$72:$AF$86)-InterpolateXY(O13,P13,'South East Qld Peaking Factors'!$S$87:$AF$87,'South East Qld Peaking Factors'!$R$88:$R$102,'South East Qld Peaking Factors'!$S$88:$AF$102))*(S13-80)/10+InterpolateXY(O13,P13,'South East Qld Peaking Factors'!$S$87:$AF$87,'South East Qld Peaking Factors'!$R$88:$R$102,'South East Qld Peaking Factors'!$S$88:$AF$102),IF(S13>70,(InterpolateXY(O13,P13,'South East Qld Peaking Factors'!$S$87:$AF$87,'South East Qld Peaking Factors'!$R$88:$R$102,'South East Qld Peaking Factors'!$S$88:$AF$102)-InterpolateXY(O13,P13,'South East Qld Peaking Factors'!$S$103:$AF$103,'South East Qld Peaking Factors'!$R$104:$R$118,'South East Qld Peaking Factors'!$S$104:$AF$118))*(S13-70)/10+InterpolateXY(O13,P13,'South East Qld Peaking Factors'!$S$103:$AF$103,'South East Qld Peaking Factors'!$R$104:$R$118,'South East Qld Peaking Factors'!$S$104:$AF$118),IF(S13>60,(InterpolateXY(O13,P13,'South East Qld Peaking Factors'!$S$103:$AF$103,'South East Qld Peaking Factors'!$R$104:$R$118,'South East Qld Peaking Factors'!$S$104:$AF$118)-InterpolateXY(O13,P13,'South East Qld Peaking Factors'!$S$119:$AF$119,'South East Qld Peaking Factors'!$R$120:$R$134,'South East Qld Peaking Factors'!$S$120:$AF$134))*(S13-60)/10+InterpolateXY(O13,P13,'South East Qld Peaking Factors'!$S$119:$AF$119,'South East Qld Peaking Factors'!$R$120:$R$134,'South East Qld Peaking Factors'!$S$120:$AF$134),IF(S13>50,(InterpolateXY(O13,P13,'South East Qld Peaking Factors'!$S$119:$AF$119,'South East Qld Peaking Factors'!$R$120:$R$134,'South East Qld Peaking Factors'!$S$120:$AF$134)-1)*(S13-50)/10+1,1)))))))))) -> 1.40335771 | V13: -0.05119377904 | W13: ='Reservoir Storage'!J$34 -> 15 | X13: 1.171199851 | Y13: ='Reservoir Storage'!J$35 -> 1.571997485 | Z13: 3.468987367 | AB13: 25 | AC13: 12.13043571
O14: ='Reservoir Storage'!J$23 -> 9.542 | P14: ='Reservoir Storage'!J$26 -> 11.59033333 | Q14: =Q13+IF('Reservoir Storage'!J$26<=15,0.5,IF('Reservoir Storage'!J$26<=30,1,2)) -> 4 | R14: 4.34693945 | S14: 96.43615837 | T14: =IF($Q14=0," ",IF(S14>99.99,InterpolateXY(O14,P14,'South East Qld Peaking Factors'!$D$7:$Q$7,'South East Qld Peaking Factors'!$C$8:$C$22,'South East Qld Peaking Factors'!$D$8:$Q$22),IF(S14>99,(InterpolateXY(O14,P14,'South East Qld Peaking Factors'!$D$7:$Q$7,'South East Qld Peaking Factors'!$C$8:$C$22,'South East Qld Peaking Factors'!$D$8:$Q$22)- InterpolateXY(O14,P14,'South East Qld Peaking Factors'!$D$23:$Q$23,'South East Qld Peaking Factors'!$C$24:$C$38,'South East Qld Peaking Factors'!$D$24:$Q$38))*(S14-99)+ InterpolateXY(O14,P14,'South East Qld Peaking Factors'!$D$23:$Q$23,'South East Qld Peaking Factors'!$C$24:$C$38,'South East Qld Peaking Factors'!$D$24:$Q$38),IF(S14>98,(InterpolateXY(O14,P14,'South East Qld Peaking Factors'!$D$23:$Q$23,'South East Qld Peaking Factors'!$C$24:$C$38,'South East Qld Peaking Factors'!$D$24:$Q$38)-InterpolateXY(O14,P14,'South East Qld Peaking Factors'!$D$39:$Q$39,'South East Qld Peaking Factors'!$C$40:$C$54,'South East Qld Peaking Factors'!$D$40:$Q$54))*(S14-98)+ InterpolateXY(O14,P14,'South East Qld Peaking Factors'!$D$39:$Q$39,'South East Qld Peaking Factors'!$C$40:$C$54,'South East Qld Peaking Factors'!$D$40:$Q$54),IF(S14>95,(InterpolateXY(O14,P14,'South East Qld Peaking Factors'!$D$39:$Q$39,'South East Qld Peaking Factors'!$C$40:$C$54,'South East Qld Peaking Factors'!$D$40:$Q$54)-InterpolateXY(O14,P14,'South East Qld Peaking Factors'!$D$55:$Q$55,'South East Qld Peaking Factors'!$C$56:$C$70,'South East Qld Peaking Factors'!$D$56:$Q$70))*(S14-95)/3+InterpolateXY(O14,P14,'South East Qld Peaking Factors'!$D$55:$Q$55,'South East Qld Peaking Factors'!$C$56:$C$70,'South East Qld Peaking Factors'!$D$56:$Q$70),IF(S14>90,(InterpolateXY(O14,P14,'South East Qld Peaking Factors'!$D$55:$Q$55,'South East Qld Peaking Factors'!$C$56:$C$70,'South East Qld Peaking Factors'!$D$56:$Q$70)-InterpolateXY(O14,P14,'South East Qld Peaking Factors'!$D$71:$Q$71,'South East Qld Peaking Factors'!$C$72:$C$86,'South East Qld Peaking Factors'!$D$72:$Q$86))*(S14-90)/5+InterpolateXY(O14,P14,'South East Qld Peaking Factors'!$D$71:$Q$71,'South East Qld Peaking Factors'!$C$72:$C$86,'South East Qld Peaking Factors'!$D$72:$Q$86),IF(S14>80,(InterpolateXY(O14,P14,'South East Qld Peaking Factors'!$D$71:$Q$71,'South East Qld Peaking Factors'!$C$72:$C$86,'South East Qld Peaking Factors'!$D$72:$Q$86)-InterpolateXY(O14,P14,'South East Qld Peaking Factors'!$D$87:$Q$87,'South East Qld Peaking Factors'!$C$88:$C$102,'South East Qld Peaking Factors'!$D$88:$Q$102))*(S14-80)/10+InterpolateXY(O14,P14,'South East Qld Peaking Factors'!$D$87:$Q$87,'South East Qld Peaking Factors'!$C$88:$C$102,'South East Qld Peaking Factors'!$D$88:$Q$102),IF(S14>70,(InterpolateXY(O14,P14,'South East Qld Peaking Factors'!$D$87:$Q$87,'South East Qld Peaking Factors'!$C$88:$C$102,'South East Qld Peaking Factors'!$D$88:$Q$102)-InterpolateXY(O14,P14,'South East Qld Peaking Factors'!$D$103:$Q$103,'South East Qld Peaking Factors'!$C$104:$C$118,'South East Qld Peaking Factors'!$D$104:$Q$118))*(S14-70)/10+InterpolateXY(O14,P14,'South East Qld Peaking Factors'!$D$103:$Q$103,'South East Qld Peaking Factors'!$C$104:$C$118,'South East Qld Peaking Factors'!$D$104:$Q$118),IF(S14>60,(InterpolateXY(O14,P14,'South East Qld Peaking Factors'!$D$103:$Q$103,'South East Qld Peaking Factors'!$C$104:$C$118,'South East Qld Peaking Factors'!$D$104:$Q$118)-InterpolateXY(O14,P14,'South East Qld Peaking Factors'!$D$119:$Q$119,'South East Qld Peaking Factors'!$C$120:$C$134,'South East Qld Peaking Factors'!$D$120:$Q$134))*(S14-60)/10+InterpolateXY(O14,P14,'South East Qld Peaking Factors'!$D$119:$Q$119,'South East Qld Peaking Factors'!$C$120:$C$134,'South East Qld Peaking Factors'!$D$120:$Q$134),IF(S14>50,(InterpolateXY(O14,P14,'South East Qld Peaking Factors'!$D$119:$Q$119,'South East Qld Peaking Factors'!$C$120:$C$134,'South East Qld Peaking Factors'!$D$120:$Q$134)-1)*(S14-50)/10+1,1)))))))))) -> 1.597909623 | U14: =IF($Q14=0," ",IF(S14>99.99,InterpolateXY(O14,P14,'South East Qld Peaking Factors'!$S$7:$AF$7,'South East Qld Peaking Factors'!$R$8:$R$22,'South East Qld Peaking Factors'!$S$8:$AF$22),IF(S14>99,(InterpolateXY(O14,P14,'South East Qld Peaking Factors'!$S$7:$AF$7,'South East Qld Peaking Factors'!$R$8:$R$22,'South East Qld Peaking Factors'!$S$8:$AF$22)- InterpolateXY(O14,P14,'South East Qld Peaking Factors'!$S$23:$AF$23,'South East Qld Peaking Factors'!$R$24:$R$38,'South East Qld Peaking Factors'!$S$24:$AF$38))*(S14-99)+ InterpolateXY(O14,P14,'South East Qld Peaking Factors'!$S$23:$AF$23,'South East Qld Peaking Factors'!$R$24:$R$38,'South East Qld Peaking Factors'!$S$24:$AF$38),IF(S14>98,(InterpolateXY(O14,P14,'South East Qld Peaking Factors'!$S$23:$AF$23,'South East Qld Peaking Factors'!$R$24:$R$38,'South East Qld Peaking Factors'!$S$24:$AF$38)-InterpolateXY(O14,P14,'South East Qld Peaking Factors'!$S$39:$AF$39,'South East Qld Peaking Factors'!$R$40:$R$54,'South East Qld Peaking Factors'!$S$40:$AF$54))*(S14-98)+ InterpolateXY(O14,P14,'South East Qld Peaking Factors'!$S$39:$AF$39,'South East Qld Peaking Factors'!$R$40:$R$54,'South East Qld Peaking Factors'!$S$40:$AF$54),IF(S14>95,(InterpolateXY(O14,P14,'South East Qld Peaking Factors'!$S$39:$AF$39,'South East Qld Peaking Factors'!$R$40:$R$54,'South East Qld Peaking Factors'!$S$40:$AF$54)-InterpolateXY(O14,P14,'South East Qld Peaking Factors'!$S$55:$AF$55,'South East Qld Peaking Factors'!$R$56:$R$70,'South East Qld Peaking Factors'!$S$56:$AF$70))*(S14-95)/3+InterpolateXY(O14,P14,'South East Qld Peaking Factors'!$S$55:$AF$55,'South East Qld Peaking Factors'!$R$56:$R$70,'South East Qld Peaking Factors'!$S$56:$AF$70),IF(S14>90,(InterpolateXY(O14,P14,'South East Qld Peaking Factors'!$S$55:$AF$55,'South East Qld Peaking Factors'!$R$56:$R$70,'South East Qld Peaking Factors'!$S$56:$AF$70)-InterpolateXY(O14,P14,'South East Qld Peaking Factors'!$S$71:$AF$71,'South East Qld Peaking Factors'!$R$72:$R$86,'South East Qld Peaking Factors'!$S$72:$AF$86))*(S14-90)/5+InterpolateXY(O14,P14,'South East Qld Peaking Factors'!$S$71:$AF$71,'South East Qld Peaking Factors'!$R$72:$R$86,'South East Qld Peaking Factors'!$S$72:$AF$86),IF(S14>80,(InterpolateXY(O14,P14,'South East Qld Peaking Factors'!$S$71:$AF$71,'South East Qld Peaking Factors'!$R$72:$R$86,'South East Qld Peaking Factors'!$S$72:$AF$86)-InterpolateXY(O14,P14,'South East Qld Peaking Factors'!$S$87:$AF$87,'South East Qld Peaking Factors'!$R$88:$R$102,'South East Qld Peaking Factors'!$S$88:$AF$102))*(S14-80)/10+InterpolateXY(O14,P14,'South East Qld Peaking Factors'!$S$87:$AF$87,'South East Qld Peaking Factors'!$R$88:$R$102,'South East Qld Peaking Factors'!$S$88:$AF$102),IF(S14>70,(InterpolateXY(O14,P14,'South East Qld Peaking Factors'!$S$87:$AF$87,'South East Qld Peaking Factors'!$R$88:$R$102,'South East Qld Peaking Factors'!$S$88:$AF$102)-InterpolateXY(O14,P14,'South East Qld Peaking Factors'!$S$103:$AF$103,'South East Qld Peaking Factors'!$R$104:$R$118,'South East Qld Peaking Factors'!$S$104:$AF$118))*(S14-70)/10+InterpolateXY(O14,P14,'South East Qld Peaking Factors'!$S$103:$AF$103,'South East Qld Peaking Factors'!$R$104:$R$118,'South East Qld Peaking Factors'!$S$104:$AF$118),IF(S14>60,(InterpolateXY(O14,P14,'South East Qld Peaking Factors'!$S$103:$AF$103,'South East Qld Peaking Factors'!$R$104:$R$118,'South East Qld Peaking Factors'!$S$104:$AF$118)-InterpolateXY(O14,P14,'South East Qld Peaking Factors'!$S$119:$AF$119,'South East Qld Peaking Factors'!$R$120:$R$134,'South East Qld Peaking Factors'!$S$120:$AF$134))*(S14-60)/10+InterpolateXY(O14,P14,'South East Qld Peaking Factors'!$S$119:$AF$119,'South East Qld Peaking Factors'!$R$120:$R$134,'South East Qld Peaking Factors'!$S$120:$AF$134),IF(S14>50,(InterpolateXY(O14,P14,'South East Qld Peaking Factors'!$S$119:$AF$119,'South East Qld Peaking Factors'!$R$120:$R$134,'South East Qld Peaking Factors'!$S$120:$AF$134)-1)*(S14-50)/10+1,1)))))))))) -> 1.385420485 | V14: -0.04195363579 | W14: ='Reservoir Storage'!J$34 -> 15 | X14: 0.5315883428 | Y14: ='Reservoir Storage'!J$35 -> 1.571997485 | Z14: 3.066017497 | AB14: 50 | AC14: 17.88352796
O15: ='Reservoir Storage'!J$23 -> 9.542 | P15: ='Reservoir Storage'!J$26 -> 11.59033333 | Q15: =Q14+IF('Reservoir Storage'!J$26<=15,0.5,IF('Reservoir Storage'!J$26<=30,1,2)) -> 4.5 | R15: 4.643324156 | S15: 94.56775664 | T15: =IF($Q15=0," ",IF(S15>99.99,InterpolateXY(O15,P15,'South East Qld Peaking Factors'!$D$7:$Q$7,'South East Qld Peaking Factors'!$C$8:$C$22,'South East Qld Peaking Factors'!$D$8:$Q$22),IF(S15>99,(InterpolateXY(O15,P15,'South East Qld Peaking Factors'!$D$7:$Q$7,'South East Qld Peaking Factors'!$C$8:$C$22,'South East Qld Peaking Factors'!$D$8:$Q$22)- InterpolateXY(O15,P15,'South East Qld Peaking Factors'!$D$23:$Q$23,'South East Qld Peaking Factors'!$C$24:$C$38,'South East Qld Peaking Factors'!$D$24:$Q$38))*(S15-99)+ InterpolateXY(O15,P15,'South East Qld Peaking Factors'!$D$23:$Q$23,'South East Qld Peaking Factors'!$C$24:$C$38,'South East Qld Peaking Factors'!$D$24:$Q$38),IF(S15>98,(InterpolateXY(O15,P15,'South East Qld Peaking Factors'!$D$23:$Q$23,'South East Qld Peaking Factors'!$C$24:$C$38,'South East Qld Peaking Factors'!$D$24:$Q$38)-InterpolateXY(O15,P15,'South East Qld Peaking Factors'!$D$39:$Q$39,'South East Qld Peaking Factors'!$C$40:$C$54,'South East Qld Peaking Factors'!$D$40:$Q$54))*(S15-98)+ InterpolateXY(O15,P15,'South East Qld Peaking Factors'!$D$39:$Q$39,'South East Qld Peaking Factors'!$C$40:$C$54,'South East Qld Peaking Factors'!$D$40:$Q$54),IF(S15>95,(InterpolateXY(O15,P15,'South East Qld Peaking Factors'!$D$39:$Q$39,'South East Qld Peaking Factors'!$C$40:$C$54,'South East Qld Peaking Factors'!$D$40:$Q$54)-InterpolateXY(O15,P15,'South East Qld Peaking Factors'!$D$55:$Q$55,'South East Qld Peaking Factors'!$C$56:$C$70,'South East Qld Peaking Factors'!$D$56:$Q$70))*(S15-95)/3+InterpolateXY(O15,P15,'South East Qld Peaking Factors'!$D$55:$Q$55,'South East Qld Peaking Factors'!$C$56:$C$70,'South East Qld Peaking Factors'!$D$56:$Q$70),IF(S15>90,(InterpolateXY(O15,P15,'South East Qld Peaking Factors'!$D$55:$Q$55,'South East Qld Peaking Factors'!$C$56:$C$70,'South East Qld Peaking Factors'!$D$56:$Q$70)-InterpolateXY(O15,P15,'South East Qld Peaking Factors'!$D$71:$Q$71,'South East Qld Peaking Factors'!$C$72:$C$86,'South East Qld Peaking Factors'!$D$72:$Q$86))*(S15-90)/5+InterpolateXY(O15,P15,'South East Qld Peaking Factors'!$D$71:$Q$71,'South East Qld Peaking Factors'!$C$72:$C$86,'South East Qld Peaking Factors'!$D$72:$Q$86),IF(S15>80,(InterpolateXY(O15,P15,'South East Qld Peaking Factors'!$D$71:$Q$71,'South East Qld Peaking Factors'!$C$72:$C$86,'South East Qld Peaking Factors'!$D$72:$Q$86)-InterpolateXY(O15,P15,'South East Qld Peaking Factors'!$D$87:$Q$87,'South East Qld Peaking Factors'!$C$88:$C$102,'South East Qld Peaking Factors'!$D$88:$Q$102))*(S15-80)/10+InterpolateXY(O15,P15,'South East Qld Peaking Factors'!$D$87:$Q$87,'South East Qld Peaking Factors'!$C$88:$C$102,'South East Qld Peaking Factors'!$D$88:$Q$102),IF(S15>70,(InterpolateXY(O15,P15,'South East Qld Peaking Factors'!$D$87:$Q$87,'South East Qld Peaking Factors'!$C$88:$C$102,'South East Qld Peaking Factors'!$D$88:$Q$102)-InterpolateXY(O15,P15,'South East Qld Peaking Factors'!$D$103:$Q$103,'South East Qld Peaking Factors'!$C$104:$C$118,'South East Qld Peaking Factors'!$D$104:$Q$118))*(S15-70)/10+InterpolateXY(O15,P15,'South East Qld Peaking Factors'!$D$103:$Q$103,'South East Qld Peaking Factors'!$C$104:$C$118,'South East Qld Peaking Factors'!$D$104:$Q$118),IF(S15>60,(InterpolateXY(O15,P15,'South East Qld Peaking Factors'!$D$103:$Q$103,'South East Qld Peaking Factors'!$C$104:$C$118,'South East Qld Peaking Factors'!$D$104:$Q$118)-InterpolateXY(O15,P15,'South East Qld Peaking Factors'!$D$119:$Q$119,'South East Qld Peaking Factors'!$C$120:$C$134,'South East Qld Peaking Factors'!$D$120:$Q$134))*(S15-60)/10+InterpolateXY(O15,P15,'South East Qld Peaking Factors'!$D$119:$Q$119,'South East Qld Peaking Factors'!$C$120:$C$134,'South East Qld Peaking Factors'!$D$120:$Q$134),IF(S15>50,(InterpolateXY(O15,P15,'South East Qld Peaking Factors'!$D$119:$Q$119,'South East Qld Peaking Factors'!$C$120:$C$134,'South East Qld Peaking Factors'!$D$120:$Q$134)-1)*(S15-50)/10+1,1)))))))))) -> 1.518111049 | U15: =IF($Q15=0," ",IF(S15>99.99,InterpolateXY(O15,P15,'South East Qld Peaking Factors'!$S$7:$AF$7,'South East Qld Peaking Factors'!$R$8:$R$22,'South East Qld Peaking Factors'!$S$8:$AF$22),IF(S15>99,(InterpolateXY(O15,P15,'South East Qld Peaking Factors'!$S$7:$AF$7,'South East Qld Peaking Factors'!$R$8:$R$22,'South East Qld Peaking Factors'!$S$8:$AF$22)- InterpolateXY(O15,P15,'South East Qld Peaking Factors'!$S$23:$AF$23,'South East Qld Peaking Factors'!$R$24:$R$38,'South East Qld Peaking Factors'!$S$24:$AF$38))*(S15-99)+ InterpolateXY(O15,P15,'South East Qld Peaking Factors'!$S$23:$AF$23,'South East Qld Peaking Factors'!$R$24:$R$38,'South East Qld Peaking Factors'!$S$24:$AF$38),IF(S15>98,(InterpolateXY(O15,P15,'South East Qld Peaking Factors'!$S$23:$AF$23,'South East Qld Peaking Factors'!$R$24:$R$38,'South East Qld Peaking Factors'!$S$24:$AF$38)-InterpolateXY(O15,P15,'South East Qld Peaking Factors'!$S$39:$AF$39,'South East Qld Peaking Factors'!$R$40:$R$54,'South East Qld Peaking Factors'!$S$40:$AF$54))*(S15-98)+ InterpolateXY(O15,P15,'South East Qld Peaking Factors'!$S$39:$AF$39,'South East Qld Peaking Factors'!$R$40:$R$54,'South East Qld Peaking Factors'!$S$40:$AF$54),IF(S15>95,(InterpolateXY(O15,P15,'South East Qld Peaking Factors'!$S$39:$AF$39,'South East Qld Peaking Factors'!$R$40:$R$54,'South East Qld Peaking Factors'!$S$40:$AF$54)-InterpolateXY(O15,P15,'South East Qld Peaking Factors'!$S$55:$AF$55,'South East Qld Peaking Factors'!$R$56:$R$70,'South East Qld Peaking Factors'!$S$56:$AF$70))*(S15-95)/3+InterpolateXY(O15,P15,'South East Qld Peaking Factors'!$S$55:$AF$55,'South East Qld Peaking Factors'!$R$56:$R$70,'South East Qld Peaking Factors'!$S$56:$AF$70),IF(S15>90,(InterpolateXY(O15,P15,'South East Qld Peaking Factors'!$S$55:$AF$55,'South East Qld Peaking Factors'!$R$56:$R$70,'South East Qld Peaking Factors'!$S$56:$AF$70)-InterpolateXY(O15,P15,'South East Qld Peaking Factors'!$S$71:$AF$71,'South East Qld Peaking Factors'!$R$72:$R$86,'South East Qld Peaking Factors'!$S$72:$AF$86))*(S15-90)/5+InterpolateXY(O15,P15,'South East Qld Peaking Factors'!$S$71:$AF$71,'South East Qld Peaking Factors'!$R$72:$R$86,'South East Qld Peaking Factors'!$S$72:$AF$86),IF(S15>80,(InterpolateXY(O15,P15,'South East Qld Peaking Factors'!$S$71:$AF$71,'South East Qld Peaking Factors'!$R$72:$R$86,'South East Qld Peaking Factors'!$S$72:$AF$86)-InterpolateXY(O15,P15,'South East Qld Peaking Factors'!$S$87:$AF$87,'South East Qld Peaking Factors'!$R$88:$R$102,'South East Qld Peaking Factors'!$S$88:$AF$102))*(S15-80)/10+InterpolateXY(O15,P15,'South East Qld Peaking Factors'!$S$87:$AF$87,'South East Qld Peaking Factors'!$R$88:$R$102,'South East Qld Peaking Factors'!$S$88:$AF$102),IF(S15>70,(InterpolateXY(O15,P15,'South East Qld Peaking Factors'!$S$87:$AF$87,'South East Qld Peaking Factors'!$R$88:$R$102,'South East Qld Peaking Factors'!$S$88:$AF$102)-InterpolateXY(O15,P15,'South East Qld Peaking Factors'!$S$103:$AF$103,'South East Qld Peaking Factors'!$R$104:$R$118,'South East Qld Peaking Factors'!$S$104:$AF$118))*(S15-70)/10+InterpolateXY(O15,P15,'South East Qld Peaking Factors'!$S$103:$AF$103,'South East Qld Peaking Factors'!$R$104:$R$118,'South East Qld Peaking Factors'!$S$104:$AF$118),IF(S15>60,(InterpolateXY(O15,P15,'South East Qld Peaking Factors'!$S$103:$AF$103,'South East Qld Peaking Factors'!$R$104:$R$118,'South East Qld Peaking Factors'!$S$104:$AF$118)-InterpolateXY(O15,P15,'South East Qld Peaking Factors'!$S$119:$AF$119,'South East Qld Peaking Factors'!$R$120:$R$134,'South East Qld Peaking Factors'!$S$120:$AF$134))*(S15-60)/10+InterpolateXY(O15,P15,'South East Qld Peaking Factors'!$S$119:$AF$119,'South East Qld Peaking Factors'!$R$120:$R$134,'South East Qld Peaking Factors'!$S$120:$AF$134),IF(S15>50,(InterpolateXY(O15,P15,'South East Qld Peaking Factors'!$S$119:$AF$119,'South East Qld Peaking Factors'!$R$120:$R$134,'South East Qld Peaking Factors'!$S$120:$AF$134)-1)*(S15-50)/10+1,1)))))))))) -> 1.35847007 | V15: -0.03266723472 | W15: ='Reservoir Storage'!J$34 -> 15 | X15: 0.1243763941 | Y15: ='Reservoir Storage'!J$35 -> 1.571997485 | Z15: 2.957092705 | AB15: 100 | AC15: 26.36513477
O16: ='Reservoir Storage'!J$23 -> 9.542 | P16: ='Reservoir Storage'!J$26 -> 11.59033333 | Q16: =Q15+IF('Reservoir Storage'!J$26<=15,0.5,IF('Reservoir Storage'!J$26<=30,1,2)) -> 5 | R16: 4.925532603 | S16: 92.47024846 | T16: =IF($Q16=0," ",IF(S16>99.99,InterpolateXY(O16,P16,'South East Qld Peaking Factors'!$D$7:$Q$7,'South East Qld Peaking Factors'!$C$8:$C$22,'South East Qld Peaking Factors'!$D$8:$Q$22),IF(S16>99,(InterpolateXY(O16,P16,'South East Qld Peaking Factors'!$D$7:$Q$7,'South East Qld Peaking Factors'!$C$8:$C$22,'South East Qld Peaking Factors'!$D$8:$Q$22)- InterpolateXY(O16,P16,'South East Qld Peaking Factors'!$D$23:$Q$23,'South East Qld Peaking Factors'!$C$24:$C$38,'South East Qld Peaking Factors'!$D$24:$Q$38))*(S16-99)+ InterpolateXY(O16,P16,'South East Qld Peaking Factors'!$D$23:$Q$23,'South East Qld Peaking Factors'!$C$24:$C$38,'South East Qld Peaking Factors'!$D$24:$Q$38),IF(S16>98,(InterpolateXY(O16,P16,'South East Qld Peaking Factors'!$D$23:$Q$23,'South East Qld Peaking Factors'!$C$24:$C$38,'South East Qld Peaking Factors'!$D$24:$Q$38)-InterpolateXY(O16,P16,'South East Qld Peaking Factors'!$D$39:$Q$39,'South East Qld Peaking Factors'!$C$40:$C$54,'South East Qld Peaking Factors'!$D$40:$Q$54))*(S16-98)+ InterpolateXY(O16,P16,'South East Qld Peaking Factors'!$D$39:$Q$39,'South East Qld Peaking Factors'!$C$40:$C$54,'South East Qld Peaking Factors'!$D$40:$Q$54),IF(S16>95,(InterpolateXY(O16,P16,'South East Qld Peaking Factors'!$D$39:$Q$39,'South East Qld Peaking Factors'!$C$40:$C$54,'South East Qld Peaking Factors'!$D$40:$Q$54)-InterpolateXY(O16,P16,'South East Qld Peaking Factors'!$D$55:$Q$55,'South East Qld Peaking Factors'!$C$56:$C$70,'South East Qld Peaking Factors'!$D$56:$Q$70))*(S16-95)/3+InterpolateXY(O16,P16,'South East Qld Peaking Factors'!$D$55:$Q$55,'South East Qld Peaking Factors'!$C$56:$C$70,'South East Qld Peaking Factors'!$D$56:$Q$70),IF(S16>90,(InterpolateXY(O16,P16,'South East Qld Peaking Factors'!$D$55:$Q$55,'South East Qld Peaking Factors'!$C$56:$C$70,'South East Qld Peaking Factors'!$D$56:$Q$70)-InterpolateXY(O16,P16,'South East Qld Peaking Factors'!$D$71:$Q$71,'South East Qld Peaking Factors'!$C$72:$C$86,'South East Qld Peaking Factors'!$D$72:$Q$86))*(S16-90)/5+InterpolateXY(O16,P16,'South East Qld Peaking Factors'!$D$71:$Q$71,'South East Qld Peaking Factors'!$C$72:$C$86,'South East Qld Peaking Factors'!$D$72:$Q$86),IF(S16>80,(InterpolateXY(O16,P16,'South East Qld Peaking Factors'!$D$71:$Q$71,'South East Qld Peaking Factors'!$C$72:$C$86,'South East Qld Peaking Factors'!$D$72:$Q$86)-InterpolateXY(O16,P16,'South East Qld Peaking Factors'!$D$87:$Q$87,'South East Qld Peaking Factors'!$C$88:$C$102,'South East Qld Peaking Factors'!$D$88:$Q$102))*(S16-80)/10+InterpolateXY(O16,P16,'South East Qld Peaking Factors'!$D$87:$Q$87,'South East Qld Peaking Factors'!$C$88:$C$102,'South East Qld Peaking Factors'!$D$88:$Q$102),IF(S16>70,(InterpolateXY(O16,P16,'South East Qld Peaking Factors'!$D$87:$Q$87,'South East Qld Peaking Factors'!$C$88:$C$102,'South East Qld Peaking Factors'!$D$88:$Q$102)-InterpolateXY(O16,P16,'South East Qld Peaking Factors'!$D$103:$Q$103,'South East Qld Peaking Factors'!$C$104:$C$118,'South East Qld Peaking Factors'!$D$104:$Q$118))*(S16-70)/10+InterpolateXY(O16,P16,'South East Qld Peaking Factors'!$D$103:$Q$103,'South East Qld Peaking Factors'!$C$104:$C$118,'South East Qld Peaking Factors'!$D$104:$Q$118),IF(S16>60,(InterpolateXY(O16,P16,'South East Qld Peaking Factors'!$D$103:$Q$103,'South East Qld Peaking Factors'!$C$104:$C$118,'South East Qld Peaking Factors'!$D$104:$Q$118)-InterpolateXY(O16,P16,'South East Qld Peaking Factors'!$D$119:$Q$119,'South East Qld Peaking Factors'!$C$120:$C$134,'South East Qld Peaking Factors'!$D$120:$Q$134))*(S16-60)/10+InterpolateXY(O16,P16,'South East Qld Peaking Factors'!$D$119:$Q$119,'South East Qld Peaking Factors'!$C$120:$C$134,'South East Qld Peaking Factors'!$D$120:$Q$134),IF(S16>50,(InterpolateXY(O16,P16,'South East Qld Peaking Factors'!$D$119:$Q$119,'South East Qld Peaking Factors'!$C$120:$C$134,'South East Qld Peaking Factors'!$D$120:$Q$134)-1)*(S16-50)/10+1,1)))))))))) -> 1.458508484 | U16: =IF($Q16=0," ",IF(S16>99.99,InterpolateXY(O16,P16,'South East Qld Peaking Factors'!$S$7:$AF$7,'South East Qld Peaking Factors'!$R$8:$R$22,'South East Qld Peaking Factors'!$S$8:$AF$22),IF(S16>99,(InterpolateXY(O16,P16,'South East Qld Peaking Factors'!$S$7:$AF$7,'South East Qld Peaking Factors'!$R$8:$R$22,'South East Qld Peaking Factors'!$S$8:$AF$22)- InterpolateXY(O16,P16,'South East Qld Peaking Factors'!$S$23:$AF$23,'South East Qld Peaking Factors'!$R$24:$R$38,'South East Qld Peaking Factors'!$S$24:$AF$38))*(S16-99)+ InterpolateXY(O16,P16,'South East Qld Peaking Factors'!$S$23:$AF$23,'South East Qld Peaking Factors'!$R$24:$R$38,'South East Qld Peaking Factors'!$S$24:$AF$38),IF(S16>98,(InterpolateXY(O16,P16,'South East Qld Peaking Factors'!$S$23:$AF$23,'South East Qld Peaking Factors'!$R$24:$R$38,'South East Qld Peaking Factors'!$S$24:$AF$38)-InterpolateXY(O16,P16,'South East Qld Peaking Factors'!$S$39:$AF$39,'South East Qld Peaking Factors'!$R$40:$R$54,'South East Qld Peaking Factors'!$S$40:$AF$54))*(S16-98)+ InterpolateXY(O16,P16,'South East Qld Peaking Factors'!$S$39:$AF$39,'South East Qld Peaking Factors'!$R$40:$R$54,'South East Qld Peaking Factors'!$S$40:$AF$54),IF(S16>95,(InterpolateXY(O16,P16,'South East Qld Peaking Factors'!$S$39:$AF$39,'South East Qld Peaking Factors'!$R$40:$R$54,'South East Qld Peaking Factors'!$S$40:$AF$54)-InterpolateXY(O16,P16,'South East Qld Peaking Factors'!$S$55:$AF$55,'South East Qld Peaking Factors'!$R$56:$R$70,'South East Qld Peaking Factors'!$S$56:$AF$70))*(S16-95)/3+InterpolateXY(O16,P16,'South East Qld Peaking Factors'!$S$55:$AF$55,'South East Qld Peaking Factors'!$R$56:$R$70,'South East Qld Peaking Factors'!$S$56:$AF$70),IF(S16>90,(InterpolateXY(O16,P16,'South East Qld Peaking Factors'!$S$55:$AF$55,'South East Qld Peaking Factors'!$R$56:$R$70,'South East Qld Peaking Factors'!$S$56:$AF$70)-InterpolateXY(O16,P16,'South East Qld Peaking Factors'!$S$71:$AF$71,'South East Qld Peaking Factors'!$R$72:$R$86,'South East Qld Peaking Factors'!$S$72:$AF$86))*(S16-90)/5+InterpolateXY(O16,P16,'South East Qld Peaking Factors'!$S$71:$AF$71,'South East Qld Peaking Factors'!$R$72:$R$86,'South East Qld Peaking Factors'!$S$72:$AF$86),IF(S16>80,(InterpolateXY(O16,P16,'South East Qld Peaking Factors'!$S$71:$AF$71,'South East Qld Peaking Factors'!$R$72:$R$86,'South East Qld Peaking Factors'!$S$72:$AF$86)-InterpolateXY(O16,P16,'South East Qld Peaking Factors'!$S$87:$AF$87,'South East Qld Peaking Factors'!$R$88:$R$102,'South East Qld Peaking Factors'!$S$88:$AF$102))*(S16-80)/10+InterpolateXY(O16,P16,'South East Qld Peaking Factors'!$S$87:$AF$87,'South East Qld Peaking Factors'!$R$88:$R$102,'South East Qld Peaking Factors'!$S$88:$AF$102),IF(S16>70,(InterpolateXY(O16,P16,'South East Qld Peaking Factors'!$S$87:$AF$87,'South East Qld Peaking Factors'!$R$88:$R$102,'South East Qld Peaking Factors'!$S$88:$AF$102)-InterpolateXY(O16,P16,'South East Qld Peaking Factors'!$S$103:$AF$103,'South East Qld Peaking Factors'!$R$104:$R$118,'South East Qld Peaking Factors'!$S$104:$AF$118))*(S16-70)/10+InterpolateXY(O16,P16,'South East Qld Peaking Factors'!$S$103:$AF$103,'South East Qld Peaking Factors'!$R$104:$R$118,'South East Qld Peaking Factors'!$S$104:$AF$118),IF(S16>60,(InterpolateXY(O16,P16,'South East Qld Peaking Factors'!$S$103:$AF$103,'South East Qld Peaking Factors'!$R$104:$R$118,'South East Qld Peaking Factors'!$S$104:$AF$118)-InterpolateXY(O16,P16,'South East Qld Peaking Factors'!$S$119:$AF$119,'South East Qld Peaking Factors'!$R$120:$R$134,'South East Qld Peaking Factors'!$S$120:$AF$134))*(S16-60)/10+InterpolateXY(O16,P16,'South East Qld Peaking Factors'!$S$119:$AF$119,'South East Qld Peaking Factors'!$R$120:$R$134,'South East Qld Peaking Factors'!$S$120:$AF$134),IF(S16>50,(InterpolateXY(O16,P16,'South East Qld Peaking Factors'!$S$119:$AF$119,'South East Qld Peaking Factors'!$R$120:$R$134,'South East Qld Peaking Factors'!$S$120:$AF$134)-1)*(S16-50)/10+1,1)))))))))) -> 1.308900412 | V16: -0.03182024159 | W16: ='Reservoir Storage'!J$34 -> 15 | X16: 0.03435068695 | Y16: ='Reservoir Storage'!J$35 -> 1.571997485 | Z16: 3.003827268 | AB16: 200 | AC16: 38.8693066
O17: ='Reservoir Storage'!J$23 -> 9.542 | P17: ='Reservoir Storage'!J$26 -> 11.59033333 | Q17: =Q16+IF('Reservoir Storage'!J$26<=15,0.5,IF('Reservoir Storage'!J$26<=30,1,2)) -> 5.5 | R17: 5.19556882 | S17: 90.2298684 | T17: =IF($Q17=0," ",IF(S17>99.99,InterpolateXY(O17,P17,'South East Qld Peaking Factors'!$D$7:$Q$7,'South East Qld Peaking Factors'!$C$8:$C$22,'South East Qld Peaking Factors'!$D$8:$Q$22),IF(S17>99,(InterpolateXY(O17,P17,'South East Qld Peaking Factors'!$D$7:$Q$7,'South East Qld Peaking Factors'!$C$8:$C$22,'South East Qld Peaking Factors'!$D$8:$Q$22)- InterpolateXY(O17,P17,'South East Qld Peaking Factors'!$D$23:$Q$23,'South East Qld Peaking Factors'!$C$24:$C$38,'South East Qld Peaking Factors'!$D$24:$Q$38))*(S17-99)+ InterpolateXY(O17,P17,'South East Qld Peaking Factors'!$D$23:$Q$23,'South East Qld Peaking Factors'!$C$24:$C$38,'South East Qld Peaking Factors'!$D$24:$Q$38),IF(S17>98,(InterpolateXY(O17,P17,'South East Qld Peaking Factors'!$D$23:$Q$23,'South East Qld Peaking Factors'!$C$24:$C$38,'South East Qld Peaking Factors'!$D$24:$Q$38)-InterpolateXY(O17,P17,'South East Qld Peaking Factors'!$D$39:$Q$39,'South East Qld Peaking Factors'!$C$40:$C$54,'South East Qld Peaking Factors'!$D$40:$Q$54))*(S17-98)+ InterpolateXY(O17,P17,'South East Qld Peaking Factors'!$D$39:$Q$39,'South East Qld Peaking Factors'!$C$40:$C$54,'South East Qld Peaking Factors'!$D$40:$Q$54),IF(S17>95,(InterpolateXY(O17,P17,'South East Qld Peaking Factors'!$D$39:$Q$39,'South East Qld Peaking Factors'!$C$40:$C$54,'South East Qld Peaking Factors'!$D$40:$Q$54)-InterpolateXY(O17,P17,'South East Qld Peaking Factors'!$D$55:$Q$55,'South East Qld Peaking Factors'!$C$56:$C$70,'South East Qld Peaking Factors'!$D$56:$Q$70))*(S17-95)/3+InterpolateXY(O17,P17,'South East Qld Peaking Factors'!$D$55:$Q$55,'South East Qld Peaking Factors'!$C$56:$C$70,'South East Qld Peaking Factors'!$D$56:$Q$70),IF(S17>90,(InterpolateXY(O17,P17,'South East Qld Peaking Factors'!$D$55:$Q$55,'South East Qld Peaking Factors'!$C$56:$C$70,'South East Qld Peaking Factors'!$D$56:$Q$70)-InterpolateXY(O17,P17,'South East Qld Peaking Factors'!$D$71:$Q$71,'South East Qld Peaking Factors'!$C$72:$C$86,'South East Qld Peaking Factors'!$D$72:$Q$86))*(S17-90)/5+InterpolateXY(O17,P17,'South East Qld Peaking Factors'!$D$71:$Q$71,'South East Qld Peaking Factors'!$C$72:$C$86,'South East Qld Peaking Factors'!$D$72:$Q$86),IF(S17>80,(InterpolateXY(O17,P17,'South East Qld Peaking Factors'!$D$71:$Q$71,'South East Qld Peaking Factors'!$C$72:$C$86,'South East Qld Peaking Factors'!$D$72:$Q$86)-InterpolateXY(O17,P17,'South East Qld Peaking Factors'!$D$87:$Q$87,'South East Qld Peaking Factors'!$C$88:$C$102,'South East Qld Peaking Factors'!$D$88:$Q$102))*(S17-80)/10+InterpolateXY(O17,P17,'South East Qld Peaking Factors'!$D$87:$Q$87,'South East Qld Peaking Factors'!$C$88:$C$102,'South East Qld Peaking Factors'!$D$88:$Q$102),IF(S17>70,(InterpolateXY(O17,P17,'South East Qld Peaking Factors'!$D$87:$Q$87,'South East Qld Peaking Factors'!$C$88:$C$102,'South East Qld Peaking Factors'!$D$88:$Q$102)-InterpolateXY(O17,P17,'South East Qld Peaking Factors'!$D$103:$Q$103,'South East Qld Peaking Factors'!$C$104:$C$118,'South East Qld Peaking Factors'!$D$104:$Q$118))*(S17-70)/10+InterpolateXY(O17,P17,'South East Qld Peaking Factors'!$D$103:$Q$103,'South East Qld Peaking Factors'!$C$104:$C$118,'South East Qld Peaking Factors'!$D$104:$Q$118),IF(S17>60,(InterpolateXY(O17,P17,'South East Qld Peaking Factors'!$D$103:$Q$103,'South East Qld Peaking Factors'!$C$104:$C$118,'South East Qld Peaking Factors'!$D$104:$Q$118)-InterpolateXY(O17,P17,'South East Qld Peaking Factors'!$D$119:$Q$119,'South East Qld Peaking Factors'!$C$120:$C$134,'South East Qld Peaking Factors'!$D$120:$Q$134))*(S17-60)/10+InterpolateXY(O17,P17,'South East Qld Peaking Factors'!$D$119:$Q$119,'South East Qld Peaking Factors'!$C$120:$C$134,'South East Qld Peaking Factors'!$D$120:$Q$134),IF(S17>50,(InterpolateXY(O17,P17,'South East Qld Peaking Factors'!$D$119:$Q$119,'South East Qld Peaking Factors'!$C$120:$C$134,'South East Qld Peaking Factors'!$D$120:$Q$134)-1)*(S17-50)/10+1,1)))))))))) -> 1.394846088 | U17: =IF($Q17=0," ",IF(S17>99.99,InterpolateXY(O17,P17,'South East Qld Peaking Factors'!$S$7:$AF$7,'South East Qld Peaking Factors'!$R$8:$R$22,'South East Qld Peaking Factors'!$S$8:$AF$22),IF(S17>99,(InterpolateXY(O17,P17,'South East Qld Peaking Factors'!$S$7:$AF$7,'South East Qld Peaking Factors'!$R$8:$R$22,'South East Qld Peaking Factors'!$S$8:$AF$22)- InterpolateXY(O17,P17,'South East Qld Peaking Factors'!$S$23:$AF$23,'South East Qld Peaking Factors'!$R$24:$R$38,'South East Qld Peaking Factors'!$S$24:$AF$38))*(S17-99)+ InterpolateXY(O17,P17,'South East Qld Peaking Factors'!$S$23:$AF$23,'South East Qld Peaking Factors'!$R$24:$R$38,'South East Qld Peaking Factors'!$S$24:$AF$38),IF(S17>98,(InterpolateXY(O17,P17,'South East Qld Peaking Factors'!$S$23:$AF$23,'South East Qld Peaking Factors'!$R$24:$R$38,'South East Qld Peaking Factors'!$S$24:$AF$38)-InterpolateXY(O17,P17,'South East Qld Peaking Factors'!$S$39:$AF$39,'South East Qld Peaking Factors'!$R$40:$R$54,'South East Qld Peaking Factors'!$S$40:$AF$54))*(S17-98)+ InterpolateXY(O17,P17,'South East Qld Peaking Factors'!$S$39:$AF$39,'South East Qld Peaking Factors'!$R$40:$R$54,'South East Qld Peaking Factors'!$S$40:$AF$54),IF(S17>95,(InterpolateXY(O17,P17,'South East Qld Peaking Factors'!$S$39:$AF$39,'South East Qld Peaking Factors'!$R$40:$R$54,'South East Qld Peaking Factors'!$S$40:$AF$54)-InterpolateXY(O17,P17,'South East Qld Peaking Factors'!$S$55:$AF$55,'South East Qld Peaking Factors'!$R$56:$R$70,'South East Qld Peaking Factors'!$S$56:$AF$70))*(S17-95)/3+InterpolateXY(O17,P17,'South East Qld Peaking Factors'!$S$55:$AF$55,'South East Qld Peaking Factors'!$R$56:$R$70,'South East Qld Peaking Factors'!$S$56:$AF$70),IF(S17>90,(InterpolateXY(O17,P17,'South East Qld Peaking Factors'!$S$55:$AF$55,'South East Qld Peaking Factors'!$R$56:$R$70,'South East Qld Peaking Factors'!$S$56:$AF$70)-InterpolateXY(O17,P17,'South East Qld Peaking Factors'!$S$71:$AF$71,'South East Qld Peaking Factors'!$R$72:$R$86,'South East Qld Peaking Factors'!$S$72:$AF$86))*(S17-90)/5+InterpolateXY(O17,P17,'South East Qld Peaking Factors'!$S$71:$AF$71,'South East Qld Peaking Factors'!$R$72:$R$86,'South East Qld Peaking Factors'!$S$72:$AF$86),IF(S17>80,(InterpolateXY(O17,P17,'South East Qld Peaking Factors'!$S$71:$AF$71,'South East Qld Peaking Factors'!$R$72:$R$86,'South East Qld Peaking Factors'!$S$72:$AF$86)-InterpolateXY(O17,P17,'South East Qld Peaking Factors'!$S$87:$AF$87,'South East Qld Peaking Factors'!$R$88:$R$102,'South East Qld Peaking Factors'!$S$88:$AF$102))*(S17-80)/10+InterpolateXY(O17,P17,'South East Qld Peaking Factors'!$S$87:$AF$87,'South East Qld Peaking Factors'!$R$88:$R$102,'South East Qld Peaking Factors'!$S$88:$AF$102),IF(S17>70,(InterpolateXY(O17,P17,'South East Qld Peaking Factors'!$S$87:$AF$87,'South East Qld Peaking Factors'!$R$88:$R$102,'South East Qld Peaking Factors'!$S$88:$AF$102)-InterpolateXY(O17,P17,'South East Qld Peaking Factors'!$S$103:$AF$103,'South East Qld Peaking Factors'!$R$104:$R$118,'South East Qld Peaking Factors'!$S$104:$AF$118))*(S17-70)/10+InterpolateXY(O17,P17,'South East Qld Peaking Factors'!$S$103:$AF$103,'South East Qld Peaking Factors'!$R$104:$R$118,'South East Qld Peaking Factors'!$S$104:$AF$118),IF(S17>60,(InterpolateXY(O17,P17,'South East Qld Peaking Factors'!$S$103:$AF$103,'South East Qld Peaking Factors'!$R$104:$R$118,'South East Qld Peaking Factors'!$S$104:$AF$118)-InterpolateXY(O17,P17,'South East Qld Peaking Factors'!$S$119:$AF$119,'South East Qld Peaking Factors'!$R$120:$R$134,'South East Qld Peaking Factors'!$S$120:$AF$134))*(S17-60)/10+InterpolateXY(O17,P17,'South East Qld Peaking Factors'!$S$119:$AF$119,'South East Qld Peaking Factors'!$R$120:$R$134,'South East Qld Peaking Factors'!$S$120:$AF$134),IF(S17>50,(InterpolateXY(O17,P17,'South East Qld Peaking Factors'!$S$119:$AF$119,'South East Qld Peaking Factors'!$R$120:$R$134,'South East Qld Peaking Factors'!$S$120:$AF$134)-1)*(S17-50)/10+1,1)))))))))) -> 1.255954316 | V17: -0.03083866406 | W17: ='Reservoir Storage'!J$34 -> 15 | X17: 0.007500444413 | Y17: ='Reservoir Storage'!J$35 -> 1.571997485 | Z17: 3.020523806 | AB17: 500 | AC17: 64.93116545
O18: ='Reservoir Storage'!J$23 -> 9.542 | P18: ='Reservoir Storage'!J$26 -> 11.59033333 | Q18: =Q17+IF('Reservoir Storage'!J$26<=15,0.5,IF('Reservoir Storage'!J$26<=30,1,2)) -> 6 | R18: 5.454999258 | S18: 87.91454614 | T18: =IF($Q18=0," ",IF(S18>99.99,InterpolateXY(O18,P18,'South East Qld Peaking Factors'!$D$7:$Q$7,'South East Qld Peaking Factors'!$C$8:$C$22,'South East Qld Peaking Factors'!$D$8:$Q$22),IF(S18>99,(InterpolateXY(O18,P18,'South East Qld Peaking Factors'!$D$7:$Q$7,'South East Qld Peaking Factors'!$C$8:$C$22,'South East Qld Peaking Factors'!$D$8:$Q$22)- InterpolateXY(O18,P18,'South East Qld Peaking Factors'!$D$23:$Q$23,'South East Qld Peaking Factors'!$C$24:$C$38,'South East Qld Peaking Factors'!$D$24:$Q$38))*(S18-99)+ InterpolateXY(O18,P18,'South East Qld Peaking Factors'!$D$23:$Q$23,'South East Qld Peaking Factors'!$C$24:$C$38,'South East Qld Peaking Factors'!$D$24:$Q$38),IF(S18>98,(InterpolateXY(O18,P18,'South East Qld Peaking Factors'!$D$23:$Q$23,'South East Qld Peaking Factors'!$C$24:$C$38,'South East Qld Peaking Factors'!$D$24:$Q$38)-InterpolateXY(O18,P18,'South East Qld Peaking Factors'!$D$39:$Q$39,'South East Qld Peaking Factors'!$C$40:$C$54,'South East Qld Peaking Factors'!$D$40:$Q$54))*(S18-98)+ InterpolateXY(O18,P18,'South East Qld Peaking Factors'!$D$39:$Q$39,'South East Qld Peaking Factors'!$C$40:$C$54,'South East Qld Peaking Factors'!$D$40:$Q$54),IF(S18>95,(InterpolateXY(O18,P18,'South East Qld Peaking Factors'!$D$39:$Q$39,'South East Qld Peaking Factors'!$C$40:$C$54,'South East Qld Peaking Factors'!$D$40:$Q$54)-InterpolateXY(O18,P18,'South East Qld Peaking Factors'!$D$55:$Q$55,'South East Qld Peaking Factors'!$C$56:$C$70,'South East Qld Peaking Factors'!$D$56:$Q$70))*(S18-95)/3+InterpolateXY(O18,P18,'South East Qld Peaking Factors'!$D$55:$Q$55,'South East Qld Peaking Factors'!$C$56:$C$70,'South East Qld Peaking Factors'!$D$56:$Q$70),IF(S18>90,(InterpolateXY(O18,P18,'South East Qld Peaking Factors'!$D$55:$Q$55,'South East Qld Peaking Factors'!$C$56:$C$70,'South East Qld Peaking Factors'!$D$56:$Q$70)-InterpolateXY(O18,P18,'South East Qld Peaking Factors'!$D$71:$Q$71,'South East Qld Peaking Factors'!$C$72:$C$86,'South East Qld Peaking Factors'!$D$72:$Q$86))*(S18-90)/5+InterpolateXY(O18,P18,'South East Qld Peaking Factors'!$D$71:$Q$71,'South East Qld Peaking Factors'!$C$72:$C$86,'South East Qld Peaking Factors'!$D$72:$Q$86),IF(S18>80,(InterpolateXY(O18,P18,'South East Qld Peaking Factors'!$D$71:$Q$71,'South East Qld Peaking Factors'!$C$72:$C$86,'South East Qld Peaking Factors'!$D$72:$Q$86)-InterpolateXY(O18,P18,'South East Qld Peaking Factors'!$D$87:$Q$87,'South East Qld Peaking Factors'!$C$88:$C$102,'South East Qld Peaking Factors'!$D$88:$Q$102))*(S18-80)/10+InterpolateXY(O18,P18,'South East Qld Peaking Factors'!$D$87:$Q$87,'South East Qld Peaking Factors'!$C$88:$C$102,'South East Qld Peaking Factors'!$D$88:$Q$102),IF(S18>70,(InterpolateXY(O18,P18,'South East Qld Peaking Factors'!$D$87:$Q$87,'South East Qld Peaking Factors'!$C$88:$C$102,'South East Qld Peaking Factors'!$D$88:$Q$102)-InterpolateXY(O18,P18,'South East Qld Peaking Factors'!$D$103:$Q$103,'South East Qld Peaking Factors'!$C$104:$C$118,'South East Qld Peaking Factors'!$D$104:$Q$118))*(S18-70)/10+InterpolateXY(O18,P18,'South East Qld Peaking Factors'!$D$103:$Q$103,'South East Qld Peaking Factors'!$C$104:$C$118,'South East Qld Peaking Factors'!$D$104:$Q$118),IF(S18>60,(InterpolateXY(O18,P18,'South East Qld Peaking Factors'!$D$103:$Q$103,'South East Qld Peaking Factors'!$C$104:$C$118,'South East Qld Peaking Factors'!$D$104:$Q$118)-InterpolateXY(O18,P18,'South East Qld Peaking Factors'!$D$119:$Q$119,'South East Qld Peaking Factors'!$C$120:$C$134,'South East Qld Peaking Factors'!$D$120:$Q$134))*(S18-60)/10+InterpolateXY(O18,P18,'South East Qld Peaking Factors'!$D$119:$Q$119,'South East Qld Peaking Factors'!$C$120:$C$134,'South East Qld Peaking Factors'!$D$120:$Q$134),IF(S18>50,(InterpolateXY(O18,P18,'South East Qld Peaking Factors'!$D$119:$Q$119,'South East Qld Peaking Factors'!$C$120:$C$134,'South East Qld Peaking Factors'!$D$120:$Q$134)-1)*(S18-50)/10+1,1)))))))))) -> 1.384581656 | U18: =IF($Q18=0," ",IF(S18>99.99,InterpolateXY(O18,P18,'South East Qld Peaking Factors'!$S$7:$AF$7,'South East Qld Peaking Factors'!$R$8:$R$22,'South East Qld Peaking Factors'!$S$8:$AF$22),IF(S18>99,(InterpolateXY(O18,P18,'South East Qld Peaking Factors'!$S$7:$AF$7,'South East Qld Peaking Factors'!$R$8:$R$22,'South East Qld Peaking Factors'!$S$8:$AF$22)- InterpolateXY(O18,P18,'South East Qld Peaking Factors'!$S$23:$AF$23,'South East Qld Peaking Factors'!$R$24:$R$38,'South East Qld Peaking Factors'!$S$24:$AF$38))*(S18-99)+ InterpolateXY(O18,P18,'South East Qld Peaking Factors'!$S$23:$AF$23,'South East Qld Peaking Factors'!$R$24:$R$38,'South East Qld Peaking Factors'!$S$24:$AF$38),IF(S18>98,(InterpolateXY(O18,P18,'South East Qld Peaking Factors'!$S$23:$AF$23,'South East Qld Peaking Factors'!$R$24:$R$38,'South East Qld Peaking Factors'!$S$24:$AF$38)-InterpolateXY(O18,P18,'South East Qld Peaking Factors'!$S$39:$AF$39,'South East Qld Peaking Factors'!$R$40:$R$54,'South East Qld Peaking Factors'!$S$40:$AF$54))*(S18-98)+ InterpolateXY(O18,P18,'South East Qld Peaking Factors'!$S$39:$AF$39,'South East Qld Peaking Factors'!$R$40:$R$54,'South East Qld Peaking Factors'!$S$40:$AF$54),IF(S18>95,(InterpolateXY(O18,P18,'South East Qld Peaking Factors'!$S$39:$AF$39,'South East Qld Peaking Factors'!$R$40:$R$54,'South East Qld Peaking Factors'!$S$40:$AF$54)-InterpolateXY(O18,P18,'South East Qld Peaking Factors'!$S$55:$AF$55,'South East Qld Peaking Factors'!$R$56:$R$70,'South East Qld Peaking Factors'!$S$56:$AF$70))*(S18-95)/3+InterpolateXY(O18,P18,'South East Qld Peaking Factors'!$S$55:$AF$55,'South East Qld Peaking Factors'!$R$56:$R$70,'South East Qld Peaking Factors'!$S$56:$AF$70),IF(S18>90,(InterpolateXY(O18,P18,'South East Qld Peaking Factors'!$S$55:$AF$55,'South East Qld Peaking Factors'!$R$56:$R$70,'South East Qld Peaking Factors'!$S$56:$AF$70)-InterpolateXY(O18,P18,'South East Qld Peaking Factors'!$S$71:$AF$71,'South East Qld Peaking Factors'!$R$72:$R$86,'South East Qld Peaking Factors'!$S$72:$AF$86))*(S18-90)/5+InterpolateXY(O18,P18,'South East Qld Peaking Factors'!$S$71:$AF$71,'South East Qld Peaking Factors'!$R$72:$R$86,'South East Qld Peaking Factors'!$S$72:$AF$86),IF(S18>80,(InterpolateXY(O18,P18,'South East Qld Peaking Factors'!$S$71:$AF$71,'South East Qld Peaking Factors'!$R$72:$R$86,'South East Qld Peaking Factors'!$S$72:$AF$86)-InterpolateXY(O18,P18,'South East Qld Peaking Factors'!$S$87:$AF$87,'South East Qld Peaking Factors'!$R$88:$R$102,'South East Qld Peaking Factors'!$S$88:$AF$102))*(S18-80)/10+InterpolateXY(O18,P18,'South East Qld Peaking Factors'!$S$87:$AF$87,'South East Qld Peaking Factors'!$R$88:$R$102,'South East Qld Peaking Factors'!$S$88:$AF$102),IF(S18>70,(InterpolateXY(O18,P18,'South East Qld Peaking Factors'!$S$87:$AF$87,'South East Qld Peaking Factors'!$R$88:$R$102,'South East Qld Peaking Factors'!$S$88:$AF$102)-InterpolateXY(O18,P18,'South East Qld Peaking Factors'!$S$103:$AF$103,'South East Qld Peaking Factors'!$R$104:$R$118,'South East Qld Peaking Factors'!$S$104:$AF$118))*(S18-70)/10+InterpolateXY(O18,P18,'South East Qld Peaking Factors'!$S$103:$AF$103,'South East Qld Peaking Factors'!$R$104:$R$118,'South East Qld Peaking Factors'!$S$104:$AF$118),IF(S18>60,(InterpolateXY(O18,P18,'South East Qld Peaking Factors'!$S$103:$AF$103,'South East Qld Peaking Factors'!$R$104:$R$118,'South East Qld Peaking Factors'!$S$104:$AF$118)-InterpolateXY(O18,P18,'South East Qld Peaking Factors'!$S$119:$AF$119,'South East Qld Peaking Factors'!$R$120:$R$134,'South East Qld Peaking Factors'!$S$120:$AF$134))*(S18-60)/10+InterpolateXY(O18,P18,'South East Qld Peaking Factors'!$S$119:$AF$119,'South East Qld Peaking Factors'!$R$120:$R$134,'South East Qld Peaking Factors'!$S$120:$AF$134),IF(S18>50,(InterpolateXY(O18,P18,'South East Qld Peaking Factors'!$S$119:$AF$119,'South East Qld Peaking Factors'!$R$120:$R$134,'South East Qld Peaking Factors'!$S$120:$AF$134)-1)*(S18-50)/10+1,1)))))))))) -> 1.236272095 | V18: -0.03331108175 | W18: ='Reservoir Storage'!J$34 -> 15 | X18: 0.008002105751 | Y18: ='Reservoir Storage'!J$35 -> 1.571997485 | Z18: 3.154818224 | AB18: 800 | AC18: 84.48126113
O19: ='Reservoir Storage'!J$23 -> 9.542 | P19: ='Reservoir Storage'!J$26 -> 11.59033333 | Q19: =Q18+IF('Reservoir Storage'!J$26<=15,0.5,IF('Reservoir Storage'!J$26<=30,1,2)) -> 6.5 | R19: 5.705076541 | S19: 85.57507432 | T19: =IF($Q19=0," ",IF(S19>99.99,InterpolateXY(O19,P19,'South East Qld Peaking Factors'!$D$7:$Q$7,'South East Qld Peaking Factors'!$C$8:$C$22,'South East Qld Peaking Factors'!$D$8:$Q$22),IF(S19>99,(InterpolateXY(O19,P19,'South East Qld Peaking Factors'!$D$7:$Q$7,'South East Qld Peaking Factors'!$C$8:$C$22,'South East Qld Peaking Factors'!$D$8:$Q$22)- InterpolateXY(O19,P19,'South East Qld Peaking Factors'!$D$23:$Q$23,'South East Qld Peaking Factors'!$C$24:$C$38,'South East Qld Peaking Factors'!$D$24:$Q$38))*(S19-99)+ InterpolateXY(O19,P19,'South East Qld Peaking Factors'!$D$23:$Q$23,'South East Qld Peaking Factors'!$C$24:$C$38,'South East Qld Peaking Factors'!$D$24:$Q$38),IF(S19>98,(InterpolateXY(O19,P19,'South East Qld Peaking Factors'!$D$23:$Q$23,'South East Qld Peaking Factors'!$C$24:$C$38,'South East Qld Peaking Factors'!$D$24:$Q$38)-InterpolateXY(O19,P19,'South East Qld Peaking Factors'!$D$39:$Q$39,'South East Qld Peaking Factors'!$C$40:$C$54,'South East Qld Peaking Factors'!$D$40:$Q$54))*(S19-98)+ InterpolateXY(O19,P19,'South East Qld Peaking Factors'!$D$39:$Q$39,'South East Qld Peaking Factors'!$C$40:$C$54,'South East Qld Peaking Factors'!$D$40:$Q$54),IF(S19>95,(InterpolateXY(O19,P19,'South East Qld Peaking Factors'!$D$39:$Q$39,'South East Qld Peaking Factors'!$C$40:$C$54,'South East Qld Peaking Factors'!$D$40:$Q$54)-InterpolateXY(O19,P19,'South East Qld Peaking Factors'!$D$55:$Q$55,'South East Qld Peaking Factors'!$C$56:$C$70,'South East Qld Peaking Factors'!$D$56:$Q$70))*(S19-95)/3+InterpolateXY(O19,P19,'South East Qld Peaking Factors'!$D$55:$Q$55,'South East Qld Peaking Factors'!$C$56:$C$70,'South East Qld Peaking Factors'!$D$56:$Q$70),IF(S19>90,(InterpolateXY(O19,P19,'South East Qld Peaking Factors'!$D$55:$Q$55,'South East Qld Peaking Factors'!$C$56:$C$70,'South East Qld Peaking Factors'!$D$56:$Q$70)-InterpolateXY(O19,P19,'South East Qld Peaking Factors'!$D$71:$Q$71,'South East Qld Peaking Factors'!$C$72:$C$86,'South East Qld Peaking Factors'!$D$72:$Q$86))*(S19-90)/5+InterpolateXY(O19,P19,'South East Qld Peaking Factors'!$D$71:$Q$71,'South East Qld Peaking Factors'!$C$72:$C$86,'South East Qld Peaking Factors'!$D$72:$Q$86),IF(S19>80,(InterpolateXY(O19,P19,'South East Qld Peaking Factors'!$D$71:$Q$71,'South East Qld Peaking Factors'!$C$72:$C$86,'South East Qld Peaking Factors'!$D$72:$Q$86)-InterpolateXY(O19,P19,'South East Qld Peaking Factors'!$D$87:$Q$87,'South East Qld Peaking Factors'!$C$88:$C$102,'South East Qld Peaking Factors'!$D$88:$Q$102))*(S19-80)/10+InterpolateXY(O19,P19,'South East Qld Peaking Factors'!$D$87:$Q$87,'South East Qld Peaking Factors'!$C$88:$C$102,'South East Qld Peaking Factors'!$D$88:$Q$102),IF(S19>70,(InterpolateXY(O19,P19,'South East Qld Peaking Factors'!$D$87:$Q$87,'South East Qld Peaking Factors'!$C$88:$C$102,'South East Qld Peaking Factors'!$D$88:$Q$102)-InterpolateXY(O19,P19,'South East Qld Peaking Factors'!$D$103:$Q$103,'South East Qld Peaking Factors'!$C$104:$C$118,'South East Qld Peaking Factors'!$D$104:$Q$118))*(S19-70)/10+InterpolateXY(O19,P19,'South East Qld Peaking Factors'!$D$103:$Q$103,'South East Qld Peaking Factors'!$C$104:$C$118,'South East Qld Peaking Factors'!$D$104:$Q$118),IF(S19>60,(InterpolateXY(O19,P19,'South East Qld Peaking Factors'!$D$103:$Q$103,'South East Qld Peaking Factors'!$C$104:$C$118,'South East Qld Peaking Factors'!$D$104:$Q$118)-InterpolateXY(O19,P19,'South East Qld Peaking Factors'!$D$119:$Q$119,'South East Qld Peaking Factors'!$C$120:$C$134,'South East Qld Peaking Factors'!$D$120:$Q$134))*(S19-60)/10+InterpolateXY(O19,P19,'South East Qld Peaking Factors'!$D$119:$Q$119,'South East Qld Peaking Factors'!$C$120:$C$134,'South East Qld Peaking Factors'!$D$120:$Q$134),IF(S19>50,(InterpolateXY(O19,P19,'South East Qld Peaking Factors'!$D$119:$Q$119,'South East Qld Peaking Factors'!$C$120:$C$134,'South East Qld Peaking Factors'!$D$120:$Q$134)-1)*(S19-50)/10+1,1)))))))))) -> 1.380394502 | U19: =IF($Q19=0," ",IF(S19>99.99,InterpolateXY(O19,P19,'South East Qld Peaking Factors'!$S$7:$AF$7,'South East Qld Peaking Factors'!$R$8:$R$22,'South East Qld Peaking Factors'!$S$8:$AF$22),IF(S19>99,(InterpolateXY(O19,P19,'South East Qld Peaking Factors'!$S$7:$AF$7,'South East Qld Peaking Factors'!$R$8:$R$22,'South East Qld Peaking Factors'!$S$8:$AF$22)- InterpolateXY(O19,P19,'South East Qld Peaking Factors'!$S$23:$AF$23,'South East Qld Peaking Factors'!$R$24:$R$38,'South East Qld Peaking Factors'!$S$24:$AF$38))*(S19-99)+ InterpolateXY(O19,P19,'South East Qld Peaking Factors'!$S$23:$AF$23,'South East Qld Peaking Factors'!$R$24:$R$38,'South East Qld Peaking Factors'!$S$24:$AF$38),IF(S19>98,(InterpolateXY(O19,P19,'South East Qld Peaking Factors'!$S$23:$AF$23,'South East Qld Peaking Factors'!$R$24:$R$38,'South East Qld Peaking Factors'!$S$24:$AF$38)-InterpolateXY(O19,P19,'South East Qld Peaking Factors'!$S$39:$AF$39,'South East Qld Peaking Factors'!$R$40:$R$54,'South East Qld Peaking Factors'!$S$40:$AF$54))*(S19-98)+ InterpolateXY(O19,P19,'South East Qld Peaking Factors'!$S$39:$AF$39,'South East Qld Peaking Factors'!$R$40:$R$54,'South East Qld Peaking Factors'!$S$40:$AF$54),IF(S19>95,(InterpolateXY(O19,P19,'South East Qld Peaking Factors'!$S$39:$AF$39,'South East Qld Peaking Factors'!$R$40:$R$54,'South East Qld Peaking Factors'!$S$40:$AF$54)-InterpolateXY(O19,P19,'South East Qld Peaking Factors'!$S$55:$AF$55,'South East Qld Peaking Factors'!$R$56:$R$70,'South East Qld Peaking Factors'!$S$56:$AF$70))*(S19-95)/3+InterpolateXY(O19,P19,'South East Qld Peaking Factors'!$S$55:$AF$55,'South East Qld Peaking Factors'!$R$56:$R$70,'South East Qld Peaking Factors'!$S$56:$AF$70),IF(S19>90,(InterpolateXY(O19,P19,'South East Qld Peaking Factors'!$S$55:$AF$55,'South East Qld Peaking Factors'!$R$56:$R$70,'South East Qld Peaking Factors'!$S$56:$AF$70)-InterpolateXY(O19,P19,'South East Qld Peaking Factors'!$S$71:$AF$71,'South East Qld Peaking Factors'!$R$72:$R$86,'South East Qld Peaking Factors'!$S$72:$AF$86))*(S19-90)/5+InterpolateXY(O19,P19,'South East Qld Peaking Factors'!$S$71:$AF$71,'South East Qld Peaking Factors'!$R$72:$R$86,'South East Qld Peaking Factors'!$S$72:$AF$86),IF(S19>80,(InterpolateXY(O19,P19,'South East Qld Peaking Factors'!$S$71:$AF$71,'South East Qld Peaking Factors'!$R$72:$R$86,'South East Qld Peaking Factors'!$S$72:$AF$86)-InterpolateXY(O19,P19,'South East Qld Peaking Factors'!$S$87:$AF$87,'South East Qld Peaking Factors'!$R$88:$R$102,'South East Qld Peaking Factors'!$S$88:$AF$102))*(S19-80)/10+InterpolateXY(O19,P19,'South East Qld Peaking Factors'!$S$87:$AF$87,'South East Qld Peaking Factors'!$R$88:$R$102,'South East Qld Peaking Factors'!$S$88:$AF$102),IF(S19>70,(InterpolateXY(O19,P19,'South East Qld Peaking Factors'!$S$87:$AF$87,'South East Qld Peaking Factors'!$R$88:$R$102,'South East Qld Peaking Factors'!$S$88:$AF$102)-InterpolateXY(O19,P19,'South East Qld Peaking Factors'!$S$103:$AF$103,'South East Qld Peaking Factors'!$R$104:$R$118,'South East Qld Peaking Factors'!$S$104:$AF$118))*(S19-70)/10+InterpolateXY(O19,P19,'South East Qld Peaking Factors'!$S$103:$AF$103,'South East Qld Peaking Factors'!$R$104:$R$118,'South East Qld Peaking Factors'!$S$104:$AF$118),IF(S19>60,(InterpolateXY(O19,P19,'South East Qld Peaking Factors'!$S$103:$AF$103,'South East Qld Peaking Factors'!$R$104:$R$118,'South East Qld Peaking Factors'!$S$104:$AF$118)-InterpolateXY(O19,P19,'South East Qld Peaking Factors'!$S$119:$AF$119,'South East Qld Peaking Factors'!$R$120:$R$134,'South East Qld Peaking Factors'!$S$120:$AF$134))*(S19-60)/10+InterpolateXY(O19,P19,'South East Qld Peaking Factors'!$S$119:$AF$119,'South East Qld Peaking Factors'!$R$120:$R$134,'South East Qld Peaking Factors'!$S$120:$AF$134),IF(S19>50,(InterpolateXY(O19,P19,'South East Qld Peaking Factors'!$S$119:$AF$119,'South East Qld Peaking Factors'!$R$120:$R$134,'South East Qld Peaking Factors'!$S$120:$AF$134)-1)*(S19-50)/10+1,1)))))))))) -> 1.220286577 | V19: -0.03624711671 | W19: ='Reservoir Storage'!J$34 -> 15 | X19: 0.01000717938 | Y19: ='Reservoir Storage'!J$35 -> 1.571997485 | Z19: 3.298444998 | AB19: 1000 | AC19: 95.72601846
O20: ='Reservoir Storage'!J$23 -> 9.542 | P20: ='Reservoir Storage'!J$26 -> 11.59033333 | Q20: =Q19+IF('Reservoir Storage'!J$26<=15,0.5,IF('Reservoir Storage'!J$26<=30,1,2)) -> 7 | R20: 5.946821434 | S20: 83.24808763 | T20: =IF($Q20=0," ",IF(S20>99.99,InterpolateXY(O20,P20,'South East Qld Peaking Factors'!$D$7:$Q$7,'South East Qld Peaking Factors'!$C$8:$C$22,'South East Qld Peaking Factors'!$D$8:$Q$22),IF(S20>99,(InterpolateXY(O20,P20,'South East Qld Peaking Factors'!$D$7:$Q$7,'South East Qld Peaking Factors'!$C$8:$C$22,'South East Qld Peaking Factors'!$D$8:$Q$22)- InterpolateXY(O20,P20,'South East Qld Peaking Factors'!$D$23:$Q$23,'South East Qld Peaking Factors'!$C$24:$C$38,'South East Qld Peaking Factors'!$D$24:$Q$38))*(S20-99)+ InterpolateXY(O20,P20,'South East Qld Peaking Factors'!$D$23:$Q$23,'South East Qld Peaking Factors'!$C$24:$C$38,'South East Qld Peaking Factors'!$D$24:$Q$38),IF(S20>98,(InterpolateXY(O20,P20,'South East Qld Peaking Factors'!$D$23:$Q$23,'South East Qld Peaking Factors'!$C$24:$C$38,'South East Qld Peaking Factors'!$D$24:$Q$38)-InterpolateXY(O20,P20,'South East Qld Peaking Factors'!$D$39:$Q$39,'South East Qld Peaking Factors'!$C$40:$C$54,'South East Qld Peaking Factors'!$D$40:$Q$54))*(S20-98)+ InterpolateXY(O20,P20,'South East Qld Peaking Factors'!$D$39:$Q$39,'South East Qld Peaking Factors'!$C$40:$C$54,'South East Qld Peaking Factors'!$D$40:$Q$54),IF(S20>95,(InterpolateXY(O20,P20,'South East Qld Peaking Factors'!$D$39:$Q$39,'South East Qld Peaking Factors'!$C$40:$C$54,'South East Qld Peaking Factors'!$D$40:$Q$54)-InterpolateXY(O20,P20,'South East Qld Peaking Factors'!$D$55:$Q$55,'South East Qld Peaking Factors'!$C$56:$C$70,'South East Qld Peaking Factors'!$D$56:$Q$70))*(S20-95)/3+InterpolateXY(O20,P20,'South East Qld Peaking Factors'!$D$55:$Q$55,'South East Qld Peaking Factors'!$C$56:$C$70,'South East Qld Peaking Factors'!$D$56:$Q$70),IF(S20>90,(InterpolateXY(O20,P20,'South East Qld Peaking Factors'!$D$55:$Q$55,'South East Qld Peaking Factors'!$C$56:$C$70,'South East Qld Peaking Factors'!$D$56:$Q$70)-InterpolateXY(O20,P20,'South East Qld Peaking Factors'!$D$71:$Q$71,'South East Qld Peaking Factors'!$C$72:$C$86,'South East Qld Peaking Factors'!$D$72:$Q$86))*(S20-90)/5+InterpolateXY(O20,P20,'South East Qld Peaking Factors'!$D$71:$Q$71,'South East Qld Peaking Factors'!$C$72:$C$86,'South East Qld Peaking Factors'!$D$72:$Q$86),IF(S20>80,(InterpolateXY(O20,P20,'South East Qld Peaking Factors'!$D$71:$Q$71,'South East Qld Peaking Factors'!$C$72:$C$86,'South East Qld Peaking Factors'!$D$72:$Q$86)-InterpolateXY(O20,P20,'South East Qld Peaking Factors'!$D$87:$Q$87,'South East Qld Peaking Factors'!$C$88:$C$102,'South East Qld Peaking Factors'!$D$88:$Q$102))*(S20-80)/10+InterpolateXY(O20,P20,'South East Qld Peaking Factors'!$D$87:$Q$87,'South East Qld Peaking Factors'!$C$88:$C$102,'South East Qld Peaking Factors'!$D$88:$Q$102),IF(S20>70,(InterpolateXY(O20,P20,'South East Qld Peaking Factors'!$D$87:$Q$87,'South East Qld Peaking Factors'!$C$88:$C$102,'South East Qld Peaking Factors'!$D$88:$Q$102)-InterpolateXY(O20,P20,'South East Qld Peaking Factors'!$D$103:$Q$103,'South East Qld Peaking Factors'!$C$104:$C$118,'South East Qld Peaking Factors'!$D$104:$Q$118))*(S20-70)/10+InterpolateXY(O20,P20,'South East Qld Peaking Factors'!$D$103:$Q$103,'South East Qld Peaking Factors'!$C$104:$C$118,'South East Qld Peaking Factors'!$D$104:$Q$118),IF(S20>60,(InterpolateXY(O20,P20,'South East Qld Peaking Factors'!$D$103:$Q$103,'South East Qld Peaking Factors'!$C$104:$C$118,'South East Qld Peaking Factors'!$D$104:$Q$118)-InterpolateXY(O20,P20,'South East Qld Peaking Factors'!$D$119:$Q$119,'South East Qld Peaking Factors'!$C$120:$C$134,'South East Qld Peaking Factors'!$D$120:$Q$134))*(S20-60)/10+InterpolateXY(O20,P20,'South East Qld Peaking Factors'!$D$119:$Q$119,'South East Qld Peaking Factors'!$C$120:$C$134,'South East Qld Peaking Factors'!$D$120:$Q$134),IF(S20>50,(InterpolateXY(O20,P20,'South East Qld Peaking Factors'!$D$119:$Q$119,'South East Qld Peaking Factors'!$C$120:$C$134,'South East Qld Peaking Factors'!$D$120:$Q$134)-1)*(S20-50)/10+1,1)))))))))) -> 1.376229693 | U20: =IF($Q20=0," ",IF(S20>99.99,InterpolateXY(O20,P20,'South East Qld Peaking Factors'!$S$7:$AF$7,'South East Qld Peaking Factors'!$R$8:$R$22,'South East Qld Peaking Factors'!$S$8:$AF$22),IF(S20>99,(InterpolateXY(O20,P20,'South East Qld Peaking Factors'!$S$7:$AF$7,'South East Qld Peaking Factors'!$R$8:$R$22,'South East Qld Peaking Factors'!$S$8:$AF$22)- InterpolateXY(O20,P20,'South East Qld Peaking Factors'!$S$23:$AF$23,'South East Qld Peaking Factors'!$R$24:$R$38,'South East Qld Peaking Factors'!$S$24:$AF$38))*(S20-99)+ InterpolateXY(O20,P20,'South East Qld Peaking Factors'!$S$23:$AF$23,'South East Qld Peaking Factors'!$R$24:$R$38,'South East Qld Peaking Factors'!$S$24:$AF$38),IF(S20>98,(InterpolateXY(O20,P20,'South East Qld Peaking Factors'!$S$23:$AF$23,'South East Qld Peaking Factors'!$R$24:$R$38,'South East Qld Peaking Factors'!$S$24:$AF$38)-InterpolateXY(O20,P20,'South East Qld Peaking Factors'!$S$39:$AF$39,'South East Qld Peaking Factors'!$R$40:$R$54,'South East Qld Peaking Factors'!$S$40:$AF$54))*(S20-98)+ InterpolateXY(O20,P20,'South East Qld Peaking Factors'!$S$39:$AF$39,'South East Qld Peaking Factors'!$R$40:$R$54,'South East Qld Peaking Factors'!$S$40:$AF$54),IF(S20>95,(InterpolateXY(O20,P20,'South East Qld Peaking Factors'!$S$39:$AF$39,'South East Qld Peaking Factors'!$R$40:$R$54,'South East Qld Peaking Factors'!$S$40:$AF$54)-InterpolateXY(O20,P20,'South East Qld Peaking Factors'!$S$55:$AF$55,'South East Qld Peaking Factors'!$R$56:$R$70,'South East Qld Peaking Factors'!$S$56:$AF$70))*(S20-95)/3+InterpolateXY(O20,P20,'South East Qld Peaking Factors'!$S$55:$AF$55,'South East Qld Peaking Factors'!$R$56:$R$70,'South East Qld Peaking Factors'!$S$56:$AF$70),IF(S20>90,(InterpolateXY(O20,P20,'South East Qld Peaking Factors'!$S$55:$AF$55,'South East Qld Peaking Factors'!$R$56:$R$70,'South East Qld Peaking Factors'!$S$56:$AF$70)-InterpolateXY(O20,P20,'South East Qld Peaking Factors'!$S$71:$AF$71,'South East Qld Peaking Factors'!$R$72:$R$86,'South East Qld Peaking Factors'!$S$72:$AF$86))*(S20-90)/5+InterpolateXY(O20,P20,'South East Qld Peaking Factors'!$S$71:$AF$71,'South East Qld Peaking Factors'!$R$72:$R$86,'South East Qld Peaking Factors'!$S$72:$AF$86),IF(S20>80,(InterpolateXY(O20,P20,'South East Qld Peaking Factors'!$S$71:$AF$71,'South East Qld Peaking Factors'!$R$72:$R$86,'South East Qld Peaking Factors'!$S$72:$AF$86)-InterpolateXY(O20,P20,'South East Qld Peaking Factors'!$S$87:$AF$87,'South East Qld Peaking Factors'!$R$88:$R$102,'South East Qld Peaking Factors'!$S$88:$AF$102))*(S20-80)/10+InterpolateXY(O20,P20,'South East Qld Peaking Factors'!$S$87:$AF$87,'South East Qld Peaking Factors'!$R$88:$R$102,'South East Qld Peaking Factors'!$S$88:$AF$102),IF(S20>70,(InterpolateXY(O20,P20,'South East Qld Peaking Factors'!$S$87:$AF$87,'South East Qld Peaking Factors'!$R$88:$R$102,'South East Qld Peaking Factors'!$S$88:$AF$102)-InterpolateXY(O20,P20,'South East Qld Peaking Factors'!$S$103:$AF$103,'South East Qld Peaking Factors'!$R$104:$R$118,'South East Qld Peaking Factors'!$S$104:$AF$118))*(S20-70)/10+InterpolateXY(O20,P20,'South East Qld Peaking Factors'!$S$103:$AF$103,'South East Qld Peaking Factors'!$R$104:$R$118,'South East Qld Peaking Factors'!$S$104:$AF$118),IF(S20>60,(InterpolateXY(O20,P20,'South East Qld Peaking Factors'!$S$103:$AF$103,'South East Qld Peaking Factors'!$R$104:$R$118,'South East Qld Peaking Factors'!$S$104:$AF$118)-InterpolateXY(O20,P20,'South East Qld Peaking Factors'!$S$119:$AF$119,'South East Qld Peaking Factors'!$R$120:$R$134,'South East Qld Peaking Factors'!$S$120:$AF$134))*(S20-60)/10+InterpolateXY(O20,P20,'South East Qld Peaking Factors'!$S$119:$AF$119,'South East Qld Peaking Factors'!$R$120:$R$134,'South East Qld Peaking Factors'!$S$120:$AF$134),IF(S20>50,(InterpolateXY(O20,P20,'South East Qld Peaking Factors'!$S$119:$AF$119,'South East Qld Peaking Factors'!$R$120:$R$134,'South East Qld Peaking Factors'!$S$120:$AF$134)-1)*(S20-50)/10+1,1)))))))))) -> 1.20438637 | V20: -0.03921485232 | W20: ='Reservoir Storage'!J$34 -> 15 | X20: 0.01213461161 | Y20: ='Reservoir Storage'!J$35 -> 1.571997485 | Z20: 3.436887404 | AB20: 5000 | AC20: 235.7508125
O21: ='Reservoir Storage'!J$23 -> 9.542 | P21: ='Reservoir Storage'!J$26 -> 11.59033333 | Q21: =Q20+IF('Reservoir Storage'!J$26<=15,0.5,IF('Reservoir Storage'!J$26<=30,1,2)) -> 7.5 | R21: 6.181079126 | S21: 80.95920642 | T21: =IF($Q21=0," ",IF(S21>99.99,InterpolateXY(O21,P21,'South East Qld Peaking Factors'!$D$7:$Q$7,'South East Qld Peaking Factors'!$C$8:$C$22,'South East Qld Peaking Factors'!$D$8:$Q$22),IF(S21>99,(InterpolateXY(O21,P21,'South East Qld Peaking Factors'!$D$7:$Q$7,'South East Qld Peaking Factors'!$C$8:$C$22,'South East Qld Peaking Factors'!$D$8:$Q$22)- InterpolateXY(O21,P21,'South East Qld Peaking Factors'!$D$23:$Q$23,'South East Qld Peaking Factors'!$C$24:$C$38,'South East Qld Peaking Factors'!$D$24:$Q$38))*(S21-99)+ InterpolateXY(O21,P21,'South East Qld Peaking Factors'!$D$23:$Q$23,'South East Qld Peaking Factors'!$C$24:$C$38,'South East Qld Peaking Factors'!$D$24:$Q$38),IF(S21>98,(InterpolateXY(O21,P21,'South East Qld Peaking Factors'!$D$23:$Q$23,'South East Qld Peaking Factors'!$C$24:$C$38,'South East Qld Peaking Factors'!$D$24:$Q$38)-InterpolateXY(O21,P21,'South East Qld Peaking Factors'!$D$39:$Q$39,'South East Qld Peaking Factors'!$C$40:$C$54,'South East Qld Peaking Factors'!$D$40:$Q$54))*(S21-98)+ InterpolateXY(O21,P21,'South East Qld Peaking Factors'!$D$39:$Q$39,'South East Qld Peaking Factors'!$C$40:$C$54,'South East Qld Peaking Factors'!$D$40:$Q$54),IF(S21>95,(InterpolateXY(O21,P21,'South East Qld Peaking Factors'!$D$39:$Q$39,'South East Qld Peaking Factors'!$C$40:$C$54,'South East Qld Peaking Factors'!$D$40:$Q$54)-InterpolateXY(O21,P21,'South East Qld Peaking Factors'!$D$55:$Q$55,'South East Qld Peaking Factors'!$C$56:$C$70,'South East Qld Peaking Factors'!$D$56:$Q$70))*(S21-95)/3+InterpolateXY(O21,P21,'South East Qld Peaking Factors'!$D$55:$Q$55,'South East Qld Peaking Factors'!$C$56:$C$70,'South East Qld Peaking Factors'!$D$56:$Q$70),IF(S21>90,(InterpolateXY(O21,P21,'South East Qld Peaking Factors'!$D$55:$Q$55,'South East Qld Peaking Factors'!$C$56:$C$70,'South East Qld Peaking Factors'!$D$56:$Q$70)-InterpolateXY(O21,P21,'South East Qld Peaking Factors'!$D$71:$Q$71,'South East Qld Peaking Factors'!$C$72:$C$86,'South East Qld Peaking Factors'!$D$72:$Q$86))*(S21-90)/5+InterpolateXY(O21,P21,'South East Qld Peaking Factors'!$D$71:$Q$71,'South East Qld Peaking Factors'!$C$72:$C$86,'South East Qld Peaking Factors'!$D$72:$Q$86),IF(S21>80,(InterpolateXY(O21,P21,'South East Qld Peaking Factors'!$D$71:$Q$71,'South East Qld Peaking Factors'!$C$72:$C$86,'South East Qld Peaking Factors'!$D$72:$Q$86)-InterpolateXY(O21,P21,'South East Qld Peaking Factors'!$D$87:$Q$87,'South East Qld Peaking Factors'!$C$88:$C$102,'South East Qld Peaking Factors'!$D$88:$Q$102))*(S21-80)/10+InterpolateXY(O21,P21,'South East Qld Peaking Factors'!$D$87:$Q$87,'South East Qld Peaking Factors'!$C$88:$C$102,'South East Qld Peaking Factors'!$D$88:$Q$102),IF(S21>70,(InterpolateXY(O21,P21,'South East Qld Peaking Factors'!$D$87:$Q$87,'South East Qld Peaking Factors'!$C$88:$C$102,'South East Qld Peaking Factors'!$D$88:$Q$102)-InterpolateXY(O21,P21,'South East Qld Peaking Factors'!$D$103:$Q$103,'South East Qld Peaking Factors'!$C$104:$C$118,'South East Qld Peaking Factors'!$D$104:$Q$118))*(S21-70)/10+InterpolateXY(O21,P21,'South East Qld Peaking Factors'!$D$103:$Q$103,'South East Qld Peaking Factors'!$C$104:$C$118,'South East Qld Peaking Factors'!$D$104:$Q$118),IF(S21>60,(InterpolateXY(O21,P21,'South East Qld Peaking Factors'!$D$103:$Q$103,'South East Qld Peaking Factors'!$C$104:$C$118,'South East Qld Peaking Factors'!$D$104:$Q$118)-InterpolateXY(O21,P21,'South East Qld Peaking Factors'!$D$119:$Q$119,'South East Qld Peaking Factors'!$C$120:$C$134,'South East Qld Peaking Factors'!$D$120:$Q$134))*(S21-60)/10+InterpolateXY(O21,P21,'South East Qld Peaking Factors'!$D$119:$Q$119,'South East Qld Peaking Factors'!$C$120:$C$134,'South East Qld Peaking Factors'!$D$120:$Q$134),IF(S21>50,(InterpolateXY(O21,P21,'South East Qld Peaking Factors'!$D$119:$Q$119,'South East Qld Peaking Factors'!$C$120:$C$134,'South East Qld Peaking Factors'!$D$120:$Q$134)-1)*(S21-50)/10+1,1)))))))))) -> 1.372133085 | U21: =IF($Q21=0," ",IF(S21>99.99,InterpolateXY(O21,P21,'South East Qld Peaking Factors'!$S$7:$AF$7,'South East Qld Peaking Factors'!$R$8:$R$22,'South East Qld Peaking Factors'!$S$8:$AF$22),IF(S21>99,(InterpolateXY(O21,P21,'South East Qld Peaking Factors'!$S$7:$AF$7,'South East Qld Peaking Factors'!$R$8:$R$22,'South East Qld Peaking Factors'!$S$8:$AF$22)- InterpolateXY(O21,P21,'South East Qld Peaking Factors'!$S$23:$AF$23,'South East Qld Peaking Factors'!$R$24:$R$38,'South East Qld Peaking Factors'!$S$24:$AF$38))*(S21-99)+ InterpolateXY(O21,P21,'South East Qld Peaking Factors'!$S$23:$AF$23,'South East Qld Peaking Factors'!$R$24:$R$38,'South East Qld Peaking Factors'!$S$24:$AF$38),IF(S21>98,(InterpolateXY(O21,P21,'South East Qld Peaking Factors'!$S$23:$AF$23,'South East Qld Peaking Factors'!$R$24:$R$38,'South East Qld Peaking Factors'!$S$24:$AF$38)-InterpolateXY(O21,P21,'South East Qld Peaking Factors'!$S$39:$AF$39,'South East Qld Peaking Factors'!$R$40:$R$54,'South East Qld Peaking Factors'!$S$40:$AF$54))*(S21-98)+ InterpolateXY(O21,P21,'South East Qld Peaking Factors'!$S$39:$AF$39,'South East Qld Peaking Factors'!$R$40:$R$54,'South East Qld Peaking Factors'!$S$40:$AF$54),IF(S21>95,(InterpolateXY(O21,P21,'South East Qld Peaking Factors'!$S$39:$AF$39,'South East Qld Peaking Factors'!$R$40:$R$54,'South East Qld Peaking Factors'!$S$40:$AF$54)-InterpolateXY(O21,P21,'South East Qld Peaking Factors'!$S$55:$AF$55,'South East Qld Peaking Factors'!$R$56:$R$70,'South East Qld Peaking Factors'!$S$56:$AF$70))*(S21-95)/3+InterpolateXY(O21,P21,'South East Qld Peaking Factors'!$S$55:$AF$55,'South East Qld Peaking Factors'!$R$56:$R$70,'South East Qld Peaking Factors'!$S$56:$AF$70),IF(S21>90,(InterpolateXY(O21,P21,'South East Qld Peaking Factors'!$S$55:$AF$55,'South East Qld Peaking Factors'!$R$56:$R$70,'South East Qld Peaking Factors'!$S$56:$AF$70)-InterpolateXY(O21,P21,'South East Qld Peaking Factors'!$S$71:$AF$71,'South East Qld Peaking Factors'!$R$72:$R$86,'South East Qld Peaking Factors'!$S$72:$AF$86))*(S21-90)/5+InterpolateXY(O21,P21,'South East Qld Peaking Factors'!$S$71:$AF$71,'South East Qld Peaking Factors'!$R$72:$R$86,'South East Qld Peaking Factors'!$S$72:$AF$86),IF(S21>80,(InterpolateXY(O21,P21,'South East Qld Peaking Factors'!$S$71:$AF$71,'South East Qld Peaking Factors'!$R$72:$R$86,'South East Qld Peaking Factors'!$S$72:$AF$86)-InterpolateXY(O21,P21,'South East Qld Peaking Factors'!$S$87:$AF$87,'South East Qld Peaking Factors'!$R$88:$R$102,'South East Qld Peaking Factors'!$S$88:$AF$102))*(S21-80)/10+InterpolateXY(O21,P21,'South East Qld Peaking Factors'!$S$87:$AF$87,'South East Qld Peaking Factors'!$R$88:$R$102,'South East Qld Peaking Factors'!$S$88:$AF$102),IF(S21>70,(InterpolateXY(O21,P21,'South East Qld Peaking Factors'!$S$87:$AF$87,'South East Qld Peaking Factors'!$R$88:$R$102,'South East Qld Peaking Factors'!$S$88:$AF$102)-InterpolateXY(O21,P21,'South East Qld Peaking Factors'!$S$103:$AF$103,'South East Qld Peaking Factors'!$R$104:$R$118,'South East Qld Peaking Factors'!$S$104:$AF$118))*(S21-70)/10+InterpolateXY(O21,P21,'South East Qld Peaking Factors'!$S$103:$AF$103,'South East Qld Peaking Factors'!$R$104:$R$118,'South East Qld Peaking Factors'!$S$104:$AF$118),IF(S21>60,(InterpolateXY(O21,P21,'South East Qld Peaking Factors'!$S$103:$AF$103,'South East Qld Peaking Factors'!$R$104:$R$118,'South East Qld Peaking Factors'!$S$104:$AF$118)-InterpolateXY(O21,P21,'South East Qld Peaking Factors'!$S$119:$AF$119,'South East Qld Peaking Factors'!$R$120:$R$134,'South East Qld Peaking Factors'!$S$120:$AF$134))*(S21-60)/10+InterpolateXY(O21,P21,'South East Qld Peaking Factors'!$S$119:$AF$119,'South East Qld Peaking Factors'!$R$120:$R$134,'South East Qld Peaking Factors'!$S$120:$AF$134),IF(S21>50,(InterpolateXY(O21,P21,'South East Qld Peaking Factors'!$S$119:$AF$119,'South East Qld Peaking Factors'!$R$120:$R$134,'South East Qld Peaking Factors'!$S$120:$AF$134)-1)*(S21-50)/10+1,1)))))))))) -> 1.188746536 | V21: -0.04218135222 | W21: ='Reservoir Storage'!J$34 -> 15 | X21: 0.01432977032 | Y21: ='Reservoir Storage'!J$35 -> 1.571997485 | Z21: 3.570587864 | AB21: 10000 | AC21: 347.5601657
O22: ='Reservoir Storage'!J$23 -> 9.542 | P22: ='Reservoir Storage'!J$26 -> 11.59033333 | Q22: =Q21+IF('Reservoir Storage'!J$26<=15,0.5,IF('Reservoir Storage'!J$26<=30,1,2)) -> 8 | R22: 6.408559021 | S22: 78.72576247 | T22: =IF($Q22=0," ",IF(S22>99.99,InterpolateXY(O22,P22,'South East Qld Peaking Factors'!$D$7:$Q$7,'South East Qld Peaking Factors'!$C$8:$C$22,'South East Qld Peaking Factors'!$D$8:$Q$22),IF(S22>99,(InterpolateXY(O22,P22,'South East Qld Peaking Factors'!$D$7:$Q$7,'South East Qld Peaking Factors'!$C$8:$C$22,'South East Qld Peaking Factors'!$D$8:$Q$22)- InterpolateXY(O22,P22,'South East Qld Peaking Factors'!$D$23:$Q$23,'South East Qld Peaking Factors'!$C$24:$C$38,'South East Qld Peaking Factors'!$D$24:$Q$38))*(S22-99)+ InterpolateXY(O22,P22,'South East Qld Peaking Factors'!$D$23:$Q$23,'South East Qld Peaking Factors'!$C$24:$C$38,'South East Qld Peaking Factors'!$D$24:$Q$38),IF(S22>98,(InterpolateXY(O22,P22,'South East Qld Peaking Factors'!$D$23:$Q$23,'South East Qld Peaking Factors'!$C$24:$C$38,'South East Qld Peaking Factors'!$D$24:$Q$38)-InterpolateXY(O22,P22,'South East Qld Peaking Factors'!$D$39:$Q$39,'South East Qld Peaking Factors'!$C$40:$C$54,'South East Qld Peaking Factors'!$D$40:$Q$54))*(S22-98)+ InterpolateXY(O22,P22,'South East Qld Peaking Factors'!$D$39:$Q$39,'South East Qld Peaking Factors'!$C$40:$C$54,'South East Qld Peaking Factors'!$D$40:$Q$54),IF(S22>95,(InterpolateXY(O22,P22,'South East Qld Peaking Factors'!$D$39:$Q$39,'South East Qld Peaking Factors'!$C$40:$C$54,'South East Qld Peaking Factors'!$D$40:$Q$54)-InterpolateXY(O22,P22,'South East Qld Peaking Factors'!$D$55:$Q$55,'South East Qld Peaking Factors'!$C$56:$C$70,'South East Qld Peaking Factors'!$D$56:$Q$70))*(S22-95)/3+InterpolateXY(O22,P22,'South East Qld Peaking Factors'!$D$55:$Q$55,'South East Qld Peaking Factors'!$C$56:$C$70,'South East Qld Peaking Factors'!$D$56:$Q$70),IF(S22>90,(InterpolateXY(O22,P22,'South East Qld Peaking Factors'!$D$55:$Q$55,'South East Qld Peaking Factors'!$C$56:$C$70,'South East Qld Peaking Factors'!$D$56:$Q$70)-InterpolateXY(O22,P22,'South East Qld Peaking Factors'!$D$71:$Q$71,'South East Qld Peaking Factors'!$C$72:$C$86,'South East Qld Peaking Factors'!$D$72:$Q$86))*(S22-90)/5+InterpolateXY(O22,P22,'South East Qld Peaking Factors'!$D$71:$Q$71,'South East Qld Peaking Factors'!$C$72:$C$86,'South East Qld Peaking Factors'!$D$72:$Q$86),IF(S22>80,(InterpolateXY(O22,P22,'South East Qld Peaking Factors'!$D$71:$Q$71,'South East Qld Peaking Factors'!$C$72:$C$86,'South East Qld Peaking Factors'!$D$72:$Q$86)-InterpolateXY(O22,P22,'South East Qld Peaking Factors'!$D$87:$Q$87,'South East Qld Peaking Factors'!$C$88:$C$102,'South East Qld Peaking Factors'!$D$88:$Q$102))*(S22-80)/10+InterpolateXY(O22,P22,'South East Qld Peaking Factors'!$D$87:$Q$87,'South East Qld Peaking Factors'!$C$88:$C$102,'South East Qld Peaking Factors'!$D$88:$Q$102),IF(S22>70,(InterpolateXY(O22,P22,'South East Qld Peaking Factors'!$D$87:$Q$87,'South East Qld Peaking Factors'!$C$88:$C$102,'South East Qld Peaking Factors'!$D$88:$Q$102)-InterpolateXY(O22,P22,'South East Qld Peaking Factors'!$D$103:$Q$103,'South East Qld Peaking Factors'!$C$104:$C$118,'South East Qld Peaking Factors'!$D$104:$Q$118))*(S22-70)/10+InterpolateXY(O22,P22,'South East Qld Peaking Factors'!$D$103:$Q$103,'South East Qld Peaking Factors'!$C$104:$C$118,'South East Qld Peaking Factors'!$D$104:$Q$118),IF(S22>60,(InterpolateXY(O22,P22,'South East Qld Peaking Factors'!$D$103:$Q$103,'South East Qld Peaking Factors'!$C$104:$C$118,'South East Qld Peaking Factors'!$D$104:$Q$118)-InterpolateXY(O22,P22,'South East Qld Peaking Factors'!$D$119:$Q$119,'South East Qld Peaking Factors'!$C$120:$C$134,'South East Qld Peaking Factors'!$D$120:$Q$134))*(S22-60)/10+InterpolateXY(O22,P22,'South East Qld Peaking Factors'!$D$119:$Q$119,'South East Qld Peaking Factors'!$C$120:$C$134,'South East Qld Peaking Factors'!$D$120:$Q$134),IF(S22>50,(InterpolateXY(O22,P22,'South East Qld Peaking Factors'!$D$119:$Q$119,'South East Qld Peaking Factors'!$C$120:$C$134,'South East Qld Peaking Factors'!$D$120:$Q$134)-1)*(S22-50)/10+1,1)))))))))) -> 1.343334816 | U22: =IF($Q22=0," ",IF(S22>99.99,InterpolateXY(O22,P22,'South East Qld Peaking Factors'!$S$7:$AF$7,'South East Qld Peaking Factors'!$R$8:$R$22,'South East Qld Peaking Factors'!$S$8:$AF$22),IF(S22>99,(InterpolateXY(O22,P22,'South East Qld Peaking Factors'!$S$7:$AF$7,'South East Qld Peaking Factors'!$R$8:$R$22,'South East Qld Peaking Factors'!$S$8:$AF$22)- InterpolateXY(O22,P22,'South East Qld Peaking Factors'!$S$23:$AF$23,'South East Qld Peaking Factors'!$R$24:$R$38,'South East Qld Peaking Factors'!$S$24:$AF$38))*(S22-99)+ InterpolateXY(O22,P22,'South East Qld Peaking Factors'!$S$23:$AF$23,'South East Qld Peaking Factors'!$R$24:$R$38,'South East Qld Peaking Factors'!$S$24:$AF$38),IF(S22>98,(InterpolateXY(O22,P22,'South East Qld Peaking Factors'!$S$23:$AF$23,'South East Qld Peaking Factors'!$R$24:$R$38,'South East Qld Peaking Factors'!$S$24:$AF$38)-InterpolateXY(O22,P22,'South East Qld Peaking Factors'!$S$39:$AF$39,'South East Qld Peaking Factors'!$R$40:$R$54,'South East Qld Peaking Factors'!$S$40:$AF$54))*(S22-98)+ InterpolateXY(O22,P22,'South East Qld Peaking Factors'!$S$39:$AF$39,'South East Qld Peaking Factors'!$R$40:$R$54,'South East Qld Peaking Factors'!$S$40:$AF$54),IF(S22>95,(InterpolateXY(O22,P22,'South East Qld Peaking Factors'!$S$39:$AF$39,'South East Qld Peaking Factors'!$R$40:$R$54,'South East Qld Peaking Factors'!$S$40:$AF$54)-InterpolateXY(O22,P22,'South East Qld Peaking Factors'!$S$55:$AF$55,'South East Qld Peaking Factors'!$R$56:$R$70,'South East Qld Peaking Factors'!$S$56:$AF$70))*(S22-95)/3+InterpolateXY(O22,P22,'South East Qld Peaking Factors'!$S$55:$AF$55,'South East Qld Peaking Factors'!$R$56:$R$70,'South East Qld Peaking Factors'!$S$56:$AF$70),IF(S22>90,(InterpolateXY(O22,P22,'South East Qld Peaking Factors'!$S$55:$AF$55,'South East Qld Peaking Factors'!$R$56:$R$70,'South East Qld Peaking Factors'!$S$56:$AF$70)-InterpolateXY(O22,P22,'South East Qld Peaking Factors'!$S$71:$AF$71,'South East Qld Peaking Factors'!$R$72:$R$86,'South East Qld Peaking Factors'!$S$72:$AF$86))*(S22-90)/5+InterpolateXY(O22,P22,'South East Qld Peaking Factors'!$S$71:$AF$71,'South East Qld Peaking Factors'!$R$72:$R$86,'South East Qld Peaking Factors'!$S$72:$AF$86),IF(S22>80,(InterpolateXY(O22,P22,'South East Qld Peaking Factors'!$S$71:$AF$71,'South East Qld Peaking Factors'!$R$72:$R$86,'South East Qld Peaking Factors'!$S$72:$AF$86)-InterpolateXY(O22,P22,'South East Qld Peaking Factors'!$S$87:$AF$87,'South East Qld Peaking Factors'!$R$88:$R$102,'South East Qld Peaking Factors'!$S$88:$AF$102))*(S22-80)/10+InterpolateXY(O22,P22,'South East Qld Peaking Factors'!$S$87:$AF$87,'South East Qld Peaking Factors'!$R$88:$R$102,'South East Qld Peaking Factors'!$S$88:$AF$102),IF(S22>70,(InterpolateXY(O22,P22,'South East Qld Peaking Factors'!$S$87:$AF$87,'South East Qld Peaking Factors'!$R$88:$R$102,'South East Qld Peaking Factors'!$S$88:$AF$102)-InterpolateXY(O22,P22,'South East Qld Peaking Factors'!$S$103:$AF$103,'South East Qld Peaking Factors'!$R$104:$R$118,'South East Qld Peaking Factors'!$S$104:$AF$118))*(S22-70)/10+InterpolateXY(O22,P22,'South East Qld Peaking Factors'!$S$103:$AF$103,'South East Qld Peaking Factors'!$R$104:$R$118,'South East Qld Peaking Factors'!$S$104:$AF$118),IF(S22>60,(InterpolateXY(O22,P22,'South East Qld Peaking Factors'!$S$103:$AF$103,'South East Qld Peaking Factors'!$R$104:$R$118,'South East Qld Peaking Factors'!$S$104:$AF$118)-InterpolateXY(O22,P22,'South East Qld Peaking Factors'!$S$119:$AF$119,'South East Qld Peaking Factors'!$R$120:$R$134,'South East Qld Peaking Factors'!$S$120:$AF$134))*(S22-60)/10+InterpolateXY(O22,P22,'South East Qld Peaking Factors'!$S$119:$AF$119,'South East Qld Peaking Factors'!$R$120:$R$134,'South East Qld Peaking Factors'!$S$120:$AF$134),IF(S22>50,(InterpolateXY(O22,P22,'South East Qld Peaking Factors'!$S$119:$AF$119,'South East Qld Peaking Factors'!$R$120:$R$134,'South East Qld Peaking Factors'!$S$120:$AF$134)-1)*(S22-50)/10+1,1)))))))))) -> 1.174852915 | V22: -0.03940148583 | W22: ='Reservoir Storage'!J$34 -> 15 | X22: 0.006672732826 | Y22: ='Reservoir Storage'!J$35 -> 1.571997485 | Z22: 3.605517811
O23: ='Reservoir Storage'!J$23 -> 9.542 | P23: ='Reservoir Storage'!J$26 -> 11.59033333 | Q23: =Q22+IF('Reservoir Storage'!J$26<=15,0.5,IF('Reservoir Storage'!J$26<=30,1,2)) -> 8.5 | R23: 6.629863609 | S23: 76.55897627 | T23: =IF($Q23=0," ",IF(S23>99.99,InterpolateXY(O23,P23,'South East Qld Peaking Factors'!$D$7:$Q$7,'South East Qld Peaking Factors'!$C$8:$C$22,'South East Qld Peaking Factors'!$D$8:$Q$22),IF(S23>99,(InterpolateXY(O23,P23,'South East Qld Peaking Factors'!$D$7:$Q$7,'South East Qld Peaking Factors'!$C$8:$C$22,'South East Qld Peaking Factors'!$D$8:$Q$22)- InterpolateXY(O23,P23,'South East Qld Peaking Factors'!$D$23:$Q$23,'South East Qld Peaking Factors'!$C$24:$C$38,'South East Qld Peaking Factors'!$D$24:$Q$38))*(S23-99)+ InterpolateXY(O23,P23,'South East Qld Peaking Factors'!$D$23:$Q$23,'South East Qld Peaking Factors'!$C$24:$C$38,'South East Qld Peaking Factors'!$D$24:$Q$38),IF(S23>98,(InterpolateXY(O23,P23,'South East Qld Peaking Factors'!$D$23:$Q$23,'South East Qld Peaking Factors'!$C$24:$C$38,'South East Qld Peaking Factors'!$D$24:$Q$38)-InterpolateXY(O23,P23,'South East Qld Peaking Factors'!$D$39:$Q$39,'South East Qld Peaking Factors'!$C$40:$C$54,'South East Qld Peaking Factors'!$D$40:$Q$54))*(S23-98)+ InterpolateXY(O23,P23,'South East Qld Peaking Factors'!$D$39:$Q$39,'South East Qld Peaking Factors'!$C$40:$C$54,'South East Qld Peaking Factors'!$D$40:$Q$54),IF(S23>95,(InterpolateXY(O23,P23,'South East Qld Peaking Factors'!$D$39:$Q$39,'South East Qld Peaking Factors'!$C$40:$C$54,'South East Qld Peaking Factors'!$D$40:$Q$54)-InterpolateXY(O23,P23,'South East Qld Peaking Factors'!$D$55:$Q$55,'South East Qld Peaking Factors'!$C$56:$C$70,'South East Qld Peaking Factors'!$D$56:$Q$70))*(S23-95)/3+InterpolateXY(O23,P23,'South East Qld Peaking Factors'!$D$55:$Q$55,'South East Qld Peaking Factors'!$C$56:$C$70,'South East Qld Peaking Factors'!$D$56:$Q$70),IF(S23>90,(InterpolateXY(O23,P23,'South East Qld Peaking Factors'!$D$55:$Q$55,'South East Qld Peaking Factors'!$C$56:$C$70,'South East Qld Peaking Factors'!$D$56:$Q$70)-InterpolateXY(O23,P23,'South East Qld Peaking Factors'!$D$71:$Q$71,'South East Qld Peaking Factors'!$C$72:$C$86,'South East Qld Peaking Factors'!$D$72:$Q$86))*(S23-90)/5+InterpolateXY(O23,P23,'South East Qld Peaking Factors'!$D$71:$Q$71,'South East Qld Peaking Factors'!$C$72:$C$86,'South East Qld Peaking Factors'!$D$72:$Q$86),IF(S23>80,(InterpolateXY(O23,P23,'South East Qld Peaking Factors'!$D$71:$Q$71,'South East Qld Peaking Factors'!$C$72:$C$86,'South East Qld Peaking Factors'!$D$72:$Q$86)-InterpolateXY(O23,P23,'South East Qld Peaking Factors'!$D$87:$Q$87,'South East Qld Peaking Factors'!$C$88:$C$102,'South East Qld Peaking Factors'!$D$88:$Q$102))*(S23-80)/10+InterpolateXY(O23,P23,'South East Qld Peaking Factors'!$D$87:$Q$87,'South East Qld Peaking Factors'!$C$88:$C$102,'South East Qld Peaking Factors'!$D$88:$Q$102),IF(S23>70,(InterpolateXY(O23,P23,'South East Qld Peaking Factors'!$D$87:$Q$87,'South East Qld Peaking Factors'!$C$88:$C$102,'South East Qld Peaking Factors'!$D$88:$Q$102)-InterpolateXY(O23,P23,'South East Qld Peaking Factors'!$D$103:$Q$103,'South East Qld Peaking Factors'!$C$104:$C$118,'South East Qld Peaking Factors'!$D$104:$Q$118))*(S23-70)/10+InterpolateXY(O23,P23,'South East Qld Peaking Factors'!$D$103:$Q$103,'South East Qld Peaking Factors'!$C$104:$C$118,'South East Qld Peaking Factors'!$D$104:$Q$118),IF(S23>60,(InterpolateXY(O23,P23,'South East Qld Peaking Factors'!$D$103:$Q$103,'South East Qld Peaking Factors'!$C$104:$C$118,'South East Qld Peaking Factors'!$D$104:$Q$118)-InterpolateXY(O23,P23,'South East Qld Peaking Factors'!$D$119:$Q$119,'South East Qld Peaking Factors'!$C$120:$C$134,'South East Qld Peaking Factors'!$D$120:$Q$134))*(S23-60)/10+InterpolateXY(O23,P23,'South East Qld Peaking Factors'!$D$119:$Q$119,'South East Qld Peaking Factors'!$C$120:$C$134,'South East Qld Peaking Factors'!$D$120:$Q$134),IF(S23>50,(InterpolateXY(O23,P23,'South East Qld Peaking Factors'!$D$119:$Q$119,'South East Qld Peaking Factors'!$C$120:$C$134,'South East Qld Peaking Factors'!$D$120:$Q$134)-1)*(S23-50)/10+1,1)))))))))) -> 1.297283897 | U23: =IF($Q23=0," ",IF(S23>99.99,InterpolateXY(O23,P23,'South East Qld Peaking Factors'!$S$7:$AF$7,'South East Qld Peaking Factors'!$R$8:$R$22,'South East Qld Peaking Factors'!$S$8:$AF$22),IF(S23>99,(InterpolateXY(O23,P23,'South East Qld Peaking Factors'!$S$7:$AF$7,'South East Qld Peaking Factors'!$R$8:$R$22,'South East Qld Peaking Factors'!$S$8:$AF$22)- InterpolateXY(O23,P23,'South East Qld Peaking Factors'!$S$23:$AF$23,'South East Qld Peaking Factors'!$R$24:$R$38,'South East Qld Peaking Factors'!$S$24:$AF$38))*(S23-99)+ InterpolateXY(O23,P23,'South East Qld Peaking Factors'!$S$23:$AF$23,'South East Qld Peaking Factors'!$R$24:$R$38,'South East Qld Peaking Factors'!$S$24:$AF$38),IF(S23>98,(InterpolateXY(O23,P23,'South East Qld Peaking Factors'!$S$23:$AF$23,'South East Qld Peaking Factors'!$R$24:$R$38,'South East Qld Peaking Factors'!$S$24:$AF$38)-InterpolateXY(O23,P23,'South East Qld Peaking Factors'!$S$39:$AF$39,'South East Qld Peaking Factors'!$R$40:$R$54,'South East Qld Peaking Factors'!$S$40:$AF$54))*(S23-98)+ InterpolateXY(O23,P23,'South East Qld Peaking Factors'!$S$39:$AF$39,'South East Qld Peaking Factors'!$R$40:$R$54,'South East Qld Peaking Factors'!$S$40:$AF$54),IF(S23>95,(InterpolateXY(O23,P23,'South East Qld Peaking Factors'!$S$39:$AF$39,'South East Qld Peaking Factors'!$R$40:$R$54,'South East Qld Peaking Factors'!$S$40:$AF$54)-InterpolateXY(O23,P23,'South East Qld Peaking Factors'!$S$55:$AF$55,'South East Qld Peaking Factors'!$R$56:$R$70,'South East Qld Peaking Factors'!$S$56:$AF$70))*(S23-95)/3+InterpolateXY(O23,P23,'South East Qld Peaking Factors'!$S$55:$AF$55,'South East Qld Peaking Factors'!$R$56:$R$70,'South East Qld Peaking Factors'!$S$56:$AF$70),IF(S23>90,(InterpolateXY(O23,P23,'South East Qld Peaking Factors'!$S$55:$AF$55,'South East Qld Peaking Factors'!$R$56:$R$70,'South East Qld Peaking Factors'!$S$56:$AF$70)-InterpolateXY(O23,P23,'South East Qld Peaking Factors'!$S$71:$AF$71,'South East Qld Peaking Factors'!$R$72:$R$86,'South East Qld Peaking Factors'!$S$72:$AF$86))*(S23-90)/5+InterpolateXY(O23,P23,'South East Qld Peaking Factors'!$S$71:$AF$71,'South East Qld Peaking Factors'!$R$72:$R$86,'South East Qld Peaking Factors'!$S$72:$AF$86),IF(S23>80,(InterpolateXY(O23,P23,'South East Qld Peaking Factors'!$S$71:$AF$71,'South East Qld Peaking Factors'!$R$72:$R$86,'South East Qld Peaking Factors'!$S$72:$AF$86)-InterpolateXY(O23,P23,'South East Qld Peaking Factors'!$S$87:$AF$87,'South East Qld Peaking Factors'!$R$88:$R$102,'South East Qld Peaking Factors'!$S$88:$AF$102))*(S23-80)/10+InterpolateXY(O23,P23,'South East Qld Peaking Factors'!$S$87:$AF$87,'South East Qld Peaking Factors'!$R$88:$R$102,'South East Qld Peaking Factors'!$S$88:$AF$102),IF(S23>70,(InterpolateXY(O23,P23,'South East Qld Peaking Factors'!$S$87:$AF$87,'South East Qld Peaking Factors'!$R$88:$R$102,'South East Qld Peaking Factors'!$S$88:$AF$102)-InterpolateXY(O23,P23,'South East Qld Peaking Factors'!$S$103:$AF$103,'South East Qld Peaking Factors'!$R$104:$R$118,'South East Qld Peaking Factors'!$S$104:$AF$118))*(S23-70)/10+InterpolateXY(O23,P23,'South East Qld Peaking Factors'!$S$103:$AF$103,'South East Qld Peaking Factors'!$R$104:$R$118,'South East Qld Peaking Factors'!$S$104:$AF$118),IF(S23>60,(InterpolateXY(O23,P23,'South East Qld Peaking Factors'!$S$103:$AF$103,'South East Qld Peaking Factors'!$R$104:$R$118,'South East Qld Peaking Factors'!$S$104:$AF$118)-InterpolateXY(O23,P23,'South East Qld Peaking Factors'!$S$119:$AF$119,'South East Qld Peaking Factors'!$R$120:$R$134,'South East Qld Peaking Factors'!$S$120:$AF$134))*(S23-60)/10+InterpolateXY(O23,P23,'South East Qld Peaking Factors'!$S$119:$AF$119,'South East Qld Peaking Factors'!$R$120:$R$134,'South East Qld Peaking Factors'!$S$120:$AF$134),IF(S23>50,(InterpolateXY(O23,P23,'South East Qld Peaking Factors'!$S$119:$AF$119,'South East Qld Peaking Factors'!$R$120:$R$134,'South East Qld Peaking Factors'!$S$120:$AF$134)-1)*(S23-50)/10+1,1)))))))))) -> 1.162372576 | V23: -0.03228554998 | W23: ='Reservoir Storage'!J$34 -> 15 | X23: 0.0009436701203 | Y23: ='Reservoir Storage'!J$35 -> 1.571997485 | Z23: 3.564560115
O24: ='Reservoir Storage'!J$23 -> 9.542 | P24: ='Reservoir Storage'!J$26 -> 11.59033333 | Q24: =Q23+IF('Reservoir Storage'!J$26<=15,0.5,IF('Reservoir Storage'!J$26<=30,1,2)) -> 9 | R24: 6.84550987 | S24: 74.46562607 | T24: =IF($Q24=0," ",IF(S24>99.99,InterpolateXY(O24,P24,'South East Qld Peaking Factors'!$D$7:$Q$7,'South East Qld Peaking Factors'!$C$8:$C$22,'South East Qld Peaking Factors'!$D$8:$Q$22),IF(S24>99,(InterpolateXY(O24,P24,'South East Qld Peaking Factors'!$D$7:$Q$7,'South East Qld Peaking Factors'!$C$8:$C$22,'South East Qld Peaking Factors'!$D$8:$Q$22)- InterpolateXY(O24,P24,'South East Qld Peaking Factors'!$D$23:$Q$23,'South East Qld Peaking Factors'!$C$24:$C$38,'South East Qld Peaking Factors'!$D$24:$Q$38))*(S24-99)+ InterpolateXY(O24,P24,'South East Qld Peaking Factors'!$D$23:$Q$23,'South East Qld Peaking Factors'!$C$24:$C$38,'South East Qld Peaking Factors'!$D$24:$Q$38),IF(S24>98,(InterpolateXY(O24,P24,'South East Qld Peaking Factors'!$D$23:$Q$23,'South East Qld Peaking Factors'!$C$24:$C$38,'South East Qld Peaking Factors'!$D$24:$Q$38)-InterpolateXY(O24,P24,'South East Qld Peaking Factors'!$D$39:$Q$39,'South East Qld Peaking Factors'!$C$40:$C$54,'South East Qld Peaking Factors'!$D$40:$Q$54))*(S24-98)+ InterpolateXY(O24,P24,'South East Qld Peaking Factors'!$D$39:$Q$39,'South East Qld Peaking Factors'!$C$40:$C$54,'South East Qld Peaking Factors'!$D$40:$Q$54),IF(S24>95,(InterpolateXY(O24,P24,'South East Qld Peaking Factors'!$D$39:$Q$39,'South East Qld Peaking Factors'!$C$40:$C$54,'South East Qld Peaking Factors'!$D$40:$Q$54)-InterpolateXY(O24,P24,'South East Qld Peaking Factors'!$D$55:$Q$55,'South East Qld Peaking Factors'!$C$56:$C$70,'South East Qld Peaking Factors'!$D$56:$Q$70))*(S24-95)/3+InterpolateXY(O24,P24,'South East Qld Peaking Factors'!$D$55:$Q$55,'South East Qld Peaking Factors'!$C$56:$C$70,'South East Qld Peaking Factors'!$D$56:$Q$70),IF(S24>90,(InterpolateXY(O24,P24,'South East Qld Peaking Factors'!$D$55:$Q$55,'South East Qld Peaking Factors'!$C$56:$C$70,'South East Qld Peaking Factors'!$D$56:$Q$70)-InterpolateXY(O24,P24,'South East Qld Peaking Factors'!$D$71:$Q$71,'South East Qld Peaking Factors'!$C$72:$C$86,'South East Qld Peaking Factors'!$D$72:$Q$86))*(S24-90)/5+InterpolateXY(O24,P24,'South East Qld Peaking Factors'!$D$71:$Q$71,'South East Qld Peaking Factors'!$C$72:$C$86,'South East Qld Peaking Factors'!$D$72:$Q$86),IF(S24>80,(InterpolateXY(O24,P24,'South East Qld Peaking Factors'!$D$71:$Q$71,'South East Qld Peaking Factors'!$C$72:$C$86,'South East Qld Peaking Factors'!$D$72:$Q$86)-InterpolateXY(O24,P24,'South East Qld Peaking Factors'!$D$87:$Q$87,'South East Qld Peaking Factors'!$C$88:$C$102,'South East Qld Peaking Factors'!$D$88:$Q$102))*(S24-80)/10+InterpolateXY(O24,P24,'South East Qld Peaking Factors'!$D$87:$Q$87,'South East Qld Peaking Factors'!$C$88:$C$102,'South East Qld Peaking Factors'!$D$88:$Q$102),IF(S24>70,(InterpolateXY(O24,P24,'South East Qld Peaking Factors'!$D$87:$Q$87,'South East Qld Peaking Factors'!$C$88:$C$102,'South East Qld Peaking Factors'!$D$88:$Q$102)-InterpolateXY(O24,P24,'South East Qld Peaking Factors'!$D$103:$Q$103,'South East Qld Peaking Factors'!$C$104:$C$118,'South East Qld Peaking Factors'!$D$104:$Q$118))*(S24-70)/10+InterpolateXY(O24,P24,'South East Qld Peaking Factors'!$D$103:$Q$103,'South East Qld Peaking Factors'!$C$104:$C$118,'South East Qld Peaking Factors'!$D$104:$Q$118),IF(S24>60,(InterpolateXY(O24,P24,'South East Qld Peaking Factors'!$D$103:$Q$103,'South East Qld Peaking Factors'!$C$104:$C$118,'South East Qld Peaking Factors'!$D$104:$Q$118)-InterpolateXY(O24,P24,'South East Qld Peaking Factors'!$D$119:$Q$119,'South East Qld Peaking Factors'!$C$120:$C$134,'South East Qld Peaking Factors'!$D$120:$Q$134))*(S24-60)/10+InterpolateXY(O24,P24,'South East Qld Peaking Factors'!$D$119:$Q$119,'South East Qld Peaking Factors'!$C$120:$C$134,'South East Qld Peaking Factors'!$D$120:$Q$134),IF(S24>50,(InterpolateXY(O24,P24,'South East Qld Peaking Factors'!$D$119:$Q$119,'South East Qld Peaking Factors'!$C$120:$C$134,'South East Qld Peaking Factors'!$D$120:$Q$134)-1)*(S24-50)/10+1,1)))))))))) -> 1.25279372 | U24: =IF($Q24=0," ",IF(S24>99.99,InterpolateXY(O24,P24,'South East Qld Peaking Factors'!$S$7:$AF$7,'South East Qld Peaking Factors'!$R$8:$R$22,'South East Qld Peaking Factors'!$S$8:$AF$22),IF(S24>99,(InterpolateXY(O24,P24,'South East Qld Peaking Factors'!$S$7:$AF$7,'South East Qld Peaking Factors'!$R$8:$R$22,'South East Qld Peaking Factors'!$S$8:$AF$22)- InterpolateXY(O24,P24,'South East Qld Peaking Factors'!$S$23:$AF$23,'South East Qld Peaking Factors'!$R$24:$R$38,'South East Qld Peaking Factors'!$S$24:$AF$38))*(S24-99)+ InterpolateXY(O24,P24,'South East Qld Peaking Factors'!$S$23:$AF$23,'South East Qld Peaking Factors'!$R$24:$R$38,'South East Qld Peaking Factors'!$S$24:$AF$38),IF(S24>98,(InterpolateXY(O24,P24,'South East Qld Peaking Factors'!$S$23:$AF$23,'South East Qld Peaking Factors'!$R$24:$R$38,'South East Qld Peaking Factors'!$S$24:$AF$38)-InterpolateXY(O24,P24,'South East Qld Peaking Factors'!$S$39:$AF$39,'South East Qld Peaking Factors'!$R$40:$R$54,'South East Qld Peaking Factors'!$S$40:$AF$54))*(S24-98)+ InterpolateXY(O24,P24,'South East Qld Peaking Factors'!$S$39:$AF$39,'South East Qld Peaking Factors'!$R$40:$R$54,'South East Qld Peaking Factors'!$S$40:$AF$54),IF(S24>95,(InterpolateXY(O24,P24,'South East Qld Peaking Factors'!$S$39:$AF$39,'South East Qld Peaking Factors'!$R$40:$R$54,'South East Qld Peaking Factors'!$S$40:$AF$54)-InterpolateXY(O24,P24,'South East Qld Peaking Factors'!$S$55:$AF$55,'South East Qld Peaking Factors'!$R$56:$R$70,'South East Qld Peaking Factors'!$S$56:$AF$70))*(S24-95)/3+InterpolateXY(O24,P24,'South East Qld Peaking Factors'!$S$55:$AF$55,'South East Qld Peaking Factors'!$R$56:$R$70,'South East Qld Peaking Factors'!$S$56:$AF$70),IF(S24>90,(InterpolateXY(O24,P24,'South East Qld Peaking Factors'!$S$55:$AF$55,'South East Qld Peaking Factors'!$R$56:$R$70,'South East Qld Peaking Factors'!$S$56:$AF$70)-InterpolateXY(O24,P24,'South East Qld Peaking Factors'!$S$71:$AF$71,'South East Qld Peaking Factors'!$R$72:$R$86,'South East Qld Peaking Factors'!$S$72:$AF$86))*(S24-90)/5+InterpolateXY(O24,P24,'South East Qld Peaking Factors'!$S$71:$AF$71,'South East Qld Peaking Factors'!$R$72:$R$86,'South East Qld Peaking Factors'!$S$72:$AF$86),IF(S24>80,(InterpolateXY(O24,P24,'South East Qld Peaking Factors'!$S$71:$AF$71,'South East Qld Peaking Factors'!$R$72:$R$86,'South East Qld Peaking Factors'!$S$72:$AF$86)-InterpolateXY(O24,P24,'South East Qld Peaking Factors'!$S$87:$AF$87,'South East Qld Peaking Factors'!$R$88:$R$102,'South East Qld Peaking Factors'!$S$88:$AF$102))*(S24-80)/10+InterpolateXY(O24,P24,'South East Qld Peaking Factors'!$S$87:$AF$87,'South East Qld Peaking Factors'!$R$88:$R$102,'South East Qld Peaking Factors'!$S$88:$AF$102),IF(S24>70,(InterpolateXY(O24,P24,'South East Qld Peaking Factors'!$S$87:$AF$87,'South East Qld Peaking Factors'!$R$88:$R$102,'South East Qld Peaking Factors'!$S$88:$AF$102)-InterpolateXY(O24,P24,'South East Qld Peaking Factors'!$S$103:$AF$103,'South East Qld Peaking Factors'!$R$104:$R$118,'South East Qld Peaking Factors'!$S$104:$AF$118))*(S24-70)/10+InterpolateXY(O24,P24,'South East Qld Peaking Factors'!$S$103:$AF$103,'South East Qld Peaking Factors'!$R$104:$R$118,'South East Qld Peaking Factors'!$S$104:$AF$118),IF(S24>60,(InterpolateXY(O24,P24,'South East Qld Peaking Factors'!$S$103:$AF$103,'South East Qld Peaking Factors'!$R$104:$R$118,'South East Qld Peaking Factors'!$S$104:$AF$118)-InterpolateXY(O24,P24,'South East Qld Peaking Factors'!$S$119:$AF$119,'South East Qld Peaking Factors'!$R$120:$R$134,'South East Qld Peaking Factors'!$S$120:$AF$134))*(S24-60)/10+InterpolateXY(O24,P24,'South East Qld Peaking Factors'!$S$119:$AF$119,'South East Qld Peaking Factors'!$R$120:$R$134,'South East Qld Peaking Factors'!$S$120:$AF$134),IF(S24>50,(InterpolateXY(O24,P24,'South East Qld Peaking Factors'!$S$119:$AF$119,'South East Qld Peaking Factors'!$R$120:$R$134,'South East Qld Peaking Factors'!$S$120:$AF$134)-1)*(S24-50)/10+1,1)))))))))) -> 1.150315218 | V24: -0.02509117141 | W24: ='Reservoir Storage'!J$34 -> 15 | X24: 4.281538966e-05 | Y24: ='Reservoir Storage'!J$35 -> 1.571997485 | Z24: 3.518708953
O25: ='Reservoir Storage'!J$23 -> 9.542 | P25: ='Reservoir Storage'!J$26 -> 11.59033333 | Q25: =Q24+IF('Reservoir Storage'!J$26<=15,0.5,IF('Reservoir Storage'!J$26<=30,1,2)) -> 9.5 | R25: 7.055945451 | S25: 72.44929845 | T25: =IF($Q25=0," ",IF(S25>99.99,InterpolateXY(O25,P25,'South East Qld Peaking Factors'!$D$7:$Q$7,'South East Qld Peaking Factors'!$C$8:$C$22,'South East Qld Peaking Factors'!$D$8:$Q$22),IF(S25>99,(InterpolateXY(O25,P25,'South East Qld Peaking Factors'!$D$7:$Q$7,'South East Qld Peaking Factors'!$C$8:$C$22,'South East Qld Peaking Factors'!$D$8:$Q$22)- InterpolateXY(O25,P25,'South East Qld Peaking Factors'!$D$23:$Q$23,'South East Qld Peaking Factors'!$C$24:$C$38,'South East Qld Peaking Factors'!$D$24:$Q$38))*(S25-99)+ InterpolateXY(O25,P25,'South East Qld Peaking Factors'!$D$23:$Q$23,'South East Qld Peaking Factors'!$C$24:$C$38,'South East Qld Peaking Factors'!$D$24:$Q$38),IF(S25>98,(InterpolateXY(O25,P25,'South East Qld Peaking Factors'!$D$23:$Q$23,'South East Qld Peaking Factors'!$C$24:$C$38,'South East Qld Peaking Factors'!$D$24:$Q$38)-InterpolateXY(O25,P25,'South East Qld Peaking Factors'!$D$39:$Q$39,'South East Qld Peaking Factors'!$C$40:$C$54,'South East Qld Peaking Factors'!$D$40:$Q$54))*(S25-98)+ InterpolateXY(O25,P25,'South East Qld Peaking Factors'!$D$39:$Q$39,'South East Qld Peaking Factors'!$C$40:$C$54,'South East Qld Peaking Factors'!$D$40:$Q$54),IF(S25>95,(InterpolateXY(O25,P25,'South East Qld Peaking Factors'!$D$39:$Q$39,'South East Qld Peaking Factors'!$C$40:$C$54,'South East Qld Peaking Factors'!$D$40:$Q$54)-InterpolateXY(O25,P25,'South East Qld Peaking Factors'!$D$55:$Q$55,'South East Qld Peaking Factors'!$C$56:$C$70,'South East Qld Peaking Factors'!$D$56:$Q$70))*(S25-95)/3+InterpolateXY(O25,P25,'South East Qld Peaking Factors'!$D$55:$Q$55,'South East Qld Peaking Factors'!$C$56:$C$70,'South East Qld Peaking Factors'!$D$56:$Q$70),IF(S25>90,(InterpolateXY(O25,P25,'South East Qld Peaking Factors'!$D$55:$Q$55,'South East Qld Peaking Factors'!$C$56:$C$70,'South East Qld Peaking Factors'!$D$56:$Q$70)-InterpolateXY(O25,P25,'South East Qld Peaking Factors'!$D$71:$Q$71,'South East Qld Peaking Factors'!$C$72:$C$86,'South East Qld Peaking Factors'!$D$72:$Q$86))*(S25-90)/5+InterpolateXY(O25,P25,'South East Qld Peaking Factors'!$D$71:$Q$71,'South East Qld Peaking Factors'!$C$72:$C$86,'South East Qld Peaking Factors'!$D$72:$Q$86),IF(S25>80,(InterpolateXY(O25,P25,'South East Qld Peaking Factors'!$D$71:$Q$71,'South East Qld Peaking Factors'!$C$72:$C$86,'South East Qld Peaking Factors'!$D$72:$Q$86)-InterpolateXY(O25,P25,'South East Qld Peaking Factors'!$D$87:$Q$87,'South East Qld Peaking Factors'!$C$88:$C$102,'South East Qld Peaking Factors'!$D$88:$Q$102))*(S25-80)/10+InterpolateXY(O25,P25,'South East Qld Peaking Factors'!$D$87:$Q$87,'South East Qld Peaking Factors'!$C$88:$C$102,'South East Qld Peaking Factors'!$D$88:$Q$102),IF(S25>70,(InterpolateXY(O25,P25,'South East Qld Peaking Factors'!$D$87:$Q$87,'South East Qld Peaking Factors'!$C$88:$C$102,'South East Qld Peaking Factors'!$D$88:$Q$102)-InterpolateXY(O25,P25,'South East Qld Peaking Factors'!$D$103:$Q$103,'South East Qld Peaking Factors'!$C$104:$C$118,'South East Qld Peaking Factors'!$D$104:$Q$118))*(S25-70)/10+InterpolateXY(O25,P25,'South East Qld Peaking Factors'!$D$103:$Q$103,'South East Qld Peaking Factors'!$C$104:$C$118,'South East Qld Peaking Factors'!$D$104:$Q$118),IF(S25>60,(InterpolateXY(O25,P25,'South East Qld Peaking Factors'!$D$103:$Q$103,'South East Qld Peaking Factors'!$C$104:$C$118,'South East Qld Peaking Factors'!$D$104:$Q$118)-InterpolateXY(O25,P25,'South East Qld Peaking Factors'!$D$119:$Q$119,'South East Qld Peaking Factors'!$C$120:$C$134,'South East Qld Peaking Factors'!$D$120:$Q$134))*(S25-60)/10+InterpolateXY(O25,P25,'South East Qld Peaking Factors'!$D$119:$Q$119,'South East Qld Peaking Factors'!$C$120:$C$134,'South East Qld Peaking Factors'!$D$120:$Q$134),IF(S25>50,(InterpolateXY(O25,P25,'South East Qld Peaking Factors'!$D$119:$Q$119,'South East Qld Peaking Factors'!$C$120:$C$134,'South East Qld Peaking Factors'!$D$120:$Q$134)-1)*(S25-50)/10+1,1)))))))))) -> 1.209940512 | U25: =IF($Q25=0," ",IF(S25>99.99,InterpolateXY(O25,P25,'South East Qld Peaking Factors'!$S$7:$AF$7,'South East Qld Peaking Factors'!$R$8:$R$22,'South East Qld Peaking Factors'!$S$8:$AF$22),IF(S25>99,(InterpolateXY(O25,P25,'South East Qld Peaking Factors'!$S$7:$AF$7,'South East Qld Peaking Factors'!$R$8:$R$22,'South East Qld Peaking Factors'!$S$8:$AF$22)- InterpolateXY(O25,P25,'South East Qld Peaking Factors'!$S$23:$AF$23,'South East Qld Peaking Factors'!$R$24:$R$38,'South East Qld Peaking Factors'!$S$24:$AF$38))*(S25-99)+ InterpolateXY(O25,P25,'South East Qld Peaking Factors'!$S$23:$AF$23,'South East Qld Peaking Factors'!$R$24:$R$38,'South East Qld Peaking Factors'!$S$24:$AF$38),IF(S25>98,(InterpolateXY(O25,P25,'South East Qld Peaking Factors'!$S$23:$AF$23,'South East Qld Peaking Factors'!$R$24:$R$38,'South East Qld Peaking Factors'!$S$24:$AF$38)-InterpolateXY(O25,P25,'South East Qld Peaking Factors'!$S$39:$AF$39,'South East Qld Peaking Factors'!$R$40:$R$54,'South East Qld Peaking Factors'!$S$40:$AF$54))*(S25-98)+ InterpolateXY(O25,P25,'South East Qld Peaking Factors'!$S$39:$AF$39,'South East Qld Peaking Factors'!$R$40:$R$54,'South East Qld Peaking Factors'!$S$40:$AF$54),IF(S25>95,(InterpolateXY(O25,P25,'South East Qld Peaking Factors'!$S$39:$AF$39,'South East Qld Peaking Factors'!$R$40:$R$54,'South East Qld Peaking Factors'!$S$40:$AF$54)-InterpolateXY(O25,P25,'South East Qld Peaking Factors'!$S$55:$AF$55,'South East Qld Peaking Factors'!$R$56:$R$70,'South East Qld Peaking Factors'!$S$56:$AF$70))*(S25-95)/3+InterpolateXY(O25,P25,'South East Qld Peaking Factors'!$S$55:$AF$55,'South East Qld Peaking Factors'!$R$56:$R$70,'South East Qld Peaking Factors'!$S$56:$AF$70),IF(S25>90,(InterpolateXY(O25,P25,'South East Qld Peaking Factors'!$S$55:$AF$55,'South East Qld Peaking Factors'!$R$56:$R$70,'South East Qld Peaking Factors'!$S$56:$AF$70)-InterpolateXY(O25,P25,'South East Qld Peaking Factors'!$S$71:$AF$71,'South East Qld Peaking Factors'!$R$72:$R$86,'South East Qld Peaking Factors'!$S$72:$AF$86))*(S25-90)/5+InterpolateXY(O25,P25,'South East Qld Peaking Factors'!$S$71:$AF$71,'South East Qld Peaking Factors'!$R$72:$R$86,'South East Qld Peaking Factors'!$S$72:$AF$86),IF(S25>80,(InterpolateXY(O25,P25,'South East Qld Peaking Factors'!$S$71:$AF$71,'South East Qld Peaking Factors'!$R$72:$R$86,'South East Qld Peaking Factors'!$S$72:$AF$86)-InterpolateXY(O25,P25,'South East Qld Peaking Factors'!$S$87:$AF$87,'South East Qld Peaking Factors'!$R$88:$R$102,'South East Qld Peaking Factors'!$S$88:$AF$102))*(S25-80)/10+InterpolateXY(O25,P25,'South East Qld Peaking Factors'!$S$87:$AF$87,'South East Qld Peaking Factors'!$R$88:$R$102,'South East Qld Peaking Factors'!$S$88:$AF$102),IF(S25>70,(InterpolateXY(O25,P25,'South East Qld Peaking Factors'!$S$87:$AF$87,'South East Qld Peaking Factors'!$R$88:$R$102,'South East Qld Peaking Factors'!$S$88:$AF$102)-InterpolateXY(O25,P25,'South East Qld Peaking Factors'!$S$103:$AF$103,'South East Qld Peaking Factors'!$R$104:$R$118,'South East Qld Peaking Factors'!$S$104:$AF$118))*(S25-70)/10+InterpolateXY(O25,P25,'South East Qld Peaking Factors'!$S$103:$AF$103,'South East Qld Peaking Factors'!$R$104:$R$118,'South East Qld Peaking Factors'!$S$104:$AF$118),IF(S25>60,(InterpolateXY(O25,P25,'South East Qld Peaking Factors'!$S$103:$AF$103,'South East Qld Peaking Factors'!$R$104:$R$118,'South East Qld Peaking Factors'!$S$104:$AF$118)-InterpolateXY(O25,P25,'South East Qld Peaking Factors'!$S$119:$AF$119,'South East Qld Peaking Factors'!$R$120:$R$134,'South East Qld Peaking Factors'!$S$120:$AF$134))*(S25-60)/10+InterpolateXY(O25,P25,'South East Qld Peaking Factors'!$S$119:$AF$119,'South East Qld Peaking Factors'!$R$120:$R$134,'South East Qld Peaking Factors'!$S$120:$AF$134),IF(S25>50,(InterpolateXY(O25,P25,'South East Qld Peaking Factors'!$S$119:$AF$119,'South East Qld Peaking Factors'!$R$120:$R$134,'South East Qld Peaking Factors'!$S$120:$AF$134)-1)*(S25-50)/10+1,1)))))))))) -> 1.138701497 | V25: -0.01784154603 | W25: ='Reservoir Storage'!J$34 -> 15 | X25: 1.547749452e-07 | Y25: ='Reservoir Storage'!J$35 -> 1.571997485 | Z25: 3.469229008
O26: ='Reservoir Storage'!J$23 -> 9.542 | P26: ='Reservoir Storage'!J$26 -> 11.59033333 | Q26: =Q25+IF('Reservoir Storage'!J$26<=15,0.5,IF('Reservoir Storage'!J$26<=30,1,2)) -> 10 | R26: 7.261561095 | S26: 70.51131326 | T26: =IF($Q26=0," ",IF(S26>99.99,InterpolateXY(O26,P26,'South East Qld Peaking Factors'!$D$7:$Q$7,'South East Qld Peaking Factors'!$C$8:$C$22,'South East Qld Peaking Factors'!$D$8:$Q$22),IF(S26>99,(InterpolateXY(O26,P26,'South East Qld Peaking Factors'!$D$7:$Q$7,'South East Qld Peaking Factors'!$C$8:$C$22,'South East Qld Peaking Factors'!$D$8:$Q$22)- InterpolateXY(O26,P26,'South East Qld Peaking Factors'!$D$23:$Q$23,'South East Qld Peaking Factors'!$C$24:$C$38,'South East Qld Peaking Factors'!$D$24:$Q$38))*(S26-99)+ InterpolateXY(O26,P26,'South East Qld Peaking Factors'!$D$23:$Q$23,'South East Qld Peaking Factors'!$C$24:$C$38,'South East Qld Peaking Factors'!$D$24:$Q$38),IF(S26>98,(InterpolateXY(O26,P26,'South East Qld Peaking Factors'!$D$23:$Q$23,'South East Qld Peaking Factors'!$C$24:$C$38,'South East Qld Peaking Factors'!$D$24:$Q$38)-InterpolateXY(O26,P26,'South East Qld Peaking Factors'!$D$39:$Q$39,'South East Qld Peaking Factors'!$C$40:$C$54,'South East Qld Peaking Factors'!$D$40:$Q$54))*(S26-98)+ InterpolateXY(O26,P26,'South East Qld Peaking Factors'!$D$39:$Q$39,'South East Qld Peaking Factors'!$C$40:$C$54,'South East Qld Peaking Factors'!$D$40:$Q$54),IF(S26>95,(InterpolateXY(O26,P26,'South East Qld Peaking Factors'!$D$39:$Q$39,'South East Qld Peaking Factors'!$C$40:$C$54,'South East Qld Peaking Factors'!$D$40:$Q$54)-InterpolateXY(O26,P26,'South East Qld Peaking Factors'!$D$55:$Q$55,'South East Qld Peaking Factors'!$C$56:$C$70,'South East Qld Peaking Factors'!$D$56:$Q$70))*(S26-95)/3+InterpolateXY(O26,P26,'South East Qld Peaking Factors'!$D$55:$Q$55,'South East Qld Peaking Factors'!$C$56:$C$70,'South East Qld Peaking Factors'!$D$56:$Q$70),IF(S26>90,(InterpolateXY(O26,P26,'South East Qld Peaking Factors'!$D$55:$Q$55,'South East Qld Peaking Factors'!$C$56:$C$70,'South East Qld Peaking Factors'!$D$56:$Q$70)-InterpolateXY(O26,P26,'South East Qld Peaking Factors'!$D$71:$Q$71,'South East Qld Peaking Factors'!$C$72:$C$86,'South East Qld Peaking Factors'!$D$72:$Q$86))*(S26-90)/5+InterpolateXY(O26,P26,'South East Qld Peaking Factors'!$D$71:$Q$71,'South East Qld Peaking Factors'!$C$72:$C$86,'South East Qld Peaking Factors'!$D$72:$Q$86),IF(S26>80,(InterpolateXY(O26,P26,'South East Qld Peaking Factors'!$D$71:$Q$71,'South East Qld Peaking Factors'!$C$72:$C$86,'South East Qld Peaking Factors'!$D$72:$Q$86)-InterpolateXY(O26,P26,'South East Qld Peaking Factors'!$D$87:$Q$87,'South East Qld Peaking Factors'!$C$88:$C$102,'South East Qld Peaking Factors'!$D$88:$Q$102))*(S26-80)/10+InterpolateXY(O26,P26,'South East Qld Peaking Factors'!$D$87:$Q$87,'South East Qld Peaking Factors'!$C$88:$C$102,'South East Qld Peaking Factors'!$D$88:$Q$102),IF(S26>70,(InterpolateXY(O26,P26,'South East Qld Peaking Factors'!$D$87:$Q$87,'South East Qld Peaking Factors'!$C$88:$C$102,'South East Qld Peaking Factors'!$D$88:$Q$102)-InterpolateXY(O26,P26,'South East Qld Peaking Factors'!$D$103:$Q$103,'South East Qld Peaking Factors'!$C$104:$C$118,'South East Qld Peaking Factors'!$D$104:$Q$118))*(S26-70)/10+InterpolateXY(O26,P26,'South East Qld Peaking Factors'!$D$103:$Q$103,'South East Qld Peaking Factors'!$C$104:$C$118,'South East Qld Peaking Factors'!$D$104:$Q$118),IF(S26>60,(InterpolateXY(O26,P26,'South East Qld Peaking Factors'!$D$103:$Q$103,'South East Qld Peaking Factors'!$C$104:$C$118,'South East Qld Peaking Factors'!$D$104:$Q$118)-InterpolateXY(O26,P26,'South East Qld Peaking Factors'!$D$119:$Q$119,'South East Qld Peaking Factors'!$C$120:$C$134,'South East Qld Peaking Factors'!$D$120:$Q$134))*(S26-60)/10+InterpolateXY(O26,P26,'South East Qld Peaking Factors'!$D$119:$Q$119,'South East Qld Peaking Factors'!$C$120:$C$134,'South East Qld Peaking Factors'!$D$120:$Q$134),IF(S26>50,(InterpolateXY(O26,P26,'South East Qld Peaking Factors'!$D$119:$Q$119,'South East Qld Peaking Factors'!$C$120:$C$134,'South East Qld Peaking Factors'!$D$120:$Q$134)-1)*(S26-50)/10+1,1)))))))))) -> 1.168752324 | U26: =IF($Q26=0," ",IF(S26>99.99,InterpolateXY(O26,P26,'South East Qld Peaking Factors'!$S$7:$AF$7,'South East Qld Peaking Factors'!$R$8:$R$22,'South East Qld Peaking Factors'!$S$8:$AF$22),IF(S26>99,(InterpolateXY(O26,P26,'South East Qld Peaking Factors'!$S$7:$AF$7,'South East Qld Peaking Factors'!$R$8:$R$22,'South East Qld Peaking Factors'!$S$8:$AF$22)- InterpolateXY(O26,P26,'South East Qld Peaking Factors'!$S$23:$AF$23,'South East Qld Peaking Factors'!$R$24:$R$38,'South East Qld Peaking Factors'!$S$24:$AF$38))*(S26-99)+ InterpolateXY(O26,P26,'South East Qld Peaking Factors'!$S$23:$AF$23,'South East Qld Peaking Factors'!$R$24:$R$38,'South East Qld Peaking Factors'!$S$24:$AF$38),IF(S26>98,(InterpolateXY(O26,P26,'South East Qld Peaking Factors'!$S$23:$AF$23,'South East Qld Peaking Factors'!$R$24:$R$38,'South East Qld Peaking Factors'!$S$24:$AF$38)-InterpolateXY(O26,P26,'South East Qld Peaking Factors'!$S$39:$AF$39,'South East Qld Peaking Factors'!$R$40:$R$54,'South East Qld Peaking Factors'!$S$40:$AF$54))*(S26-98)+ InterpolateXY(O26,P26,'South East Qld Peaking Factors'!$S$39:$AF$39,'South East Qld Peaking Factors'!$R$40:$R$54,'South East Qld Peaking Factors'!$S$40:$AF$54),IF(S26>95,(InterpolateXY(O26,P26,'South East Qld Peaking Factors'!$S$39:$AF$39,'South East Qld Peaking Factors'!$R$40:$R$54,'South East Qld Peaking Factors'!$S$40:$AF$54)-InterpolateXY(O26,P26,'South East Qld Peaking Factors'!$S$55:$AF$55,'South East Qld Peaking Factors'!$R$56:$R$70,'South East Qld Peaking Factors'!$S$56:$AF$70))*(S26-95)/3+InterpolateXY(O26,P26,'South East Qld Peaking Factors'!$S$55:$AF$55,'South East Qld Peaking Factors'!$R$56:$R$70,'South East Qld Peaking Factors'!$S$56:$AF$70),IF(S26>90,(InterpolateXY(O26,P26,'South East Qld Peaking Factors'!$S$55:$AF$55,'South East Qld Peaking Factors'!$R$56:$R$70,'South East Qld Peaking Factors'!$S$56:$AF$70)-InterpolateXY(O26,P26,'South East Qld Peaking Factors'!$S$71:$AF$71,'South East Qld Peaking Factors'!$R$72:$R$86,'South East Qld Peaking Factors'!$S$72:$AF$86))*(S26-90)/5+InterpolateXY(O26,P26,'South East Qld Peaking Factors'!$S$71:$AF$71,'South East Qld Peaking Factors'!$R$72:$R$86,'South East Qld Peaking Factors'!$S$72:$AF$86),IF(S26>80,(InterpolateXY(O26,P26,'South East Qld Peaking Factors'!$S$71:$AF$71,'South East Qld Peaking Factors'!$R$72:$R$86,'South East Qld Peaking Factors'!$S$72:$AF$86)-InterpolateXY(O26,P26,'South East Qld Peaking Factors'!$S$87:$AF$87,'South East Qld Peaking Factors'!$R$88:$R$102,'South East Qld Peaking Factors'!$S$88:$AF$102))*(S26-80)/10+InterpolateXY(O26,P26,'South East Qld Peaking Factors'!$S$87:$AF$87,'South East Qld Peaking Factors'!$R$88:$R$102,'South East Qld Peaking Factors'!$S$88:$AF$102),IF(S26>70,(InterpolateXY(O26,P26,'South East Qld Peaking Factors'!$S$87:$AF$87,'South East Qld Peaking Factors'!$R$88:$R$102,'South East Qld Peaking Factors'!$S$88:$AF$102)-InterpolateXY(O26,P26,'South East Qld Peaking Factors'!$S$103:$AF$103,'South East Qld Peaking Factors'!$R$104:$R$118,'South East Qld Peaking Factors'!$S$104:$AF$118))*(S26-70)/10+InterpolateXY(O26,P26,'South East Qld Peaking Factors'!$S$103:$AF$103,'South East Qld Peaking Factors'!$R$104:$R$118,'South East Qld Peaking Factors'!$S$104:$AF$118),IF(S26>60,(InterpolateXY(O26,P26,'South East Qld Peaking Factors'!$S$103:$AF$103,'South East Qld Peaking Factors'!$R$104:$R$118,'South East Qld Peaking Factors'!$S$104:$AF$118)-InterpolateXY(O26,P26,'South East Qld Peaking Factors'!$S$119:$AF$119,'South East Qld Peaking Factors'!$R$120:$R$134,'South East Qld Peaking Factors'!$S$120:$AF$134))*(S26-60)/10+InterpolateXY(O26,P26,'South East Qld Peaking Factors'!$S$119:$AF$119,'South East Qld Peaking Factors'!$R$120:$R$134,'South East Qld Peaking Factors'!$S$120:$AF$134),IF(S26>50,(InterpolateXY(O26,P26,'South East Qld Peaking Factors'!$S$119:$AF$119,'South East Qld Peaking Factors'!$R$120:$R$134,'South East Qld Peaking Factors'!$S$120:$AF$134)-1)*(S26-50)/10+1,1)))))))))) -> 1.127539016 | V26: -0.01055492822 | W26: ='Reservoir Storage'!J$34 -> 15 | X26: 2.329482484e-13 | Y26: ='Reservoir Storage'!J$35 -> 1.571997485 | Z26: 3.417122706
O27: ='Reservoir Storage'!J$23 -> 9.542 | P27: ='Reservoir Storage'!J$26 -> 11.59033333 | Q27: =Q26+IF('Reservoir Storage'!J$26<=15,0.5,IF('Reservoir Storage'!J$26<=30,1,2)) -> 10.5 | R27: =T$2*Q27^T$3 -> 7.46270034 | S27: =100*(1-(1-1/Q27)^P27) -> 68.65140216 | T27: =IF($Q27=0," ",IF(S27>99.99,InterpolateXY(O27,P27,'South East Qld Peaking Factors'!$D$7:$Q$7,'South East Qld Peaking Factors'!$C$8:$C$22,'South East Qld Peaking Factors'!$D$8:$Q$22),IF(S27>99,(InterpolateXY(O27,P27,'South East Qld Peaking Factors'!$D$7:$Q$7,'South East Qld Peaking Factors'!$C$8:$C$22,'South East Qld Peaking Factors'!$D$8:$Q$22)- InterpolateXY(O27,P27,'South East Qld Peaking Factors'!$D$23:$Q$23,'South East Qld Peaking Factors'!$C$24:$C$38,'South East Qld Peaking Factors'!$D$24:$Q$38))*(S27-99)+ InterpolateXY(O27,P27,'South East Qld Peaking Factors'!$D$23:$Q$23,'South East Qld Peaking Factors'!$C$24:$C$38,'South East Qld Peaking Factors'!$D$24:$Q$38),IF(S27>98,(InterpolateXY(O27,P27,'South East Qld Peaking Factors'!$D$23:$Q$23,'South East Qld Peaking Factors'!$C$24:$C$38,'South East Qld Peaking Factors'!$D$24:$Q$38)-InterpolateXY(O27,P27,'South East Qld Peaking Factors'!$D$39:$Q$39,'South East Qld Peaking Factors'!$C$40:$C$54,'South East Qld Peaking Factors'!$D$40:$Q$54))*(S27-98)+ InterpolateXY(O27,P27,'South East Qld Peaking Factors'!$D$39:$Q$39,'South East Qld Peaking Factors'!$C$40:$C$54,'South East Qld Peaking Factors'!$D$40:$Q$54),IF(S27>95,(InterpolateXY(O27,P27,'South East Qld Peaking Factors'!$D$39:$Q$39,'South East Qld Peaking Factors'!$C$40:$C$54,'South East Qld Peaking Factors'!$D$40:$Q$54)-InterpolateXY(O27,P27,'South East Qld Peaking Factors'!$D$55:$Q$55,'South East Qld Peaking Factors'!$C$56:$C$70,'South East Qld Peaking Factors'!$D$56:$Q$70))*(S27-95)/3+InterpolateXY(O27,P27,'South East Qld Peaking Factors'!$D$55:$Q$55,'South East Qld Peaking Factors'!$C$56:$C$70,'South East Qld Peaking Factors'!$D$56:$Q$70),IF(S27>90,(InterpolateXY(O27,P27,'South East Qld Peaking Factors'!$D$55:$Q$55,'South East Qld Peaking Factors'!$C$56:$C$70,'South East Qld Peaking Factors'!$D$56:$Q$70)-InterpolateXY(O27,P27,'South East Qld Peaking Factors'!$D$71:$Q$71,'South East Qld Peaking Factors'!$C$72:$C$86,'South East Qld Peaking Factors'!$D$72:$Q$86))*(S27-90)/5+InterpolateXY(O27,P27,'South East Qld Peaking Factors'!$D$71:$Q$71,'South East Qld Peaking Factors'!$C$72:$C$86,'South East Qld Peaking Factors'!$D$72:$Q$86),IF(S27>80,(InterpolateXY(O27,P27,'South East Qld Peaking Factors'!$D$71:$Q$71,'South East Qld Peaking Factors'!$C$72:$C$86,'South East Qld Peaking Factors'!$D$72:$Q$86)-InterpolateXY(O27,P27,'South East Qld Peaking Factors'!$D$87:$Q$87,'South East Qld Peaking Factors'!$C$88:$C$102,'South East Qld Peaking Factors'!$D$88:$Q$102))*(S27-80)/10+InterpolateXY(O27,P27,'South East Qld Peaking Factors'!$D$87:$Q$87,'South East Qld Peaking Factors'!$C$88:$C$102,'South East Qld Peaking Factors'!$D$88:$Q$102),IF(S27>70,(InterpolateXY(O27,P27,'South East Qld Peaking Factors'!$D$87:$Q$87,'South East Qld Peaking Factors'!$C$88:$C$102,'South East Qld Peaking Factors'!$D$88:$Q$102)-InterpolateXY(O27,P27,'South East Qld Peaking Factors'!$D$103:$Q$103,'South East Qld Peaking Factors'!$C$104:$C$118,'South East Qld Peaking Factors'!$D$104:$Q$118))*(S27-70)/10+InterpolateXY(O27,P27,'South East Qld Peaking Factors'!$D$103:$Q$103,'South East Qld Peaking Factors'!$C$104:$C$118,'South East Qld Peaking Factors'!$D$104:$Q$118),IF(S27>60,(InterpolateXY(O27,P27,'South East Qld Peaking Factors'!$D$103:$Q$103,'South East Qld Peaking Factors'!$C$104:$C$118,'South East Qld Peaking Factors'!$D$104:$Q$118)-InterpolateXY(O27,P27,'South East Qld Peaking Factors'!$D$119:$Q$119,'South East Qld Peaking Factors'!$C$120:$C$134,'South East Qld Peaking Factors'!$D$120:$Q$134))*(S27-60)/10+InterpolateXY(O27,P27,'South East Qld Peaking Factors'!$D$119:$Q$119,'South East Qld Peaking Factors'!$C$120:$C$134,'South East Qld Peaking Factors'!$D$120:$Q$134),IF(S27>50,(InterpolateXY(O27,P27,'South East Qld Peaking Factors'!$D$119:$Q$119,'South East Qld Peaking Factors'!$C$120:$C$134,'South East Qld Peaking Factors'!$D$120:$Q$134)-1)*(S27-50)/10+1,1)))))))))) -> 1.149431628 | U27: =IF($Q27=0," ",IF(S27>99.99,InterpolateXY(O27,P27,'South East Qld Peaking Factors'!$S$7:$AF$7,'South East Qld Peaking Factors'!$R$8:$R$22,'South East Qld Peaking Factors'!$S$8:$AF$22),IF(S27>99,(InterpolateXY(O27,P27,'South East Qld Peaking Factors'!$S$7:$AF$7,'South East Qld Peaking Factors'!$R$8:$R$22,'South East Qld Peaking Factors'!$S$8:$AF$22)- InterpolateXY(O27,P27,'South East Qld Peaking Factors'!$S$23:$AF$23,'South East Qld Peaking Factors'!$R$24:$R$38,'South East Qld Peaking Factors'!$S$24:$AF$38))*(S27-99)+ InterpolateXY(O27,P27,'South East Qld Peaking Factors'!$S$23:$AF$23,'South East Qld Peaking Factors'!$R$24:$R$38,'South East Qld Peaking Factors'!$S$24:$AF$38),IF(S27>98,(InterpolateXY(O27,P27,'South East Qld Peaking Factors'!$S$23:$AF$23,'South East Qld Peaking Factors'!$R$24:$R$38,'South East Qld Peaking Factors'!$S$24:$AF$38)-InterpolateXY(O27,P27,'South East Qld Peaking Factors'!$S$39:$AF$39,'South East Qld Peaking Factors'!$R$40:$R$54,'South East Qld Peaking Factors'!$S$40:$AF$54))*(S27-98)+ InterpolateXY(O27,P27,'South East Qld Peaking Factors'!$S$39:$AF$39,'South East Qld Peaking Factors'!$R$40:$R$54,'South East Qld Peaking Factors'!$S$40:$AF$54),IF(S27>95,(InterpolateXY(O27,P27,'South East Qld Peaking Factors'!$S$39:$AF$39,'South East Qld Peaking Factors'!$R$40:$R$54,'South East Qld Peaking Factors'!$S$40:$AF$54)-InterpolateXY(O27,P27,'South East Qld Peaking Factors'!$S$55:$AF$55,'South East Qld Peaking Factors'!$R$56:$R$70,'South East Qld Peaking Factors'!$S$56:$AF$70))*(S27-95)/3+InterpolateXY(O27,P27,'South East Qld Peaking Factors'!$S$55:$AF$55,'South East Qld Peaking Factors'!$R$56:$R$70,'South East Qld Peaking Factors'!$S$56:$AF$70),IF(S27>90,(InterpolateXY(O27,P27,'South East Qld Peaking Factors'!$S$55:$AF$55,'South East Qld Peaking Factors'!$R$56:$R$70,'South East Qld Peaking Factors'!$S$56:$AF$70)-InterpolateXY(O27,P27,'South East Qld Peaking Factors'!$S$71:$AF$71,'South East Qld Peaking Factors'!$R$72:$R$86,'South East Qld Peaking Factors'!$S$72:$AF$86))*(S27-90)/5+InterpolateXY(O27,P27,'South East Qld Peaking Factors'!$S$71:$AF$71,'South East Qld Peaking Factors'!$R$72:$R$86,'South East Qld Peaking Factors'!$S$72:$AF$86),IF(S27>80,(InterpolateXY(O27,P27,'South East Qld Peaking Factors'!$S$71:$AF$71,'South East Qld Peaking Factors'!$R$72:$R$86,'South East Qld Peaking Factors'!$S$72:$AF$86)-InterpolateXY(O27,P27,'South East Qld Peaking Factors'!$S$87:$AF$87,'South East Qld Peaking Factors'!$R$88:$R$102,'South East Qld Peaking Factors'!$S$88:$AF$102))*(S27-80)/10+InterpolateXY(O27,P27,'South East Qld Peaking Factors'!$S$87:$AF$87,'South East Qld Peaking Factors'!$R$88:$R$102,'South East Qld Peaking Factors'!$S$88:$AF$102),IF(S27>70,(InterpolateXY(O27,P27,'South East Qld Peaking Factors'!$S$87:$AF$87,'South East Qld Peaking Factors'!$R$88:$R$102,'South East Qld Peaking Factors'!$S$88:$AF$102)-InterpolateXY(O27,P27,'South East Qld Peaking Factors'!$S$103:$AF$103,'South East Qld Peaking Factors'!$R$104:$R$118,'South East Qld Peaking Factors'!$S$104:$AF$118))*(S27-70)/10+InterpolateXY(O27,P27,'South East Qld Peaking Factors'!$S$103:$AF$103,'South East Qld Peaking Factors'!$R$104:$R$118,'South East Qld Peaking Factors'!$S$104:$AF$118),IF(S27>60,(InterpolateXY(O27,P27,'South East Qld Peaking Factors'!$S$103:$AF$103,'South East Qld Peaking Factors'!$R$104:$R$118,'South East Qld Peaking Factors'!$S$104:$AF$118)-InterpolateXY(O27,P27,'South East Qld Peaking Factors'!$S$119:$AF$119,'South East Qld Peaking Factors'!$R$120:$R$134,'South East Qld Peaking Factors'!$S$120:$AF$134))*(S27-60)/10+InterpolateXY(O27,P27,'South East Qld Peaking Factors'!$S$119:$AF$119,'South East Qld Peaking Factors'!$R$120:$R$134,'South East Qld Peaking Factors'!$S$120:$AF$134),IF(S27>50,(InterpolateXY(O27,P27,'South East Qld Peaking Factors'!$S$119:$AF$119,'South East Qld Peaking Factors'!$R$120:$R$134,'South East Qld Peaking Factors'!$S$120:$AF$134)-1)*(S27-50)/10+1,1)))))))))) -> 1.119515842 | V27: =IF(S27>=50,-LOG(T27/U27)/LOG(30)," ") -> -0.00775352683 | W27: ='Reservoir Storage'!J$34 -> 15 | X27: 1.065723594e-18 | Y27: ='Reservoir Storage'!J$35 -> 1.571997485 | Z27: 3.441444728
O28: ='Reservoir Storage'!J$23 -> 9.542 | P28: ='Reservoir Storage'!J$26 -> 11.59033333 | Q28: =Q27+IF('Reservoir Storage'!J$26<=15,0.5,IF('Reservoir Storage'!J$26<=30,1,2)) -> 11 | R28: 7.659667177 | S28: 66.86820379 | T28: =IF($Q28=0," ",IF(S28>99.99,InterpolateXY(O28,P28,'South East Qld Peaking Factors'!$D$7:$Q$7,'South East Qld Peaking Factors'!$C$8:$C$22,'South East Qld Peaking Factors'!$D$8:$Q$22),IF(S28>99,(InterpolateXY(O28,P28,'South East Qld Peaking Factors'!$D$7:$Q$7,'South East Qld Peaking Factors'!$C$8:$C$22,'South East Qld Peaking Factors'!$D$8:$Q$22)- InterpolateXY(O28,P28,'South East Qld Peaking Factors'!$D$23:$Q$23,'South East Qld Peaking Factors'!$C$24:$C$38,'South East Qld Peaking Factors'!$D$24:$Q$38))*(S28-99)+ InterpolateXY(O28,P28,'South East Qld Peaking Factors'!$D$23:$Q$23,'South East Qld Peaking Factors'!$C$24:$C$38,'South East Qld Peaking Factors'!$D$24:$Q$38),IF(S28>98,(InterpolateXY(O28,P28,'South East Qld Peaking Factors'!$D$23:$Q$23,'South East Qld Peaking Factors'!$C$24:$C$38,'South East Qld Peaking Factors'!$D$24:$Q$38)-InterpolateXY(O28,P28,'South East Qld Peaking Factors'!$D$39:$Q$39,'South East Qld Peaking Factors'!$C$40:$C$54,'South East Qld Peaking Factors'!$D$40:$Q$54))*(S28-98)+ InterpolateXY(O28,P28,'South East Qld Peaking Factors'!$D$39:$Q$39,'South East Qld Peaking Factors'!$C$40:$C$54,'South East Qld Peaking Factors'!$D$40:$Q$54),IF(S28>95,(InterpolateXY(O28,P28,'South East Qld Peaking Factors'!$D$39:$Q$39,'South East Qld Peaking Factors'!$C$40:$C$54,'South East Qld Peaking Factors'!$D$40:$Q$54)-InterpolateXY(O28,P28,'South East Qld Peaking Factors'!$D$55:$Q$55,'South East Qld Peaking Factors'!$C$56:$C$70,'South East Qld Peaking Factors'!$D$56:$Q$70))*(S28-95)/3+InterpolateXY(O28,P28,'South East Qld Peaking Factors'!$D$55:$Q$55,'South East Qld Peaking Factors'!$C$56:$C$70,'South East Qld Peaking Factors'!$D$56:$Q$70),IF(S28>90,(InterpolateXY(O28,P28,'South East Qld Peaking Factors'!$D$55:$Q$55,'South East Qld Peaking Factors'!$C$56:$C$70,'South East Qld Peaking Factors'!$D$56:$Q$70)-InterpolateXY(O28,P28,'South East Qld Peaking Factors'!$D$71:$Q$71,'South East Qld Peaking Factors'!$C$72:$C$86,'South East Qld Peaking Factors'!$D$72:$Q$86))*(S28-90)/5+InterpolateXY(O28,P28,'South East Qld Peaking Factors'!$D$71:$Q$71,'South East Qld Peaking Factors'!$C$72:$C$86,'South East Qld Peaking Factors'!$D$72:$Q$86),IF(S28>80,(InterpolateXY(O28,P28,'South East Qld Peaking Factors'!$D$71:$Q$71,'South East Qld Peaking Factors'!$C$72:$C$86,'South East Qld Peaking Factors'!$D$72:$Q$86)-InterpolateXY(O28,P28,'South East Qld Peaking Factors'!$D$87:$Q$87,'South East Qld Peaking Factors'!$C$88:$C$102,'South East Qld Peaking Factors'!$D$88:$Q$102))*(S28-80)/10+InterpolateXY(O28,P28,'South East Qld Peaking Factors'!$D$87:$Q$87,'South East Qld Peaking Factors'!$C$88:$C$102,'South East Qld Peaking Factors'!$D$88:$Q$102),IF(S28>70,(InterpolateXY(O28,P28,'South East Qld Peaking Factors'!$D$87:$Q$87,'South East Qld Peaking Factors'!$C$88:$C$102,'South East Qld Peaking Factors'!$D$88:$Q$102)-InterpolateXY(O28,P28,'South East Qld Peaking Factors'!$D$103:$Q$103,'South East Qld Peaking Factors'!$C$104:$C$118,'South East Qld Peaking Factors'!$D$104:$Q$118))*(S28-70)/10+InterpolateXY(O28,P28,'South East Qld Peaking Factors'!$D$103:$Q$103,'South East Qld Peaking Factors'!$C$104:$C$118,'South East Qld Peaking Factors'!$D$104:$Q$118),IF(S28>60,(InterpolateXY(O28,P28,'South East Qld Peaking Factors'!$D$103:$Q$103,'South East Qld Peaking Factors'!$C$104:$C$118,'South East Qld Peaking Factors'!$D$104:$Q$118)-InterpolateXY(O28,P28,'South East Qld Peaking Factors'!$D$119:$Q$119,'South East Qld Peaking Factors'!$C$120:$C$134,'South East Qld Peaking Factors'!$D$120:$Q$134))*(S28-60)/10+InterpolateXY(O28,P28,'South East Qld Peaking Factors'!$D$119:$Q$119,'South East Qld Peaking Factors'!$C$120:$C$134,'South East Qld Peaking Factors'!$D$120:$Q$134),IF(S28>50,(InterpolateXY(O28,P28,'South East Qld Peaking Factors'!$D$119:$Q$119,'South East Qld Peaking Factors'!$C$120:$C$134,'South East Qld Peaking Factors'!$D$120:$Q$134)-1)*(S28-50)/10+1,1)))))))))) -> 1.138253623 | U28: =IF($Q28=0," ",IF(S28>99.99,InterpolateXY(O28,P28,'South East Qld Peaking Factors'!$S$7:$AF$7,'South East Qld Peaking Factors'!$R$8:$R$22,'South East Qld Peaking Factors'!$S$8:$AF$22),IF(S28>99,(InterpolateXY(O28,P28,'South East Qld Peaking Factors'!$S$7:$AF$7,'South East Qld Peaking Factors'!$R$8:$R$22,'South East Qld Peaking Factors'!$S$8:$AF$22)- InterpolateXY(O28,P28,'South East Qld Peaking Factors'!$S$23:$AF$23,'South East Qld Peaking Factors'!$R$24:$R$38,'South East Qld Peaking Factors'!$S$24:$AF$38))*(S28-99)+ InterpolateXY(O28,P28,'South East Qld Peaking Factors'!$S$23:$AF$23,'South East Qld Peaking Factors'!$R$24:$R$38,'South East Qld Peaking Factors'!$S$24:$AF$38),IF(S28>98,(InterpolateXY(O28,P28,'South East Qld Peaking Factors'!$S$23:$AF$23,'South East Qld Peaking Factors'!$R$24:$R$38,'South East Qld Peaking Factors'!$S$24:$AF$38)-InterpolateXY(O28,P28,'South East Qld Peaking Factors'!$S$39:$AF$39,'South East Qld Peaking Factors'!$R$40:$R$54,'South East Qld Peaking Factors'!$S$40:$AF$54))*(S28-98)+ InterpolateXY(O28,P28,'South East Qld Peaking Factors'!$S$39:$AF$39,'South East Qld Peaking Factors'!$R$40:$R$54,'South East Qld Peaking Factors'!$S$40:$AF$54),IF(S28>95,(InterpolateXY(O28,P28,'South East Qld Peaking Factors'!$S$39:$AF$39,'South East Qld Peaking Factors'!$R$40:$R$54,'South East Qld Peaking Factors'!$S$40:$AF$54)-InterpolateXY(O28,P28,'South East Qld Peaking Factors'!$S$55:$AF$55,'South East Qld Peaking Factors'!$R$56:$R$70,'South East Qld Peaking Factors'!$S$56:$AF$70))*(S28-95)/3+InterpolateXY(O28,P28,'South East Qld Peaking Factors'!$S$55:$AF$55,'South East Qld Peaking Factors'!$R$56:$R$70,'South East Qld Peaking Factors'!$S$56:$AF$70),IF(S28>90,(InterpolateXY(O28,P28,'South East Qld Peaking Factors'!$S$55:$AF$55,'South East Qld Peaking Factors'!$R$56:$R$70,'South East Qld Peaking Factors'!$S$56:$AF$70)-InterpolateXY(O28,P28,'South East Qld Peaking Factors'!$S$71:$AF$71,'South East Qld Peaking Factors'!$R$72:$R$86,'South East Qld Peaking Factors'!$S$72:$AF$86))*(S28-90)/5+InterpolateXY(O28,P28,'South East Qld Peaking Factors'!$S$71:$AF$71,'South East Qld Peaking Factors'!$R$72:$R$86,'South East Qld Peaking Factors'!$S$72:$AF$86),IF(S28>80,(InterpolateXY(O28,P28,'South East Qld Peaking Factors'!$S$71:$AF$71,'South East Qld Peaking Factors'!$R$72:$R$86,'South East Qld Peaking Factors'!$S$72:$AF$86)-InterpolateXY(O28,P28,'South East Qld Peaking Factors'!$S$87:$AF$87,'South East Qld Peaking Factors'!$R$88:$R$102,'South East Qld Peaking Factors'!$S$88:$AF$102))*(S28-80)/10+InterpolateXY(O28,P28,'South East Qld Peaking Factors'!$S$87:$AF$87,'South East Qld Peaking Factors'!$R$88:$R$102,'South East Qld Peaking Factors'!$S$88:$AF$102),IF(S28>70,(InterpolateXY(O28,P28,'South East Qld Peaking Factors'!$S$87:$AF$87,'South East Qld Peaking Factors'!$R$88:$R$102,'South East Qld Peaking Factors'!$S$88:$AF$102)-InterpolateXY(O28,P28,'South East Qld Peaking Factors'!$S$103:$AF$103,'South East Qld Peaking Factors'!$R$104:$R$118,'South East Qld Peaking Factors'!$S$104:$AF$118))*(S28-70)/10+InterpolateXY(O28,P28,'South East Qld Peaking Factors'!$S$103:$AF$103,'South East Qld Peaking Factors'!$R$104:$R$118,'South East Qld Peaking Factors'!$S$104:$AF$118),IF(S28>60,(InterpolateXY(O28,P28,'South East Qld Peaking Factors'!$S$103:$AF$103,'South East Qld Peaking Factors'!$R$104:$R$118,'South East Qld Peaking Factors'!$S$104:$AF$118)-InterpolateXY(O28,P28,'South East Qld Peaking Factors'!$S$119:$AF$119,'South East Qld Peaking Factors'!$R$120:$R$134,'South East Qld Peaking Factors'!$S$120:$AF$134))*(S28-60)/10+InterpolateXY(O28,P28,'South East Qld Peaking Factors'!$S$119:$AF$119,'South East Qld Peaking Factors'!$R$120:$R$134,'South East Qld Peaking Factors'!$S$120:$AF$134),IF(S28>50,(InterpolateXY(O28,P28,'South East Qld Peaking Factors'!$S$119:$AF$119,'South East Qld Peaking Factors'!$R$120:$R$134,'South East Qld Peaking Factors'!$S$120:$AF$134)-1)*(S28-50)/10+1,1)))))))))) -> 1.11280128 | V28: -0.006649030869 | W28: ='Reservoir Storage'!J$34 -> 15 | X28: 2.996054046e-22 | Y28: ='Reservoir Storage'!J$35 -> 1.571997485 | Z28: 3.492810624
O29: ='Reservoir Storage'!J$23 -> 9.542 | P29: ='Reservoir Storage'!J$26 -> 11.59033333 | Q29: =Q28+IF('Reservoir Storage'!J$26<=15,0.5,IF('Reservoir Storage'!J$26<=30,1,2)) -> 11.5 | R29: 7.852732186 | S29: 65.1596237 | T29: =IF($Q29=0," ",IF(S29>99.99,InterpolateXY(O29,P29,'South East Qld Peaking Factors'!$D$7:$Q$7,'South East Qld Peaking Factors'!$C$8:$C$22,'South East Qld Peaking Factors'!$D$8:$Q$22),IF(S29>99,(InterpolateXY(O29,P29,'South East Qld Peaking Factors'!$D$7:$Q$7,'South East Qld Peaking Factors'!$C$8:$C$22,'South East Qld Peaking Factors'!$D$8:$Q$22)- InterpolateXY(O29,P29,'South East Qld Peaking Factors'!$D$23:$Q$23,'South East Qld Peaking Factors'!$C$24:$C$38,'South East Qld Peaking Factors'!$D$24:$Q$38))*(S29-99)+ InterpolateXY(O29,P29,'South East Qld Peaking Factors'!$D$23:$Q$23,'South East Qld Peaking Factors'!$C$24:$C$38,'South East Qld Peaking Factors'!$D$24:$Q$38),IF(S29>98,(InterpolateXY(O29,P29,'South East Qld Peaking Factors'!$D$23:$Q$23,'South East Qld Peaking Factors'!$C$24:$C$38,'South East Qld Peaking Factors'!$D$24:$Q$38)-InterpolateXY(O29,P29,'South East Qld Peaking Factors'!$D$39:$Q$39,'South East Qld Peaking Factors'!$C$40:$C$54,'South East Qld Peaking Factors'!$D$40:$Q$54))*(S29-98)+ InterpolateXY(O29,P29,'South East Qld Peaking Factors'!$D$39:$Q$39,'South East Qld Peaking Factors'!$C$40:$C$54,'South East Qld Peaking Factors'!$D$40:$Q$54),IF(S29>95,(InterpolateXY(O29,P29,'South East Qld Peaking Factors'!$D$39:$Q$39,'South East Qld Peaking Factors'!$C$40:$C$54,'South East Qld Peaking Factors'!$D$40:$Q$54)-InterpolateXY(O29,P29,'South East Qld Peaking Factors'!$D$55:$Q$55,'South East Qld Peaking Factors'!$C$56:$C$70,'South East Qld Peaking Factors'!$D$56:$Q$70))*(S29-95)/3+InterpolateXY(O29,P29,'South East Qld Peaking Factors'!$D$55:$Q$55,'South East Qld Peaking Factors'!$C$56:$C$70,'South East Qld Peaking Factors'!$D$56:$Q$70),IF(S29>90,(InterpolateXY(O29,P29,'South East Qld Peaking Factors'!$D$55:$Q$55,'South East Qld Peaking Factors'!$C$56:$C$70,'South East Qld Peaking Factors'!$D$56:$Q$70)-InterpolateXY(O29,P29,'South East Qld Peaking Factors'!$D$71:$Q$71,'South East Qld Peaking Factors'!$C$72:$C$86,'South East Qld Peaking Factors'!$D$72:$Q$86))*(S29-90)/5+InterpolateXY(O29,P29,'South East Qld Peaking Factors'!$D$71:$Q$71,'South East Qld Peaking Factors'!$C$72:$C$86,'South East Qld Peaking Factors'!$D$72:$Q$86),IF(S29>80,(InterpolateXY(O29,P29,'South East Qld Peaking Factors'!$D$71:$Q$71,'South East Qld Peaking Factors'!$C$72:$C$86,'South East Qld Peaking Factors'!$D$72:$Q$86)-InterpolateXY(O29,P29,'South East Qld Peaking Factors'!$D$87:$Q$87,'South East Qld Peaking Factors'!$C$88:$C$102,'South East Qld Peaking Factors'!$D$88:$Q$102))*(S29-80)/10+InterpolateXY(O29,P29,'South East Qld Peaking Factors'!$D$87:$Q$87,'South East Qld Peaking Factors'!$C$88:$C$102,'South East Qld Peaking Factors'!$D$88:$Q$102),IF(S29>70,(InterpolateXY(O29,P29,'South East Qld Peaking Factors'!$D$87:$Q$87,'South East Qld Peaking Factors'!$C$88:$C$102,'South East Qld Peaking Factors'!$D$88:$Q$102)-InterpolateXY(O29,P29,'South East Qld Peaking Factors'!$D$103:$Q$103,'South East Qld Peaking Factors'!$C$104:$C$118,'South East Qld Peaking Factors'!$D$104:$Q$118))*(S29-70)/10+InterpolateXY(O29,P29,'South East Qld Peaking Factors'!$D$103:$Q$103,'South East Qld Peaking Factors'!$C$104:$C$118,'South East Qld Peaking Factors'!$D$104:$Q$118),IF(S29>60,(InterpolateXY(O29,P29,'South East Qld Peaking Factors'!$D$103:$Q$103,'South East Qld Peaking Factors'!$C$104:$C$118,'South East Qld Peaking Factors'!$D$104:$Q$118)-InterpolateXY(O29,P29,'South East Qld Peaking Factors'!$D$119:$Q$119,'South East Qld Peaking Factors'!$C$120:$C$134,'South East Qld Peaking Factors'!$D$120:$Q$134))*(S29-60)/10+InterpolateXY(O29,P29,'South East Qld Peaking Factors'!$D$119:$Q$119,'South East Qld Peaking Factors'!$C$120:$C$134,'South East Qld Peaking Factors'!$D$120:$Q$134),IF(S29>50,(InterpolateXY(O29,P29,'South East Qld Peaking Factors'!$D$119:$Q$119,'South East Qld Peaking Factors'!$C$120:$C$134,'South East Qld Peaking Factors'!$D$120:$Q$134)-1)*(S29-50)/10+1,1)))))))))) -> 1.127543364 | U29: =IF($Q29=0," ",IF(S29>99.99,InterpolateXY(O29,P29,'South East Qld Peaking Factors'!$S$7:$AF$7,'South East Qld Peaking Factors'!$R$8:$R$22,'South East Qld Peaking Factors'!$S$8:$AF$22),IF(S29>99,(InterpolateXY(O29,P29,'South East Qld Peaking Factors'!$S$7:$AF$7,'South East Qld Peaking Factors'!$R$8:$R$22,'South East Qld Peaking Factors'!$S$8:$AF$22)- InterpolateXY(O29,P29,'South East Qld Peaking Factors'!$S$23:$AF$23,'South East Qld Peaking Factors'!$R$24:$R$38,'South East Qld Peaking Factors'!$S$24:$AF$38))*(S29-99)+ InterpolateXY(O29,P29,'South East Qld Peaking Factors'!$S$23:$AF$23,'South East Qld Peaking Factors'!$R$24:$R$38,'South East Qld Peaking Factors'!$S$24:$AF$38),IF(S29>98,(InterpolateXY(O29,P29,'South East Qld Peaking Factors'!$S$23:$AF$23,'South East Qld Peaking Factors'!$R$24:$R$38,'South East Qld Peaking Factors'!$S$24:$AF$38)-InterpolateXY(O29,P29,'South East Qld Peaking Factors'!$S$39:$AF$39,'South East Qld Peaking Factors'!$R$40:$R$54,'South East Qld Peaking Factors'!$S$40:$AF$54))*(S29-98)+ InterpolateXY(O29,P29,'South East Qld Peaking Factors'!$S$39:$AF$39,'South East Qld Peaking Factors'!$R$40:$R$54,'South East Qld Peaking Factors'!$S$40:$AF$54),IF(S29>95,(InterpolateXY(O29,P29,'South East Qld Peaking Factors'!$S$39:$AF$39,'South East Qld Peaking Factors'!$R$40:$R$54,'South East Qld Peaking Factors'!$S$40:$AF$54)-InterpolateXY(O29,P29,'South East Qld Peaking Factors'!$S$55:$AF$55,'South East Qld Peaking Factors'!$R$56:$R$70,'South East Qld Peaking Factors'!$S$56:$AF$70))*(S29-95)/3+InterpolateXY(O29,P29,'South East Qld Peaking Factors'!$S$55:$AF$55,'South East Qld Peaking Factors'!$R$56:$R$70,'South East Qld Peaking Factors'!$S$56:$AF$70),IF(S29>90,(InterpolateXY(O29,P29,'South East Qld Peaking Factors'!$S$55:$AF$55,'South East Qld Peaking Factors'!$R$56:$R$70,'South East Qld Peaking Factors'!$S$56:$AF$70)-InterpolateXY(O29,P29,'South East Qld Peaking Factors'!$S$71:$AF$71,'South East Qld Peaking Factors'!$R$72:$R$86,'South East Qld Peaking Factors'!$S$72:$AF$86))*(S29-90)/5+InterpolateXY(O29,P29,'South East Qld Peaking Factors'!$S$71:$AF$71,'South East Qld Peaking Factors'!$R$72:$R$86,'South East Qld Peaking Factors'!$S$72:$AF$86),IF(S29>80,(InterpolateXY(O29,P29,'South East Qld Peaking Factors'!$S$71:$AF$71,'South East Qld Peaking Factors'!$R$72:$R$86,'South East Qld Peaking Factors'!$S$72:$AF$86)-InterpolateXY(O29,P29,'South East Qld Peaking Factors'!$S$87:$AF$87,'South East Qld Peaking Factors'!$R$88:$R$102,'South East Qld Peaking Factors'!$S$88:$AF$102))*(S29-80)/10+InterpolateXY(O29,P29,'South East Qld Peaking Factors'!$S$87:$AF$87,'South East Qld Peaking Factors'!$R$88:$R$102,'South East Qld Peaking Factors'!$S$88:$AF$102),IF(S29>70,(InterpolateXY(O29,P29,'South East Qld Peaking Factors'!$S$87:$AF$87,'South East Qld Peaking Factors'!$R$88:$R$102,'South East Qld Peaking Factors'!$S$88:$AF$102)-InterpolateXY(O29,P29,'South East Qld Peaking Factors'!$S$103:$AF$103,'South East Qld Peaking Factors'!$R$104:$R$118,'South East Qld Peaking Factors'!$S$104:$AF$118))*(S29-70)/10+InterpolateXY(O29,P29,'South East Qld Peaking Factors'!$S$103:$AF$103,'South East Qld Peaking Factors'!$R$104:$R$118,'South East Qld Peaking Factors'!$S$104:$AF$118),IF(S29>60,(InterpolateXY(O29,P29,'South East Qld Peaking Factors'!$S$103:$AF$103,'South East Qld Peaking Factors'!$R$104:$R$118,'South East Qld Peaking Factors'!$S$104:$AF$118)-InterpolateXY(O29,P29,'South East Qld Peaking Factors'!$S$119:$AF$119,'South East Qld Peaking Factors'!$R$120:$R$134,'South East Qld Peaking Factors'!$S$120:$AF$134))*(S29-60)/10+InterpolateXY(O29,P29,'South East Qld Peaking Factors'!$S$119:$AF$119,'South East Qld Peaking Factors'!$R$120:$R$134,'South East Qld Peaking Factors'!$S$120:$AF$134),IF(S29>50,(InterpolateXY(O29,P29,'South East Qld Peaking Factors'!$S$119:$AF$119,'South East Qld Peaking Factors'!$R$120:$R$134,'South East Qld Peaking Factors'!$S$120:$AF$134)-1)*(S29-50)/10+1,1)))))))))) -> 1.106367689 | V29: -0.00557419995 | W29: ='Reservoir Storage'!J$34 -> 15 | X29: 4.720976732e-27 | Y29: ='Reservoir Storage'!J$35 -> 1.571997485 | Z29: 3.542311577
O30: ='Reservoir Storage'!J$23 -> 9.542 | P30: ='Reservoir Storage'!J$26 -> 11.59033333 | Q30: =Q29+IF('Reservoir Storage'!J$26<=15,0.5,IF('Reservoir Storage'!J$26<=30,1,2)) -> 12 | R30: 8.042137487 | S30: 63.52309492 | T30: =IF($Q30=0," ",IF(S30>99.99,InterpolateXY(O30,P30,'South East Qld Peaking Factors'!$D$7:$Q$7,'South East Qld Peaking Factors'!$C$8:$C$22,'South East Qld Peaking Factors'!$D$8:$Q$22),IF(S30>99,(InterpolateXY(O30,P30,'South East Qld Peaking Factors'!$D$7:$Q$7,'South East Qld Peaking Factors'!$C$8:$C$22,'South East Qld Peaking Factors'!$D$8:$Q$22)- InterpolateXY(O30,P30,'South East Qld Peaking Factors'!$D$23:$Q$23,'South East Qld Peaking Factors'!$C$24:$C$38,'South East Qld Peaking Factors'!$D$24:$Q$38))*(S30-99)+ InterpolateXY(O30,P30,'South East Qld Peaking Factors'!$D$23:$Q$23,'South East Qld Peaking Factors'!$C$24:$C$38,'South East Qld Peaking Factors'!$D$24:$Q$38),IF(S30>98,(InterpolateXY(O30,P30,'South East Qld Peaking Factors'!$D$23:$Q$23,'South East Qld Peaking Factors'!$C$24:$C$38,'South East Qld Peaking Factors'!$D$24:$Q$38)-InterpolateXY(O30,P30,'South East Qld Peaking Factors'!$D$39:$Q$39,'South East Qld Peaking Factors'!$C$40:$C$54,'South East Qld Peaking Factors'!$D$40:$Q$54))*(S30-98)+ InterpolateXY(O30,P30,'South East Qld Peaking Factors'!$D$39:$Q$39,'South East Qld Peaking Factors'!$C$40:$C$54,'South East Qld Peaking Factors'!$D$40:$Q$54),IF(S30>95,(InterpolateXY(O30,P30,'South East Qld Peaking Factors'!$D$39:$Q$39,'South East Qld Peaking Factors'!$C$40:$C$54,'South East Qld Peaking Factors'!$D$40:$Q$54)-InterpolateXY(O30,P30,'South East Qld Peaking Factors'!$D$55:$Q$55,'South East Qld Peaking Factors'!$C$56:$C$70,'South East Qld Peaking Factors'!$D$56:$Q$70))*(S30-95)/3+InterpolateXY(O30,P30,'South East Qld Peaking Factors'!$D$55:$Q$55,'South East Qld Peaking Factors'!$C$56:$C$70,'South East Qld Peaking Factors'!$D$56:$Q$70),IF(S30>90,(InterpolateXY(O30,P30,'South East Qld Peaking Factors'!$D$55:$Q$55,'South East Qld Peaking Factors'!$C$56:$C$70,'South East Qld Peaking Factors'!$D$56:$Q$70)-InterpolateXY(O30,P30,'South East Qld Peaking Factors'!$D$71:$Q$71,'South East Qld Peaking Factors'!$C$72:$C$86,'South East Qld Peaking Factors'!$D$72:$Q$86))*(S30-90)/5+InterpolateXY(O30,P30,'South East Qld Peaking Factors'!$D$71:$Q$71,'South East Qld Peaking Factors'!$C$72:$C$86,'South East Qld Peaking Factors'!$D$72:$Q$86),IF(S30>80,(InterpolateXY(O30,P30,'South East Qld Peaking Factors'!$D$71:$Q$71,'South East Qld Peaking Factors'!$C$72:$C$86,'South East Qld Peaking Factors'!$D$72:$Q$86)-InterpolateXY(O30,P30,'South East Qld Peaking Factors'!$D$87:$Q$87,'South East Qld Peaking Factors'!$C$88:$C$102,'South East Qld Peaking Factors'!$D$88:$Q$102))*(S30-80)/10+InterpolateXY(O30,P30,'South East Qld Peaking Factors'!$D$87:$Q$87,'South East Qld Peaking Factors'!$C$88:$C$102,'South East Qld Peaking Factors'!$D$88:$Q$102),IF(S30>70,(InterpolateXY(O30,P30,'South East Qld Peaking Factors'!$D$87:$Q$87,'South East Qld Peaking Factors'!$C$88:$C$102,'South East Qld Peaking Factors'!$D$88:$Q$102)-InterpolateXY(O30,P30,'South East Qld Peaking Factors'!$D$103:$Q$103,'South East Qld Peaking Factors'!$C$104:$C$118,'South East Qld Peaking Factors'!$D$104:$Q$118))*(S30-70)/10+InterpolateXY(O30,P30,'South East Qld Peaking Factors'!$D$103:$Q$103,'South East Qld Peaking Factors'!$C$104:$C$118,'South East Qld Peaking Factors'!$D$104:$Q$118),IF(S30>60,(InterpolateXY(O30,P30,'South East Qld Peaking Factors'!$D$103:$Q$103,'South East Qld Peaking Factors'!$C$104:$C$118,'South East Qld Peaking Factors'!$D$104:$Q$118)-InterpolateXY(O30,P30,'South East Qld Peaking Factors'!$D$119:$Q$119,'South East Qld Peaking Factors'!$C$120:$C$134,'South East Qld Peaking Factors'!$D$120:$Q$134))*(S30-60)/10+InterpolateXY(O30,P30,'South East Qld Peaking Factors'!$D$119:$Q$119,'South East Qld Peaking Factors'!$C$120:$C$134,'South East Qld Peaking Factors'!$D$120:$Q$134),IF(S30>50,(InterpolateXY(O30,P30,'South East Qld Peaking Factors'!$D$119:$Q$119,'South East Qld Peaking Factors'!$C$120:$C$134,'South East Qld Peaking Factors'!$D$120:$Q$134)-1)*(S30-50)/10+1,1)))))))))) -> 1.117284759 | U30: =IF($Q30=0," ",IF(S30>99.99,InterpolateXY(O30,P30,'South East Qld Peaking Factors'!$S$7:$AF$7,'South East Qld Peaking Factors'!$R$8:$R$22,'South East Qld Peaking Factors'!$S$8:$AF$22),IF(S30>99,(InterpolateXY(O30,P30,'South East Qld Peaking Factors'!$S$7:$AF$7,'South East Qld Peaking Factors'!$R$8:$R$22,'South East Qld Peaking Factors'!$S$8:$AF$22)- InterpolateXY(O30,P30,'South East Qld Peaking Factors'!$S$23:$AF$23,'South East Qld Peaking Factors'!$R$24:$R$38,'South East Qld Peaking Factors'!$S$24:$AF$38))*(S30-99)+ InterpolateXY(O30,P30,'South East Qld Peaking Factors'!$S$23:$AF$23,'South East Qld Peaking Factors'!$R$24:$R$38,'South East Qld Peaking Factors'!$S$24:$AF$38),IF(S30>98,(InterpolateXY(O30,P30,'South East Qld Peaking Factors'!$S$23:$AF$23,'South East Qld Peaking Factors'!$R$24:$R$38,'South East Qld Peaking Factors'!$S$24:$AF$38)-InterpolateXY(O30,P30,'South East Qld Peaking Factors'!$S$39:$AF$39,'South East Qld Peaking Factors'!$R$40:$R$54,'South East Qld Peaking Factors'!$S$40:$AF$54))*(S30-98)+ InterpolateXY(O30,P30,'South East Qld Peaking Factors'!$S$39:$AF$39,'South East Qld Peaking Factors'!$R$40:$R$54,'South East Qld Peaking Factors'!$S$40:$AF$54),IF(S30>95,(InterpolateXY(O30,P30,'South East Qld Peaking Factors'!$S$39:$AF$39,'South East Qld Peaking Factors'!$R$40:$R$54,'South East Qld Peaking Factors'!$S$40:$AF$54)-InterpolateXY(O30,P30,'South East Qld Peaking Factors'!$S$55:$AF$55,'South East Qld Peaking Factors'!$R$56:$R$70,'South East Qld Peaking Factors'!$S$56:$AF$70))*(S30-95)/3+InterpolateXY(O30,P30,'South East Qld Peaking Factors'!$S$55:$AF$55,'South East Qld Peaking Factors'!$R$56:$R$70,'South East Qld Peaking Factors'!$S$56:$AF$70),IF(S30>90,(InterpolateXY(O30,P30,'South East Qld Peaking Factors'!$S$55:$AF$55,'South East Qld Peaking Factors'!$R$56:$R$70,'South East Qld Peaking Factors'!$S$56:$AF$70)-InterpolateXY(O30,P30,'South East Qld Peaking Factors'!$S$71:$AF$71,'South East Qld Peaking Factors'!$R$72:$R$86,'South East Qld Peaking Factors'!$S$72:$AF$86))*(S30-90)/5+InterpolateXY(O30,P30,'South East Qld Peaking Factors'!$S$71:$AF$71,'South East Qld Peaking Factors'!$R$72:$R$86,'South East Qld Peaking Factors'!$S$72:$AF$86),IF(S30>80,(InterpolateXY(O30,P30,'South East Qld Peaking Factors'!$S$71:$AF$71,'South East Qld Peaking Factors'!$R$72:$R$86,'South East Qld Peaking Factors'!$S$72:$AF$86)-InterpolateXY(O30,P30,'South East Qld Peaking Factors'!$S$87:$AF$87,'South East Qld Peaking Factors'!$R$88:$R$102,'South East Qld Peaking Factors'!$S$88:$AF$102))*(S30-80)/10+InterpolateXY(O30,P30,'South East Qld Peaking Factors'!$S$87:$AF$87,'South East Qld Peaking Factors'!$R$88:$R$102,'South East Qld Peaking Factors'!$S$88:$AF$102),IF(S30>70,(InterpolateXY(O30,P30,'South East Qld Peaking Factors'!$S$87:$AF$87,'South East Qld Peaking Factors'!$R$88:$R$102,'South East Qld Peaking Factors'!$S$88:$AF$102)-InterpolateXY(O30,P30,'South East Qld Peaking Factors'!$S$103:$AF$103,'South East Qld Peaking Factors'!$R$104:$R$118,'South East Qld Peaking Factors'!$S$104:$AF$118))*(S30-70)/10+InterpolateXY(O30,P30,'South East Qld Peaking Factors'!$S$103:$AF$103,'South East Qld Peaking Factors'!$R$104:$R$118,'South East Qld Peaking Factors'!$S$104:$AF$118),IF(S30>60,(InterpolateXY(O30,P30,'South East Qld Peaking Factors'!$S$103:$AF$103,'South East Qld Peaking Factors'!$R$104:$R$118,'South East Qld Peaking Factors'!$S$104:$AF$118)-InterpolateXY(O30,P30,'South East Qld Peaking Factors'!$S$119:$AF$119,'South East Qld Peaking Factors'!$R$120:$R$134,'South East Qld Peaking Factors'!$S$120:$AF$134))*(S30-60)/10+InterpolateXY(O30,P30,'South East Qld Peaking Factors'!$S$119:$AF$119,'South East Qld Peaking Factors'!$R$120:$R$134,'South East Qld Peaking Factors'!$S$120:$AF$134),IF(S30>50,(InterpolateXY(O30,P30,'South East Qld Peaking Factors'!$S$119:$AF$119,'South East Qld Peaking Factors'!$R$120:$R$134,'South East Qld Peaking Factors'!$S$120:$AF$134)-1)*(S30-50)/10+1,1)))))))))) -> 1.100205405 | V30: -0.004529147764 | W30: ='Reservoir Storage'!J$34 -> 15 | X30: 6.666651381e-34 | Y30: ='Reservoir Storage'!J$35 -> 1.571997485 | Z30: 3.590162926
O31: ='Reservoir Storage'!J$23 -> 9.542 | P31: ='Reservoir Storage'!J$26 -> 11.59033333 | Q31: =Q30+IF('Reservoir Storage'!J$26<=15,0.5,IF('Reservoir Storage'!J$26<=30,1,2)) -> 12.5 | R31: 8.22810079 | S31: 61.95576565 | T31: =IF($Q31=0," ",IF(S31>99.99,InterpolateXY(O31,P31,'South East Qld Peaking Factors'!$D$7:$Q$7,'South East Qld Peaking Factors'!$C$8:$C$22,'South East Qld Peaking Factors'!$D$8:$Q$22),IF(S31>99,(InterpolateXY(O31,P31,'South East Qld Peaking Factors'!$D$7:$Q$7,'South East Qld Peaking Factors'!$C$8:$C$22,'South East Qld Peaking Factors'!$D$8:$Q$22)- InterpolateXY(O31,P31,'South East Qld Peaking Factors'!$D$23:$Q$23,'South East Qld Peaking Factors'!$C$24:$C$38,'South East Qld Peaking Factors'!$D$24:$Q$38))*(S31-99)+ InterpolateXY(O31,P31,'South East Qld Peaking Factors'!$D$23:$Q$23,'South East Qld Peaking Factors'!$C$24:$C$38,'South East Qld Peaking Factors'!$D$24:$Q$38),IF(S31>98,(InterpolateXY(O31,P31,'South East Qld Peaking Factors'!$D$23:$Q$23,'South East Qld Peaking Factors'!$C$24:$C$38,'South East Qld Peaking Factors'!$D$24:$Q$38)-InterpolateXY(O31,P31,'South East Qld Peaking Factors'!$D$39:$Q$39,'South East Qld Peaking Factors'!$C$40:$C$54,'South East Qld Peaking Factors'!$D$40:$Q$54))*(S31-98)+ InterpolateXY(O31,P31,'South East Qld Peaking Factors'!$D$39:$Q$39,'South East Qld Peaking Factors'!$C$40:$C$54,'South East Qld Peaking Factors'!$D$40:$Q$54),IF(S31>95,(InterpolateXY(O31,P31,'South East Qld Peaking Factors'!$D$39:$Q$39,'South East Qld Peaking Factors'!$C$40:$C$54,'South East Qld Peaking Factors'!$D$40:$Q$54)-InterpolateXY(O31,P31,'South East Qld Peaking Factors'!$D$55:$Q$55,'South East Qld Peaking Factors'!$C$56:$C$70,'South East Qld Peaking Factors'!$D$56:$Q$70))*(S31-95)/3+InterpolateXY(O31,P31,'South East Qld Peaking Factors'!$D$55:$Q$55,'South East Qld Peaking Factors'!$C$56:$C$70,'South East Qld Peaking Factors'!$D$56:$Q$70),IF(S31>90,(InterpolateXY(O31,P31,'South East Qld Peaking Factors'!$D$55:$Q$55,'South East Qld Peaking Factors'!$C$56:$C$70,'South East Qld Peaking Factors'!$D$56:$Q$70)-InterpolateXY(O31,P31,'South East Qld Peaking Factors'!$D$71:$Q$71,'South East Qld Peaking Factors'!$C$72:$C$86,'South East Qld Peaking Factors'!$D$72:$Q$86))*(S31-90)/5+InterpolateXY(O31,P31,'South East Qld Peaking Factors'!$D$71:$Q$71,'South East Qld Peaking Factors'!$C$72:$C$86,'South East Qld Peaking Factors'!$D$72:$Q$86),IF(S31>80,(InterpolateXY(O31,P31,'South East Qld Peaking Factors'!$D$71:$Q$71,'South East Qld Peaking Factors'!$C$72:$C$86,'South East Qld Peaking Factors'!$D$72:$Q$86)-InterpolateXY(O31,P31,'South East Qld Peaking Factors'!$D$87:$Q$87,'South East Qld Peaking Factors'!$C$88:$C$102,'South East Qld Peaking Factors'!$D$88:$Q$102))*(S31-80)/10+InterpolateXY(O31,P31,'South East Qld Peaking Factors'!$D$87:$Q$87,'South East Qld Peaking Factors'!$C$88:$C$102,'South East Qld Peaking Factors'!$D$88:$Q$102),IF(S31>70,(InterpolateXY(O31,P31,'South East Qld Peaking Factors'!$D$87:$Q$87,'South East Qld Peaking Factors'!$C$88:$C$102,'South East Qld Peaking Factors'!$D$88:$Q$102)-InterpolateXY(O31,P31,'South East Qld Peaking Factors'!$D$103:$Q$103,'South East Qld Peaking Factors'!$C$104:$C$118,'South East Qld Peaking Factors'!$D$104:$Q$118))*(S31-70)/10+InterpolateXY(O31,P31,'South East Qld Peaking Factors'!$D$103:$Q$103,'South East Qld Peaking Factors'!$C$104:$C$118,'South East Qld Peaking Factors'!$D$104:$Q$118),IF(S31>60,(InterpolateXY(O31,P31,'South East Qld Peaking Factors'!$D$103:$Q$103,'South East Qld Peaking Factors'!$C$104:$C$118,'South East Qld Peaking Factors'!$D$104:$Q$118)-InterpolateXY(O31,P31,'South East Qld Peaking Factors'!$D$119:$Q$119,'South East Qld Peaking Factors'!$C$120:$C$134,'South East Qld Peaking Factors'!$D$120:$Q$134))*(S31-60)/10+InterpolateXY(O31,P31,'South East Qld Peaking Factors'!$D$119:$Q$119,'South East Qld Peaking Factors'!$C$120:$C$134,'South East Qld Peaking Factors'!$D$120:$Q$134),IF(S31>50,(InterpolateXY(O31,P31,'South East Qld Peaking Factors'!$D$119:$Q$119,'South East Qld Peaking Factors'!$C$120:$C$134,'South East Qld Peaking Factors'!$D$120:$Q$134)-1)*(S31-50)/10+1,1)))))))))) -> 1.107459933 | U31: =IF($Q31=0," ",IF(S31>99.99,InterpolateXY(O31,P31,'South East Qld Peaking Factors'!$S$7:$AF$7,'South East Qld Peaking Factors'!$R$8:$R$22,'South East Qld Peaking Factors'!$S$8:$AF$22),IF(S31>99,(InterpolateXY(O31,P31,'South East Qld Peaking Factors'!$S$7:$AF$7,'South East Qld Peaking Factors'!$R$8:$R$22,'South East Qld Peaking Factors'!$S$8:$AF$22)- InterpolateXY(O31,P31,'South East Qld Peaking Factors'!$S$23:$AF$23,'South East Qld Peaking Factors'!$R$24:$R$38,'South East Qld Peaking Factors'!$S$24:$AF$38))*(S31-99)+ InterpolateXY(O31,P31,'South East Qld Peaking Factors'!$S$23:$AF$23,'South East Qld Peaking Factors'!$R$24:$R$38,'South East Qld Peaking Factors'!$S$24:$AF$38),IF(S31>98,(InterpolateXY(O31,P31,'South East Qld Peaking Factors'!$S$23:$AF$23,'South East Qld Peaking Factors'!$R$24:$R$38,'South East Qld Peaking Factors'!$S$24:$AF$38)-InterpolateXY(O31,P31,'South East Qld Peaking Factors'!$S$39:$AF$39,'South East Qld Peaking Factors'!$R$40:$R$54,'South East Qld Peaking Factors'!$S$40:$AF$54))*(S31-98)+ InterpolateXY(O31,P31,'South East Qld Peaking Factors'!$S$39:$AF$39,'South East Qld Peaking Factors'!$R$40:$R$54,'South East Qld Peaking Factors'!$S$40:$AF$54),IF(S31>95,(InterpolateXY(O31,P31,'South East Qld Peaking Factors'!$S$39:$AF$39,'South East Qld Peaking Factors'!$R$40:$R$54,'South East Qld Peaking Factors'!$S$40:$AF$54)-InterpolateXY(O31,P31,'South East Qld Peaking Factors'!$S$55:$AF$55,'South East Qld Peaking Factors'!$R$56:$R$70,'South East Qld Peaking Factors'!$S$56:$AF$70))*(S31-95)/3+InterpolateXY(O31,P31,'South East Qld Peaking Factors'!$S$55:$AF$55,'South East Qld Peaking Factors'!$R$56:$R$70,'South East Qld Peaking Factors'!$S$56:$AF$70),IF(S31>90,(InterpolateXY(O31,P31,'South East Qld Peaking Factors'!$S$55:$AF$55,'South East Qld Peaking Factors'!$R$56:$R$70,'South East Qld Peaking Factors'!$S$56:$AF$70)-InterpolateXY(O31,P31,'South East Qld Peaking Factors'!$S$71:$AF$71,'South East Qld Peaking Factors'!$R$72:$R$86,'South East Qld Peaking Factors'!$S$72:$AF$86))*(S31-90)/5+InterpolateXY(O31,P31,'South East Qld Peaking Factors'!$S$71:$AF$71,'South East Qld Peaking Factors'!$R$72:$R$86,'South East Qld Peaking Factors'!$S$72:$AF$86),IF(S31>80,(InterpolateXY(O31,P31,'South East Qld Peaking Factors'!$S$71:$AF$71,'South East Qld Peaking Factors'!$R$72:$R$86,'South East Qld Peaking Factors'!$S$72:$AF$86)-InterpolateXY(O31,P31,'South East Qld Peaking Factors'!$S$87:$AF$87,'South East Qld Peaking Factors'!$R$88:$R$102,'South East Qld Peaking Factors'!$S$88:$AF$102))*(S31-80)/10+InterpolateXY(O31,P31,'South East Qld Peaking Factors'!$S$87:$AF$87,'South East Qld Peaking Factors'!$R$88:$R$102,'South East Qld Peaking Factors'!$S$88:$AF$102),IF(S31>70,(InterpolateXY(O31,P31,'South East Qld Peaking Factors'!$S$87:$AF$87,'South East Qld Peaking Factors'!$R$88:$R$102,'South East Qld Peaking Factors'!$S$88:$AF$102)-InterpolateXY(O31,P31,'South East Qld Peaking Factors'!$S$103:$AF$103,'South East Qld Peaking Factors'!$R$104:$R$118,'South East Qld Peaking Factors'!$S$104:$AF$118))*(S31-70)/10+InterpolateXY(O31,P31,'South East Qld Peaking Factors'!$S$103:$AF$103,'South East Qld Peaking Factors'!$R$104:$R$118,'South East Qld Peaking Factors'!$S$104:$AF$118),IF(S31>60,(InterpolateXY(O31,P31,'South East Qld Peaking Factors'!$S$103:$AF$103,'South East Qld Peaking Factors'!$R$104:$R$118,'South East Qld Peaking Factors'!$S$104:$AF$118)-InterpolateXY(O31,P31,'South East Qld Peaking Factors'!$S$119:$AF$119,'South East Qld Peaking Factors'!$R$120:$R$134,'South East Qld Peaking Factors'!$S$120:$AF$134))*(S31-60)/10+InterpolateXY(O31,P31,'South East Qld Peaking Factors'!$S$119:$AF$119,'South East Qld Peaking Factors'!$R$120:$R$134,'South East Qld Peaking Factors'!$S$120:$AF$134),IF(S31>50,(InterpolateXY(O31,P31,'South East Qld Peaking Factors'!$S$119:$AF$119,'South East Qld Peaking Factors'!$R$120:$R$134,'South East Qld Peaking Factors'!$S$120:$AF$134)-1)*(S31-50)/10+1,1)))))))))) -> 1.094303689 | V31: -0.003513699012 | W31: ='Reservoir Storage'!J$34 -> 15 | X31: 1.86399937e-44 | Y31: ='Reservoir Storage'!J$35 -> 1.571997485 | Z31: 3.636548262
O32: ='Reservoir Storage'!J$23 -> 9.542 | P32: ='Reservoir Storage'!J$26 -> 11.59033333 | Q32: =Q31+IF('Reservoir Storage'!J$26<=15,0.5,IF('Reservoir Storage'!J$26<=30,1,2)) -> 13 | R32: 8.410818726 | S32: 60.45463384 | T32: =IF($Q32=0," ",IF(S32>99.99,InterpolateXY(O32,P32,'South East Qld Peaking Factors'!$D$7:$Q$7,'South East Qld Peaking Factors'!$C$8:$C$22,'South East Qld Peaking Factors'!$D$8:$Q$22),IF(S32>99,(InterpolateXY(O32,P32,'South East Qld Peaking Factors'!$D$7:$Q$7,'South East Qld Peaking Factors'!$C$8:$C$22,'South East Qld Peaking Factors'!$D$8:$Q$22)- InterpolateXY(O32,P32,'South East Qld Peaking Factors'!$D$23:$Q$23,'South East Qld Peaking Factors'!$C$24:$C$38,'South East Qld Peaking Factors'!$D$24:$Q$38))*(S32-99)+ InterpolateXY(O32,P32,'South East Qld Peaking Factors'!$D$23:$Q$23,'South East Qld Peaking Factors'!$C$24:$C$38,'South East Qld Peaking Factors'!$D$24:$Q$38),IF(S32>98,(InterpolateXY(O32,P32,'South East Qld Peaking Factors'!$D$23:$Q$23,'South East Qld Peaking Factors'!$C$24:$C$38,'South East Qld Peaking Factors'!$D$24:$Q$38)-InterpolateXY(O32,P32,'South East Qld Peaking Factors'!$D$39:$Q$39,'South East Qld Peaking Factors'!$C$40:$C$54,'South East Qld Peaking Factors'!$D$40:$Q$54))*(S32-98)+ InterpolateXY(O32,P32,'South East Qld Peaking Factors'!$D$39:$Q$39,'South East Qld Peaking Factors'!$C$40:$C$54,'South East Qld Peaking Factors'!$D$40:$Q$54),IF(S32>95,(InterpolateXY(O32,P32,'South East Qld Peaking Factors'!$D$39:$Q$39,'South East Qld Peaking Factors'!$C$40:$C$54,'South East Qld Peaking Factors'!$D$40:$Q$54)-InterpolateXY(O32,P32,'South East Qld Peaking Factors'!$D$55:$Q$55,'South East Qld Peaking Factors'!$C$56:$C$70,'South East Qld Peaking Factors'!$D$56:$Q$70))*(S32-95)/3+InterpolateXY(O32,P32,'South East Qld Peaking Factors'!$D$55:$Q$55,'South East Qld Peaking Factors'!$C$56:$C$70,'South East Qld Peaking Factors'!$D$56:$Q$70),IF(S32>90,(InterpolateXY(O32,P32,'South East Qld Peaking Factors'!$D$55:$Q$55,'South East Qld Peaking Factors'!$C$56:$C$70,'South East Qld Peaking Factors'!$D$56:$Q$70)-InterpolateXY(O32,P32,'South East Qld Peaking Factors'!$D$71:$Q$71,'South East Qld Peaking Factors'!$C$72:$C$86,'South East Qld Peaking Factors'!$D$72:$Q$86))*(S32-90)/5+InterpolateXY(O32,P32,'South East Qld Peaking Factors'!$D$71:$Q$71,'South East Qld Peaking Factors'!$C$72:$C$86,'South East Qld Peaking Factors'!$D$72:$Q$86),IF(S32>80,(InterpolateXY(O32,P32,'South East Qld Peaking Factors'!$D$71:$Q$71,'South East Qld Peaking Factors'!$C$72:$C$86,'South East Qld Peaking Factors'!$D$72:$Q$86)-InterpolateXY(O32,P32,'South East Qld Peaking Factors'!$D$87:$Q$87,'South East Qld Peaking Factors'!$C$88:$C$102,'South East Qld Peaking Factors'!$D$88:$Q$102))*(S32-80)/10+InterpolateXY(O32,P32,'South East Qld Peaking Factors'!$D$87:$Q$87,'South East Qld Peaking Factors'!$C$88:$C$102,'South East Qld Peaking Factors'!$D$88:$Q$102),IF(S32>70,(InterpolateXY(O32,P32,'South East Qld Peaking Factors'!$D$87:$Q$87,'South East Qld Peaking Factors'!$C$88:$C$102,'South East Qld Peaking Factors'!$D$88:$Q$102)-InterpolateXY(O32,P32,'South East Qld Peaking Factors'!$D$103:$Q$103,'South East Qld Peaking Factors'!$C$104:$C$118,'South East Qld Peaking Factors'!$D$104:$Q$118))*(S32-70)/10+InterpolateXY(O32,P32,'South East Qld Peaking Factors'!$D$103:$Q$103,'South East Qld Peaking Factors'!$C$104:$C$118,'South East Qld Peaking Factors'!$D$104:$Q$118),IF(S32>60,(InterpolateXY(O32,P32,'South East Qld Peaking Factors'!$D$103:$Q$103,'South East Qld Peaking Factors'!$C$104:$C$118,'South East Qld Peaking Factors'!$D$104:$Q$118)-InterpolateXY(O32,P32,'South East Qld Peaking Factors'!$D$119:$Q$119,'South East Qld Peaking Factors'!$C$120:$C$134,'South East Qld Peaking Factors'!$D$120:$Q$134))*(S32-60)/10+InterpolateXY(O32,P32,'South East Qld Peaking Factors'!$D$119:$Q$119,'South East Qld Peaking Factors'!$C$120:$C$134,'South East Qld Peaking Factors'!$D$120:$Q$134),IF(S32>50,(InterpolateXY(O32,P32,'South East Qld Peaking Factors'!$D$119:$Q$119,'South East Qld Peaking Factors'!$C$120:$C$134,'South East Qld Peaking Factors'!$D$120:$Q$134)-1)*(S32-50)/10+1,1)))))))))) -> 1.098050066 | U32: =IF($Q32=0," ",IF(S32>99.99,InterpolateXY(O32,P32,'South East Qld Peaking Factors'!$S$7:$AF$7,'South East Qld Peaking Factors'!$R$8:$R$22,'South East Qld Peaking Factors'!$S$8:$AF$22),IF(S32>99,(InterpolateXY(O32,P32,'South East Qld Peaking Factors'!$S$7:$AF$7,'South East Qld Peaking Factors'!$R$8:$R$22,'South East Qld Peaking Factors'!$S$8:$AF$22)- InterpolateXY(O32,P32,'South East Qld Peaking Factors'!$S$23:$AF$23,'South East Qld Peaking Factors'!$R$24:$R$38,'South East Qld Peaking Factors'!$S$24:$AF$38))*(S32-99)+ InterpolateXY(O32,P32,'South East Qld Peaking Factors'!$S$23:$AF$23,'South East Qld Peaking Factors'!$R$24:$R$38,'South East Qld Peaking Factors'!$S$24:$AF$38),IF(S32>98,(InterpolateXY(O32,P32,'South East Qld Peaking Factors'!$S$23:$AF$23,'South East Qld Peaking Factors'!$R$24:$R$38,'South East Qld Peaking Factors'!$S$24:$AF$38)-InterpolateXY(O32,P32,'South East Qld Peaking Factors'!$S$39:$AF$39,'South East Qld Peaking Factors'!$R$40:$R$54,'South East Qld Peaking Factors'!$S$40:$AF$54))*(S32-98)+ InterpolateXY(O32,P32,'South East Qld Peaking Factors'!$S$39:$AF$39,'South East Qld Peaking Factors'!$R$40:$R$54,'South East Qld Peaking Factors'!$S$40:$AF$54),IF(S32>95,(InterpolateXY(O32,P32,'South East Qld Peaking Factors'!$S$39:$AF$39,'South East Qld Peaking Factors'!$R$40:$R$54,'South East Qld Peaking Factors'!$S$40:$AF$54)-InterpolateXY(O32,P32,'South East Qld Peaking Factors'!$S$55:$AF$55,'South East Qld Peaking Factors'!$R$56:$R$70,'South East Qld Peaking Factors'!$S$56:$AF$70))*(S32-95)/3+InterpolateXY(O32,P32,'South East Qld Peaking Factors'!$S$55:$AF$55,'South East Qld Peaking Factors'!$R$56:$R$70,'South East Qld Peaking Factors'!$S$56:$AF$70),IF(S32>90,(InterpolateXY(O32,P32,'South East Qld Peaking Factors'!$S$55:$AF$55,'South East Qld Peaking Factors'!$R$56:$R$70,'South East Qld Peaking Factors'!$S$56:$AF$70)-InterpolateXY(O32,P32,'South East Qld Peaking Factors'!$S$71:$AF$71,'South East Qld Peaking Factors'!$R$72:$R$86,'South East Qld Peaking Factors'!$S$72:$AF$86))*(S32-90)/5+InterpolateXY(O32,P32,'South East Qld Peaking Factors'!$S$71:$AF$71,'South East Qld Peaking Factors'!$R$72:$R$86,'South East Qld Peaking Factors'!$S$72:$AF$86),IF(S32>80,(InterpolateXY(O32,P32,'South East Qld Peaking Factors'!$S$71:$AF$71,'South East Qld Peaking Factors'!$R$72:$R$86,'South East Qld Peaking Factors'!$S$72:$AF$86)-InterpolateXY(O32,P32,'South East Qld Peaking Factors'!$S$87:$AF$87,'South East Qld Peaking Factors'!$R$88:$R$102,'South East Qld Peaking Factors'!$S$88:$AF$102))*(S32-80)/10+InterpolateXY(O32,P32,'South East Qld Peaking Factors'!$S$87:$AF$87,'South East Qld Peaking Factors'!$R$88:$R$102,'South East Qld Peaking Factors'!$S$88:$AF$102),IF(S32>70,(InterpolateXY(O32,P32,'South East Qld Peaking Factors'!$S$87:$AF$87,'South East Qld Peaking Factors'!$R$88:$R$102,'South East Qld Peaking Factors'!$S$88:$AF$102)-InterpolateXY(O32,P32,'South East Qld Peaking Factors'!$S$103:$AF$103,'South East Qld Peaking Factors'!$R$104:$R$118,'South East Qld Peaking Factors'!$S$104:$AF$118))*(S32-70)/10+InterpolateXY(O32,P32,'South East Qld Peaking Factors'!$S$103:$AF$103,'South East Qld Peaking Factors'!$R$104:$R$118,'South East Qld Peaking Factors'!$S$104:$AF$118),IF(S32>60,(InterpolateXY(O32,P32,'South East Qld Peaking Factors'!$S$103:$AF$103,'South East Qld Peaking Factors'!$R$104:$R$118,'South East Qld Peaking Factors'!$S$104:$AF$118)-InterpolateXY(O32,P32,'South East Qld Peaking Factors'!$S$119:$AF$119,'South East Qld Peaking Factors'!$R$120:$R$134,'South East Qld Peaking Factors'!$S$120:$AF$134))*(S32-60)/10+InterpolateXY(O32,P32,'South East Qld Peaking Factors'!$S$119:$AF$119,'South East Qld Peaking Factors'!$R$120:$R$134,'South East Qld Peaking Factors'!$S$120:$AF$134),IF(S32>50,(InterpolateXY(O32,P32,'South East Qld Peaking Factors'!$S$119:$AF$119,'South East Qld Peaking Factors'!$R$120:$R$134,'South East Qld Peaking Factors'!$S$120:$AF$134)-1)*(S32-50)/10+1,1)))))))))) -> 1.088651236 | V32: -0.002527465001 | W32: ='Reservoir Storage'!J$34 -> 15 | X32: 8.139745732e-63 | Y32: ='Reservoir Storage'!J$35 -> 1.571997485 | Z32: 3.681624786
O33: ='Reservoir Storage'!J$23 -> 9.542 | P33: ='Reservoir Storage'!J$26 -> 11.59033333 | Q33: =Q32+IF('Reservoir Storage'!J$26<=15,0.5,IF('Reservoir Storage'!J$26<=30,1,2)) -> 13.5 | R33: 8.590469615 | S33: 59.01664267 | T33: =IF($Q33=0," ",IF(S33>99.99,InterpolateXY(O33,P33,'South East Qld Peaking Factors'!$D$7:$Q$7,'South East Qld Peaking Factors'!$C$8:$C$22,'South East Qld Peaking Factors'!$D$8:$Q$22),IF(S33>99,(InterpolateXY(O33,P33,'South East Qld Peaking Factors'!$D$7:$Q$7,'South East Qld Peaking Factors'!$C$8:$C$22,'South East Qld Peaking Factors'!$D$8:$Q$22)- InterpolateXY(O33,P33,'South East Qld Peaking Factors'!$D$23:$Q$23,'South East Qld Peaking Factors'!$C$24:$C$38,'South East Qld Peaking Factors'!$D$24:$Q$38))*(S33-99)+ InterpolateXY(O33,P33,'South East Qld Peaking Factors'!$D$23:$Q$23,'South East Qld Peaking Factors'!$C$24:$C$38,'South East Qld Peaking Factors'!$D$24:$Q$38),IF(S33>98,(InterpolateXY(O33,P33,'South East Qld Peaking Factors'!$D$23:$Q$23,'South East Qld Peaking Factors'!$C$24:$C$38,'South East Qld Peaking Factors'!$D$24:$Q$38)-InterpolateXY(O33,P33,'South East Qld Peaking Factors'!$D$39:$Q$39,'South East Qld Peaking Factors'!$C$40:$C$54,'South East Qld Peaking Factors'!$D$40:$Q$54))*(S33-98)+ InterpolateXY(O33,P33,'South East Qld Peaking Factors'!$D$39:$Q$39,'South East Qld Peaking Factors'!$C$40:$C$54,'South East Qld Peaking Factors'!$D$40:$Q$54),IF(S33>95,(InterpolateXY(O33,P33,'South East Qld Peaking Factors'!$D$39:$Q$39,'South East Qld Peaking Factors'!$C$40:$C$54,'South East Qld Peaking Factors'!$D$40:$Q$54)-InterpolateXY(O33,P33,'South East Qld Peaking Factors'!$D$55:$Q$55,'South East Qld Peaking Factors'!$C$56:$C$70,'South East Qld Peaking Factors'!$D$56:$Q$70))*(S33-95)/3+InterpolateXY(O33,P33,'South East Qld Peaking Factors'!$D$55:$Q$55,'South East Qld Peaking Factors'!$C$56:$C$70,'South East Qld Peaking Factors'!$D$56:$Q$70),IF(S33>90,(InterpolateXY(O33,P33,'South East Qld Peaking Factors'!$D$55:$Q$55,'South East Qld Peaking Factors'!$C$56:$C$70,'South East Qld Peaking Factors'!$D$56:$Q$70)-InterpolateXY(O33,P33,'South East Qld Peaking Factors'!$D$71:$Q$71,'South East Qld Peaking Factors'!$C$72:$C$86,'South East Qld Peaking Factors'!$D$72:$Q$86))*(S33-90)/5+InterpolateXY(O33,P33,'South East Qld Peaking Factors'!$D$71:$Q$71,'South East Qld Peaking Factors'!$C$72:$C$86,'South East Qld Peaking Factors'!$D$72:$Q$86),IF(S33>80,(InterpolateXY(O33,P33,'South East Qld Peaking Factors'!$D$71:$Q$71,'South East Qld Peaking Factors'!$C$72:$C$86,'South East Qld Peaking Factors'!$D$72:$Q$86)-InterpolateXY(O33,P33,'South East Qld Peaking Factors'!$D$87:$Q$87,'South East Qld Peaking Factors'!$C$88:$C$102,'South East Qld Peaking Factors'!$D$88:$Q$102))*(S33-80)/10+InterpolateXY(O33,P33,'South East Qld Peaking Factors'!$D$87:$Q$87,'South East Qld Peaking Factors'!$C$88:$C$102,'South East Qld Peaking Factors'!$D$88:$Q$102),IF(S33>70,(InterpolateXY(O33,P33,'South East Qld Peaking Factors'!$D$87:$Q$87,'South East Qld Peaking Factors'!$C$88:$C$102,'South East Qld Peaking Factors'!$D$88:$Q$102)-InterpolateXY(O33,P33,'South East Qld Peaking Factors'!$D$103:$Q$103,'South East Qld Peaking Factors'!$C$104:$C$118,'South East Qld Peaking Factors'!$D$104:$Q$118))*(S33-70)/10+InterpolateXY(O33,P33,'South East Qld Peaking Factors'!$D$103:$Q$103,'South East Qld Peaking Factors'!$C$104:$C$118,'South East Qld Peaking Factors'!$D$104:$Q$118),IF(S33>60,(InterpolateXY(O33,P33,'South East Qld Peaking Factors'!$D$103:$Q$103,'South East Qld Peaking Factors'!$C$104:$C$118,'South East Qld Peaking Factors'!$D$104:$Q$118)-InterpolateXY(O33,P33,'South East Qld Peaking Factors'!$D$119:$Q$119,'South East Qld Peaking Factors'!$C$120:$C$134,'South East Qld Peaking Factors'!$D$120:$Q$134))*(S33-60)/10+InterpolateXY(O33,P33,'South East Qld Peaking Factors'!$D$119:$Q$119,'South East Qld Peaking Factors'!$C$120:$C$134,'South East Qld Peaking Factors'!$D$120:$Q$134),IF(S33>50,(InterpolateXY(O33,P33,'South East Qld Peaking Factors'!$D$119:$Q$119,'South East Qld Peaking Factors'!$C$120:$C$134,'South East Qld Peaking Factors'!$D$120:$Q$134)-1)*(S33-50)/10+1,1)))))))))) -> 1.085838607 | U33: =IF($Q33=0," ",IF(S33>99.99,InterpolateXY(O33,P33,'South East Qld Peaking Factors'!$S$7:$AF$7,'South East Qld Peaking Factors'!$R$8:$R$22,'South East Qld Peaking Factors'!$S$8:$AF$22),IF(S33>99,(InterpolateXY(O33,P33,'South East Qld Peaking Factors'!$S$7:$AF$7,'South East Qld Peaking Factors'!$R$8:$R$22,'South East Qld Peaking Factors'!$S$8:$AF$22)- InterpolateXY(O33,P33,'South East Qld Peaking Factors'!$S$23:$AF$23,'South East Qld Peaking Factors'!$R$24:$R$38,'South East Qld Peaking Factors'!$S$24:$AF$38))*(S33-99)+ InterpolateXY(O33,P33,'South East Qld Peaking Factors'!$S$23:$AF$23,'South East Qld Peaking Factors'!$R$24:$R$38,'South East Qld Peaking Factors'!$S$24:$AF$38),IF(S33>98,(InterpolateXY(O33,P33,'South East Qld Peaking Factors'!$S$23:$AF$23,'South East Qld Peaking Factors'!$R$24:$R$38,'South East Qld Peaking Factors'!$S$24:$AF$38)-InterpolateXY(O33,P33,'South East Qld Peaking Factors'!$S$39:$AF$39,'South East Qld Peaking Factors'!$R$40:$R$54,'South East Qld Peaking Factors'!$S$40:$AF$54))*(S33-98)+ InterpolateXY(O33,P33,'South East Qld Peaking Factors'!$S$39:$AF$39,'South East Qld Peaking Factors'!$R$40:$R$54,'South East Qld Peaking Factors'!$S$40:$AF$54),IF(S33>95,(InterpolateXY(O33,P33,'South East Qld Peaking Factors'!$S$39:$AF$39,'South East Qld Peaking Factors'!$R$40:$R$54,'South East Qld Peaking Factors'!$S$40:$AF$54)-InterpolateXY(O33,P33,'South East Qld Peaking Factors'!$S$55:$AF$55,'South East Qld Peaking Factors'!$R$56:$R$70,'South East Qld Peaking Factors'!$S$56:$AF$70))*(S33-95)/3+InterpolateXY(O33,P33,'South East Qld Peaking Factors'!$S$55:$AF$55,'South East Qld Peaking Factors'!$R$56:$R$70,'South East Qld Peaking Factors'!$S$56:$AF$70),IF(S33>90,(InterpolateXY(O33,P33,'South East Qld Peaking Factors'!$S$55:$AF$55,'South East Qld Peaking Factors'!$R$56:$R$70,'South East Qld Peaking Factors'!$S$56:$AF$70)-InterpolateXY(O33,P33,'South East Qld Peaking Factors'!$S$71:$AF$71,'South East Qld Peaking Factors'!$R$72:$R$86,'South East Qld Peaking Factors'!$S$72:$AF$86))*(S33-90)/5+InterpolateXY(O33,P33,'South East Qld Peaking Factors'!$S$71:$AF$71,'South East Qld Peaking Factors'!$R$72:$R$86,'South East Qld Peaking Factors'!$S$72:$AF$86),IF(S33>80,(InterpolateXY(O33,P33,'South East Qld Peaking Factors'!$S$71:$AF$71,'South East Qld Peaking Factors'!$R$72:$R$86,'South East Qld Peaking Factors'!$S$72:$AF$86)-InterpolateXY(O33,P33,'South East Qld Peaking Factors'!$S$87:$AF$87,'South East Qld Peaking Factors'!$R$88:$R$102,'South East Qld Peaking Factors'!$S$88:$AF$102))*(S33-80)/10+InterpolateXY(O33,P33,'South East Qld Peaking Factors'!$S$87:$AF$87,'South East Qld Peaking Factors'!$R$88:$R$102,'South East Qld Peaking Factors'!$S$88:$AF$102),IF(S33>70,(InterpolateXY(O33,P33,'South East Qld Peaking Factors'!$S$87:$AF$87,'South East Qld Peaking Factors'!$R$88:$R$102,'South East Qld Peaking Factors'!$S$88:$AF$102)-InterpolateXY(O33,P33,'South East Qld Peaking Factors'!$S$103:$AF$103,'South East Qld Peaking Factors'!$R$104:$R$118,'South East Qld Peaking Factors'!$S$104:$AF$118))*(S33-70)/10+InterpolateXY(O33,P33,'South East Qld Peaking Factors'!$S$103:$AF$103,'South East Qld Peaking Factors'!$R$104:$R$118,'South East Qld Peaking Factors'!$S$104:$AF$118),IF(S33>60,(InterpolateXY(O33,P33,'South East Qld Peaking Factors'!$S$103:$AF$103,'South East Qld Peaking Factors'!$R$104:$R$118,'South East Qld Peaking Factors'!$S$104:$AF$118)-InterpolateXY(O33,P33,'South East Qld Peaking Factors'!$S$119:$AF$119,'South East Qld Peaking Factors'!$R$120:$R$134,'South East Qld Peaking Factors'!$S$120:$AF$134))*(S33-60)/10+InterpolateXY(O33,P33,'South East Qld Peaking Factors'!$S$119:$AF$119,'South East Qld Peaking Factors'!$R$120:$R$134,'South East Qld Peaking Factors'!$S$120:$AF$134),IF(S33>50,(InterpolateXY(O33,P33,'South East Qld Peaking Factors'!$S$119:$AF$119,'South East Qld Peaking Factors'!$R$120:$R$134,'South East Qld Peaking Factors'!$S$120:$AF$134)-1)*(S33-50)/10+1,1)))))))))) -> 1.078390088 | V33: -0.002023795665 | W33: ='Reservoir Storage'!J$34 -> 15 | X33: 1.467752778e-80 | Y33: ='Reservoir Storage'!J$35 -> 1.571997485 | Z33: 3.716322217
O34: ='Reservoir Storage'!J$23 -> 9.542 | P34: ='Reservoir Storage'!J$26 -> 11.59033333 | Q34: =Q33+IF('Reservoir Storage'!J$26<=15,0.5,IF('Reservoir Storage'!J$26<=30,1,2)) -> 14 | R34: 8.767215781 | S34: 57.63874759 | T34: =IF($Q34=0," ",IF(S34>99.99,InterpolateXY(O34,P34,'South East Qld Peaking Factors'!$D$7:$Q$7,'South East Qld Peaking Factors'!$C$8:$C$22,'South East Qld Peaking Factors'!$D$8:$Q$22),IF(S34>99,(InterpolateXY(O34,P34,'South East Qld Peaking Factors'!$D$7:$Q$7,'South East Qld Peaking Factors'!$C$8:$C$22,'South East Qld Peaking Factors'!$D$8:$Q$22)- InterpolateXY(O34,P34,'South East Qld Peaking Factors'!$D$23:$Q$23,'South East Qld Peaking Factors'!$C$24:$C$38,'South East Qld Peaking Factors'!$D$24:$Q$38))*(S34-99)+ InterpolateXY(O34,P34,'South East Qld Peaking Factors'!$D$23:$Q$23,'South East Qld Peaking Factors'!$C$24:$C$38,'South East Qld Peaking Factors'!$D$24:$Q$38),IF(S34>98,(InterpolateXY(O34,P34,'South East Qld Peaking Factors'!$D$23:$Q$23,'South East Qld Peaking Factors'!$C$24:$C$38,'South East Qld Peaking Factors'!$D$24:$Q$38)-InterpolateXY(O34,P34,'South East Qld Peaking Factors'!$D$39:$Q$39,'South East Qld Peaking Factors'!$C$40:$C$54,'South East Qld Peaking Factors'!$D$40:$Q$54))*(S34-98)+ InterpolateXY(O34,P34,'South East Qld Peaking Factors'!$D$39:$Q$39,'South East Qld Peaking Factors'!$C$40:$C$54,'South East Qld Peaking Factors'!$D$40:$Q$54),IF(S34>95,(InterpolateXY(O34,P34,'South East Qld Peaking Factors'!$D$39:$Q$39,'South East Qld Peaking Factors'!$C$40:$C$54,'South East Qld Peaking Factors'!$D$40:$Q$54)-InterpolateXY(O34,P34,'South East Qld Peaking Factors'!$D$55:$Q$55,'South East Qld Peaking Factors'!$C$56:$C$70,'South East Qld Peaking Factors'!$D$56:$Q$70))*(S34-95)/3+InterpolateXY(O34,P34,'South East Qld Peaking Factors'!$D$55:$Q$55,'South East Qld Peaking Factors'!$C$56:$C$70,'South East Qld Peaking Factors'!$D$56:$Q$70),IF(S34>90,(InterpolateXY(O34,P34,'South East Qld Peaking Factors'!$D$55:$Q$55,'South East Qld Peaking Factors'!$C$56:$C$70,'South East Qld Peaking Factors'!$D$56:$Q$70)-InterpolateXY(O34,P34,'South East Qld Peaking Factors'!$D$71:$Q$71,'South East Qld Peaking Factors'!$C$72:$C$86,'South East Qld Peaking Factors'!$D$72:$Q$86))*(S34-90)/5+InterpolateXY(O34,P34,'South East Qld Peaking Factors'!$D$71:$Q$71,'South East Qld Peaking Factors'!$C$72:$C$86,'South East Qld Peaking Factors'!$D$72:$Q$86),IF(S34>80,(InterpolateXY(O34,P34,'South East Qld Peaking Factors'!$D$71:$Q$71,'South East Qld Peaking Factors'!$C$72:$C$86,'South East Qld Peaking Factors'!$D$72:$Q$86)-InterpolateXY(O34,P34,'South East Qld Peaking Factors'!$D$87:$Q$87,'South East Qld Peaking Factors'!$C$88:$C$102,'South East Qld Peaking Factors'!$D$88:$Q$102))*(S34-80)/10+InterpolateXY(O34,P34,'South East Qld Peaking Factors'!$D$87:$Q$87,'South East Qld Peaking Factors'!$C$88:$C$102,'South East Qld Peaking Factors'!$D$88:$Q$102),IF(S34>70,(InterpolateXY(O34,P34,'South East Qld Peaking Factors'!$D$87:$Q$87,'South East Qld Peaking Factors'!$C$88:$C$102,'South East Qld Peaking Factors'!$D$88:$Q$102)-InterpolateXY(O34,P34,'South East Qld Peaking Factors'!$D$103:$Q$103,'South East Qld Peaking Factors'!$C$104:$C$118,'South East Qld Peaking Factors'!$D$104:$Q$118))*(S34-70)/10+InterpolateXY(O34,P34,'South East Qld Peaking Factors'!$D$103:$Q$103,'South East Qld Peaking Factors'!$C$104:$C$118,'South East Qld Peaking Factors'!$D$104:$Q$118),IF(S34>60,(InterpolateXY(O34,P34,'South East Qld Peaking Factors'!$D$103:$Q$103,'South East Qld Peaking Factors'!$C$104:$C$118,'South East Qld Peaking Factors'!$D$104:$Q$118)-InterpolateXY(O34,P34,'South East Qld Peaking Factors'!$D$119:$Q$119,'South East Qld Peaking Factors'!$C$120:$C$134,'South East Qld Peaking Factors'!$D$120:$Q$134))*(S34-60)/10+InterpolateXY(O34,P34,'South East Qld Peaking Factors'!$D$119:$Q$119,'South East Qld Peaking Factors'!$C$120:$C$134,'South East Qld Peaking Factors'!$D$120:$Q$134),IF(S34>50,(InterpolateXY(O34,P34,'South East Qld Peaking Factors'!$D$119:$Q$119,'South East Qld Peaking Factors'!$C$120:$C$134,'South East Qld Peaking Factors'!$D$120:$Q$134)-1)*(S34-50)/10+1,1)))))))))) -> 1.07272102 | U34: =IF($Q34=0," ",IF(S34>99.99,InterpolateXY(O34,P34,'South East Qld Peaking Factors'!$S$7:$AF$7,'South East Qld Peaking Factors'!$R$8:$R$22,'South East Qld Peaking Factors'!$S$8:$AF$22),IF(S34>99,(InterpolateXY(O34,P34,'South East Qld Peaking Factors'!$S$7:$AF$7,'South East Qld Peaking Factors'!$R$8:$R$22,'South East Qld Peaking Factors'!$S$8:$AF$22)- InterpolateXY(O34,P34,'South East Qld Peaking Factors'!$S$23:$AF$23,'South East Qld Peaking Factors'!$R$24:$R$38,'South East Qld Peaking Factors'!$S$24:$AF$38))*(S34-99)+ InterpolateXY(O34,P34,'South East Qld Peaking Factors'!$S$23:$AF$23,'South East Qld Peaking Factors'!$R$24:$R$38,'South East Qld Peaking Factors'!$S$24:$AF$38),IF(S34>98,(InterpolateXY(O34,P34,'South East Qld Peaking Factors'!$S$23:$AF$23,'South East Qld Peaking Factors'!$R$24:$R$38,'South East Qld Peaking Factors'!$S$24:$AF$38)-InterpolateXY(O34,P34,'South East Qld Peaking Factors'!$S$39:$AF$39,'South East Qld Peaking Factors'!$R$40:$R$54,'South East Qld Peaking Factors'!$S$40:$AF$54))*(S34-98)+ InterpolateXY(O34,P34,'South East Qld Peaking Factors'!$S$39:$AF$39,'South East Qld Peaking Factors'!$R$40:$R$54,'South East Qld Peaking Factors'!$S$40:$AF$54),IF(S34>95,(InterpolateXY(O34,P34,'South East Qld Peaking Factors'!$S$39:$AF$39,'South East Qld Peaking Factors'!$R$40:$R$54,'South East Qld Peaking Factors'!$S$40:$AF$54)-InterpolateXY(O34,P34,'South East Qld Peaking Factors'!$S$55:$AF$55,'South East Qld Peaking Factors'!$R$56:$R$70,'South East Qld Peaking Factors'!$S$56:$AF$70))*(S34-95)/3+InterpolateXY(O34,P34,'South East Qld Peaking Factors'!$S$55:$AF$55,'South East Qld Peaking Factors'!$R$56:$R$70,'South East Qld Peaking Factors'!$S$56:$AF$70),IF(S34>90,(InterpolateXY(O34,P34,'South East Qld Peaking Factors'!$S$55:$AF$55,'South East Qld Peaking Factors'!$R$56:$R$70,'South East Qld Peaking Factors'!$S$56:$AF$70)-InterpolateXY(O34,P34,'South East Qld Peaking Factors'!$S$71:$AF$71,'South East Qld Peaking Factors'!$R$72:$R$86,'South East Qld Peaking Factors'!$S$72:$AF$86))*(S34-90)/5+InterpolateXY(O34,P34,'South East Qld Peaking Factors'!$S$71:$AF$71,'South East Qld Peaking Factors'!$R$72:$R$86,'South East Qld Peaking Factors'!$S$72:$AF$86),IF(S34>80,(InterpolateXY(O34,P34,'South East Qld Peaking Factors'!$S$71:$AF$71,'South East Qld Peaking Factors'!$R$72:$R$86,'South East Qld Peaking Factors'!$S$72:$AF$86)-InterpolateXY(O34,P34,'South East Qld Peaking Factors'!$S$87:$AF$87,'South East Qld Peaking Factors'!$R$88:$R$102,'South East Qld Peaking Factors'!$S$88:$AF$102))*(S34-80)/10+InterpolateXY(O34,P34,'South East Qld Peaking Factors'!$S$87:$AF$87,'South East Qld Peaking Factors'!$R$88:$R$102,'South East Qld Peaking Factors'!$S$88:$AF$102),IF(S34>70,(InterpolateXY(O34,P34,'South East Qld Peaking Factors'!$S$87:$AF$87,'South East Qld Peaking Factors'!$R$88:$R$102,'South East Qld Peaking Factors'!$S$88:$AF$102)-InterpolateXY(O34,P34,'South East Qld Peaking Factors'!$S$103:$AF$103,'South East Qld Peaking Factors'!$R$104:$R$118,'South East Qld Peaking Factors'!$S$104:$AF$118))*(S34-70)/10+InterpolateXY(O34,P34,'South East Qld Peaking Factors'!$S$103:$AF$103,'South East Qld Peaking Factors'!$R$104:$R$118,'South East Qld Peaking Factors'!$S$104:$AF$118),IF(S34>60,(InterpolateXY(O34,P34,'South East Qld Peaking Factors'!$S$103:$AF$103,'South East Qld Peaking Factors'!$R$104:$R$118,'South East Qld Peaking Factors'!$S$104:$AF$118)-InterpolateXY(O34,P34,'South East Qld Peaking Factors'!$S$119:$AF$119,'South East Qld Peaking Factors'!$R$120:$R$134,'South East Qld Peaking Factors'!$S$120:$AF$134))*(S34-60)/10+InterpolateXY(O34,P34,'South East Qld Peaking Factors'!$S$119:$AF$119,'South East Qld Peaking Factors'!$R$120:$R$134,'South East Qld Peaking Factors'!$S$120:$AF$134),IF(S34>50,(InterpolateXY(O34,P34,'South East Qld Peaking Factors'!$S$119:$AF$119,'South East Qld Peaking Factors'!$R$120:$R$134,'South East Qld Peaking Factors'!$S$120:$AF$134)-1)*(S34-50)/10+1,1)))))))))) -> 1.06641076 | V34: -0.001734639048 | W34: ='Reservoir Storage'!J$34 -> 15 | X34: 7.73269303e-97 | Y34: ='Reservoir Storage'!J$35 -> 1.571997485 | Z34: 3.745719919
O35: ='Reservoir Storage'!J$23 -> 9.542 | P35: ='Reservoir Storage'!J$26 -> 11.59033333 | Q35: =Q34+IF('Reservoir Storage'!J$26<=15,0.5,IF('Reservoir Storage'!J$26<=30,1,2)) -> 14.5 | R35: 8.941205507 | S35: 56.31796261 | T35: =IF($Q35=0," ",IF(S35>99.99,InterpolateXY(O35,P35,'South East Qld Peaking Factors'!$D$7:$Q$7,'South East Qld Peaking Factors'!$C$8:$C$22,'South East Qld Peaking Factors'!$D$8:$Q$22),IF(S35>99,(InterpolateXY(O35,P35,'South East Qld Peaking Factors'!$D$7:$Q$7,'South East Qld Peaking Factors'!$C$8:$C$22,'South East Qld Peaking Factors'!$D$8:$Q$22)- InterpolateXY(O35,P35,'South East Qld Peaking Factors'!$D$23:$Q$23,'South East Qld Peaking Factors'!$C$24:$C$38,'South East Qld Peaking Factors'!$D$24:$Q$38))*(S35-99)+ InterpolateXY(O35,P35,'South East Qld Peaking Factors'!$D$23:$Q$23,'South East Qld Peaking Factors'!$C$24:$C$38,'South East Qld Peaking Factors'!$D$24:$Q$38),IF(S35>98,(InterpolateXY(O35,P35,'South East Qld Peaking Factors'!$D$23:$Q$23,'South East Qld Peaking Factors'!$C$24:$C$38,'South East Qld Peaking Factors'!$D$24:$Q$38)-InterpolateXY(O35,P35,'South East Qld Peaking Factors'!$D$39:$Q$39,'South East Qld Peaking Factors'!$C$40:$C$54,'South East Qld Peaking Factors'!$D$40:$Q$54))*(S35-98)+ InterpolateXY(O35,P35,'South East Qld Peaking Factors'!$D$39:$Q$39,'South East Qld Peaking Factors'!$C$40:$C$54,'South East Qld Peaking Factors'!$D$40:$Q$54),IF(S35>95,(InterpolateXY(O35,P35,'South East Qld Peaking Factors'!$D$39:$Q$39,'South East Qld Peaking Factors'!$C$40:$C$54,'South East Qld Peaking Factors'!$D$40:$Q$54)-InterpolateXY(O35,P35,'South East Qld Peaking Factors'!$D$55:$Q$55,'South East Qld Peaking Factors'!$C$56:$C$70,'South East Qld Peaking Factors'!$D$56:$Q$70))*(S35-95)/3+InterpolateXY(O35,P35,'South East Qld Peaking Factors'!$D$55:$Q$55,'South East Qld Peaking Factors'!$C$56:$C$70,'South East Qld Peaking Factors'!$D$56:$Q$70),IF(S35>90,(InterpolateXY(O35,P35,'South East Qld Peaking Factors'!$D$55:$Q$55,'South East Qld Peaking Factors'!$C$56:$C$70,'South East Qld Peaking Factors'!$D$56:$Q$70)-InterpolateXY(O35,P35,'South East Qld Peaking Factors'!$D$71:$Q$71,'South East Qld Peaking Factors'!$C$72:$C$86,'South East Qld Peaking Factors'!$D$72:$Q$86))*(S35-90)/5+InterpolateXY(O35,P35,'South East Qld Peaking Factors'!$D$71:$Q$71,'South East Qld Peaking Factors'!$C$72:$C$86,'South East Qld Peaking Factors'!$D$72:$Q$86),IF(S35>80,(InterpolateXY(O35,P35,'South East Qld Peaking Factors'!$D$71:$Q$71,'South East Qld Peaking Factors'!$C$72:$C$86,'South East Qld Peaking Factors'!$D$72:$Q$86)-InterpolateXY(O35,P35,'South East Qld Peaking Factors'!$D$87:$Q$87,'South East Qld Peaking Factors'!$C$88:$C$102,'South East Qld Peaking Factors'!$D$88:$Q$102))*(S35-80)/10+InterpolateXY(O35,P35,'South East Qld Peaking Factors'!$D$87:$Q$87,'South East Qld Peaking Factors'!$C$88:$C$102,'South East Qld Peaking Factors'!$D$88:$Q$102),IF(S35>70,(InterpolateXY(O35,P35,'South East Qld Peaking Factors'!$D$87:$Q$87,'South East Qld Peaking Factors'!$C$88:$C$102,'South East Qld Peaking Factors'!$D$88:$Q$102)-InterpolateXY(O35,P35,'South East Qld Peaking Factors'!$D$103:$Q$103,'South East Qld Peaking Factors'!$C$104:$C$118,'South East Qld Peaking Factors'!$D$104:$Q$118))*(S35-70)/10+InterpolateXY(O35,P35,'South East Qld Peaking Factors'!$D$103:$Q$103,'South East Qld Peaking Factors'!$C$104:$C$118,'South East Qld Peaking Factors'!$D$104:$Q$118),IF(S35>60,(InterpolateXY(O35,P35,'South East Qld Peaking Factors'!$D$103:$Q$103,'South East Qld Peaking Factors'!$C$104:$C$118,'South East Qld Peaking Factors'!$D$104:$Q$118)-InterpolateXY(O35,P35,'South East Qld Peaking Factors'!$D$119:$Q$119,'South East Qld Peaking Factors'!$C$120:$C$134,'South East Qld Peaking Factors'!$D$120:$Q$134))*(S35-60)/10+InterpolateXY(O35,P35,'South East Qld Peaking Factors'!$D$119:$Q$119,'South East Qld Peaking Factors'!$C$120:$C$134,'South East Qld Peaking Factors'!$D$120:$Q$134),IF(S35>50,(InterpolateXY(O35,P35,'South East Qld Peaking Factors'!$D$119:$Q$119,'South East Qld Peaking Factors'!$C$120:$C$134,'South East Qld Peaking Factors'!$D$120:$Q$134)-1)*(S35-50)/10+1,1)))))))))) -> 1.060147122 | U35: =IF($Q35=0," ",IF(S35>99.99,InterpolateXY(O35,P35,'South East Qld Peaking Factors'!$S$7:$AF$7,'South East Qld Peaking Factors'!$R$8:$R$22,'South East Qld Peaking Factors'!$S$8:$AF$22),IF(S35>99,(InterpolateXY(O35,P35,'South East Qld Peaking Factors'!$S$7:$AF$7,'South East Qld Peaking Factors'!$R$8:$R$22,'South East Qld Peaking Factors'!$S$8:$AF$22)- InterpolateXY(O35,P35,'South East Qld Peaking Factors'!$S$23:$AF$23,'South East Qld Peaking Factors'!$R$24:$R$38,'South East Qld Peaking Factors'!$S$24:$AF$38))*(S35-99)+ InterpolateXY(O35,P35,'South East Qld Peaking Factors'!$S$23:$AF$23,'South East Qld Peaking Factors'!$R$24:$R$38,'South East Qld Peaking Factors'!$S$24:$AF$38),IF(S35>98,(InterpolateXY(O35,P35,'South East Qld Peaking Factors'!$S$23:$AF$23,'South East Qld Peaking Factors'!$R$24:$R$38,'South East Qld Peaking Factors'!$S$24:$AF$38)-InterpolateXY(O35,P35,'South East Qld Peaking Factors'!$S$39:$AF$39,'South East Qld Peaking Factors'!$R$40:$R$54,'South East Qld Peaking Factors'!$S$40:$AF$54))*(S35-98)+ InterpolateXY(O35,P35,'South East Qld Peaking Factors'!$S$39:$AF$39,'South East Qld Peaking Factors'!$R$40:$R$54,'South East Qld Peaking Factors'!$S$40:$AF$54),IF(S35>95,(InterpolateXY(O35,P35,'South East Qld Peaking Factors'!$S$39:$AF$39,'South East Qld Peaking Factors'!$R$40:$R$54,'South East Qld Peaking Factors'!$S$40:$AF$54)-InterpolateXY(O35,P35,'South East Qld Peaking Factors'!$S$55:$AF$55,'South East Qld Peaking Factors'!$R$56:$R$70,'South East Qld Peaking Factors'!$S$56:$AF$70))*(S35-95)/3+InterpolateXY(O35,P35,'South East Qld Peaking Factors'!$S$55:$AF$55,'South East Qld Peaking Factors'!$R$56:$R$70,'South East Qld Peaking Factors'!$S$56:$AF$70),IF(S35>90,(InterpolateXY(O35,P35,'South East Qld Peaking Factors'!$S$55:$AF$55,'South East Qld Peaking Factors'!$R$56:$R$70,'South East Qld Peaking Factors'!$S$56:$AF$70)-InterpolateXY(O35,P35,'South East Qld Peaking Factors'!$S$71:$AF$71,'South East Qld Peaking Factors'!$R$72:$R$86,'South East Qld Peaking Factors'!$S$72:$AF$86))*(S35-90)/5+InterpolateXY(O35,P35,'South East Qld Peaking Factors'!$S$71:$AF$71,'South East Qld Peaking Factors'!$R$72:$R$86,'South East Qld Peaking Factors'!$S$72:$AF$86),IF(S35>80,(InterpolateXY(O35,P35,'South East Qld Peaking Factors'!$S$71:$AF$71,'South East Qld Peaking Factors'!$R$72:$R$86,'South East Qld Peaking Factors'!$S$72:$AF$86)-InterpolateXY(O35,P35,'South East Qld Peaking Factors'!$S$87:$AF$87,'South East Qld Peaking Factors'!$R$88:$R$102,'South East Qld Peaking Factors'!$S$88:$AF$102))*(S35-80)/10+InterpolateXY(O35,P35,'South East Qld Peaking Factors'!$S$87:$AF$87,'South East Qld Peaking Factors'!$R$88:$R$102,'South East Qld Peaking Factors'!$S$88:$AF$102),IF(S35>70,(InterpolateXY(O35,P35,'South East Qld Peaking Factors'!$S$87:$AF$87,'South East Qld Peaking Factors'!$R$88:$R$102,'South East Qld Peaking Factors'!$S$88:$AF$102)-InterpolateXY(O35,P35,'South East Qld Peaking Factors'!$S$103:$AF$103,'South East Qld Peaking Factors'!$R$104:$R$118,'South East Qld Peaking Factors'!$S$104:$AF$118))*(S35-70)/10+InterpolateXY(O35,P35,'South East Qld Peaking Factors'!$S$103:$AF$103,'South East Qld Peaking Factors'!$R$104:$R$118,'South East Qld Peaking Factors'!$S$104:$AF$118),IF(S35>60,(InterpolateXY(O35,P35,'South East Qld Peaking Factors'!$S$103:$AF$103,'South East Qld Peaking Factors'!$R$104:$R$118,'South East Qld Peaking Factors'!$S$104:$AF$118)-InterpolateXY(O35,P35,'South East Qld Peaking Factors'!$S$119:$AF$119,'South East Qld Peaking Factors'!$R$120:$R$134,'South East Qld Peaking Factors'!$S$120:$AF$134))*(S35-60)/10+InterpolateXY(O35,P35,'South East Qld Peaking Factors'!$S$119:$AF$119,'South East Qld Peaking Factors'!$R$120:$R$134,'South East Qld Peaking Factors'!$S$120:$AF$134),IF(S35>50,(InterpolateXY(O35,P35,'South East Qld Peaking Factors'!$S$119:$AF$119,'South East Qld Peaking Factors'!$R$120:$R$134,'South East Qld Peaking Factors'!$S$120:$AF$134)-1)*(S35-50)/10+1,1)))))))))) -> 1.054927944 | V35: -0.001451026641 | W35: ='Reservoir Storage'!J$34 -> 15 | X35: 4.557513481e-119 | Y35: ='Reservoir Storage'!J$35 -> 1.571997485 | Z35: 3.774093094
O36: ='Reservoir Storage'!J$23 -> 9.542 | P36: ='Reservoir Storage'!J$26 -> 11.59033333 | Q36: =Q35+IF('Reservoir Storage'!J$26<=15,0.5,IF('Reservoir Storage'!J$26<=30,1,2)) -> 15 | R36: 9.112574685 | S36: 55.05139132 | T36: =IF($Q36=0," ",IF(S36>99.99,InterpolateXY(O36,P36,'South East Qld Peaking Factors'!$D$7:$Q$7,'South East Qld Peaking Factors'!$C$8:$C$22,'South East Qld Peaking Factors'!$D$8:$Q$22),IF(S36>99,(InterpolateXY(O36,P36,'South East Qld Peaking Factors'!$D$7:$Q$7,'South East Qld Peaking Factors'!$C$8:$C$22,'South East Qld Peaking Factors'!$D$8:$Q$22)- InterpolateXY(O36,P36,'South East Qld Peaking Factors'!$D$23:$Q$23,'South East Qld Peaking Factors'!$C$24:$C$38,'South East Qld Peaking Factors'!$D$24:$Q$38))*(S36-99)+ InterpolateXY(O36,P36,'South East Qld Peaking Factors'!$D$23:$Q$23,'South East Qld Peaking Factors'!$C$24:$C$38,'South East Qld Peaking Factors'!$D$24:$Q$38),IF(S36>98,(InterpolateXY(O36,P36,'South East Qld Peaking Factors'!$D$23:$Q$23,'South East Qld Peaking Factors'!$C$24:$C$38,'South East Qld Peaking Factors'!$D$24:$Q$38)-InterpolateXY(O36,P36,'South East Qld Peaking Factors'!$D$39:$Q$39,'South East Qld Peaking Factors'!$C$40:$C$54,'South East Qld Peaking Factors'!$D$40:$Q$54))*(S36-98)+ InterpolateXY(O36,P36,'South East Qld Peaking Factors'!$D$39:$Q$39,'South East Qld Peaking Factors'!$C$40:$C$54,'South East Qld Peaking Factors'!$D$40:$Q$54),IF(S36>95,(InterpolateXY(O36,P36,'South East Qld Peaking Factors'!$D$39:$Q$39,'South East Qld Peaking Factors'!$C$40:$C$54,'South East Qld Peaking Factors'!$D$40:$Q$54)-InterpolateXY(O36,P36,'South East Qld Peaking Factors'!$D$55:$Q$55,'South East Qld Peaking Factors'!$C$56:$C$70,'South East Qld Peaking Factors'!$D$56:$Q$70))*(S36-95)/3+InterpolateXY(O36,P36,'South East Qld Peaking Factors'!$D$55:$Q$55,'South East Qld Peaking Factors'!$C$56:$C$70,'South East Qld Peaking Factors'!$D$56:$Q$70),IF(S36>90,(InterpolateXY(O36,P36,'South East Qld Peaking Factors'!$D$55:$Q$55,'South East Qld Peaking Factors'!$C$56:$C$70,'South East Qld Peaking Factors'!$D$56:$Q$70)-InterpolateXY(O36,P36,'South East Qld Peaking Factors'!$D$71:$Q$71,'South East Qld Peaking Factors'!$C$72:$C$86,'South East Qld Peaking Factors'!$D$72:$Q$86))*(S36-90)/5+InterpolateXY(O36,P36,'South East Qld Peaking Factors'!$D$71:$Q$71,'South East Qld Peaking Factors'!$C$72:$C$86,'South East Qld Peaking Factors'!$D$72:$Q$86),IF(S36>80,(InterpolateXY(O36,P36,'South East Qld Peaking Factors'!$D$71:$Q$71,'South East Qld Peaking Factors'!$C$72:$C$86,'South East Qld Peaking Factors'!$D$72:$Q$86)-InterpolateXY(O36,P36,'South East Qld Peaking Factors'!$D$87:$Q$87,'South East Qld Peaking Factors'!$C$88:$C$102,'South East Qld Peaking Factors'!$D$88:$Q$102))*(S36-80)/10+InterpolateXY(O36,P36,'South East Qld Peaking Factors'!$D$87:$Q$87,'South East Qld Peaking Factors'!$C$88:$C$102,'South East Qld Peaking Factors'!$D$88:$Q$102),IF(S36>70,(InterpolateXY(O36,P36,'South East Qld Peaking Factors'!$D$87:$Q$87,'South East Qld Peaking Factors'!$C$88:$C$102,'South East Qld Peaking Factors'!$D$88:$Q$102)-InterpolateXY(O36,P36,'South East Qld Peaking Factors'!$D$103:$Q$103,'South East Qld Peaking Factors'!$C$104:$C$118,'South East Qld Peaking Factors'!$D$104:$Q$118))*(S36-70)/10+InterpolateXY(O36,P36,'South East Qld Peaking Factors'!$D$103:$Q$103,'South East Qld Peaking Factors'!$C$104:$C$118,'South East Qld Peaking Factors'!$D$104:$Q$118),IF(S36>60,(InterpolateXY(O36,P36,'South East Qld Peaking Factors'!$D$103:$Q$103,'South East Qld Peaking Factors'!$C$104:$C$118,'South East Qld Peaking Factors'!$D$104:$Q$118)-InterpolateXY(O36,P36,'South East Qld Peaking Factors'!$D$119:$Q$119,'South East Qld Peaking Factors'!$C$120:$C$134,'South East Qld Peaking Factors'!$D$120:$Q$134))*(S36-60)/10+InterpolateXY(O36,P36,'South East Qld Peaking Factors'!$D$119:$Q$119,'South East Qld Peaking Factors'!$C$120:$C$134,'South East Qld Peaking Factors'!$D$120:$Q$134),IF(S36>50,(InterpolateXY(O36,P36,'South East Qld Peaking Factors'!$D$119:$Q$119,'South East Qld Peaking Factors'!$C$120:$C$134,'South East Qld Peaking Factors'!$D$120:$Q$134)-1)*(S36-50)/10+1,1)))))))))) -> 1.04808934 | U36: =IF($Q36=0," ",IF(S36>99.99,InterpolateXY(O36,P36,'South East Qld Peaking Factors'!$S$7:$AF$7,'South East Qld Peaking Factors'!$R$8:$R$22,'South East Qld Peaking Factors'!$S$8:$AF$22),IF(S36>99,(InterpolateXY(O36,P36,'South East Qld Peaking Factors'!$S$7:$AF$7,'South East Qld Peaking Factors'!$R$8:$R$22,'South East Qld Peaking Factors'!$S$8:$AF$22)- InterpolateXY(O36,P36,'South East Qld Peaking Factors'!$S$23:$AF$23,'South East Qld Peaking Factors'!$R$24:$R$38,'South East Qld Peaking Factors'!$S$24:$AF$38))*(S36-99)+ InterpolateXY(O36,P36,'South East Qld Peaking Factors'!$S$23:$AF$23,'South East Qld Peaking Factors'!$R$24:$R$38,'South East Qld Peaking Factors'!$S$24:$AF$38),IF(S36>98,(InterpolateXY(O36,P36,'South East Qld Peaking Factors'!$S$23:$AF$23,'South East Qld Peaking Factors'!$R$24:$R$38,'South East Qld Peaking Factors'!$S$24:$AF$38)-InterpolateXY(O36,P36,'South East Qld Peaking Factors'!$S$39:$AF$39,'South East Qld Peaking Factors'!$R$40:$R$54,'South East Qld Peaking Factors'!$S$40:$AF$54))*(S36-98)+ InterpolateXY(O36,P36,'South East Qld Peaking Factors'!$S$39:$AF$39,'South East Qld Peaking Factors'!$R$40:$R$54,'South East Qld Peaking Factors'!$S$40:$AF$54),IF(S36>95,(InterpolateXY(O36,P36,'South East Qld Peaking Factors'!$S$39:$AF$39,'South East Qld Peaking Factors'!$R$40:$R$54,'South East Qld Peaking Factors'!$S$40:$AF$54)-InterpolateXY(O36,P36,'South East Qld Peaking Factors'!$S$55:$AF$55,'South East Qld Peaking Factors'!$R$56:$R$70,'South East Qld Peaking Factors'!$S$56:$AF$70))*(S36-95)/3+InterpolateXY(O36,P36,'South East Qld Peaking Factors'!$S$55:$AF$55,'South East Qld Peaking Factors'!$R$56:$R$70,'South East Qld Peaking Factors'!$S$56:$AF$70),IF(S36>90,(InterpolateXY(O36,P36,'South East Qld Peaking Factors'!$S$55:$AF$55,'South East Qld Peaking Factors'!$R$56:$R$70,'South East Qld Peaking Factors'!$S$56:$AF$70)-InterpolateXY(O36,P36,'South East Qld Peaking Factors'!$S$71:$AF$71,'South East Qld Peaking Factors'!$R$72:$R$86,'South East Qld Peaking Factors'!$S$72:$AF$86))*(S36-90)/5+InterpolateXY(O36,P36,'South East Qld Peaking Factors'!$S$71:$AF$71,'South East Qld Peaking Factors'!$R$72:$R$86,'South East Qld Peaking Factors'!$S$72:$AF$86),IF(S36>80,(InterpolateXY(O36,P36,'South East Qld Peaking Factors'!$S$71:$AF$71,'South East Qld Peaking Factors'!$R$72:$R$86,'South East Qld Peaking Factors'!$S$72:$AF$86)-InterpolateXY(O36,P36,'South East Qld Peaking Factors'!$S$87:$AF$87,'South East Qld Peaking Factors'!$R$88:$R$102,'South East Qld Peaking Factors'!$S$88:$AF$102))*(S36-80)/10+InterpolateXY(O36,P36,'South East Qld Peaking Factors'!$S$87:$AF$87,'South East Qld Peaking Factors'!$R$88:$R$102,'South East Qld Peaking Factors'!$S$88:$AF$102),IF(S36>70,(InterpolateXY(O36,P36,'South East Qld Peaking Factors'!$S$87:$AF$87,'South East Qld Peaking Factors'!$R$88:$R$102,'South East Qld Peaking Factors'!$S$88:$AF$102)-InterpolateXY(O36,P36,'South East Qld Peaking Factors'!$S$103:$AF$103,'South East Qld Peaking Factors'!$R$104:$R$118,'South East Qld Peaking Factors'!$S$104:$AF$118))*(S36-70)/10+InterpolateXY(O36,P36,'South East Qld Peaking Factors'!$S$103:$AF$103,'South East Qld Peaking Factors'!$R$104:$R$118,'South East Qld Peaking Factors'!$S$104:$AF$118),IF(S36>60,(InterpolateXY(O36,P36,'South East Qld Peaking Factors'!$S$103:$AF$103,'South East Qld Peaking Factors'!$R$104:$R$118,'South East Qld Peaking Factors'!$S$104:$AF$118)-InterpolateXY(O36,P36,'South East Qld Peaking Factors'!$S$119:$AF$119,'South East Qld Peaking Factors'!$R$120:$R$134,'South East Qld Peaking Factors'!$S$120:$AF$134))*(S36-60)/10+InterpolateXY(O36,P36,'South East Qld Peaking Factors'!$S$119:$AF$119,'South East Qld Peaking Factors'!$R$120:$R$134,'South East Qld Peaking Factors'!$S$120:$AF$134),IF(S36>50,(InterpolateXY(O36,P36,'South East Qld Peaking Factors'!$S$119:$AF$119,'South East Qld Peaking Factors'!$R$120:$R$134,'South East Qld Peaking Factors'!$S$120:$AF$134)-1)*(S36-50)/10+1,1)))))))))) -> 1.043916458 | V36: -0.001172929595 | W36: ='Reservoir Storage'!J$34 -> 15 | X36: 2.938797233e-151 | Y36: ='Reservoir Storage'!J$35 -> 1.571997485 | Z36: 3.801551464
AB37: 2 | AC37: % FAILURES | AF37: 4 | AG37: % FAILURES | AJ37: 6 | AK37: % FAILURES | AN37: 8 | AO37: % FAILURES | AR37: 10 | AS37: % FAILURES | AV37: 12 | AW37: % FAILURES | AZ37: 14 | BA37: % FAILURES | BD37: 16 | BE37: % FAILURES | BH37: 18 | BI37: % FAILURES | BL37: 20 | BM37: % FAILURES | BP37: 22 | BQ37: % FAILURES | BT37: 24 | BU37: % FAILURES | BX37: 26 | BY37: % FAILURES | CB37: 28 | CC37: % FAILURES | CF37: 30 | CG37: % FAILURES | CJ37: 32 | CK37: % FAILURES | CN37: 34 | CO37: % FAILURES | CR37: 36 | CS37: % FAILURES | CV37: 38 | CW37: % FAILURES | CZ37: 40 | DA37: % FAILURES | DD37: 42 | DE37: % FAILURES | DH37: 44 | DI37: % FAILURES | DL37: 46 | DM37: % FAILURES | DP37: 48 | DQ37: % FAILURES | DT37: 50 | DU37: % FAILURES | DX37: 52 | DY37: % FAILURES | EB37: 54 | EC37: % FAILURES | EF37: 56 | EG37: % FAILURES | EJ37: 58 | EK37: % FAILURES | EN37: 60 | EO37: % FAILURES | ER37: 62 | ES37: % FAILURES | EV37: 64 | EW37: % FAILURES | EZ37: 66 | FA37: % FAILURES | FD37: 68 | FE37: % FAILURES | FH37: 70 | FI37: % FAILURES | FL37: 72 | FM37: % FAILURES | FP37: 74 | FQ37: % FAILURES | FT37: 76 | FU37: % FAILURES | FX37: 78 | FY37: % FAILURES | GB37: 80 | GC37: % FAILURES | GF37: 82 | GG37: % FAILURES | GJ37: 84 | GK37: % FAILURES | GN37: 86 | GO37: % FAILURES | GR37: 88 | GS37: % FAILURES | GV37: 90 | GW37: % FAILURES | GZ37: 92 | HA37: % FAILURES | HD37: 94 | HE37: % FAILURES | HH37: 96 | HI37: % FAILURES | HL37: 98 | HM37: % FAILURES | HQ37: 2 | HS37: =HQ37+2 -> 4 | HU37: =HS37+2 -> 6 | HW37: =HU37+2 -> 8 | HY37: =HW37+2 -> 10 | IA37: =HY37+2 -> 12 | IC37: =IA37+2 -> 14 | IE37: =IC37+2 -> 16 | IG37: =IE37+2 -> 18 | II37: =IG37+2 -> 20 | IK37: =II37+2 -> 22 | IM37: =IK37+2 -> 24 | IO37: =IM37+2 -> 26 | IQ37: =IO37+2 -> 28 | IS37: =IQ37+2 -> 30 | IU37: =IS37+2 -> 32 | IW37: =IU37+2 -> 34 | IY37: =IW37+2 -> 36 | JA37: =IY37+2 -> 38 | JC37: =JA37+2 -> 40 | JE37: =JC37+2 -> 42 | JG37: =JE37+2 -> 44 | JI37: =JG37+2 -> 46 | JK37: =JI37+2 -> 48 | JM37: =JK37+2 -> 50 | JO37: =JM37+2 -> 52 | JQ37: =JO37+2 -> 54 | JS37: =JQ37+2 -> 56 | JU37: =JS37+2 -> 58 | JW37: =JU37+2 -> 60 | JY37: =JW37+2 -> 62 | KA37: =JY37+2 -> 64 | KC37: =KA37+2 -> 66 | KE37: =KC37+2 -> 68 | KG37: =KE37+2 -> 70 | KI37: =KG37+2 -> 72 | KK37: =KI37+2 -> 74 | KM37: =KK37+2 -> 76 | KO37: =KM37+2 -> 78 | KQ37: =KO37+2 -> 80 | KS37: =KQ37+2 -> 82 | KU37: =KS37+2 -> 84 | KW37: =KU37+2 -> 86 | KY37: =KW37+2 -> 88 | LA37: =KY37+2 -> 90 | LC37: =LA37+2 -> 92 | LE37: =LC37+2 -> 94 | LG37: =LE37+2 -> 96 | LI37: =LG37+2 -> 98
B38: Failure Investigation Year | C38: 2036 | E38: FAILURE PROBABILITIES AND OUTAGE TIMES
B39: Failure Scenario | C39: Failure Type | D39: Failure Extent | E39: Diameter | F39: Length | G39: Material | H39: Age | I39: Failure Event Probability | J39: 5% Outage Time | K39: 50% Outage Time | L39: 95% Outage Time | AB39: Failure Rate | AC39: Failure Rate | AD39: Unavailability | AE39: Outage | AF39: Failure Rate | AG39: Failure Rate | AH39: Unavailability | AI39: Outage | AJ39: Failure Rate | AK39: Failure Rate | AL39: Unavailability | AM39: Outage | AN39: Failure Rate | AO39: Failure Rate | AP39: Unavailability | AQ39: Outage | AR39: Failure Rate | AS39: Failure Rate | AT39: Unavailability | AU39: Outage | AV39: Failure Rate | AW39: Failure Rate | AX39: Unavailability | AY39: Outage | AZ39: Failure Rate | BA39: Failure Rate | BB39: Unavailability | BC39: Outage | BD39: Failure Rate | BE39: Failure Rate | BF39: Unavailability | BG39: Outage | BH39: Failure Rate | BI39: Failure Rate | BJ39: Unavailability | BK39: Outage | BL39: Failure Rate | BM39: Failure Rate | BN39: Unavailability | BO39: Outage | BP39: Failure Rate | BQ39: Failure Rate | BR39: Unavailability | BS39: Outage | BT39: Failure Rate | BU39: Failure Rate | BV39: Unavailability | BW39: Outage | BX39: Failure Rate | BY39: Failure Rate | BZ39: Unavailability | CA39: Outage | CB39: Failure Rate | CC39: Failure Rate | CD39: Unavailability | CE39: Outage | CF39: Failure Rate | CG39: Failure Rate | CH39: Unavailability | CI39: Outage | CJ39: Failure Rate | CK39: Failure Rate | CL39: Unavailability | CM39: Outage | CN39: Failure Rate | CO39: Failure Rate | CP39: Unavailability | CQ39: Outage | CR39: Failure Rate | CS39: Failure Rate | CT39: Unavailability | CU39: Outage | CV39: Failure Rate | CW39: Failure Rate | CX39: Unavailability | CY39: Outage | CZ39: Failure Rate | DA39: Failure Rate | DB39: Unavailability | DC39: Outage | DD39: Failure Rate | DE39: Failure Rate | DF39: Unavailability | DG39: Outage | DH39: Failure Rate | DI39: Failure Rate | DJ39: Unavailability | DK39: Outage | DL39: Failure Rate | DM39: Failure Rate | DN39: Unavailability | DO39: Outage | DP39: Failure Rate | DQ39: Failure Rate | DR39: Unavailability | DS39: Outage | DT39: Failure Rate | DU39: Failure Rate | DV39: Unavailability | DW39: Outage | DX39: Failure Rate | DY39: Failure Rate | DZ39: Unavailability | EA39: Outage | EB39: Failure Rate | EC39: Failure Rate | ED39: Unavailability | EE39: Outage | EF39: Failure Rate | EG39: Failure Rate | EH39: Unavailability | EI39: Outage | EJ39: Failure Rate | EK39: Failure Rate | EL39: Unavailability | EM39: Outage | EN39: Failure Rate | EO39: Failure Rate | EP39: Unavailability | EQ39: Outage | ER39: Failure Rate | ES39: Failure Rate | ET39: Unavailability | EU39: Outage | EV39: Failure Rate | EW39: Failure Rate | EX39: Unavailability | EY39: Outage | EZ39: Failure Rate | FA39: Failure Rate | FB39: Unavailability | FC39: Outage | FD39: Failure Rate | FE39: Failure Rate | FF39: Unavailability | FG39: Outage | FH39: Failure Rate | FI39: Failure Rate | FJ39: Unavailability | FK39: Outage | FL39: Failure Rate | FM39: Failure Rate | FN39: Unavailability | FO39: Outage | FP39: Failure Rate | FQ39: Failure Rate | FR39: Unavailability | FS39: Outage | FT39: Failure Rate | FU39: Failure Rate | FV39: Unavailability | FW39: Outage | FX39: Failure Rate | FY39: Failure Rate | FZ39: Unavailability | GA39: Outage | GB39: Failure Rate | GC39: Failure Rate | GD39: Unavailability | GE39: Outage | GF39: Failure Rate | GG39: Failure Rate | GH39: Unavailability | GI39: Outage | GJ39: Failure Rate | GK39: Failure Rate | GL39: Unavailability | GM39: Outage | GN39: Failure Rate | GO39: Failure Rate | GP39: Unavailability | GQ39: Outage | GR39: Failure Rate | GS39: Failure Rate | GT39: Unavailability | GU39: Outage | GV39: Failure Rate | GW39: Failure Rate | GX39: Unavailability | GY39: Outage | GZ39: Failure Rate | HA39: Failure Rate | HB39: Unavailability | HC39: Outage | HD39: Failure Rate | HE39: Failure Rate | HF39: Unavailability | HG39: Outage | HH39: Failure Rate | HI39: Failure Rate | HJ39: Unavailability | HK39: Outage | HL39: Failure Rate | HM39: Failure Rate | HN39: Unavailability | HO39: Outage
D41: Full-Part | E41: mm | F41: Lm | G41: # | H41: Years | I41: # | J41: Hours | K41: Hours | L41: Hours | AB41: Years | AC41: # | AD41: Hours/a | AE41: Hours | AF41: Years | AG41: # | AH41: Hours/a | AI41: Hours | AJ41: Years | AK41: # | AL41: Hours/a | AM41: Hours | AN41: Years | AO41: # | AP41: Hours/a | AQ41: Hours | AR41: Years | AS41: # | AT41: Hours/a | AU41: Hours | AV41: Years | AW41: # | AX41: Hours/a | AY41: Hours | AZ41: Years | BA41: # | BB41: Hours/a | BC41: Hours | BD41: Years | BE41: # | BF41: Hours/a | BG41: Hours | BH41: Years | BI41: # | BJ41: Hours/a | BK41: Hours | BL41: Years | BM41: # | BN41: Hours/a | BO41: Hours | BP41: Years | BQ41: # | BR41: Hours/a | BS41: Hours | BT41: Years | BU41: # | BV41: Hours/a | BW41: Hours | BX41: Years | BY41: # | BZ41: Hours/a | CA41: Hours | CB41: Years | CC41: # | CD41: Hours/a | CE41: Hours | CF41: Years | CG41: # | CH41: Hours/a | CI41: Hours | CJ41: Years | CK41: # | CL41: Hours/a | CM41: Hours | CN41: Years | CO41: # | CP41: Hours/a | CQ41: Hours | CR41: Years | CS41: # | CT41: Hours/a | CU41: Hours | CV41: Years | CW41: # | CX41: Hours/a | CY41: Hours | CZ41: Years | DA41: # | DB41: Hours/a | DC41: Hours | DD41: Years | DE41: # | DF41: Hours/a | DG41: Hours | DH41: Years | DI41: # | DJ41: Hours/a | DK41: Hours | DL41: Years | DM41: # | DN41: Hours/a | DO41: Hours | DP41: Years | DQ41: # | DR41: Hours/a | DS41: Hours | DT41: Years | DU41: # | DV41: Hours/a | DW41: Hours | DX41: Years | DY41: # | DZ41: Hours/a | EA41: Hours | EB41: Years | EC41: # | ED41: Hours/a | EE41: Hours | EF41: Years | EG41: # | EH41: Hours/a | EI41: Hours | EJ41: Years | EK41: # | EL41: Hours/a | EM41: Hours | EN41: Years | EO41: # | EP41: Hours/a | EQ41: Hours | ER41: Years | ES41: # | ET41: Hours/a | EU41: Hours | EV41: Years | EW41: # | EX41: Hours/a | EY41: Hours | EZ41: Years | FA41: # | FB41: Hours/a | FC41: Hours | FD41: Years | FE41: # | FF41: Hours/a | FG41: Hours | FH41: Years | FI41: # | FJ41: Hours/a | FK41: Hours | FL41: Years | FM41: # | FN41: Hours/a | FO41: Hours | FP41: Years | FQ41: # | FR41: Hours/a | FS41: Hours | FT41: Years | FU41: # | FV41: Hours/a | FW41: Hours | FX41: Years | FY41: # | FZ41: Hours/a | GA41: Hours | GB41: Years | GC41: # | GD41: Hours/a | GE41: Hours | GF41: Years | GG41: # | GH41: Hours/a | GI41: Hours | GJ41: Years | GK41: # | GL41: Hours/a | GM41: Hours | GN41: Years | GO41: # | GP41: Hours/a | GQ41: Hours | GR41: Years | GS41: # | GT41: Hours/a | GU41: Hours | GV41: Years | GW41: # | GX41: Hours/a | GY41: Hours | GZ41: Years | HA41: # | HB41: Hours/a | HC41: Hours | HD41: Years | HE41: # | HF41: Hours/a | HG41: Hours | HH41: Years | HI41: # | HJ41: Hours/a | HK41: Hours | HL41: Years | HM41: # | HN41: Hours/a | HO41: Hours
B42: INPUT SEGMENTS
B43: Pipe from reliable supply to pump station
B44: 1 | C44: Pipe | D44: Full | E44: 400 | F44: 15.118 | G44: MS | H44: =72-2019+C38 -> 89 | I44: =IF(C44="Valve",0.002,IF(C44="Pipe",IF(G44="PVC",IF(H44<C$38-1986,2.4287*EXP(0.0206*H44),16.746*EXP(0.047*H44)),IF(G44="AC",IF(E44<150,1.6*EXP(0.0526*H44),IF(E44<200,0.9585*EXP(0.0562*H44),IF(E44<300,0.95*EXP(0.0511*H44),0.1749*EXP(0.0701*H44)))),IF(G44="DI",IF(E44<150,1.6*EXP(0.0285*H44),IF(E44<200,1.5302*EXP(0.0264*H44),IF(E44<300,0.95*EXP(0.031*H44),0.7*EXP(0.0327*H44)))),IF(G44="MS",IF(E44<150,3.7022*EXP(0.0673*H44),IF(E44<200,1.8319*EXP(0.0592*H44),IF(E44<300,1.5626*EXP(0.0409*H44),IF(E44<400,1.35*EXP(0.0409*H44),0.55*EXP(0.0136*H44))))),IF(G44="CI",IF(E44<150,IF(H44<C$38-1951,9.4549*EXP(0.0284*H44),0.15*EXP(0.0518*H44)),IF(E44<200,IF(H44<C$38-1951,8.4483*EXP(0.0279*H44),0.1*EXP(0.0529*H44)),IF(E44<300,IF(H44<C$38-1941,3.3385*EXP(0.0307*H44),0.05*EXP(0.0526*H44)),IF(E44>=300,IF(H44<C$38-1941,3.3*EXP(0.0292*H44),0.05*EXP(0.0491*H44)))))))))))*F44/100000," ")) -> 0.0002789504532 | J44: =IF(E44>0,(16.46422001685-14.62447203985*EXP(-0.0000160509317449*(E44^1.58185552616)))," ") -> 4.606209471 | K44: =IF(E44>0,(21.94905229466-21.235810579596*EXP(-0.000516425232405*(E44^1.18195509065)))," ") -> 10.46242157 | L44: =IF(E44>0,(27.905851492255-27.5285572886*EXP(-0.00442683880468*(E44^0.887671409005)))," ") -> 16.75128325 | AB44: =IF($D44=0," ",1/($I44*(100-AB$37)/100)) -> 3658.026547 | AC44: =IF($D44=0," ",1/AB44) -> 0.0002733714442 | AD44: =IF($D44=0," ",IF(AB$37<5,$J44/5*AB$37,IF(AB$37<=90,MIN(($J44+($K44-$J44)/45*(AB$37-5)),$L44),$L44-($L44-MIN(($J44+($K44-$J44)/45*85),$L44))/5*(95-AB$37)))/AB44) -> 0.0005036824541 | AE44: =IF($D44=0," ",AB44*AD44) -> 1.842483788 | AF44: 3734.235433 | AG44: =IF($D44=0," ",1/AF44) -> 0.0002677924351 | AH44: =IF($D44=0," ",IF(AF$37<5,$J44/5*AF$37,IF(AF$37<=90,MIN(($J44+($K44-$J44)/45*(AF$37-5)),$L44),$L44-($L44-MIN(($J44+($K44-$J44)/45*85),$L44))/5*(95-AF$37)))/AF44) -> 0.0009868064406 | AI44: =IF($D44=0," ",AF44*AH44) -> 3.684967576 | AJ44: 3813.687251 | AK44: =IF($D44=0," ",1/AJ44) -> 0.000262213426 | AL44: =IF($D44=0," ",IF(AJ$37<5,$J44/5*AJ$37,IF(AJ$37<=90,MIN(($J44+($K44-$J44)/45*(AJ$37-5)),$L44),$L44-($L44-MIN(($J44+($K44-$J44)/45*85),$L44))/5*(95-AJ$37)))/AJ44) -> 0.001241933909 | AM44: =IF($D44=0," ",AJ44*AL44) -> 4.736347517 | AN44: 3896.593496 | AO44: =IF($D44=0," ",1/AN44) -> 0.000256634417 | AP44: =IF($D44=0," ",IF(AN$37<5,$J44/5*AN$37,IF(AN$37<=90,MIN(($J44+($K44-$J44)/45*(AN$37-5)),$L44),$L44-($L44-MIN(($J44+($K44-$J44)/45*85),$L44))/5*(95-AN$37)))/AN44) -> 0.001282305587 | AQ44: =IF($D44=0," ",AN44*AP44) -> 4.99662361 | AR44: =IF($D44=0," ",1/($I44*(100-AR$37)/100)) -> 3983.184462 | AS44: =IF($D44=0," ",1/AR44) -> 0.0002510554079 | AT44: =IF($D44=0," ",IF(AR$37<5,$J44/5*AR$37,IF(AR$37<=90,MIN(($J44+($K44-$J44)/45*(AR$37-5)),$L44),$L44-($L44-MIN(($J44+($K44-$J44)/45*85),$L44))/5*(95-AR$37)))/AR44) -> 0.001319773099 | AU44: =IF($D44=0," ",AR44*AT44) -> 5.256899703 | AV44: 4073.711382 | AW44: =IF($D44=0," ",1/AV44) -> 0.0002454763989 | AX44: =IF($D44=0," ",IF(AV$37<5,$J44/5*AV$37,IF(AV$37<=90,MIN(($J44+($K44-$J44)/45*(AV$37-5)),$L44),$L44-($L44-MIN(($J44+($K44-$J44)/45*85),$L44))/5*(95-AV$37)))/AV44) -> 0.001354336446 | AY44: =IF($D44=0," ",AV44*AX44) -> 5.517175797 | AZ44: 4168.448856 | BA44: =IF($D44=0," ",1/AZ44) -> 0.0002398973898 | BB44: =IF($D44=0," ",IF(AZ$37<5,$J44/5*AZ$37,IF(AZ$37<=90,MIN(($J44+($K44-$J44)/45*(AZ$37-5)),$L44),$L44-($L44-MIN(($J44+($K44-$J44)/45*85),$L44))/5*(95-AZ$37)))/AZ44) -> 0.001385995628 | BC44: =IF($D44=0," ",AZ44*BB44) -> 5.77745189 | BD44: 4267.697638 | BE44: =IF($D44=0," ",1/BD44) -> 0.0002343183807 | BF44: =IF($D44=0," ",IF(BD$37<5,$J44/5*BD$37,IF(BD$37<=90,MIN(($J44+($K44-$J44)/45*(BD$37-5)),$L44),$L44-($L44-MIN(($J44+($K44-$J44)/45*85),$L44))/5*(95-BD$37)))/BD44) -> 0.001414750644 | BG44: =IF($D44=0," ",BD44*BF44) -> 6.037727983 | BH44: 4371.787824 | BI44: =IF($D44=0," ",1/BH44) -> 0.0002287393717 | BJ44: =IF($D44=0," ",IF(BH$37<5,$J44/5*BH$37,IF(BH$37<=90,MIN(($J44+($K44-$J44)/45*(BH$37-5)),$L44),$L44-($L44-MIN(($J44+($K44-$J44)/45*85),$L44))/5*(95-BH$37)))/BH44) -> 0.001440601495 | BK44: =IF($D44=0," ",BH44*BJ44) -> 6.298004076 | BL44: 4481.08252 | BM44: =IF($D44=0," ",1/BL44) -> 0.0002231603626 | BN44: =IF($D44=0," ",IF(BL$37<5,$J44/5*BL$37,IF(BL$37<=90,MIN(($J44+($K44-$J44)/45*(BL$37-5)),$L44),$L44-($L44-MIN(($J44+($K44-$J44)/45*85),$L44))/5*(95-BL$37)))/BL44) -> 0.001463548181 | BO44: =IF($D44=0," ",BL44*BN44) -> 6.558280169 | BP44: 4595.982072 | BQ44: =IF($D44=0," ",1/BP44) -> 0.0002175813535 | BR44: =IF($D44=0," ",IF(BP$37<5,$J44/5*BP$37,IF(BP$37<=90,MIN(($J44+($K44-$J44)/45*(BP$37-5)),$L44),$L44-($L44-MIN(($J44+($K44-$J44)/45*85),$L44))/5*(95-BP$37)))/BP44) -> 0.001483590701 | BS44: =IF($D44=0," ",BP44*BR44) -> 6.818556262 | BT44: 4716.928969 | BU44: =IF($D44=0," ",1/BT44) -> 0.0002120023445 | BV44: =IF($D44=0," ",IF(BT$37<5,$J44/5*BT$37,IF(BT$37<=90,MIN(($J44+($K44-$J44)/45*(BT$37-5)),$L44),$L44-($L44-MIN(($J44+($K44-$J44)/45*85),$L44))/5*(95-BT$37)))/BT44) -> 0.001500729055 | BW44: =IF($D44=0," ",BT44*BV44) -> 7.078832355 | BX44: 4844.413535 | BY44: =IF($D44=0," ",1/BX44) -> 0.0002064233354 | BZ44: =IF($D44=0," ",IF(BX$37<5,$J44/5*BX$37,IF(BX$37<=90,MIN(($J44+($K44-$J44)/45*(BX$37-5)),$L44),$L44-($L44-MIN(($J44+($K44-$J44)/45*85),$L44))/5*(95-BX$37)))/BX44) -> 0.001514963245 | CA44: =IF($D44=0," ",BX44*BZ44) -> 7.339108448 | CB44: 4978.980578 | CC44: =IF($D44=0," ",1/CB44) -> 0.0002008443263 | CD44: =IF($D44=0," ",IF(CB$37<5,$J44/5*CB$37,IF(CB$37<=90,MIN(($J44+($K44-$J44)/45*(CB$37-5)),$L44),$L44-($L44-MIN(($J44+($K44-$J44)/45*85),$L44))/5*(95-CB$37)))/CB44) -> 0.001526293269 | CE44: =IF($D44=0," ",CB44*CD44) -> 7.599384542 | CF44: 5121.237166 | CG44: =IF($D44=0," ",1/CF44) -> 0.0001952653173 | CH44: =IF($D44=0," ",IF(CF$37<5,$J44/5*CF$37,IF(CF$37<=90,MIN(($J44+($K44-$J44)/45*(CF$37-5)),$L44),$L44-($L44-MIN(($J44+($K44-$J44)/45*85),$L44))/5*(95-CF$37)))/CF44) -> 0.001534719127 | CI44: =IF($D44=0," ",CF44*CH44) -> 7.859660635 | CJ44: 5271.861788 | CK44: =IF($D44=0," ",1/CJ44) -> 0.0001896863082 | CL44: =IF($D44=0," ",IF(CJ$37<5,$J44/5*CJ$37,IF(CJ$37<=90,MIN(($J44+($K44-$J44)/45*(CJ$37-5)),$L44),$L44-($L44-MIN(($J44+($K44-$J44)/45*85),$L44))/5*(95-CJ$37)))/CJ44) -> 0.001540240821 | CM44: =IF($D44=0," ",CJ44*CL44) -> 8.119936728 | CN44: 5431.615176 | CO44: =IF($D44=0," ",1/CN44) -> 0.0001841072991 | CP44: =IF($D44=0," ",IF(CN$37<5,$J44/5*CN$37,IF(CN$37<=90,MIN(($J44+($K44-$J44)/45*(CN$37-5)),$L44),$L44-($L44-MIN(($J44+($K44-$J44)/45*85),$L44))/5*(95-CN$37)))/CN44) -> 0.001542858349 | CQ44: =IF($D44=0," ",CN44*CP44) -> 8.380212821 | CR44: 5601.35315 | CS44: =IF($D44=0," ",1/CR44) -> 0.0001785282901 | CT44: =IF($D44=0," ",IF(CR$37<5,$J44/5*CR$37,IF(CR$37<=90,MIN(($J44+($K44-$J44)/45*(CR$37-5)),$L44),$L44-($L44-MIN(($J44+($K44-$J44)/45*85),$L44))/5*(95-CR$37)))/CR44) -> 0.001542571711 | CU44: =IF($D44=0," ",CR44*CT44) -> 8.640488914 | CV44: 5782.041961 | CW44: =IF($D44=0," ",1/CV44) -> 0.000172949281 | CX44: =IF($D44=0," ",IF(CV$37<5,$J44/5*CV$37,IF(CV$37<=90,MIN(($J44+($K44-$J44)/45*(CV$37-5)),$L44),$L44-($L44-MIN(($J44+($K44-$J44)/45*85),$L44))/5*(95-CV$37)))/CV44) -> 0.001539380908 | CY44: =IF($D44=0," ",CV44*CX44) -> 8.900765007 | CZ44: 5974.776693 | DA44: =IF($D44=0," ",1/CZ44) -> 0.0001673702719 | DB44: =IF($D44=0," ",IF(CZ$37<5,$J44/5*CZ$37,IF(CZ$37<=90,MIN(($J44+($K44-$J44)/45*(CZ$37-5)),$L44),$L44-($L44-MIN(($J44+($K44-$J44)/45*85),$L44))/5*(95-CZ$37)))/CZ44) -> 0.00153328594 | DC44: =IF($D44=0," ",CZ44*DB44) -> 9.1610411 | DD44: =IF($D44=0," ",1/($I44*(100-DD$37)/100)) -> 6180.803476 | DE44: =IF($D44=0," ",1/DD44) -> 0.0001617912629 | DF44: =IF($D44=0," ",IF(DD$37<5,$J44/5*DD$37,IF(DD$37<=90,MIN(($J44+($K44-$J44)/45*(DD$37-5)),$L44),$L44-($L44-MIN(($J44+($K44-$J44)/45*85),$L44))/5*(95-DD$37)))/DD44) -> 0.001524286807 | DG44: =IF($D44=0," ",DD44*DF44) -> 9.421317194 | DH44: 6401.546457 | DI44: =IF($D44=0," ",1/DH44) -> 0.0001562122538 | DJ44: =IF($D44=0," ",IF(DH$37<5,$J44/5*DH$37,IF(DH$37<=90,MIN(($J44+($K44-$J44)/45*(DH$37-5)),$L44),$L44-($L44-MIN(($J44+($K44-$J44)/45*85),$L44))/5*(95-DH$37)))/DH44) -> 0.001512383508 | DK44: =IF($D44=0," ",DH44*DJ44) -> 9.681593287 | DL44: 6638.640771 | DM44: =IF($D44=0," ",1/DL44) -> 0.0001506332448 | DN44: =IF($D44=0," ",IF(DL$37<5,$J44/5*DL$37,IF(DL$37<=90,MIN(($J44+($K44-$J44)/45*(DL$37-5)),$L44),$L44-($L44-MIN(($J44+($K44-$J44)/45*85),$L44))/5*(95-DL$37)))/DL44) -> 0.001497576044 | DO44: =IF($D44=0," ",DL44*DN44) -> 9.94186938 | DP44: 6893.973108 | DQ44: =IF($D44=0," ",1/DP44) -> 0.0001450542357 | DR44: =IF($D44=0," ",IF(DP$37<5,$J44/5*DP$37,IF(DP$37<=90,MIN(($J44+($K44-$J44)/45*(DP$37-5)),$L44),$L44-($L44-MIN(($J44+($K44-$J44)/45*85),$L44))/5*(95-DP$37)))/DP44) -> 0.001479864414 | DS44: =IF($D44=0," ",DP44*DR44) -> 10.20214547 | DT44: 7169.732032 | DU44: =IF($D44=0," ",1/DT44) -> 0.0001394752266 | DV44: =IF($D44=0," ",IF(DT$37<5,$J44/5*DT$37,IF(DT$37<=90,MIN(($J44+($K44-$J44)/45*(DT$37-5)),$L44),$L44-($L44-MIN(($J44+($K44-$J44)/45*85),$L44))/5*(95-DT$37)))/DT44) -> 0.001459248619 | DW44: =IF($D44=0," ",DT44*DV44) -> 10.46242157 | DX44: 7468.470867 | DY44: =IF($D44=0," ",1/DX44) -> 0.0001338962176 | DZ44: =IF($D44=0," ",IF(DX$37<5,$J44/5*DX$37,IF(DX$37<=90,MIN(($J44+($K44-$J44)/45*(DX$37-5)),$L44),$L44-($L44-MIN(($J44+($K44-$J44)/45*85),$L44))/5*(95-DX$37)))/DX44) -> 0.001435728659 | EA44: =IF($D44=0," ",DX44*DZ44) -> 10.72269766 | EB44: 7793.186991 | EC44: =IF($D44=0," ",1/EB44) -> 0.0001283172085 | ED44: =IF($D44=0," ",IF(EB$37<5,$J44/5*EB$37,IF(EB$37<=90,MIN(($J44+($K44-$J44)/45*(EB$37-5)),$L44),$L44-($L44-MIN(($J44+($K44-$J44)/45*85),$L44))/5*(95-EB$37)))/EB44) -> 0.001409304533 | EE44: =IF($D44=0," ",EB44*ED44) -> 10.98297375 | EF44: 8147.422764 | EG44: =IF($D44=0," ",1/EF44) -> 0.0001227381994 | EH44: =IF($D44=0," ",IF(EF$37<5,$J44/5*EF$37,IF(EF$37<=90,MIN(($J44+($K44-$J44)/45*(EF$37-5)),$L44),$L44-($L44-MIN(($J44+($K44-$J44)/45*85),$L44))/5*(95-EF$37)))/EF44) -> 0.001379976242 | EI44: =IF($D44=0," ",EF44*EH44) -> 11.24324985 | EJ44: 8535.395276 | EK44: =IF($D44=0," ",1/EJ44) -> 0.0001171591904 | EL44: =IF($D44=0," ",IF(EJ$37<5,$J44/5*EJ$37,IF(EJ$37<=90,MIN(($J44+($K44-$J44)/45*(EJ$37-5)),$L44),$L44-($L44-MIN(($J44+($K44-$J44)/45*85),$L44))/5*(95-EJ$37)))/EJ44) -> 0.001347743785 | EM44: =IF($D44=0," ",EJ44*EL44) -> 11.50352594 | EN44: 8962.16504 | EO44: =IF($D44=0," ",1/EN44) -> 0.0001115801813 | EP44: =IF($D44=0," ",IF(EN$37<5,$J44/5*EN$37,IF(EN$37<=90,MIN(($J44+($K44-$J44)/45*(EN$37-5)),$L44),$L44-($L44-MIN(($J44+($K44-$J44)/45*85),$L44))/5*(95-EN$37)))/EN44) -> 0.001312607163 | EQ44: =IF($D44=0," ",EN44*EP44) -> 11.76380203 | ER44: 9433.857937 | ES44: =IF($D44=0," ",1/ER44) -> 0.0001060011722 | ET44: =IF($D44=0," ",IF(ER$37<5,$J44/5*ER$37,IF(ER$37<=90,MIN(($J44+($K44-$J44)/45*(ER$37-5)),$L44),$L44-($L44-MIN(($J44+($K44-$J44)/45*85),$L44))/5*(95-ER$37)))/ER44) -> 0.001274566376 | EU44: =IF($D44=0," ",ER44*ET44) -> 12.02407812 | EV44: 9957.961156 | EW44: =IF($D44=0," ",1/EV44) -> 0.0001004221632 | EX44: =IF($D44=0," ",IF(EV$37<5,$J44/5*EV$37,IF(EV$37<=90,MIN(($J44+($K44-$J44)/45*(EV$37-5)),$L44),$L44-($L44-MIN(($J44+($K44-$J44)/45*85),$L44))/5*(95-EV$37)))/EV44) -> 0.001233621424 | EY44: =IF($D44=0," ",EV44*EX44) -> 12.28435422 | EZ44: 10543.72358 | FA44: =IF($D44=0," ",1/EZ44) -> 9.48431541e-05 | FB44: =IF($D44=0," ",IF(EZ$37<5,$J44/5*EZ$37,IF(EZ$37<=90,MIN(($J44+($K44-$J44)/45*(EZ$37-5)),$L44),$L44-($L44-MIN(($J44+($K44-$J44)/45*85),$L44))/5*(95-EZ$37)))/EZ44) -> 0.001189772306 | FC44: =IF($D44=0," ",EZ44*FB44) -> 12.54463031 | FD44: 11202.7063 | FE44: =IF($D44=0," ",1/FD44) -> 8.926414504e-05 | FF44: =IF($D44=0," ",IF(FD$37<5,$J44/5*FD$37,IF(FD$37<=90,MIN(($J44+($K44-$J44)/45*(FD$37-5)),$L44),$L44-($L44-MIN(($J44+($K44-$J44)/45*85),$L44))/5*(95-FD$37)))/FD44) -> 0.001143019022 | FG44: =IF($D44=0," ",FD44*FF44) -> 12.8049064 | FH44: 11949.55339 | FI44: =IF($D44=0," ",1/FH44) -> 8.368513597e-05 | FJ44: =IF($D44=0," ",IF(FH$37<5,$J44/5*FH$37,IF(FH$37<=90,MIN(($J44+($K44-$J44)/45*(FH$37-5)),$L44),$L44-($L44-MIN(($J44+($K44-$J44)/45*85),$L44))/5*(95-FH$37)))/FH44) -> 0.001093361574 | FK44: =IF($D44=0," ",FH44*FJ44) -> 13.0651825 | FL44: 12803.09291 | FM44: =IF($D44=0," ",1/FL44) -> 7.810612691e-05 | FN44: =IF($D44=0," ",IF(FL$37<5,$J44/5*FL$37,IF(FL$37<=90,MIN(($J44+($K44-$J44)/45*(FL$37-5)),$L44),$L44-($L44-MIN(($J44+($K44-$J44)/45*85),$L44))/5*(95-FL$37)))/FL44) -> 0.00104079996 | FO44: =IF($D44=0," ",FL44*FN44) -> 13.32545859 | FP44: =IF($D44=0," ",1/($I44*(100-FP$37)/100)) -> 13787.94622 | FQ44: =IF($D44=0," ",1/FP44) -> 7.252711784e-05 | FR44: =IF($D44=0," ",IF(FP$37<5,$J44/5*FP$37,IF(FP$37<=90,MIN(($J44+($K44-$J44)/45*(FP$37-5)),$L44),$L44-($L44-MIN(($J44+($K44-$J44)/45*85),$L44))/5*(95-FP$37)))/FP44) -> 0.0009853341804 | FS44: =IF($D44=0," ",FP44*FR44) -> 13.58573468 | FT44: 14936.94173 | FU44: =IF($D44=0," ",1/FT44) -> 6.694810878e-05 | FV44: =IF($D44=0," ",IF(FT$37<5,$J44/5*FT$37,IF(FT$37<=90,MIN(($J44+($K44-$J44)/45*(FT$37-5)),$L44),$L44-($L44-MIN(($J44+($K44-$J44)/45*85),$L44))/5*(95-FT$37)))/FT44) -> 0.0009269642356 | FW44: =IF($D44=0," ",FT44*FV44) -> 13.84601078 | FX44: 16294.84553 | FY44: =IF($D44=0," ",1/FX44) -> 6.136909971e-05 | FZ44: =IF($D44=0," ",IF(FX$37<5,$J44/5*FX$37,IF(FX$37<=90,MIN(($J44+($K44-$J44)/45*(FX$37-5)),$L44),$L44-($L44-MIN(($J44+($K44-$J44)/45*85),$L44))/5*(95-FX$37)))/FX44) -> 0.0008656901255 | GA44: =IF($D44=0," ",FX44*FZ44) -> 14.10628687 | GB44: 17924.33008 | GC44: =IF($D44=0," ",1/GB44) -> 5.579009065e-05 | GD44: =IF($D44=0," ",IF(GB$37<5,$J44/5*GB$37,IF(GB$37<=90,MIN(($J44+($K44-$J44)/45*(GB$37-5)),$L44),$L44-($L44-MIN(($J44+($K44-$J44)/45*85),$L44))/5*(95-GB$37)))/GB44) -> 0.00080151185 | GE44: =IF($D44=0," ",GB44*GD44) -> 14.36656296 | GF44: 19915.92231 | GG44: =IF($D44=0," ",1/GF44) -> 5.021108158e-05 | GH44: =IF($D44=0," ",IF(GF$37<5,$J44/5*GF$37,IF(GF$37<=90,MIN(($J44+($K44-$J44)/45*(GF$37-5)),$L44),$L44-($L44-MIN(($J44+($K44-$J44)/45*85),$L44))/5*(95-GF$37)))/GF44) -> 0.0007344294092 | GI44: =IF($D44=0," ",GF44*GH44) -> 14.62683906 | GJ44: 22405.4126 | GK44: =IF($D44=0," ",1/GJ44) -> 4.463207252e-05 | GL44: =IF($D44=0," ",IF(GJ$37<5,$J44/5*GJ$37,IF(GJ$37<=90,MIN(($J44+($K44-$J44)/45*(GJ$37-5)),$L44),$L44-($L44-MIN(($J44+($K44-$J44)/45*85),$L44))/5*(95-GJ$37)))/GJ44) -> 0.0006644428029 | GM44: =IF($D44=0," ",GJ44*GL44) -> 14.88711515 | GN44: 25606.18583 | GO44: =IF($D44=0," ",1/GN44) -> 3.905306345e-05 | GP44: =IF($D44=0," ",IF(GN$37<5,$J44/5*GN$37,IF(GN$37<=90,MIN(($J44+($K44-$J44)/45*(GN$37-5)),$L44),$L44-($L44-MIN(($J44+($K44-$J44)/45*85),$L44))/5*(95-GN$37)))/GN44) -> 0.0005915520314 | GQ44: =IF($D44=0," ",GN44*GP44) -> 15.14739124 | GR44: 29873.88347 | GS44: =IF($D44=0," ",1/GR44) -> 3.347405439e-05 | GT44: =IF($D44=0," ",IF(GR$37<5,$J44/5*GR$37,IF(GR$37<=90,MIN(($J44+($K44-$J44)/45*(GR$37-5)),$L44),$L44-($L44-MIN(($J44+($K44-$J44)/45*85),$L44))/5*(95-GR$37)))/GR44) -> 0.0005157570944 | GU44: =IF($D44=0," ",GR44*GT44) -> 15.40766734 | GV44: 35848.66016 | GW44: =IF($D44=0," ",1/GV44) -> 2.789504532e-05 | GX44: =IF($D44=0," ",IF(GV$37<5,$J44/5*GV$37,IF(GV$37<=90,MIN(($J44+($K44-$J44)/45*(GV$37-5)),$L44),$L44-($L44-MIN(($J44+($K44-$J44)/45*85),$L44))/5*(95-GV$37)))/GV44) -> 0.0004370579921 | GY44: =IF($D44=0," ",GV44*GX44) -> 15.66794343 | GZ44: 44810.8252 | HA44: =IF($D44=0," ",1/GZ44) -> 2.231603626e-05 | HB44: =IF($D44=0," ",IF(GZ$37<5,$J44/5*GZ$37,IF(GZ$37<=90,MIN(($J44+($K44-$J44)/45*(GZ$37-5)),$L44),$L44-($L44-MIN(($J44+($K44-$J44)/45*85),$L44))/5*(95-GZ$37)))/GZ44) -> 0.0003593167339 | HC44: =IF($D44=0," ",GZ44*HB44) -> 16.10127936 | HD44: 59747.76693 | HE44: =IF($D44=0," ",1/HD44) -> 1.673702719e-05 | HF44: =IF($D44=0," ",IF(HD$37<5,$J44/5*HD$37,IF(HD$37<=90,MIN(($J44+($K44-$J44)/45*(HD$37-5)),$L44),$L44-($L44-MIN(($J44+($K44-$J44)/45*85),$L44))/5*(95-HD$37)))/HD44) -> 0.0002767403056 | HG44: =IF($D44=0," ",HD44*HF44) -> 16.53461528 | HH44: 89621.6504 | HI44: =IF($D44=0," ",1/HH44) -> 1.115801813e-05 | HJ44: =IF($D44=0," ",IF(HH$37<5,$J44/5*HH$37,IF(HH$37<=90,MIN(($J44+($K44-$J44)/45*(HH$37-5)),$L44),$L44-($L44-MIN(($J44+($K44-$J44)/45*85),$L44))/5*(95-HH$37)))/HH44) -> 0.0001893287072 | HK44: =IF($D44=0," ",HH44*HJ44) -> 16.96795121 | HL44: 179243.3008 | HM44: =IF($D44=0," ",1/HL44) -> 5.579009065e-06 | HN44: =IF($D44=0," ",IF(HL$37<5,$J44/5*HL$37,IF(HL$37<=90,MIN(($J44+($K44-$J44)/45*(HL$37-5)),$L44),$L44-($L44-MIN(($J44+($K44-$J44)/45*85),$L44))/5*(95-HL$37)))/HL44) -> 9.708193868e-05 | HO44: =IF($D44=0," ",HL44*HN44) -> 17.40128714 | HQ44: =IF($D44="Full",'Failure Persistence Storage'!AB44,0) -> 3658.026547 | HR44: =IF($D44="Full",'Failure Persistence Storage'!AE44,0) -> 1.842483788 | HS44: =IF($D44="Full",'Failure Persistence Storage'!AF44,0) -> 3734.235433 | HT44: =IF($D44="Full",'Failure Persistence Storage'!AI44,0) -> 3.684967576 | HU44: =IF($D44="Full",'Failure Persistence Storage'!AJ44,0) -> 3813.687251 | HV44: =IF($D44="Full",'Failure Persistence Storage'!AM44,0) -> 4.736347517 | HW44: =IF($D44="Full",'Failure Persistence Storage'!AN44,0) -> 3896.593496 | HX44: =IF($D44="Full",'Failure Persistence Storage'!AQ44,0) -> 4.99662361 | HY44: =IF($D44="Full",'Failure Persistence Storage'!AR44,0) -> 3983.184462 | HZ44: =IF($D44="Full",'Failure Persistence Storage'!AU44,0) -> 5.256899703 | IA44: =IF($D44="Full",'Failure Persistence Storage'!AV44,0) -> 4073.711382 | IB44: =IF($D44="Full",'Failure Persistence Storage'!AY44,0) -> 5.517175797 | IC44: =IF($D44="Full",'Failure Persistence Storage'!AZ44,0) -> 4168.448856 | ID44: =IF($D44="Full",'Failure Persistence Storage'!BC44,0) -> 5.77745189 | IE44: =IF($D44="Full",'Failure Persistence Storage'!BD44,0) -> 4267.697638 | IF44: =IF($D44="Full",'Failure Persistence Storage'!BG44,0) -> 6.037727983 | IG44: =IF($D44="Full",'Failure Persistence Storage'!BH44,0) -> 4371.787824 | IH44: =IF($D44="Full",'Failure Persistence Storage'!BK44,0) -> 6.298004076 | II44: =IF($D44="Full",'Failure Persistence Storage'!BL44,0) -> 4481.08252 | IJ44: =IF($D44="Full",'Failure Persistence Storage'!BO44,0) -> 6.558280169 | IK44: =IF($D44="Full",'Failure Persistence Storage'!BP44,0) -> 4595.982072 | IL44: =IF($D44="Full",'Failure Persistence Storage'!BS44,0) -> 6.818556262 | IM44: =IF($D44="Full",'Failure Persistence Storage'!BT44,0) -> 4716.928969 | IN44: =IF($D44="Full",'Failure Persistence Storage'!BW44,0) -> 7.078832355 | IO44: =IF($D44="Full",'Failure Persistence Storage'!BX44,0) -> 4844.413535 | IP44: =IF($D44="Full",'Failure Persistence Storage'!CA44,0) -> 7.339108448 | IQ44: =IF($D44="Full",'Failure Persistence Storage'!CB44,0) -> 4978.980578 | IR44: =IF($D44="Full",'Failure Persistence Storage'!CE44,0) -> 7.599384542 | IS44: =IF($D44="Full",'Failure Persistence Storage'!CF44,0) -> 5121.237166 | IT44: =IF($D44="Full",'Failure Persistence Storage'!CI44,0) -> 7.859660635 | IU44: =IF($D44="Full",'Failure Persistence Storage'!CJ44,0) -> 5271.861788 | IV44: =IF($D44="Full",'Failure Persistence Storage'!CM44,0) -> 8.119936728 | IW44: =IF($D44="Full",'Failure Persistence Storage'!CN44,0) -> 5431.615176 | IX44: =IF($D44="Full",'Failure Persistence Storage'!CQ44,0) -> 8.380212821 | IY44: =IF($D44="Full",'Failure Persistence Storage'!CR44,0) -> 5601.35315 | IZ44: =IF($D44="Full",'Failure Persistence Storage'!CU44,0) -> 8.640488914 | JA44: =IF($D44="Full",'Failure Persistence Storage'!CV44,0) -> 5782.041961 | JB44: =IF($D44="Full",'Failure Persistence Storage'!CY44,0) -> 8.900765007 | JC44: =IF($D44="Full",'Failure Persistence Storage'!CZ44,0) -> 5974.776693 | JD44: =IF($D44="Full",'Failure Persistence Storage'!DC44,0) -> 9.1610411 | JE44: =IF($D44="Full",'Failure Persistence Storage'!DD44,0) -> 6180.803476 | JF44: =IF($D44="Full",'Failure Persistence Storage'!DG44,0) -> 9.421317194 | JG44: =IF($D44="Full",'Failure Persistence Storage'!DH44,0) -> 6401.546457 | JH44: =IF($D44="Full",'Failure Persistence Storage'!DK44,0) -> 9.681593287 | JI44: =IF($D44="Full",'Failure Persistence Storage'!DL44,0) -> 6638.640771 | JJ44: =IF($D44="Full",'Failure Persistence Storage'!DO44,0) -> 9.94186938 | JK44: =IF($D44="Full",'Failure Persistence Storage'!DP44,0) -> 6893.973108 | JL44: =IF($D44="Full",'Failure Persistence Storage'!DS44,0) -> 10.20214547 | JM44: =IF($D44="Full",'Failure Persistence Storage'!DT44,0) -> 7169.732032 | JN44: =IF($D44="Full",'Failure Persistence Storage'!DW44,0) -> 10.46242157 | JO44: =IF($D44="Full",'Failure Persistence Storage'!DX44,0) -> 7468.470867 | JP44: =IF($D44="Full",'Failure Persistence Storage'!EA44,0) -> 10.72269766 | JQ44: =IF($D44="Full",'Failure Persistence Storage'!EB44,0) -> 7793.186991 | JR44: =IF($D44="Full",'Failure Persistence Storage'!EE44,0) -> 10.98297375 | JS44: =IF($D44="Full",'Failure Persistence Storage'!EF44,0) -> 8147.422764 | JT44: =IF($D44="Full",'Failure Persistence Storage'!EI44,0) -> 11.24324985 | JU44: =IF($D44="Full",'Failure Persistence Storage'!EJ44,0) -> 8535.395276 | JV44: =IF($D44="Full",'Failure Persistence Storage'!EM44,0) -> 11.50352594 | JW44: =IF($D44="Full",'Failure Persistence Storage'!EN44,0) -> 8962.16504 | JX44: =IF($D44="Full",'Failure Persistence Storage'!EQ44,0) -> 11.76380203 | JY44: =IF($D44="Full",'Failure Persistence Storage'!ER44,0) -> 9433.857937 | JZ44: =IF($D44="Full",'Failure Persistence Storage'!EU44,0) -> 12.02407812 | KA44: =IF($D44="Full",'Failure Persistence Storage'!EV44,0) -> 9957.961156 | KB44: =IF($D44="Full",'Failure Persistence Storage'!EY44,0) -> 12.28435422 | KC44: =IF($D44="Full",'Failure Persistence Storage'!EZ44,0) -> 10543.72358 | KD44: =IF($D44="Full",'Failure Persistence Storage'!FC44,0) -> 12.54463031 | KE44: =IF($D44="Full",'Failure Persistence Storage'!FD44,0) -> 11202.7063 | KF44: =IF($D44="Full",'Failure Persistence Storage'!FG44,0) -> 12.8049064 | KG44: =IF($D44="Full",'Failure Persistence Storage'!FH44,0) -> 11949.55339 | KH44: =IF($D44="Full",'Failure Persistence Storage'!FK44,0) -> 13.0651825 | KI44: =IF($D44="Full",'Failure Persistence Storage'!FL44,0) -> 12803.09291 | KJ44: =IF($D44="Full",'Failure Persistence Storage'!FO44,0) -> 13.32545859 | KK44: =IF($D44="Full",'Failure Persistence Storage'!FP44,0) -> 13787.94622 | KL44: =IF($D44="Full",'Failure Persistence Storage'!FS44,0) -> 13.58573468 | KM44: =IF($D44="Full",'Failure Persistence Storage'!FT44,0) -> 14936.94173 | KN44: =IF($D44="Full",'Failure Persistence Storage'!FW44,0) -> 13.84601078 | KO44: =IF($D44="Full",'Failure Persistence Storage'!FX44,0) -> 16294.84553 | KP44: =IF($D44="Full",'Failure Persistence Storage'!GA44,0) -> 14.10628687 | KQ44: =IF($D44="Full",'Failure Persistence Storage'!GB44,0) -> 17924.33008 | KR44: =IF($D44="Full",'Failure Persistence Storage'!GE44,0) -> 14.36656296 | KS44: =IF($D44="Full",'Failure Persistence Storage'!GF44,0) -> 19915.92231 | KT44: =IF($D44="Full",'Failure Persistence Storage'!GI44,0) -> 14.62683906 | KU44: =IF($D44="Full",'Failure Persistence Storage'!GJ44,0) -> 22405.4126 | KV44: =IF($D44="Full",'Failure Persistence Storage'!GM44,0) -> 14.88711515 | KW44: =IF($D44="Full",'Failure Persistence Storage'!GN44,0) -> 25606.18583 | KX44: =IF($D44="Full",'Failure Persistence Storage'!GQ44,0) -> 15.14739124 | KY44: =IF($D44="Full",'Failure Persistence Storage'!GR44,0) -> 29873.88347 | KZ44: =IF($D44="Full",'Failure Persistence Storage'!GU44,0) -> 15.40766734 | LA44: =IF($D44="Full",'Failure Persistence Storage'!GV44,0) -> 35848.66016 | LB44: =IF($D44="Full",'Failure Persistence Storage'!GY44,0) -> 15.66794343 | LC44: =IF($D44="Full",'Failure Persistence Storage'!GZ44,0) -> 44810.8252 | LD44: =IF($D44="Full",'Failure Persistence Storage'!HC44,0) -> 16.10127936 | LE44: =IF($D44="Full",'Failure Persistence Storage'!HD44,0) -> 59747.76693 | LF44: =IF($D44="Full",'Failure Persistence Storage'!HG44,0) -> 16.53461528 | LG44: =IF($D44="Full",'Failure Persistence Storage'!HH44,0) -> 89621.6504 | LH44: =IF($D44="Full",'Failure Persistence Storage'!HK44,0) -> 16.96795121 | LI44: =IF($D44="Full",'Failure Persistence Storage'!HL44,0) -> 179243.3008 | LJ44: =IF($D44="Full",'Failure Persistence Storage'!HO44,0) -> 17.40128714
